Workbook

Sheet Disclaimer
B2: =+Cover!D26 -> CAV - Nuovo Sistema Tariffario
B3: Disclaimer
B5: =+Cover!D30 -> 2019-07-31
B7: This financial model (“Model”) has been developed by PricewaterhouseCoopers Advisory. Each recipient must read this PricewaterhouseCoopers Advisory Model Disclaimer (“Disclaimer”) before reviewing the Model or any information contained in the Model. By accepting receipt of the Model, each recipient acknowledges and agrees that the Model is provided to the recipient on the express understanding that: 1. The model contains information that is strictly confidential. The recipient agrees not to directly or indirectly disclose to any other person, copy, use, publish or record in any form the whole or any part of the Model or any information contained in the Model, without the prior written consent of PricewaterhouseCoopers Advisory. 2. The recipient agrees to use the Model only for the purpose of analysing the economics associated with the Buyer to which the Model relates ("Project"). The Model must not be used for any other purpose or by any other person. 3. The information contained in the Model, including the assumptions upon which the Model is based, has been provided to the Buyer from third party sources and/or available from public sources. PricewaterhouseCoopers Advisory provides the Model to you without endorsement or recommendation. PricewaterhouseCoopers Advisory has not verified the fairness, accuracy, reliability and completeness of the Model, including any of the information or calculations contained in the Model or the assumptions upon which it is based. Neither PricewaterhouseCoopers Advisory, its related bodies corporate or its affiliates or any of their or its directors, officers, employees or agents (“PricewaterhouseCoopers Advisory Parties”) assume any responsibility for the information or calculations contained in the Model, including the assumptions upon which the Model is based, or make any warranties or representations regarding the fairness, accuracy, reliability, reasonableness or completeness of the Model or that information, calculations or those assumptions nor any warranties or representations that any PricewaterhouseCoopers Advisory Party will update any information or correct any error or omission in the Model which may become apparent after the Model has been provided to you. 4. The Model may contain certain projections, forecasts and forward looking statements ("Projections") which may or may not prove to be correct. The recipient acknowledges that these Projections are speculative, subject to various risks and uncertainties, that actual future results may vary from the Projections and that circumstances may change and the contents of the Model, and the information and calculations contained therein (including assumptions upon which it is based) may become outdated as a result. 5. No audit of the Model or the information or calculations contained in the Model or the assumptions upon which it is based has been undertaken by an independent third party. 6. By retaining and using the Model, the recipient represents to PricewaterhouseCoopers Advisory that the recipient is capable of making its own independent assessment as to the validity of the assumptions, data, calculations and results contained in the Model and the economic, financial, regulatory, legal, taxation, stamp duty and accounting implications of those assumptions, data, calculations and results and is not relying on any recommendation or statement by PricewaterhouseCoopers Advisory or any other PricewaterhouseCoopers Advisory Parties. 7. The recipient acknowledges that, to the maximum extent permitted by law, PricewaterhouseCoopers Advisory and each other PricewaterhouseCoopers Advisory Parties: a. do not assume responsibility to the recipient or to any other person; and b. exclude and disclaim all liability (whether direct, indirect or consequential) to the recipient or to any other person, 8. Each person who receives this Model does so on the basis of the matters outlined above and on condition that it agrees that: a. it shall not seek to sue or hold PricewaterhouseCoopers Advisory or any other PricewaterhouseCoopers Advisory Parties liable in any such respect for the development, provision, distribution, use or misuse of this Model; and b. it indemnifies each PricewaterhouseCoopers Advisory Parties against any loss or damage of any kind howsoever arising as a result of any failure by the recipient to use the Model in accordance with the terms of this Disclaimer

Sheet Cover
B2: =+D26 -> CAV - Nuovo Sistema Tariffario
B3: Cover
B26: Project Name | D26: CAV - Nuovo Sistema Tariffario
B27: Client | D27: CAV S.p.A. - Concessioni Autostradali Venete
B28: Advisor | D28: PwC
B29: Version | D29: Final
B30: Data | D30: 2019-07-31

Sheet Dashboard
B2: =+Cover!D26 -> CAV - Nuovo Sistema Tariffario
B3: Dashboard
B6: Macro | F6: Sensitivity Panel - Efficientamento costi PEF ART
C8: Run PFR ART | F8: SCENARIO
F9: Selected scenario | G9: 1 | I9: 1 | J9: 2 | K9: 3
C10: Run PFR CIPE | F10: Scenario Name | G10: =+OFFSET(I10,,$G$9-1) -> NO efficienamento costi PEF ART | I10: NO efficienamento costi PEF ART | J10: SI efficienamento costi PEF ART
C11: Run Isopedaggio | F11: Scenario Input | G11: =+OFFSET(I11,,$G$9-1) -> 0 | I11: 0 | J11: -0.0513
C12: ART
F13: =+"OUTPUT Scenario "&G9&" - "&G10 -> OUTPUT Scenario 1 - NO efficienamento costi PEF ART
F14: 2020-2032
B15: Check | H15: ART | I15: CIPE | J15: DELTA | K15: NPV DELTA
F16: Ricavi | G16: €'000 | H16: =SUM(Prospetti_ART!$P$21:$AB$21) -> 2046705.789 | I16: =SUM(Prospetti_CIPE!$P$21:$AB$21) -> 2144261.384 | J16: =+I16-H16 -> 97555.59486 | K16: =+Delta!I19 -> 51525.90307
C17: Model Check | D17: =+D19+D26+D33 -> 0 | F17: EBITDA | G17: €'000 | H17: =SUM(Prospetti_ART!$P$32:$AB$32) -> 1304416.679 | I17: =SUM(Prospetti_CIPE!$P$32:$AB$32) -> 1399630.94 | J17: 95214.26059 | K17: =+Delta!I22 -> 50289.28139
F18: Utile | G18: €'000 | H18: =SUM(Prospetti_ART!$P$56:$AB$56) -> 412136.9259 | I18: =SUM(Prospetti_CIPE!$P$56:$AB$56) -> 480910.3451 | J18: 68773.41918 | K18: =+Delta!I25 -> 36320.1346
C19: Macro Check | D19: =+SUM(D21:D24) -> 0 | F19: FCFO | G19: €'000 | H19: =SUM(Prospetti_ART!$P$159:$AB$159) -> 1289252.96 | I19: =SUM(Prospetti_CIPE!$P$159:$AB$159) -> 1374804.828 | J19: 85551.86864 | K19: =+Delta!I28 -> 45839.06852
F20: FCFE | G20: €'000 | H20: =SUM(Prospetti_ART!$P$145:$AB$145) -> 457784.0781 | I20: =SUM(Prospetti_CIPE!$P$145:$AB$145) -> 516895.1054 | J20: 59111.02723 | K20: =+Delta!I490 -> 34531.86497
C21: PFR ART | D21: =+Delta_Rev_Cost -> 0 | F21: Dividendi | G21: €'000 | H21: =-SUM(Prospetti_ART!$P$148:$AB$149) -> 577601.9373 | I21: =-SUM(Prospetti_CIPE!$P$148:$AB$149) -> 646375.3565 | J21: 68773.41918 | K21: =+Delta!I493 -> 37981.9964
C22: PFR CIPE | D22: =+Check_CIPE -> 0 | F22: N° distribution block | G22: n | H22: =+Covenant!$F$66 -> 6 | I22: =+Covenant!$F$68 -> 6 | J22: =-I22+H22 -> 0
C23: Isopedaggio ART | D23: =+Check_isopedaggio_art -> 0 | F23: N° default | G23: n | H23: =++COUNTIF(Covenant!$R$72:$AQ$72,1) -> 1 | I23: =++COUNTIF(Covenant!$R$71:$AQ$71,1) -> 1 | J23: =-I23+H23 -> 0
C24: Isopedaggio CIPE | D24: =+Check_isopedaggio_cipe -> 0 | F24: Project IRR pre tax | G24: % | H24: =+Delta!$E$496 -> 0.1270734015 | I24: =+Delta!$F$496 -> 0.1365336161 | J24: =+I24-H24 -> 0.00946021463
F25: Project IRR post tax | G25: % | H25: =+Delta!$E$499 -> 0.1027700228 | I25: =+Delta!$F$499 -> 0.1102953502 | J25: =+I25-H25 -> 0.007525327463
C26: Output check | D26: =+SUM(D28:D31) -> 0 | F26: IRR azionisti | G26: % | H26: =+Prospetti_ART!I161 -> 0.1688326873 | I26: =+Prospetti_CIPE!I161 -> 0.1834740291 | J26: =+I26-H26 -> 0.01464134177
C28: PEF ART | D28: =+PEF_ART!F7 -> 0 | F28: TIR lett. B ART | G28: % | H28: =+TIR!D17 -> 0.07103043134
C29: PFR ART | D29: =+PFR_ART!F7 -> 0 | F29: Tariffa PFR ART | G29: % | H29: =+Delta_PF -> -0.006091978877
C30: PEF CIPE | D30: =+PEF_CIPE!F7 -> 0 | F30: Tariffa Long-Run CIPE | G30: % | I30: =+H75 -> 0.0005710800112
C31: PFR CIPE | D31: =+'PFR CIPE'!F7 -> 0
C33: Working check | D33: =+SUM(D35:D41) -> 0 | F33: OUTPUT Scenario 2 - SI efficienamento costi PEF ART [PASTED VALUE]
F34: 2020-2032
C35: Input sheet | D35: =+Input!F7 -> 0 | H35: ART | I35: CIPE | J35: DELTA | K35: NPV DELTA
C36: Working sheet | D36: =+Working!F7 -> 0 | F36: Ricavi | G36: €'000
C37: Y ART sheet | D37: =+Prospetti_ART!F7 -> 0 | F37: EBITDA | G37: €'000
C38: Y CIPE sheet | D38: =+Prospetti_CIPE!F7 -> 0 | F38: Utile | G38: €'000
C39: Actual sheet | D39: =+Actual!F7 -> 0 | F39: FCFO | G39: €'000
F40: FCFE | G40: €'000
F41: Dividendi | G41: €'000
F42: N° distribution block | G42: n
B43: CODE | F43: N° default | G43: n
F44: Project IRR pre tax | G44: %
C45: Input | D45: 1000 | F45: Project IRR post tax | G45: %
F46: IRR azionisti | G46: %
C47: Flag formula | D47: 1
F48: TIR lett. B ART | G48: %
C49: Calculated | D49: 1000 | F49: Tariffa PFR ART | G49: %
F50: Tariffa Long-Run CIPE | G50: %
C51: Link
C52: Link to other sheet | D52: 1000
C53: Link within sheet | D53: 1000 | F53: Sensitivity Panel - Aggiornamento PFR CIPE
C54: Scenario linked Input | D54: 1000
F55: SCENARIO
C56: Locked cell | D56: 1000 | F56: Selected scenario | H56: 2 | I56: 1 | J56: 2 | K56: 3 | L56: 4 | M56: 5 | N56: 6
F57: Scenario name | H57: =+OFFSET(I57,,$H$56-1) -> Aggiornamento ex 39/2017 CIPE | I57: Aggiornamento + efficientamento X | J57: Aggiornamento ex 39/2017 CIPE | K57: Aggiornamento Volumi+Inflazione | L57: Aggiornamento Volumi | M57: Aggiornamento Inflazione | N57: Aggiornamento Investimenti
C58: Check
C59: Positive check | D59: 0 | F59: Sensitivity Aggiornamento PFR CIPE
C60: Negative check | D60: 1 | F60: Volumi Traffico | H60: =+OFFSET(I60,,$H$56-1) -> 1 | I60: 1 | J60: 1 | K60: 1 | L60: 1 | M60: 0 | N60: 0
F61: Inflazione | H61: =+OFFSET(I61,,$H$56-1) -> 1 | I61: 1 | J61: 1 | K61: 1 | L61: 0 | M61: 1 | N61: 0
C62: Macro Accuracy | D62: 2 | F62: Costi ammessi | H62: =+OFFSET(I62,,$H$56-1) -> 1 | I62: 1 | J62: 1 | K62: 0 | L62: 0 | M62: 0 | N62: 0
F63: Efficientamento Costi (5,13%) | H63: =+OFFSET(I63,,$H$56-1) -> 0 | I63: 1 | J63: 0 | K63: 0 | L63: 0 | M63: 0 | N63: 0
F66: OUTPUT - Aggiornamento PFR CIPE
F68: SCENARIO
F69: Selected number | H69: =+H56 -> 2 | I69: =+I56 -> 1 | J69: 2 | K69: 3 | L69: 4 | M69: 5 | N69: 6
F70: Scenario name | H70: Aggiornamento ex 39/2017 CIPE | I70: Aggiornamento + efficientamento X | J70: Aggiornamento ex 39/2017 CIPE | K70: Aggiornamento Volumi+Inflazione | L70: Aggiornamento Volumi | M70: Aggiornamento Inflazione | N70: Aggiornamento Investimenti
F72: PFR CIPE | G72: Unit
F73: Delta tariffa 1° anno | G73: % | H73: =+'PFR CIPE'!P413 -> 0.0092
B74: Macro ACE | F74: Delta tariffa 2°/5° anno | G74: % | H74: =+'PFR CIPE'!Q413 -> 0.01226924272
F75: Delta tariffa dal 6° anno | G75: % | H75: =+'PFR CIPE'!U413 -> 0.0005710800112
B76: Run deduzione ACE | D76: =ACE_Check_ART -> 0 | F76: PF X | G76: % | H76: =+FattoreX_CIPE -> -0.005028919989
B77: ART | F77: PF K | G77: % | H77: =+FattoreK_CIPE -> 0.01169816271
F78: TIR lett. B ART | G78: % | H78: =+TIR!D17 -> 0.07103043134
B79: Run deduzione ACE | D79: =ACE_Check_CIPE -> 0 | F79: TIR "Anas" | G79: % | H79: =+'PFR CIPE'!E429 -> 0.1308200383
B80: CIPE
F82: OUTPUT - Trend tariffe e covenant
F84: ANNO | H84: =PFR_ART!O7 -> 2019 | I84: =PFR_ART!P7 -> 2020 | J84: =PFR_ART!Q7 -> 2021 | K84: =PFR_ART!R7 -> 2022 | L84: =PFR_ART!S7 -> 2023 | M84: =PFR_ART!T7 -> 2024 | N84: =PFR_ART!U7 -> 2025 | O84: =PFR_ART!V7 -> 2026 | P84: =PFR_ART!W7 -> 2027 | Q84: =PFR_ART!X7 -> 2028 | R84: =PFR_ART!Y7 -> 2029 | S84: =PFR_ART!Z7 -> 2030 | T84: =PFR_ART!AA7 -> 2031 | U84: =PFR_ART!AB7 -> 2032
F85: Sistema Tariffario CIPE | H85: =SUMIFS(Working!$N$161:$AQ$161,Working!$N$7:$AQ$7,H$84,Working!$N$9:$AQ$9,"12") -> 0.07789839984 | I85: =SUMIFS(Working!$N$161:$AQ$161,Working!$N$7:$AQ$7,I$84,Working!$N$9:$AQ$9,"12") -> 0.08433615205 | J85: =SUMIFS(Working!$N$161:$AQ$161,Working!$N$7:$AQ$7,J$84,Working!$N$9:$AQ$9,"12") -> 0.08035126409 | K85: =SUMIFS(Working!$N$161:$AQ$161,Working!$N$7:$AQ$7,K$84,Working!$N$9:$AQ$9,"12") -> 0.08060097478 | L85: =SUMIFS(Working!$N$161:$AQ$161,Working!$N$7:$AQ$7,L$84,Working!$N$9:$AQ$9,"12") -> 0.08126642408 | M85: =SUMIFS(Working!$N$161:$AQ$161,Working!$N$7:$AQ$7,M$84,Working!$N$9:$AQ$9,"12") -> 0.08211770644 | N85: =SUMIFS(Working!$N$161:$AQ$161,Working!$N$7:$AQ$7,N$84,Working!$N$9:$AQ$9,"12") -> 0.08217190151 | O85: =SUMIFS(Working!$N$161:$AQ$161,Working!$N$7:$AQ$7,O$84,Working!$N$9:$AQ$9,"12") -> 0.08224413026 | P85: =SUMIFS(Working!$N$161:$AQ$161,Working!$N$7:$AQ$7,P$84,Working!$N$9:$AQ$9,"12") -> 0.0823203939 | Q85: =SUMIFS(Working!$N$161:$AQ$161,Working!$N$7:$AQ$7,Q$84,Working!$N$9:$AQ$9,"12") -> 0.08240563569 | R85: =SUMIFS(Working!$N$161:$AQ$161,Working!$N$7:$AQ$7,R$84,Working!$N$9:$AQ$9,"12") -> 0.08248949772 | S85: =SUMIFS(Working!$N$161:$AQ$161,Working!$N$7:$AQ$7,S$84,Working!$N$9:$AQ$9,"12") -> 0.08257332951 | T85: =SUMIFS(Working!$N$161:$AQ$161,Working!$N$7:$AQ$7,T$84,Working!$N$9:$AQ$9,"12") -> 0.08265712984 | U85: =SUMIFS(Working!$N$161:$AQ$161,Working!$N$7:$AQ$7,U$84,Working!$N$9:$AQ$9,"12") -> 0.08274089752
F86: Sistema Tariffario ART | H86: =SUMIFS(Working!$N$139:$AQ$139,Working!$N$7:$AQ$7,H$84,Working!$N$9:$AQ$9,"12") -> 0.07789839984 | I86: =SUMIFS(Working!$N$139:$AQ$139,Working!$N$7:$AQ$7,I$84,Working!$N$9:$AQ$9,"12") -> 0.08433615205 | J86: =SUMIFS(Working!$N$139:$AQ$139,Working!$N$7:$AQ$7,J$84,Working!$N$9:$AQ$9,"12") -> 0.0801594745 | K86: =SUMIFS(Working!$N$139:$AQ$139,Working!$N$7:$AQ$7,K$84,Working!$N$9:$AQ$9,"12") -> 0.08021576686 | L86: =SUMIFS(Working!$N$139:$AQ$139,Working!$N$7:$AQ$7,L$84,Working!$N$9:$AQ$9,"12") -> 0.08021158981 | M86: =SUMIFS(Working!$N$139:$AQ$139,Working!$N$7:$AQ$7,M$84,Working!$N$9:$AQ$9,"12") -> 0.07962903398 | N86: =SUMIFS(Working!$N$139:$AQ$139,Working!$N$7:$AQ$7,N$84,Working!$N$9:$AQ$9,"12") -> 0.07916090753 | O86: =SUMIFS(Working!$N$139:$AQ$139,Working!$N$7:$AQ$7,O$84,Working!$N$9:$AQ$9,"12") -> 0.0787133553 | P86: =SUMIFS(Working!$N$139:$AQ$139,Working!$N$7:$AQ$7,P$84,Working!$N$9:$AQ$9,"12") -> 0.07827270926 | Q86: =SUMIFS(Working!$N$139:$AQ$139,Working!$N$7:$AQ$7,Q$84,Working!$N$9:$AQ$9,"12") -> 0.07784235588 | R86: =SUMIFS(Working!$N$139:$AQ$139,Working!$N$7:$AQ$7,R$84,Working!$N$9:$AQ$9,"12") -> 0.07741356774 | S86: =SUMIFS(Working!$N$139:$AQ$139,Working!$N$7:$AQ$7,S$84,Working!$N$9:$AQ$9,"12") -> 0.0769864253 | T86: =SUMIFS(Working!$N$139:$AQ$139,Working!$N$7:$AQ$7,T$84,Working!$N$9:$AQ$9,"12") -> 0.07656211241 | U86: =SUMIFS(Working!$N$139:$AQ$139,Working!$N$7:$AQ$7,U$84,Working!$N$9:$AQ$9,"12") -> 0.07614061555
F120: Sistema ART | G120: Blocco dei dividendi | H120: Evento di default | I120: =I84 -> 2020 | J120: 2021 | K120: 2022 | L120: 2023 | M120: 2024 | N120: 2025 | O120: 2026 | P120: 2027 | Q120: 2028 | R120: 2029 | S120: 2030 | T120: 2031 | U120: 2032
F122: Historic DSCR | G122: 1.3 | H122: 1.05 | I122: =SUMIFS(Covenant_ART!$R$16:$AQ$16,Covenant_ART!$R$7:$AQ$7,I$120,Covenant_ART!$R$9:$AQ$9,"12") -> 0.8 | J122: =SUMIFS(Covenant_ART!$R$16:$AQ$16,Covenant_ART!$R$7:$AQ$7,J$120,Covenant_ART!$R$9:$AQ$9,"12") -> 1.23 | K122: =SUMIFS(Covenant_ART!$R$16:$AQ$16,Covenant_ART!$R$7:$AQ$7,K$120,Covenant_ART!$R$9:$AQ$9,"12") -> 1.06 | L122: =SUMIFS(Covenant_ART!$R$16:$AQ$16,Covenant_ART!$R$7:$AQ$7,L$120,Covenant_ART!$R$9:$AQ$9,"12") -> 1.39 | M122: =SUMIFS(Covenant_ART!$R$16:$AQ$16,Covenant_ART!$R$7:$AQ$7,M$120,Covenant_ART!$R$9:$AQ$9,"12") -> 1.57 | N122: =SUMIFS(Covenant_ART!$R$16:$AQ$16,Covenant_ART!$R$7:$AQ$7,N$120,Covenant_ART!$R$9:$AQ$9,"12") -> 1.34 | O122: =SUMIFS(Covenant_ART!$R$16:$AQ$16,Covenant_ART!$R$7:$AQ$7,O$120,Covenant_ART!$R$9:$AQ$9,"12") -> 1.31 | P122: =SUMIFS(Covenant_ART!$R$16:$AQ$16,Covenant_ART!$R$7:$AQ$7,P$120,Covenant_ART!$R$9:$AQ$9,"12") -> 1.45 | Q122: =SUMIFS(Covenant_ART!$R$16:$AQ$16,Covenant_ART!$R$7:$AQ$7,Q$120,Covenant_ART!$R$9:$AQ$9,"12") -> 1.45 | R122: =SUMIFS(Covenant_ART!$R$16:$AQ$16,Covenant_ART!$R$7:$AQ$7,R$120,Covenant_ART!$R$9:$AQ$9,"12") -> 1.46 | S122: =SUMIFS(Covenant_ART!$R$16:$AQ$16,Covenant_ART!$R$7:$AQ$7,S$120,Covenant_ART!$R$9:$AQ$9,"12") -> 1.7 | T122: =SUMIFS(Covenant_ART!$R$16:$AQ$16,Covenant_ART!$R$7:$AQ$7,T$120,Covenant_ART!$R$9:$AQ$9,"12") -> 0 | U122: =SUMIFS(Covenant_ART!$R$16:$AQ$16,Covenant_ART!$R$7:$AQ$7,U$120,Covenant_ART!$R$9:$AQ$9,"12") -> 0
F123: Projected DSCR | G123: 1.3 | H123: 1.05 | I123: =SUMIFS(Covenant_ART!$R$23:$AQ$23,Covenant_ART!$R$7:$AQ$7,I$120,Covenant_ART!$R$9:$AQ$9,"12") -> 1.23 | J123: =SUMIFS(Covenant_ART!$R$23:$AQ$23,Covenant_ART!$R$7:$AQ$7,J$120,Covenant_ART!$R$9:$AQ$9,"12") -> 1.06 | K123: =SUMIFS(Covenant_ART!$R$23:$AQ$23,Covenant_ART!$R$7:$AQ$7,K$120,Covenant_ART!$R$9:$AQ$9,"12") -> 1.39 | L123: =SUMIFS(Covenant_ART!$R$23:$AQ$23,Covenant_ART!$R$7:$AQ$7,L$120,Covenant_ART!$R$9:$AQ$9,"12") -> 1.57 | M123: =SUMIFS(Covenant_ART!$R$23:$AQ$23,Covenant_ART!$R$7:$AQ$7,M$120,Covenant_ART!$R$9:$AQ$9,"12") -> 1.34 | N123: =SUMIFS(Covenant_ART!$R$23:$AQ$23,Covenant_ART!$R$7:$AQ$7,N$120,Covenant_ART!$R$9:$AQ$9,"12") -> 1.31 | O123: =SUMIFS(Covenant_ART!$R$23:$AQ$23,Covenant_ART!$R$7:$AQ$7,O$120,Covenant_ART!$R$9:$AQ$9,"12") -> 1.45 | P123: =SUMIFS(Covenant_ART!$R$23:$AQ$23,Covenant_ART!$R$7:$AQ$7,P$120,Covenant_ART!$R$9:$AQ$9,"12") -> 1.45 | Q123: =SUMIFS(Covenant_ART!$R$23:$AQ$23,Covenant_ART!$R$7:$AQ$7,Q$120,Covenant_ART!$R$9:$AQ$9,"12") -> 1.46 | R123: =SUMIFS(Covenant_ART!$R$23:$AQ$23,Covenant_ART!$R$7:$AQ$7,R$120,Covenant_ART!$R$9:$AQ$9,"12") -> 1.7 | S123: =SUMIFS(Covenant_ART!$R$23:$AQ$23,Covenant_ART!$R$7:$AQ$7,S$120,Covenant_ART!$R$9:$AQ$9,"12") -> 0 | T123: =SUMIFS(Covenant_ART!$R$23:$AQ$23,Covenant_ART!$R$7:$AQ$7,T$120,Covenant_ART!$R$9:$AQ$9,"12") -> 0 | U123: =SUMIFS(Covenant_ART!$R$23:$AQ$23,Covenant_ART!$R$7:$AQ$7,U$120,Covenant_ART!$R$9:$AQ$9,"12") -> 0
F124: Projected BLCR | G124: 1.4 | H124: 1.15 | I124: =SUMIFS(Covenant_ART!$R$30:$AQ$30,Covenant_ART!$R$7:$AQ$7,I$120,Covenant_ART!$R$9:$AQ$9,"12") -> 1.44 | J124: =SUMIFS(Covenant_ART!$R$30:$AQ$30,Covenant_ART!$R$7:$AQ$7,J$120,Covenant_ART!$R$9:$AQ$9,"12") -> 1.47 | K124: =SUMIFS(Covenant_ART!$R$30:$AQ$30,Covenant_ART!$R$7:$AQ$7,K$120,Covenant_ART!$R$9:$AQ$9,"12") -> 1.53 | L124: =SUMIFS(Covenant_ART!$R$30:$AQ$30,Covenant_ART!$R$7:$AQ$7,L$120,Covenant_ART!$R$9:$AQ$9,"12") -> 1.54 | M124: =SUMIFS(Covenant_ART!$R$30:$AQ$30,Covenant_ART!$R$7:$AQ$7,M$120,Covenant_ART!$R$9:$AQ$9,"12") -> 1.54 | N124: =SUMIFS(Covenant_ART!$R$30:$AQ$30,Covenant_ART!$R$7:$AQ$7,N$120,Covenant_ART!$R$9:$AQ$9,"12") -> 1.57 | O124: =SUMIFS(Covenant_ART!$R$30:$AQ$30,Covenant_ART!$R$7:$AQ$7,O$120,Covenant_ART!$R$9:$AQ$9,"12") -> 1.64 | P124: =SUMIFS(Covenant_ART!$R$30:$AQ$30,Covenant_ART!$R$7:$AQ$7,P$120,Covenant_ART!$R$9:$AQ$9,"12") -> 1.71 | Q124: =SUMIFS(Covenant_ART!$R$30:$AQ$30,Covenant_ART!$R$7:$AQ$7,Q$120,Covenant_ART!$R$9:$AQ$9,"12") -> 1.84 | R124: =SUMIFS(Covenant_ART!$R$30:$AQ$30,Covenant_ART!$R$7:$AQ$7,R$120,Covenant_ART!$R$9:$AQ$9,"12") -> 2.25 | S124: =SUMIFS(Covenant_ART!$R$30:$AQ$30,Covenant_ART!$R$7:$AQ$7,S$120,Covenant_ART!$R$9:$AQ$9,"12") -> 0 | T124: =SUMIFS(Covenant_ART!$R$30:$AQ$30,Covenant_ART!$R$7:$AQ$7,T$120,Covenant_ART!$R$9:$AQ$9,"12") -> 0 | U124: =SUMIFS(Covenant_ART!$R$30:$AQ$30,Covenant_ART!$R$7:$AQ$7,U$120,Covenant_ART!$R$9:$AQ$9,"12") -> 0
F126: Sistema CIPE | G126: Blocco dei dividendi | H126: Evento di default | I126: =I84 -> 2020 | J126: =J84 -> 2021 | K126: 2022 | L126: 2023 | M126: 2024 | N126: 2025 | O126: 2026 | P126: 2027 | Q126: 2028 | R126: 2029 | S126: 2030 | T126: 2031 | U126: 2032
F128: Historic DSCR | I128: =SUMIFS(Covenant_CIPE!$R$16:$AQ$16,Covenant_CIPE!$R$7:$AQ$7,I$126,Covenant_CIPE!$R$9:$AQ$9,"12") -> 0.8 | J128: =SUMIFS(Covenant_CIPE!$R$16:$AQ$16,Covenant_CIPE!$R$7:$AQ$7,J$126,Covenant_CIPE!$R$9:$AQ$9,"12") -> 1.23 | K128: =SUMIFS(Covenant_CIPE!$R$16:$AQ$16,Covenant_CIPE!$R$7:$AQ$7,K$126,Covenant_CIPE!$R$9:$AQ$9,"12") -> 1.07 | L128: =SUMIFS(Covenant_CIPE!$R$16:$AQ$16,Covenant_CIPE!$R$7:$AQ$7,L$126,Covenant_CIPE!$R$9:$AQ$9,"12") -> 1.42 | M128: =SUMIFS(Covenant_CIPE!$R$16:$AQ$16,Covenant_CIPE!$R$7:$AQ$7,M$126,Covenant_CIPE!$R$9:$AQ$9,"12") -> 1.63 | N128: =SUMIFS(Covenant_CIPE!$R$16:$AQ$16,Covenant_CIPE!$R$7:$AQ$7,N$126,Covenant_CIPE!$R$9:$AQ$9,"12") -> 1.4 | O128: =SUMIFS(Covenant_CIPE!$R$16:$AQ$16,Covenant_CIPE!$R$7:$AQ$7,O$126,Covenant_CIPE!$R$9:$AQ$9,"12") -> 1.41 | P128: =SUMIFS(Covenant_CIPE!$R$16:$AQ$16,Covenant_CIPE!$R$7:$AQ$7,P$126,Covenant_CIPE!$R$9:$AQ$9,"12") -> 1.55 | Q128: =SUMIFS(Covenant_CIPE!$R$16:$AQ$16,Covenant_CIPE!$R$7:$AQ$7,Q$126,Covenant_CIPE!$R$9:$AQ$9,"12") -> 1.56 | R128: =SUMIFS(Covenant_CIPE!$R$16:$AQ$16,Covenant_CIPE!$R$7:$AQ$7,R$126,Covenant_CIPE!$R$9:$AQ$9,"12") -> 1.59 | S128: =SUMIFS(Covenant_CIPE!$R$16:$AQ$16,Covenant_CIPE!$R$7:$AQ$7,S$126,Covenant_CIPE!$R$9:$AQ$9,"12") -> 1.85 | T128: =SUMIFS(Covenant_CIPE!$R$16:$AQ$16,Covenant_CIPE!$R$7:$AQ$7,T$126,Covenant_CIPE!$R$9:$AQ$9,"12") -> 0 | U128: =SUMIFS(Covenant_CIPE!$R$16:$AQ$16,Covenant_CIPE!$R$7:$AQ$7,U$126,Covenant_CIPE!$R$9:$AQ$9,"12") -> 0
F129: Projected DSCR | I129: =SUMIFS(Covenant_CIPE!$R$23:$AQ$23,Covenant_CIPE!$R$7:$AQ$7,I$126,Covenant_CIPE!$R$9:$AQ$9,"12") -> 1.23 | J129: =SUMIFS(Covenant_CIPE!$R$23:$AQ$23,Covenant_CIPE!$R$7:$AQ$7,J$126,Covenant_CIPE!$R$9:$AQ$9,"12") -> 1.07 | K129: =SUMIFS(Covenant_CIPE!$R$23:$AQ$23,Covenant_CIPE!$R$7:$AQ$7,K$126,Covenant_CIPE!$R$9:$AQ$9,"12") -> 1.42 | L129: =SUMIFS(Covenant_CIPE!$R$23:$AQ$23,Covenant_CIPE!$R$7:$AQ$7,L$126,Covenant_CIPE!$R$9:$AQ$9,"12") -> 1.63 | M129: =SUMIFS(Covenant_CIPE!$R$23:$AQ$23,Covenant_CIPE!$R$7:$AQ$7,M$126,Covenant_CIPE!$R$9:$AQ$9,"12") -> 1.4 | N129: =SUMIFS(Covenant_CIPE!$R$23:$AQ$23,Covenant_CIPE!$R$7:$AQ$7,N$126,Covenant_CIPE!$R$9:$AQ$9,"12") -> 1.41 | O129: =SUMIFS(Covenant_CIPE!$R$23:$AQ$23,Covenant_CIPE!$R$7:$AQ$7,O$126,Covenant_CIPE!$R$9:$AQ$9,"12") -> 1.55 | P129: =SUMIFS(Covenant_CIPE!$R$23:$AQ$23,Covenant_CIPE!$R$7:$AQ$7,P$126,Covenant_CIPE!$R$9:$AQ$9,"12") -> 1.56 | Q129: =SUMIFS(Covenant_CIPE!$R$23:$AQ$23,Covenant_CIPE!$R$7:$AQ$7,Q$126,Covenant_CIPE!$R$9:$AQ$9,"12") -> 1.59 | R129: =SUMIFS(Covenant_CIPE!$R$23:$AQ$23,Covenant_CIPE!$R$7:$AQ$7,R$126,Covenant_CIPE!$R$9:$AQ$9,"12") -> 1.85 | S129: =SUMIFS(Covenant_CIPE!$R$23:$AQ$23,Covenant_CIPE!$R$7:$AQ$7,S$126,Covenant_CIPE!$R$9:$AQ$9,"12") -> 0 | T129: =SUMIFS(Covenant_CIPE!$R$23:$AQ$23,Covenant_CIPE!$R$7:$AQ$7,T$126,Covenant_CIPE!$R$9:$AQ$9,"12") -> 0 | U129: =SUMIFS(Covenant_CIPE!$R$23:$AQ$23,Covenant_CIPE!$R$7:$AQ$7,U$126,Covenant_CIPE!$R$9:$AQ$9,"12") -> 0
F130: Projected BLCR | I130: =SUMIFS(Covenant_CIPE!$R$30:$AQ$30,Covenant_CIPE!$R$7:$AQ$7,I$126,Covenant_CIPE!$R$9:$AQ$9,"12") -> 1.51 | J130: =SUMIFS(Covenant_CIPE!$R$30:$AQ$30,Covenant_CIPE!$R$7:$AQ$7,J$126,Covenant_CIPE!$R$9:$AQ$9,"12") -> 1.55 | K130: =SUMIFS(Covenant_CIPE!$R$30:$AQ$30,Covenant_CIPE!$R$7:$AQ$7,K$126,Covenant_CIPE!$R$9:$AQ$9,"12") -> 1.62 | L130: =SUMIFS(Covenant_CIPE!$R$30:$AQ$30,Covenant_CIPE!$R$7:$AQ$7,L$126,Covenant_CIPE!$R$9:$AQ$9,"12") -> 1.64 | M130: =SUMIFS(Covenant_CIPE!$R$30:$AQ$30,Covenant_CIPE!$R$7:$AQ$7,M$126,Covenant_CIPE!$R$9:$AQ$9,"12") -> 1.64 | N130: =SUMIFS(Covenant_CIPE!$R$30:$AQ$30,Covenant_CIPE!$R$7:$AQ$7,N$126,Covenant_CIPE!$R$9:$AQ$9,"12") -> 1.69 | O130: =SUMIFS(Covenant_CIPE!$R$30:$AQ$30,Covenant_CIPE!$R$7:$AQ$7,O$126,Covenant_CIPE!$R$9:$AQ$9,"12") -> 1.77 | P130: =SUMIFS(Covenant_CIPE!$R$30:$AQ$30,Covenant_CIPE!$R$7:$AQ$7,P$126,Covenant_CIPE!$R$9:$AQ$9,"12") -> 1.84 | Q130: =SUMIFS(Covenant_CIPE!$R$30:$AQ$30,Covenant_CIPE!$R$7:$AQ$7,Q$126,Covenant_CIPE!$R$9:$AQ$9,"12") -> 1.98 | R130: =SUMIFS(Covenant_CIPE!$R$30:$AQ$30,Covenant_CIPE!$R$7:$AQ$7,R$126,Covenant_CIPE!$R$9:$AQ$9,"12") -> 2.41 | S130: =SUMIFS(Covenant_CIPE!$R$30:$AQ$30,Covenant_CIPE!$R$7:$AQ$7,S$126,Covenant_CIPE!$R$9:$AQ$9,"12") -> 0 | T130: =SUMIFS(Covenant_CIPE!$R$30:$AQ$30,Covenant_CIPE!$R$7:$AQ$7,T$126,Covenant_CIPE!$R$9:$AQ$9,"12") -> 0 | U130: =SUMIFS(Covenant_CIPE!$R$30:$AQ$30,Covenant_CIPE!$R$7:$AQ$7,U$126,Covenant_CIPE!$R$9:$AQ$9,"12") -> 0
B149: END OF SHEET

Sheet A >>

Sheet PEF_CIPE
B2: =+Cover!D26 -> CAV - Nuovo Sistema Tariffario
B3: PEF_CIPE
I5: Starting date | N5: =+Input!$N$5 -> 2018-01-01 | O5: =+N6+1 -> 2019-01-01 | P5: =+O6+1 -> 2020-01-01 | Q5: 2021-01-01 | R5: 2022-01-01 | S5: 2023-01-01 | T5: 2024-01-01 | U5: 2025-01-01 | V5: 2026-01-01 | W5: 2027-01-01 | X5: 2028-01-01 | Y5: 2029-01-01 | Z5: 2030-01-01 | AA5: 2031-01-01 | AB5: 2032-01-01 | AG5: 1900-01-01
I6: Ending date | N6: =+EOMONTH(N5,11) -> 2018-12-31 | O6: =+EOMONTH(O5,11) -> 2019-12-31 | P6: 2020-12-31 | Q6: 2021-12-31 | R6: 2022-12-31 | S6: 2023-12-31 | T6: 2024-12-31 | U6: 2025-12-31 | V6: 2026-12-31 | W6: 2027-12-31 | X6: 2028-12-31 | Y6: 2029-12-31 | Z6: 2030-12-31 | AA6: 2031-12-31 | AB6: 2032-12-31 | AG6: =+EOMONTH(#REF!,Input!$E$28-1) ->  | AH6: =+EOMONTH(#REF!,Input!$E$28-1) ->  | AI6: =+EOMONTH(#REF!,Input!$E$28-1) ->  | AJ6: =+EOMONTH(#REF!,Input!$E$28-1) ->  | AK6: =+EOMONTH(#REF!,Input!$E$28-1) ->  | AL6: =+EOMONTH(#REF!,Input!$E$28-1) ->  | AM6: =+EOMONTH(#REF!,Input!$E$28-1) ->  | AN6: =+EOMONTH(#REF!,Input!$E$28-1) ->  | AO6: =+EOMONTH(#REF!,Input!$E$28-1) ->  | AP6: =+EOMONTH(#REF!,Input!$E$28-1) -> 
E7: sheet check | F7: =+SUM(G7:G256) -> 0 | I7: Year | N7: =YEAR(N6) -> 2018 | O7: 2019 | P7: 2020 | Q7: 2021 | R7: 2022 | S7: 2023 | T7: 2024 | U7: 2025 | V7: 2026 | W7: 2027 | X7: 2028 | Y7: 2029 | Z7: 2030 | AA7: 2031 | AB7: 2032
I8: Days (in period) | N8: =N6-N5+1 -> 365 | O8: 365 | P8: 366 | Q8: 365 | R8: 365 | S8: 365 | T8: 366 | U8: 365 | V8: 365 | W8: 365 | X8: 366 | Y8: 365 | Z8: 365 | AA8: 365 | AB8: 366
I9: Month | N9: =MONTH(N6) -> 12 | O9: 12 | P9: 12 | Q9: 12 | R9: 12 | S9: 12 | T9: 12 | U9: 12 | V9: 12 | W9: 12 | X9: 12 | Y9: 12 | Z9: 12 | AA9: 12 | AB9: 12
I10: Period counter | N10: =M10+1 -> 1 | O10: 2 | P10: 3 | Q10: 4 | R10: 5 | S10: 6 | T10: 7 | U10: 8 | V10: 9 | W10: 10 | X10: 11 | Y10: 12 | Z10: 13 | AA10: 14 | AB10: 15 | AG10: 1 | AH10: 2 | AI10: 3 | AJ10: 4 | AK10: 5 | AL10: 6 | AM10: 7 | AN10: 8 | AO10: 9 | AP10: 10
I11: End of year | N11: =1*(N9=12) -> 1 | O11: =1*(O9=12) -> 1 | P11: 1 | Q11: 1 | R11: 1 | S11: 1 | T11: 1 | U11: 1 | V11: 1 | W11: 1 | X11: 1 | Y11: 1 | Z11: 1 | AA11: 1 | AB11: 1
I12: End of semester | N12: =1*OR(N9=6,N9=12) -> 1 | O12: =1*OR(O9=6,O9=12) -> 1 | P12: 1 | Q12: 1 | R12: 1 | S12: 1 | T12: 1 | U12: 1 | V12: 1 | W12: 1 | X12: 1 | Y12: 1 | Z12: 1 | AA12: 1 | AB12: 1
I13: Fraction of year | N13: =+N8/ROUND(Input!$E$23,1) -> 1.013888889 | O13: =+O8/ROUND(Input!$E$23,1) -> 1.013888889 | P13: =+P8/ROUND(Input!$E$23,1) -> 1.016666667 | Q13: =+Q8/ROUND(Input!$E$23,1) -> 1.013888889 | R13: =+R8/ROUND(Input!$E$23,1) -> 1.013888889 | S13: =+S8/ROUND(Input!$E$23,1) -> 1.013888889 | T13: =+T8/ROUND(Input!$E$23,1) -> 1.016666667 | U13: =+U8/ROUND(Input!$E$23,1) -> 1.013888889 | V13: =+V8/ROUND(Input!$E$23,1) -> 1.013888889 | W13: =+W8/ROUND(Input!$E$23,1) -> 1.013888889 | X13: =+X8/ROUND(Input!$E$23,1) -> 1.016666667 | Y13: =+Y8/ROUND(Input!$E$23,1) -> 1.013888889 | Z13: =+Z8/ROUND(Input!$E$23,1) -> 1.013888889 | AA13: =+AA8/ROUND(Input!$E$23,1) -> 1.013888889 | AB13: =+AB8/ROUND(Input!$E$23,1) -> 1.016666667 | AG13: =+AG8/ROUND(Input!$E$23,1) ->  | AH13: =+AH8/ROUND(Input!$E$23,1) ->  | AI13: =+AI8/ROUND(Input!$E$23,1) ->  | AJ13: =+AJ8/ROUND(Input!$E$23,1) ->  | AK13: =+AK8/ROUND(Input!$E$23,1) ->  | AL13: =+AL8/ROUND(Input!$E$23,1) ->  | AM13: =+AM8/ROUND(Input!$E$23,1) ->  | AN13: =+AN8/ROUND(Input!$E$23,1) ->  | AO13: =+AO8/ROUND(Input!$E$23,1) ->  | AP13: =+AP8/ROUND(Input!$E$23,1) -> 
B16: 1 | C16: Tabella 1 - CONTO FINANZIARIO | D16: Unit | E16: Codice Dicoter | G16: Check | I16: Tot. 2020/32
C18: Area Operativa
C20: Utile (Perdita) netto di esercizio | D20: €'000 | E20: 1.1 | I20: =+SUM(P20:AB20) -> 480910.3451 | N20: =+Prospetti_CIPE!N56 -> 23364.62742 | O20: =+Prospetti_CIPE!O56 -> 27003.02044 | P20: =+Prospetti_CIPE!P56 -> 1187.656664 | Q20: =+Prospetti_CIPE!Q56 -> 24872.44155 | R20: =+Prospetti_CIPE!R56 -> 31578.31741 | S20: =+Prospetti_CIPE!S56 -> 34725.73088 | T20: =+Prospetti_CIPE!T56 -> 38379.44831 | U20: =+Prospetti_CIPE!U56 -> 39689.97785 | V20: =+Prospetti_CIPE!V56 -> 39663.97285 | W20: =+Prospetti_CIPE!W56 -> 40261.93808 | X20: =+Prospetti_CIPE!X56 -> 41700.73087 | Y20: =+Prospetti_CIPE!Y56 -> 42946.26753 | Z20: =+Prospetti_CIPE!Z56 -> 44614.48984 | AA20: =+Prospetti_CIPE!AA56 -> 44871.93919 | AB20: =+Prospetti_CIPE!AB56 -> 56417.43406
C21: Accantonamenti e ammortamenti | D21: €'000 | E21: 1.2 | I21: =+SUM(P21:AB21) -> 644581.8324 | N21: =-SUM(Prospetti_CIPE!N35:N39) -> 44666.36582 | O21: =-SUM(Prospetti_CIPE!O35:O39) -> 40876.52068 | P21: =-SUM(Prospetti_CIPE!P35:P39) -> 41666.16758 | Q21: =-SUM(Prospetti_CIPE!Q35:Q39) -> 46704.33711 | R21: =-SUM(Prospetti_CIPE!R35:R39) -> 46761.55312 | S21: =-SUM(Prospetti_CIPE!S35:S39) -> 48102.42146 | T21: =-SUM(Prospetti_CIPE!T35:T39) -> 48095.90045 | U21: =-SUM(Prospetti_CIPE!U35:U39) -> 49089.44608 | V21: =-SUM(Prospetti_CIPE!V35:V39) -> 51368.21011 | W21: =-SUM(Prospetti_CIPE!W35:W39) -> 52701.55644 | X21: =-SUM(Prospetti_CIPE!X35:X39) -> 53407.75212 | Y21: =-SUM(Prospetti_CIPE!Y35:Y39) -> 54250.77025 | Z21: =-SUM(Prospetti_CIPE!Z35:Z39) -> 54433.08038 | AA21: =-SUM(Prospetti_CIPE!AA35:AA39) -> 56150.76406 | AB21: =-SUM(Prospetti_CIPE!AB35:AB39) -> 41849.87326
C22: Quota TFR maturata nell'esercizio | D22: €'000 | E22: 1.3 | I22: 0
C23: Autofinanziamento | D23: €'000 | E23: 1.4 | I23: 1125492.177 | N23: =+SUM(N20:N22) -> 68030.99324 | O23: =+SUM(O20:O22) -> 67879.54112 | P23: 42853.82424 | Q23: 71576.77866 | R23: 78339.87053 | S23: 82828.15234 | T23: 86475.34876 | U23: 88779.42393 | V23: 91032.18296 | W23: 92963.49452 | X23: 95108.48299 | Y23: 97197.03777 | Z23: 99047.57022 | AA23: 101022.7032 | AB23: 98267.30732
C25: Variazione capitale circolante netto operativo | D25: €'000 | E25: 1.5 | I25: =+SUM(P25:AB25) -> 18199.63878 | N25: =+Prospetti_CIPE!N122 -> 0 | O25: =+Prospetti_CIPE!O122 -> 54100.00512 | P25: =+Prospetti_CIPE!P122 -> 5108.619423 | Q25: =+Prospetti_CIPE!Q122 -> 5560.627327 | R25: =+Prospetti_CIPE!R122 -> -8396.975638 | S25: =+Prospetti_CIPE!S122 -> -1680.746651 | T25: =+Prospetti_CIPE!T122 -> -1061.455876 | U25: =+Prospetti_CIPE!U122 -> -2224.641022 | V25: =+Prospetti_CIPE!V122 -> 852.1022483 | W25: =+Prospetti_CIPE!W122 -> -67.57243659 | X25: =+Prospetti_CIPE!X122 -> 220.6733488 | Y25: =+Prospetti_CIPE!Y122 -> -153.8924068 | Z25: =+Prospetti_CIPE!Z122 -> -25.01618877 | AA25: =+Prospetti_CIPE!AA122 -> -302.932291 | AB25: =+Prospetti_CIPE!AB122 -> 20370.84894
C26: Flusso di liquidità della gestione corrente | D26: €'000 | E26: 1.6 | I26: 1143691.816 | N26: =+N23+N25 -> 68030.99324 | O26: =+O23+O25 -> 121979.5462 | P26: =+P23+P25 -> 47962.44367 | Q26: 77137.40599 | R26: 69942.89489 | S26: 81147.40569 | T26: 85413.89289 | U26: 86554.78291 | V26: 91884.28521 | W26: 92895.92208 | X26: 95329.15633 | Y26: 97043.14537 | Z26: 99022.55403 | AA26: 100719.771 | AB26: 118638.1563
C28: Costi capitalizzati | D28: €'000 | E28: 1.7 | I28: =+SUM(P28:AB28) -> 0
C29: Investimenti in beni reversibili | D29: €'000 | E29: 1.8 | I29: -64826 | N29: =+Prospetti_CIPE!N124 -> 0 | O29: =+Prospetti_CIPE!O124 -> -5772.71277 | P29: =+Prospetti_CIPE!P124 -> -4786 | Q29: =+Prospetti_CIPE!Q124 -> -3280 | R29: =+Prospetti_CIPE!R124 -> -7170 | S29: =+Prospetti_CIPE!S124 -> -5236 | T29: =+Prospetti_CIPE!T124 -> -1960 | U29: =+Prospetti_CIPE!U124 -> -14658 | V29: =+Prospetti_CIPE!V124 -> -16191 | W29: =+Prospetti_CIPE!W124 -> -2595 | X29: =+Prospetti_CIPE!X124 -> -1790 | Y29: =+Prospetti_CIPE!Y124 -> -1790 | Z29: =+Prospetti_CIPE!Z124 -> -1790 | AA29: =+Prospetti_CIPE!AA124 -> -1790 | AB29: =+Prospetti_CIPE!AB124 -> -1790
C30: Contributi in conto capitale | D30: €'000 | E30: 1.9 | I30: 0
C31: Investimenti in beni non reversibili | D31: €'000 | E31: 1.10;1.18 | I31: -6023.942 | N31: =+Prospetti_CIPE!N125 -> 0 | O31: =+Prospetti_CIPE!O125 -> -408.2754 | P31: =+Prospetti_CIPE!P125 -> -775 | Q31: =+Prospetti_CIPE!Q125 -> -825 | R31: =+Prospetti_CIPE!R125 -> -425 | S31: =+Prospetti_CIPE!S125 -> -425 | T31: =+Prospetti_CIPE!T125 -> -425 | U31: =+Prospetti_CIPE!U125 -> -425 | V31: =+Prospetti_CIPE!V125 -> -425 | W31: =+Prospetti_CIPE!W125 -> -425 | X31: =+Prospetti_CIPE!X125 -> -425 | Y31: =+Prospetti_CIPE!Y125 -> -425 | Z31: =+Prospetti_CIPE!Z125 -> -425 | AA31: =+Prospetti_CIPE!AA125 -> -425 | AB31: =+Prospetti_CIPE!AB125 -> -173.942
C32: Investimenti per immobilizzazioni immateriali | D32: €'000 | E32: 1.11 | I32: -3150 | N32: =+Prospetti_CIPE!N126 -> 0 | O32: =+Prospetti_CIPE!O126 -> -80.80164 | P32: =+Prospetti_CIPE!P126 -> -1050 | Q32: =+Prospetti_CIPE!Q126 -> -1050 | R32: =+Prospetti_CIPE!R126 -> -1050 | S32: =+Prospetti_CIPE!S126 -> 0 | T32: =+Prospetti_CIPE!T126 -> 0 | U32: =+Prospetti_CIPE!U126 -> 0 | V32: =+Prospetti_CIPE!V126 -> 0 | W32: =+Prospetti_CIPE!W126 -> 0 | X32: =+Prospetti_CIPE!X126 -> 0 | Y32: =+Prospetti_CIPE!Y126 -> 0 | Z32: =+Prospetti_CIPE!Z126 -> 0 | AA32: =+Prospetti_CIPE!AA126 -> 0 | AB32: =+Prospetti_CIPE!AB126 -> 0
C33: Saldo altri flussi gestione operativa | D33: €'000 | E33: 1.12 | I33: 72458.96488 | O33: =+Prospetti_CIPE!O128+Prospetti_CIPE!O129+Prospetti_CIPE!O142+Prospetti_CIPE!O143 -> -2634.709 | P33: =+Prospetti_CIPE!P128+Prospetti_CIPE!P129+Prospetti_CIPE!P142+Prospetti_CIPE!P143 -> 5448.352709 | Q33: =+Prospetti_CIPE!Q128+Prospetti_CIPE!Q129+Prospetti_CIPE!Q142+Prospetti_CIPE!Q143 -> 1206.045543 | R33: =+Prospetti_CIPE!R128+Prospetti_CIPE!R129+Prospetti_CIPE!R142+Prospetti_CIPE!R143 -> 10914.01429 | S33: =+Prospetti_CIPE!S128+Prospetti_CIPE!S129+Prospetti_CIPE!S142+Prospetti_CIPE!S143 -> 11139.10863 | T33: =+Prospetti_CIPE!T128+Prospetti_CIPE!T129+Prospetti_CIPE!T142+Prospetti_CIPE!T143 -> 671.4795063 | U33: =+Prospetti_CIPE!U128+Prospetti_CIPE!U129+Prospetti_CIPE!U142+Prospetti_CIPE!U143 -> 5406.409282 | V33: =+Prospetti_CIPE!V128+Prospetti_CIPE!V129+Prospetti_CIPE!V142+Prospetti_CIPE!V143 -> -2386.186844 | W33: =+Prospetti_CIPE!W128+Prospetti_CIPE!W129+Prospetti_CIPE!W142+Prospetti_CIPE!W143 -> -60.45184952 | X33: =+Prospetti_CIPE!X128+Prospetti_CIPE!X129+Prospetti_CIPE!X142+Prospetti_CIPE!X143 -> 730.8144508 | Y33: =+Prospetti_CIPE!Y128+Prospetti_CIPE!Y129+Prospetti_CIPE!Y142+Prospetti_CIPE!Y143 -> -656.622193 | Z33: =+Prospetti_CIPE!Z128+Prospetti_CIPE!Z129+Prospetti_CIPE!Z142+Prospetti_CIPE!Z143 -> 40046.00136 | AA33: =+Prospetti_CIPE!AA128+Prospetti_CIPE!AA129+Prospetti_CIPE!AA142+Prospetti_CIPE!AA143 -> 0 | AB33: =+Prospetti_CIPE!AB128+Prospetti_CIPE!AB129+Prospetti_CIPE!AB142+Prospetti_CIPE!AB143 -> 0
C34: Flusso di liquidità della gestione operativa | D34: €'000 | E34: 1.13 | I34: 1142150.839 | N34: =+SUM(N26:N33) -> 68030.99324 | O34: =+SUM(O26:O33) -> 113083.0474 | P34: =+SUM(P26:P33) -> 46799.79638 | Q34: =+SUM(Q26:Q33) -> 73188.45153 | R34: 72211.90918 | S34: 86625.51432 | T34: 83700.37239 | U34: 76878.19219 | V34: 72882.09836 | W34: 89815.47024 | X34: 93844.97079 | Y34: 94171.52317 | Z34: 136853.5554 | AA34: 98504.77096 | AB34: 116674.2143
C36: Area Finanziaria
C38: Apporto degli azionisti | D38: €'000 | E38: 1.14 | I38: =+SUM(P38:AB38) -> 0 | O38: =+Prospetti_CIPE!O147 -> 0 | P38: =+Prospetti_CIPE!P147 -> 0 | Q38: =+Prospetti_CIPE!Q147 -> 0 | R38: =+Prospetti_CIPE!R147 -> 0 | S38: =+Prospetti_CIPE!S147 -> 0 | T38: =+Prospetti_CIPE!T147 -> 0 | U38: =+Prospetti_CIPE!U147 -> 0 | V38: =+Prospetti_CIPE!V147 -> 0 | W38: =+Prospetti_CIPE!W147 -> 0 | X38: =+Prospetti_CIPE!X147 -> 0 | Y38: =+Prospetti_CIPE!Y147 -> 0 | Z38: =+Prospetti_CIPE!Z147 -> 0 | AA38: =+Prospetti_CIPE!AA147 -> 0 | AB38: =+Prospetti_CIPE!AB147 -> 0
C39: Accensione nuovi prestiti | D39: €'000 | E39: 1.15 | I39: 0
C40: Variazione posizione verso FCG | D40: €'000 | E40: 1.16 | I40: 0
C41: Variazione posizione verso ANAS | D41: €'000 | E41: 1.17 | I41: 0
C42: Variazione delle immobilizzazioni finanziarie | D42: €'000 | E42: 1.18 | I42: 0
C43: Utili distribuiti | D43: €'000 | E43: 1.19 | I43: -646375.3565 | O43: =+Prospetti_CIPE!O148+Prospetti_CIPE!O149 -> 0 | P43: =+Prospetti_CIPE!P148+Prospetti_CIPE!P149 -> 0 | Q43: =+Prospetti_CIPE!Q148+Prospetti_CIPE!Q149 -> 0 | R43: =+Prospetti_CIPE!R148+Prospetti_CIPE!R149 -> 0 | S43: =+Prospetti_CIPE!S148+Prospetti_CIPE!S149 -> -145663.2709 | T43: =+Prospetti_CIPE!T148+Prospetti_CIPE!T149 -> -34968.72998 | U43: =+Prospetti_CIPE!U148+Prospetti_CIPE!U149 -> -30748.69817 | V43: =+Prospetti_CIPE!V148+Prospetti_CIPE!V149 -> -23882.72275 | W43: =+Prospetti_CIPE!W148+Prospetti_CIPE!W149 -> -25604.06757 | X43: =+Prospetti_CIPE!X148+Prospetti_CIPE!X149 -> -34378.90851 | Y43: =+Prospetti_CIPE!Y148+Prospetti_CIPE!Y149 -> -34396.73593 | Z43: =+Prospetti_CIPE!Z148+Prospetti_CIPE!Z149 -> -37394.11079 | AA43: =+Prospetti_CIPE!AA148+Prospetti_CIPE!AA149 -> -112128.5652 | AB43: =+Prospetti_CIPE!AB148+Prospetti_CIPE!AB149 -> -167209.5467
C44: Rimborso prestiti consolidati | D44: €'000 | E44: 1.20 | I44: 0
C45: Rimborso nuovi prestiti a medio lungo termine | D45: €'000 | E45: 1.21 | I45: -632559.5997 | O45: =IF(O183<N183,(O183-N183+SUMIF(Input!$N$7:$AQ$7,O7,Input!$N$329:$AQ$329)),0) -> -64054.93678 | P45: =IF(P183<O183,(P183-O183+SUMIF(Input!$N$7:$AQ$7,P7,Input!$N$329:$AQ$329)),0) -> -64723.39997 | Q45: =IF(Q183<P183,(Q183-P183+SUMIF(Input!$N$7:$AQ$7,Q7,Input!$N$329:$AQ$329)),0) -> -60407.39997 | R45: =IF(R183<Q183,(R183-Q183+SUMIF(Input!$N$7:$AQ$7,R7,Input!$N$329:$AQ$329)),0) -> -65237.99996 | S45: =IF(S183<R183,(S183-R183+SUMIF(Input!$N$7:$AQ$7,S7,Input!$N$329:$AQ$329)),0) -> -55302.89997 | T45: =IF(T183<S183,(T183-S183+SUMIF(Input!$N$7:$AQ$7,T7,Input!$N$329:$AQ$329)),0) -> -49799.99997 | U45: =IF(U183<T183,(U183-T183+SUMIF(Input!$N$7:$AQ$7,U7,Input!$N$329:$AQ$329)),0) -> -53119.99997 | V45: =IF(V183<U183,(V183-U183+SUMIF(Input!$N$7:$AQ$7,V7,Input!$N$329:$AQ$329)),0) -> -52530.69997 | W45: =IF(W183<V183,(W183-V183+SUMIF(Input!$N$7:$AQ$7,W7,Input!$N$329:$AQ$329)),0) -> -56921.39997 | X45: =IF(X183<W183,(X183-W183+SUMIF(Input!$N$7:$AQ$7,X7,Input!$N$329:$AQ$329)),0) -> -58871.89997 | Y45: =IF(Y183<X183,(Y183-X183+SUMIF(Input!$N$7:$AQ$7,Y7,Input!$N$329:$AQ$329)),0) -> -59046.19997 | Z45: =IF(Z183<Y183,(Z183-Y183+SUMIF(Input!$N$7:$AQ$7,Z7,Input!$N$329:$AQ$329)),0) -> -56597.69997 | AA45: =IF(AA183<Z183,(AA183-Z183+SUMIF(Input!$N$7:$AQ$7,AA7,Input!$N$329:$AQ$329)),0) -> 0 | AB45: =IF(AB183<AA183,(AB183-AA183+SUMIF(Input!$N$7:$AQ$7,AB7,Input!$N$329:$AQ$329)),0) -> 0
C46: Flusso di liquidita' della gestione finanziaria | D46: €'000 | E46: 1.22 | I46: -1278934.956 | N46: =+SUM(N38:N45) -> 0 | O46: =+SUM(O38:O45) -> -64054.93678 | P46: -64723.39997 | Q46: =+SUM(Q38:Q45) -> -60407.39997 | R46: -65237.99996 | S46: -200966.1709 | T46: -84768.72996 | U46: -83868.69815 | V46: -76413.42272 | W46: -82525.46754 | X46: -93250.80848 | Y46: -93442.9359 | Z46: -93991.81076 | AA46: -112128.5652 | AB46: -167209.5467
C48: Variazione posizione finanziaria a breve | D48: €'000 | E48: 1.23 | I48: =+SUM(P48:AB48) -> -136784.117 | N48: =+N46+N34 -> 68030.99324 | O48: =+O46+O34 -> 49028.11065 | P48: =+P46+P34 -> -17923.60359 | Q48: 12781.05156 | R48: 6973.909212 | S48: -114340.6566 | T48: -1068.357562 | U48: -6990.505952 | V48: -3531.324362 | W48: 7290.002698 | X48: 594.162308 | Y48: 728.5872776 | Z48: 42861.74463 | AA48: -13623.79424 | AB48: -50535.33242
B52: 2 | C52: Tabella 2 - CONTO ECONOMICO | D52: Unit | E52: Codice Dicoter | I52: Tot. 2020/32
C54: Ricavi
C56: Ricavi da pedaggi | D56: €'000 | E56: 2.1 | I56: =+SUM(P56:AB56) -> 2040349.414 | N56: =+Prospetti_CIPE!N18 -> 139908.73 | O56: =+Prospetti_CIPE!O18 -> 144151.1578 | P56: =+Prospetti_CIPE!P18 -> 109033.304 | Q56: =+Prospetti_CIPE!Q18 -> 142691.312 | R56: =+Prospetti_CIPE!R18 -> 149681.1899 | S56: =+Prospetti_CIPE!S18 -> 154413.1516 | T56: =+Prospetti_CIPE!T18 -> 158651.747 | U56: =+Prospetti_CIPE!U18 -> 160404.1391 | V56: =+Prospetti_CIPE!V18 -> 161972.4274 | W56: =+Prospetti_CIPE!W18 -> 163509.8728 | X56: =+Prospetti_CIPE!X18 -> 164980.2442 | Y56: =+Prospetti_CIPE!Y18 -> 166485.2466 | Z56: =+Prospetti_CIPE!Z18 -> 167994.4217 | AA56: =+Prospetti_CIPE!AA18 -> 169507.6297 | AB56: =+Prospetti_CIPE!AB18 -> 171024.7284
C57: Proventi netti da subconcessioni e attività collaterali | D57: €'000 | E57: 2.2 | I57: 59133.90941 | N57: =+Prospetti_CIPE!N19 -> 4379.16641 | O57: =+Prospetti_CIPE!O19 -> 4300.07978 | P57: =+Prospetti_CIPE!P19 -> 4334.480418 | Q57: =+Prospetti_CIPE!Q19 -> 4369.156262 | R57: =+Prospetti_CIPE!R19 -> 4404.109512 | S57: =+Prospetti_CIPE!S19 -> 4439.342388 | T57: =+Prospetti_CIPE!T19 -> 4474.857127 | U57: =+Prospetti_CIPE!U19 -> 4510.655984 | V57: =+Prospetti_CIPE!V19 -> 4546.741232 | W57: =+Prospetti_CIPE!W19 -> 4583.115162 | X57: =+Prospetti_CIPE!X19 -> 4619.780083 | Y57: =+Prospetti_CIPE!Y19 -> 4656.738324 | Z57: =+Prospetti_CIPE!Z19 -> 4693.99223 | AA57: =+Prospetti_CIPE!AA19 -> 4731.544168 | AB57: =+Prospetti_CIPE!AB19 -> 4769.396521
C58: Altri proventi | D58: €'000 | E58: 2.3 | I58: 44778.06041 | N58: =+Prospetti_CIPE!N20 -> 4238.03156 | O58: =+Prospetti_CIPE!O20 -> 3256.15597 | P58: =+Prospetti_CIPE!P20 -> 3282.205218 | Q58: =+Prospetti_CIPE!Q20 -> 3308.46286 | R58: =+Prospetti_CIPE!R20 -> 3334.930562 | S58: =+Prospetti_CIPE!S20 -> 3361.610007 | T58: =+Prospetti_CIPE!T20 -> 3388.502887 | U58: =+Prospetti_CIPE!U20 -> 3415.61091 | V58: =+Prospetti_CIPE!V20 -> 3442.935797 | W58: =+Prospetti_CIPE!W20 -> 3470.479284 | X58: =+Prospetti_CIPE!X20 -> 3498.243118 | Y58: =+Prospetti_CIPE!Y20 -> 3526.229063 | Z58: =+Prospetti_CIPE!Z20 -> 3554.438895 | AA58: =+Prospetti_CIPE!AA20 -> 3582.874407 | AB58: =+Prospetti_CIPE!AB20 -> 3611.537402
C59: Ricavi lavori c/terzi | D59: €'000 | E59: 2.4 | I59: 0
C60: Totale | D60: €'000 | E60: 2.5 | I60: 2144261.384 | N60: =+SUM(N56:N59) -> 148525.928 | O60: =+SUM(O56:O59) -> 151707.3935 | P60: 116649.9896 | Q60: 150368.9311 | R60: 157420.23 | S60: 162214.104 | T60: 166515.107 | U60: 168330.406 | V60: 169962.1044 | W60: 171563.4673 | X60: 173098.2674 | Y60: 174668.214 | Z60: 176242.8529 | AA60: 177822.0482 | AB60: 179405.6623
C62: Costi Operativi
C64: Costi di produzione
C65: Personale addetto alla riscossione | D65: €'000 | E65: 2.6.1 | I65: =+SUM(P65:AB65) -> -283420.9621 | N65: =+Prospetti_CIPE!N26 -> -19244.48014 | O65: =+Prospetti_CIPE!O26 -> -18541.29844 | P65: =+Prospetti_CIPE!P26 -> -19348.31574 | Q65: =+Prospetti_CIPE!Q26 -> -20580.96124 | R65: =+Prospetti_CIPE!R26 -> -21264.29203 | S65: =+Prospetti_CIPE!S26 -> -21434.40637 | T65: =+Prospetti_CIPE!T26 -> -21605.88162 | U65: =+Prospetti_CIPE!U26 -> -21778.72867 | V65: =+Prospetti_CIPE!V26 -> -21952.9585 | W65: =+Prospetti_CIPE!W26 -> -22128.58217 | X65: =+Prospetti_CIPE!X26 -> -22305.61083 | Y65: =+Prospetti_CIPE!Y26 -> -22484.05572 | Z65: =+Prospetti_CIPE!Z26 -> -22663.92816 | AA65: =+Prospetti_CIPE!AA26 -> -22845.23959 | AB65: =+Prospetti_CIPE!AB26 -> -23028.0015
C66: Personale addetto alla sicurezza | D66: €'000 | E66: 2.6.2 | I66: 0
C67: Personale addetto alla manutenzione | D67: €'000 | E67: 2.6.3 | I67: 0
C68: Personale addetto alla direzione lavori | D68: €'000 | E68: 2.6.4 | I68: 0
C69: Costi manutenzione e rinnovi | D69: €'000 | E69: 2.7 | I69: -214219.8046 | N69: =+Prospetti_CIPE!N25 -> -14540.74192 | O69: =+Prospetti_CIPE!O25 -> -18420.78954 | P69: =+Prospetti_CIPE!P25 -> -19207.4361 | Q69: =+Prospetti_CIPE!Q25 -> -15281.39542 | R69: =+Prospetti_CIPE!R25 -> -15710.90433 | S69: =+Prospetti_CIPE!S25 -> -15526.87575 | T69: =+Prospetti_CIPE!T25 -> -15921.65849 | U69: =+Prospetti_CIPE!U25 -> -15776.29948 | V69: =+Prospetti_CIPE!V25 -> -15902.50988 | W69: =+Prospetti_CIPE!W25 -> -16508.28357 | X69: =+Prospetti_CIPE!X25 -> -16496.38727 | Y69: =+Prospetti_CIPE!Y25 -> -16628.35837 | Z69: =+Prospetti_CIPE!Z25 -> -17045.20275 | AA69: =+Prospetti_CIPE!AA25 -> -16895.47632 | AB69: =+Prospetti_CIPE!AB25 -> -17319.01689
C70: Costi lavori c/terzi | D70: €'000 | E70: 2.8 | I70: 0
C71: Prestazioni di servizi | D71: €'000 | E71: 2.9 | I71: 0
C72: Canoni di concessione | D72: €'000 | E72: 2.10 | I72: -50151.06413 | N72: =+Prospetti_CIPE!N27+Prospetti_CIPE!N28 -> -3445.39284 | O72: =+Prospetti_CIPE!O27+Prospetti_CIPE!O28 -> -3545.62939 | P72: =+Prospetti_CIPE!P27+Prospetti_CIPE!P28 -> -2703.488905 | Q72: =+Prospetti_CIPE!Q27+Prospetti_CIPE!Q28 -> -3511.974612 | R72: =+Prospetti_CIPE!R27+Prospetti_CIPE!R28 -> -3680.430748 | S72: =+Prospetti_CIPE!S27+Prospetti_CIPE!S28 -> -3794.702487 | T72: =+Prospetti_CIPE!T27+Prospetti_CIPE!T28 -> -3897.13907 | U72: =+Prospetti_CIPE!U27+Prospetti_CIPE!U28 -> -3939.912458 | V72: =+Prospetti_CIPE!V27+Prospetti_CIPE!V28 -> -3978.273082 | W72: =+Prospetti_CIPE!W27+Prospetti_CIPE!W28 -> -4015.899251 | X72: =+Prospetti_CIPE!X27+Prospetti_CIPE!X28 -> -4051.921464 | Y72: =+Prospetti_CIPE!Y27+Prospetti_CIPE!Y28 -> -4088.780685 | Z72: =+Prospetti_CIPE!Z27+Prospetti_CIPE!Z28 -> -4125.745966 | AA72: =+Prospetti_CIPE!AA27+Prospetti_CIPE!AA28 -> -4162.813995 | AB72: =+Prospetti_CIPE!AB27+Prospetti_CIPE!AB28 -> -4199.981412
C73: Acquisti di materie e beni di consumo | D73: €'000 | E73: 2.11.1 | I73: -6397.223477 | N73: =+Prospetti_CIPE!N23-N74 -> -462.77352 | O73: =+Prospetti_CIPE!O23-O74 -> -505.45194 | P73: =+Prospetti_CIPE!P23-P74 -> -468.9126792 | Q73: =+Prospetti_CIPE!Q23-Q74 -> -472.6639806 | R73: =+Prospetti_CIPE!R23-R74 -> -476.4452925 | S73: =+Prospetti_CIPE!S23-S74 -> -480.2568548 | T73: =+Prospetti_CIPE!T23-T74 -> -484.0989097 | U73: =+Prospetti_CIPE!U23-U74 -> -487.9717009 | V73: =+Prospetti_CIPE!V23-V74 -> -491.8754745 | W73: =+Prospetti_CIPE!W23-W74 -> -495.8104783 | X73: =+Prospetti_CIPE!X23-X74 -> -499.7769622 | Y73: =+Prospetti_CIPE!Y23-Y74 -> -503.7751779 | Z73: =+Prospetti_CIPE!Z23-Z74 -> -507.8053793 | AA73: =+Prospetti_CIPE!AA23-AA74 -> -511.8678223 | AB73: =+Prospetti_CIPE!AB23-AB74 -> -515.9627649
C74: Variazione delle rimanenze | D74: €'000 | E74: 2.11.2 | I74: 0 | N74: =+Actual!N318 -> 137.50603 | O74: =+Prospetti_CIPE!O81-Prospetti_CIPE!N81 -> 40.26079 | P74: =+Prospetti_CIPE!P81-Prospetti_CIPE!O81 -> 0 | Q74: =+Prospetti_CIPE!Q81-Prospetti_CIPE!P81 -> 0 | R74: =+Prospetti_CIPE!R81-Prospetti_CIPE!Q81 -> 0 | S74: =+Prospetti_CIPE!S81-Prospetti_CIPE!R81 -> 0 | T74: =+Prospetti_CIPE!T81-Prospetti_CIPE!S81 -> 0 | U74: =+Prospetti_CIPE!U81-Prospetti_CIPE!T81 -> 0 | V74: =+Prospetti_CIPE!V81-Prospetti_CIPE!U81 -> 0 | W74: =+Prospetti_CIPE!W81-Prospetti_CIPE!V81 -> 0 | X74: =+Prospetti_CIPE!X81-Prospetti_CIPE!W81 -> 0 | Y74: =+Prospetti_CIPE!Y81-Prospetti_CIPE!X81 -> 0 | Z74: =+Prospetti_CIPE!Z81-Prospetti_CIPE!Y81 -> 0 | AA74: =+Prospetti_CIPE!AA81-Prospetti_CIPE!Z81 -> 0 | AB74: =+Prospetti_CIPE!AB81-Prospetti_CIPE!AA81 -> 0
C75: Altri costi di produzione | D75: €'000 | E75: 2.11.3 | I75: 0 | N75: =+Prospetti_CIPE!N29 -> 0 | O75: =+Prospetti_CIPE!O29 -> 0 | P75: =+Prospetti_CIPE!P29 -> 0 | Q75: =+Prospetti_CIPE!Q29 -> 0 | R75: =+Prospetti_CIPE!R29 -> 0 | S75: =+Prospetti_CIPE!S29 -> 0 | T75: =+Prospetti_CIPE!T29 -> 0 | U75: =+Prospetti_CIPE!U29 -> 0 | V75: =+Prospetti_CIPE!V29 -> 0 | W75: =+Prospetti_CIPE!W29 -> 0 | X75: =+Prospetti_CIPE!X29 -> 0 | Y75: =+Prospetti_CIPE!Y29 -> 0 | Z75: =+Prospetti_CIPE!Z29 -> 0 | AA75: =+Prospetti_CIPE!AA29 -> 0 | AB75: =+Prospetti_CIPE!AB29 -> 0
I76: 0
C77: Costi commerciali | I77: 0
C78: Costi personale | D78: €'000 | E78: 2.12 | I78: 0
C79: Prestazioni di servizi | D79: €'000 | E79: 2.13 | I79: 0
C80: Altri costi commerciali | D80: €'000 | E80: 2.14 | I80: 0
I81: 0
C82: Costi amministrativi e generali | I82: 0
C83: Personale | D83: €'000 | E83: 2.15 | I83: 0
C84: Prestazioni di servizi | D84: €'000 | E84: 2.16 | I84: -190441.3902 | N84: =+Prospetti_CIPE!N24 -> -12463.4589 | O84: =+Prospetti_CIPE!O24 -> -13848.4531 | P84: =+Prospetti_CIPE!P24 -> -13959.24072 | Q84: =+Prospetti_CIPE!Q24 -> -14070.91465 | R84: =+Prospetti_CIPE!R24 -> -14183.48197 | S84: =+Prospetti_CIPE!S24 -> -14296.94982 | T84: =+Prospetti_CIPE!T24 -> -14411.32542 | U84: =+Prospetti_CIPE!U24 -> -14526.61603 | V84: =+Prospetti_CIPE!V24 -> -14642.82895 | W84: =+Prospetti_CIPE!W24 -> -14759.97159 | X84: =+Prospetti_CIPE!X24 -> -14878.05136 | Y84: =+Prospetti_CIPE!Y24 -> -14997.07577 | Z84: =+Prospetti_CIPE!Z24 -> -15117.05238 | AA84: =+Prospetti_CIPE!AA24 -> -15237.98879 | AB84: =+Prospetti_CIPE!AB24 -> -15359.8927
C85: Altri costi amministrativi e generali | D85: €'000 | E85: 2.17 | I85: 0
C86: (Costi capitalizzati; spese del personale) | D86: €'000 | E86: 2.18.1 | I86: 0
C87: (Costi capitalizzati. Costi materiali) | D87: €'000 | E87: 2.18.2 | I87: 0
C88: (Costi capitalizzati. Costi per servizi) | D88: €'000 | E88: 2.18.3 | I88: 0
I89: 0
C90: Fondo rinnovi | I90: 0
C91: Utilizzo | D91: €'000 | E91: 2.19 | I91: 214219.8046 | N91: =-SUMIF(Working!$N$7:$AQ$7,N$7,Working!$N$686:$AQ$686) -> 13868.95826 | O91: =-SUMIF(Working!$N$7:$AQ$7,O$7,Working!$N$686:$AQ$686) -> 17754.76407 | P91: =-SUMIF(Working!$N$7:$AQ$7,P$7,Working!$N$686:$AQ$686) -> 19207.4361 | Q91: =-SUMIF(Working!$N$7:$AQ$7,Q$7,Working!$N$686:$AQ$686) -> 15281.39542 | R91: =-SUMIF(Working!$N$7:$AQ$7,R$7,Working!$N$686:$AQ$686) -> 15710.90433 | S91: =-SUMIF(Working!$N$7:$AQ$7,S$7,Working!$N$686:$AQ$686) -> 15526.87575 | T91: =-SUMIF(Working!$N$7:$AQ$7,T$7,Working!$N$686:$AQ$686) -> 15921.65849 | U91: =-SUMIF(Working!$N$7:$AQ$7,U$7,Working!$N$686:$AQ$686) -> 15776.29948 | V91: =-SUMIF(Working!$N$7:$AQ$7,V$7,Working!$N$686:$AQ$686) -> 15902.50988 | W91: =-SUMIF(Working!$N$7:$AQ$7,W$7,Working!$N$686:$AQ$686) -> 16508.28357 | X91: =-SUMIF(Working!$N$7:$AQ$7,X$7,Working!$N$686:$AQ$686) -> 16496.38727 | Y91: =-SUMIF(Working!$N$7:$AQ$7,Y$7,Working!$N$686:$AQ$686) -> 16628.35837 | Z91: =-SUMIF(Working!$N$7:$AQ$7,Z$7,Working!$N$686:$AQ$686) -> 17045.20275 | AA91: =-SUMIF(Working!$N$7:$AQ$7,AA$7,Working!$N$686:$AQ$686) -> 16895.47632 | AB91: =-SUMIF(Working!$N$7:$AQ$7,AB$7,Working!$N$686:$AQ$686) -> 17319.01689
C92: Accantonamento | D92: €'000 | E92: 2.20 | I92: -195012.3685 | N92: =-SUMIF(Working!$N$7:$AQ$7,N$7,Working!$N$685:$AQ$685) -> -13046.85722 | O92: =-SUMIF(Working!$N$7:$AQ$7,O$7,Working!$N$685:$AQ$685) -> -13047.168 | P92: =-SUMIF(Working!$N$7:$AQ$7,P$7,Working!$N$685:$AQ$685) -> -15281.39542 | Q92: =-SUMIF(Working!$N$7:$AQ$7,Q$7,Working!$N$685:$AQ$685) -> -15710.90433 | R92: =-SUMIF(Working!$N$7:$AQ$7,R$7,Working!$N$685:$AQ$685) -> -15526.87575 | S92: =-SUMIF(Working!$N$7:$AQ$7,S$7,Working!$N$685:$AQ$685) -> -15921.65849 | T92: =-SUMIF(Working!$N$7:$AQ$7,T$7,Working!$N$685:$AQ$685) -> -15776.29948 | U92: =-SUMIF(Working!$N$7:$AQ$7,U$7,Working!$N$685:$AQ$685) -> -15902.50988 | V92: =-SUMIF(Working!$N$7:$AQ$7,V$7,Working!$N$685:$AQ$685) -> -16508.28357 | W92: =-SUMIF(Working!$N$7:$AQ$7,W$7,Working!$N$685:$AQ$685) -> -16496.38727 | X92: =-SUMIF(Working!$N$7:$AQ$7,X$7,Working!$N$685:$AQ$685) -> -16628.35837 | Y92: =-SUMIF(Working!$N$7:$AQ$7,Y$7,Working!$N$685:$AQ$685) -> -17045.20275 | Z92: =-SUMIF(Working!$N$7:$AQ$7,Z$7,Working!$N$685:$AQ$685) -> -16895.47632 | AA92: =-SUMIF(Working!$N$7:$AQ$7,AA$7,Working!$N$685:$AQ$685) -> -17319.01689 | AB92: =-SUMIF(Working!$N$7:$AQ$7,AB$7,Working!$N$685:$AQ$685) -> 0
I93: 0
C94: Altri accantonamenti e svalutazioni | D94: €'000 | E94: 2.21 | I94: 0 | N94: =+Prospetti_CIPE!N39 -> -239.39048 | O94: =+Prospetti_CIPE!O39 -> -3.5 | P94: =+Prospetti_CIPE!P39 -> 0 | Q94: =+Prospetti_CIPE!Q39 -> 0 | R94: =+Prospetti_CIPE!R39 -> 0 | S94: =+Prospetti_CIPE!S39 -> 0 | T94: =+Prospetti_CIPE!T39 -> 0 | U94: =+Prospetti_CIPE!U39 -> 0 | V94: =+Prospetti_CIPE!V39 -> 0 | W94: =+Prospetti_CIPE!W39 -> 0 | X94: =+Prospetti_CIPE!X39 -> 0 | Y94: =+Prospetti_CIPE!Y39 -> 0 | Z94: =+Prospetti_CIPE!Z39 -> 0 | AA94: =+Prospetti_CIPE!AA39 -> 0 | AB94: =+Prospetti_CIPE!AB39 -> 0
C95: Totale Costi Operativi | D95: €'000 | E95: 2.22 | I95: -725423.0084 | N95: =+SUM(N65:N94) -> -49436.63073 | O95: =+SUM(O65:O94) -> -50117.26555 | P95: -51761.35346 | Q95: -54347.41882 | R95: -55131.52579 | S95: -55927.97403 | T95: -56174.7445 | U95: -56635.73873 | V95: -57574.21958 | W95: -57896.65075 | X95: -58363.71898 | Y95: -59118.89011 | Z95: -59310.0082 | AA95: -60076.92709 | AB95: -43103.83838
C97: Margine operativo lordo (02.05 - 02.22) | D97: €'000 | E97: 2.23 | I97: =+SUM(P97:AB97) -> 1418838.376 | N97: =+N95+N60 -> 99089.29724 | O97: =+O95+O60 -> 101590.128 | P97: 64888.63618 | Q97: 96021.51226 | R97: 102288.7042 | S97: 106286.13 | T97: 110340.3625 | U97: 111694.6673 | V97: 112387.8848 | W97: 113666.8165 | X97: 114734.5485 | Y97: 115549.3239 | Z97: 116932.8447 | AA97: 117745.1212 | AB97: 136301.8239
C99: Ammortamenti
C101: Ammortamento finanziario | D101: €'000 | E101: 2.24 | I101: =+SUM(P101:AB101) -> -653373.3516 | N101: =+Prospetti_CIPE!N35 -> -44780.915 | O101: =+Prospetti_CIPE!O35 -> -44993.15227 | P101: =+Prospetti_CIPE!P35 -> -45338.96003 | Q101: =+Prospetti_CIPE!Q35 -> -45733.75436 | R101: =+Prospetti_CIPE!R35 -> -46128.95403 | S101: =+Prospetti_CIPE!S35 -> -46795.95779 | T101: =+Prospetti_CIPE!T35 -> -47282.28321 | U101: =+Prospetti_CIPE!U35 -> -47951.03027 | V101: =+Prospetti_CIPE!V35 -> -50109.36104 | W101: =+Prospetti_CIPE!W35 -> -52199.29635 | X101: =+Prospetti_CIPE!X35 -> -52676.19534 | Y101: =+Prospetti_CIPE!Y35 -> -53127.24693 | Z101: =+Prospetti_CIPE!Z35 -> -53732.43741 | AA101: =+Prospetti_CIPE!AA35 -> -54657.27074 | AB101: =+Prospetti_CIPE!AB35 -> -57640.60407
C102: Ammortamento tecnico beni reversibili | D102: €'000 | E102: 2.25 | I102: 0
C103: Ammortamento tecnico beni non reversibili materiali | D103: €'000 | E103: 2.26 | I103: -7225.51608 | N103: =+Prospetti_CIPE!N36 -> -375.22038 | O103: =+Prospetti_CIPE!O36 -> -486.64137 | P103: =+Prospetti_CIPE!P36 -> -107.8473908 | Q103: =+Prospetti_CIPE!Q36 -> -173.57384 | R103: =+Prospetti_CIPE!R36 -> -239.1276703 | S103: =+Prospetti_CIPE!S36 -> -281.6809284 | T103: =+Prospetti_CIPE!T36 -> -328.9762501 | U103: =+Prospetti_CIPE!U36 -> -382.2054167 | V103: =+Prospetti_CIPE!V36 -> -443.0753801 | W103: =+Prospetti_CIPE!W36 -> -514.1563824 | X103: =+Prospetti_CIPE!X36 -> -599.5856754 | Y103: =+Prospetti_CIPE!Y36 -> -706.6789293 | Z103: =+Prospetti_CIPE!Z36 -> -850.3694055 | AA103: =+Prospetti_CIPE!AA36 -> -1069.952739 | AB103: =+Prospetti_CIPE!AB36 -> -1528.286072
C104: Ammortamento immobilizzazioni immateriali | D104: €'000 | E104: 2.27 | I104: -3190.40084 | N104: =+Prospetti_CIPE!N37 -> -92.941 | O104: =+Prospetti_CIPE!O37 -> -100.82311 | P104: =+Prospetti_CIPE!P37 -> -145.40084 | Q104: =+Prospetti_CIPE!Q37 -> -367.5 | R104: =+Prospetti_CIPE!R37 -> -577.5 | S104: =+Prospetti_CIPE!S37 -> -630 | T104: =+Prospetti_CIPE!T37 -> -630 | U104: =+Prospetti_CIPE!U37 -> -630 | V104: =+Prospetti_CIPE!V37 -> -210 | W104: =+Prospetti_CIPE!W37 -> 0 | X104: =+Prospetti_CIPE!X37 -> 0 | Y104: =+Prospetti_CIPE!Y37 -> 0 | Z104: =+Prospetti_CIPE!Z37 -> 0 | AA104: =+Prospetti_CIPE!AA37 -> 0 | AB104: =+Prospetti_CIPE!AB37 -> 0
C105: Totale Ammortamenti | D105: €'000 | E105: 2.28 | I105: -663789.2685 | N105: =+SUM(N101:N104) -> -45249.07638 | O105: -45580.61675 | P105: -45592.20826 | Q105: -46274.8282 | R105: -46945.5817 | S105: -47707.63872 | T105: -48241.25946 | U105: -48963.23569 | V105: -50762.43642 | W105: -52713.45274 | X105: -53275.78102 | Y105: -53833.92586 | Z105: -54582.80681 | AA105: -55727.22348 | AB105: -59168.89015
C107: Risultato operativo (2.23 - 2.28) | D107: €'000 | E107: 2.29 | I107: =+SUM(P107:AB107) -> 755049.1073 | N107: =+N97+N105 -> 53840.22086 | O107: 56009.51121 | P107: 19296.42792 | Q107: 49746.68406 | R107: 55343.1225 | S107: 58578.49128 | T107: 62099.10302 | U107: 62731.43159 | V107: 61625.4484 | W107: 60953.36377 | X107: 61458.76744 | Y107: 61715.39803 | Z107: 62350.03785 | AA107: 62017.89767 | AB107: 77132.93377
C109: Oneri e proventi finanziari:
C110: Oneri finanziari su prestiti consolidati con garanzia dello Stato (Debito v/Friulia) | D110: €'000 | E110: 2.30 | I110: =+SUM(P110:AB110) -> 0
C111: Oneri finanziari su prestiti consolidati senza garanzia dello Stato | D111: €'000 | E111: 2.31 | I111: 0
C112: Oneri rimodulazione F.C.G. | D112: €'000 | E112: 2.32 | I112: 0
C113: Costi dei nuovi finanziamenti a medio-lungo termine | D113: €'000 | E113: 2.33 | I113: -87632.732 | N113: =+Prospetti_CIPE!N44 -> -17737.263 | O113: =+Prospetti_CIPE!O44 -> -16484.989 | P113: =+Prospetti_CIPE!P44 -> -15024.599 | Q113: =+Prospetti_CIPE!Q44 -> -13502.524 | R113: =+Prospetti_CIPE!R44 -> -12012.087 | S113: =+Prospetti_CIPE!S44 -> -10464.927 | T113: =+Prospetti_CIPE!T44 -> -9193.645 | U113: =+Prospetti_CIPE!U44 -> -7960.346 | V113: =+Prospetti_CIPE!V44 -> -6668.436 | W113: =+Prospetti_CIPE!W44 -> -5350.332 | X113: =+Prospetti_CIPE!X44 -> -3944.352 | Y113: =+Prospetti_CIPE!Y44 -> -2493.294 | Z113: =+Prospetti_CIPE!Z44 -> -1018.19 | AA113: =+Prospetti_CIPE!AA44 -> 0 | AB113: =+Prospetti_CIPE!AB44 -> 0
C114: Proventi (oneri) finanziari netti a breve termine | D114: €'000 | E114: 2.34 | I114: 0
C115: Proventi (oneri) netti da immobilizzazioni finanziarie | D115: €'000 | E115: 2.35 | I115: 0
C116: Altri proventi (oneri) finanziari netti | D116: €'000 | E116: 2.36 | I116: 0 | N116: =+Prospetti_CIPE!N45+Prospetti_CIPE!N46+Prospetti_CIPE!N47 -> -3049.25844 | O116: =+Prospetti_CIPE!O45+Prospetti_CIPE!O46+Prospetti_CIPE!O47 -> -102.14177 | P116: =+Prospetti_CIPE!P45+Prospetti_CIPE!P46+Prospetti_CIPE!P47 -> 0 | Q116: =+Prospetti_CIPE!Q45+Prospetti_CIPE!Q46+Prospetti_CIPE!Q47 -> 0 | R116: =+Prospetti_CIPE!R45+Prospetti_CIPE!R46+Prospetti_CIPE!R47 -> 0 | S116: =+Prospetti_CIPE!S45+Prospetti_CIPE!S46+Prospetti_CIPE!S47 -> 0 | T116: =+Prospetti_CIPE!T45+Prospetti_CIPE!T46+Prospetti_CIPE!T47 -> 0 | U116: =+Prospetti_CIPE!U45+Prospetti_CIPE!U46+Prospetti_CIPE!U47 -> 0 | V116: =+Prospetti_CIPE!V45+Prospetti_CIPE!V46+Prospetti_CIPE!V47 -> 0 | W116: =+Prospetti_CIPE!W45+Prospetti_CIPE!W46+Prospetti_CIPE!W47 -> 0 | X116: =+Prospetti_CIPE!X45+Prospetti_CIPE!X46+Prospetti_CIPE!X47 -> 0 | Y116: =+Prospetti_CIPE!Y45+Prospetti_CIPE!Y46+Prospetti_CIPE!Y47 -> 0 | Z116: =+Prospetti_CIPE!Z45+Prospetti_CIPE!Z46+Prospetti_CIPE!Z47 -> 0 | AA116: =+Prospetti_CIPE!AA45+Prospetti_CIPE!AA46+Prospetti_CIPE!AA47 -> 0 | AB116: =+Prospetti_CIPE!AB45+Prospetti_CIPE!AB46+Prospetti_CIPE!AB47 -> 0
C117: (Costi capitalizzati. Oneri finanziari) | D117: €'000 | E117: 2.37 | I117: 0
C118: Totale Oneri e proventi finanziari | D118: €'000 | E118: 2.38 | I118: -87632.732 | N118: =+SUM(N110:N117) -> -20786.52144 | O118: =+SUM(O110:O117) -> -16587.13077 | P118: -15024.599 | Q118: -13502.524 | R118: -12012.087 | S118: -10464.927 | T118: -9193.645 | U118: -7960.346 | V118: -6668.436 | W118: -5350.332 | X118: -3944.352 | Y118: -2493.294 | Z118: -1018.19 | AA118: 0 | AB118: 0
C120: Proventi e oneri straordinari | D120: €'000 | E120: 2.39 | I120: =+SUM(P120:AB120) -> 0
C122: Risultato prima delle imposte (2.29 + 2.38 + 2.39) | D122: €'000 | E122: 2.40 | I122: =+SUM(P122:AB122) -> 667416.3753 | N122: =+N107+N118 -> 33053.69942 | O122: =+O107+O118 -> 39422.38044 | P122: 4271.82892 | Q122: 36244.16006 | R122: 43331.0355 | S122: 48113.56428 | T122: 52905.45802 | U122: 54771.08559 | V122: 54957.0124 | W122: 55603.03177 | X122: 57514.41544 | Y122: 59222.10403 | Z122: 61331.84785 | AA122: 62017.89767 | AB122: 77132.93377
C124: Imposte sul reddito di esercizio | D124: €'000 | E124: 2.41 | I124: =+SUM(P124:AB124) -> -186506.0302 | N124: =+Prospetti_CIPE!N52+Prospetti_CIPE!N53+Prospetti_CIPE!N54 -> -9689.072 | O124: =+Prospetti_CIPE!O52+Prospetti_CIPE!O53+Prospetti_CIPE!O54 -> -12419.36 | P124: =+Prospetti_CIPE!P52+Prospetti_CIPE!P53+Prospetti_CIPE!P54 -> -3084.172256 | Q124: =+Prospetti_CIPE!Q52+Prospetti_CIPE!Q53+Prospetti_CIPE!Q54 -> -11371.71851 | R124: =+Prospetti_CIPE!R52+Prospetti_CIPE!R53+Prospetti_CIPE!R54 -> -11752.71809 | S124: =+Prospetti_CIPE!S52+Prospetti_CIPE!S53+Prospetti_CIPE!S54 -> -13387.8334 | T124: =+Prospetti_CIPE!T52+Prospetti_CIPE!T53+Prospetti_CIPE!T54 -> -14526.00971 | U124: =+Prospetti_CIPE!U52+Prospetti_CIPE!U53+Prospetti_CIPE!U54 -> -15081.10774 | V124: =+Prospetti_CIPE!V52+Prospetti_CIPE!V53+Prospetti_CIPE!V54 -> -15293.03955 | W124: =+Prospetti_CIPE!W52+Prospetti_CIPE!W53+Prospetti_CIPE!W54 -> -15341.09368 | X124: =+Prospetti_CIPE!X52+Prospetti_CIPE!X53+Prospetti_CIPE!X54 -> -15813.68458 | Y124: =+Prospetti_CIPE!Y52+Prospetti_CIPE!Y53+Prospetti_CIPE!Y54 -> -16275.8365 | Z124: =+Prospetti_CIPE!Z52+Prospetti_CIPE!Z53+Prospetti_CIPE!Z54 -> -16717.35801 | AA124: =+Prospetti_CIPE!AA52+Prospetti_CIPE!AA53+Prospetti_CIPE!AA54 -> -17145.95848 | AB124: =+Prospetti_CIPE!AB52+Prospetti_CIPE!AB53+Prospetti_CIPE!AB54 -> -20715.49971
C126: Utile (Perdita) di esercizio (2.40 - 2.41) | D126: €'000 | E126: 2.42 | G126: =+SUM(N126:AB126)-Prospetti_CIPE!I56 -> 0 | I126: =+SUM(P126:AB126) -> 480910.3451 | N126: =+SUM(N124,N122) -> 23364.62742 | O126: =+SUM(O124,O122) -> 27003.02044 | P126: 1187.656664 | Q126: =+SUM(Q124,Q122) -> 24872.44155 | R126: 31578.31741 | S126: 34725.73088 | T126: 38379.44831 | U126: 39689.97785 | V126: 39663.97285 | W126: 40261.93808 | X126: 41700.73087 | Y126: 42946.26753 | Z126: 44614.48984 | AA126: 44871.93919 | AB126: 56417.43406
B130: 3 | C130: Tabella 3 - CONTO DEGLI INVESTIMENTI | D130: Unit | E130: Codice Dicoter | I130: Tot. 2020/32
C132: Immobilizzazioni in beni reversibili
C134: Opere in esercizio | D134: €'000 | E134: 3.1 | I134: =+SUM(P134:AB134) -> 17578459.79 | N134: =+INDEX(Working!$N$267:$AQ$267,,MATCH(N$6,Working!$N$6:$AQ$6,0))-INDEX(Working!$N$247:$AQ$247,,MATCH(N$6,Working!$N$6:$AQ$6,0)) -> 1306157.98 | O134: =+INDEX(Working!$N$267:$AQ$267,,MATCH(O$6,Working!$N$6:$AQ$6,0))-INDEX(Working!$N$247:$AQ$247,,MATCH(O$6,Working!$N$6:$AQ$6,0)) -> 1311339.436 | P134: =+INDEX(Working!$N$267:$AQ$267,,MATCH(P$6,Working!$N$6:$AQ$6,0))-INDEX(Working!$N$247:$AQ$247,,MATCH(P$6,Working!$N$6:$AQ$6,0)) -> 1316608.476 | Q134: =+INDEX(Working!$N$267:$AQ$267,,MATCH(Q$6,Working!$N$6:$AQ$6,0))-INDEX(Working!$N$247:$AQ$247,,MATCH(Q$6,Working!$N$6:$AQ$6,0)) -> 1319996.693 | R134: =+INDEX(Working!$N$267:$AQ$267,,MATCH(R$6,Working!$N$6:$AQ$6,0))-INDEX(Working!$N$247:$AQ$247,,MATCH(R$6,Working!$N$6:$AQ$6,0)) -> 1327166.693 | S134: =+INDEX(Working!$N$267:$AQ$267,,MATCH(S$6,Working!$N$6:$AQ$6,0))-INDEX(Working!$N$247:$AQ$247,,MATCH(S$6,Working!$N$6:$AQ$6,0)) -> 1332402.693 | T134: =+INDEX(Working!$N$267:$AQ$267,,MATCH(T$6,Working!$N$6:$AQ$6,0))-INDEX(Working!$N$247:$AQ$247,,MATCH(T$6,Working!$N$6:$AQ$6,0)) -> 1334362.693 | U134: =+INDEX(Working!$N$267:$AQ$267,,MATCH(U$6,Working!$N$6:$AQ$6,0))-INDEX(Working!$N$247:$AQ$247,,MATCH(U$6,Working!$N$6:$AQ$6,0)) -> 1349020.693 | V134: =+INDEX(Working!$N$267:$AQ$267,,MATCH(V$6,Working!$N$6:$AQ$6,0))-INDEX(Working!$N$247:$AQ$247,,MATCH(V$6,Working!$N$6:$AQ$6,0)) -> 1365211.693 | W134: =+INDEX(Working!$N$267:$AQ$267,,MATCH(W$6,Working!$N$6:$AQ$6,0))-INDEX(Working!$N$247:$AQ$247,,MATCH(W$6,Working!$N$6:$AQ$6,0)) -> 1367806.693 | X134: =+INDEX(Working!$N$267:$AQ$267,,MATCH(X$6,Working!$N$6:$AQ$6,0))-INDEX(Working!$N$247:$AQ$247,,MATCH(X$6,Working!$N$6:$AQ$6,0)) -> 1369596.693 | Y134: =+INDEX(Working!$N$267:$AQ$267,,MATCH(Y$6,Working!$N$6:$AQ$6,0))-INDEX(Working!$N$247:$AQ$247,,MATCH(Y$6,Working!$N$6:$AQ$6,0)) -> 1371386.693 | Z134: =+INDEX(Working!$N$267:$AQ$267,,MATCH(Z$6,Working!$N$6:$AQ$6,0))-INDEX(Working!$N$247:$AQ$247,,MATCH(Z$6,Working!$N$6:$AQ$6,0)) -> 1373176.693 | AA134: =+INDEX(Working!$N$267:$AQ$267,,MATCH(AA$6,Working!$N$6:$AQ$6,0))-INDEX(Working!$N$247:$AQ$247,,MATCH(AA$6,Working!$N$6:$AQ$6,0)) -> 1374966.693 | AB134: =+INDEX(Working!$N$267:$AQ$267,,MATCH(AB$6,Working!$N$6:$AQ$6,0))-INDEX(Working!$N$247:$AQ$247,,MATCH(AB$6,Working!$N$6:$AQ$6,0)) -> 1376756.693
C135: Opere in corso | D135: €'000 | E135: 3.2 | I135: 108.217 | N135: =INDEX(Working!$N$247:$AQ$247,,MATCH(N$6,Working!$N$6:$AQ$6,0)) -> 0 | O135: =INDEX(Working!$N$247:$AQ$247,,MATCH(O$6,Working!$N$6:$AQ$6,0)) -> 591.25684 | P135: =INDEX(Working!$N$247:$AQ$247,,MATCH(P$6,Working!$N$6:$AQ$6,0)) -> 108.217 | Q135: =INDEX(Working!$N$247:$AQ$247,,MATCH(Q$6,Working!$N$6:$AQ$6,0)) -> 0 | R135: =INDEX(Working!$N$247:$AQ$247,,MATCH(R$6,Working!$N$6:$AQ$6,0)) -> 0 | S135: =INDEX(Working!$N$247:$AQ$247,,MATCH(S$6,Working!$N$6:$AQ$6,0)) -> 0 | T135: =INDEX(Working!$N$247:$AQ$247,,MATCH(T$6,Working!$N$6:$AQ$6,0)) -> 0 | U135: =INDEX(Working!$N$247:$AQ$247,,MATCH(U$6,Working!$N$6:$AQ$6,0)) -> 0 | V135: =INDEX(Working!$N$247:$AQ$247,,MATCH(V$6,Working!$N$6:$AQ$6,0)) -> 0 | W135: =INDEX(Working!$N$247:$AQ$247,,MATCH(W$6,Working!$N$6:$AQ$6,0)) -> 0 | X135: =INDEX(Working!$N$247:$AQ$247,,MATCH(X$6,Working!$N$6:$AQ$6,0)) -> 0 | Y135: =INDEX(Working!$N$247:$AQ$247,,MATCH(Y$6,Working!$N$6:$AQ$6,0)) -> 0 | Z135: =INDEX(Working!$N$247:$AQ$247,,MATCH(Z$6,Working!$N$6:$AQ$6,0)) -> 0 | AA135: =INDEX(Working!$N$247:$AQ$247,,MATCH(AA$6,Working!$N$6:$AQ$6,0)) -> 0 | AB135: =INDEX(Working!$N$247:$AQ$247,,MATCH(AB$6,Working!$N$6:$AQ$6,0)) -> 0
C136: Nuove opere | D136: €'000 | E136: 3.3 | I136: 0
C137: Oneri finanziari capitalizzati su prestiti consolidati | D137: €'000 | E137: 3.4 | I137: 0
C138: Oneri finanziari capitalizzati su nuovi prestiti | D138: €'000 | E138: 3.5 | I138: 0
C139: Oneri diversi capitalizzati | D139: €'000 | E139: 3.6 | I139: 0
C140: Fondo ammortamento tecnico | D140: €'000 | E140: 3.7 | I140: 0
C141: Fondo ammortamento finanziario | D141: €'000 | E141: 3.7bis | I141: -13794725.57 | N141: =INDEX(Working!$N$268:$AQ$268,,MATCH(N$6,Working!$N$6:$AQ$6,0)) -> -678390.19 | O141: =INDEX(Working!$N$268:$AQ$268,,MATCH(O$6,Working!$N$6:$AQ$6,0)) -> -723383.3418 | P141: =INDEX(Working!$N$268:$AQ$268,,MATCH(P$6,Working!$N$6:$AQ$6,0)) -> -768722.3019 | Q141: =INDEX(Working!$N$268:$AQ$268,,MATCH(Q$6,Working!$N$6:$AQ$6,0)) -> -814456.0562 | R141: =INDEX(Working!$N$268:$AQ$268,,MATCH(R$6,Working!$N$6:$AQ$6,0)) -> -860585.0103 | S141: =INDEX(Working!$N$268:$AQ$268,,MATCH(S$6,Working!$N$6:$AQ$6,0)) -> -907380.9681 | T141: =INDEX(Working!$N$268:$AQ$268,,MATCH(T$6,Working!$N$6:$AQ$6,0)) -> -954663.2513 | U141: =INDEX(Working!$N$268:$AQ$268,,MATCH(U$6,Working!$N$6:$AQ$6,0)) -> -1002614.282 | V141: =INDEX(Working!$N$268:$AQ$268,,MATCH(V$6,Working!$N$6:$AQ$6,0)) -> -1052723.643 | W141: =INDEX(Working!$N$268:$AQ$268,,MATCH(W$6,Working!$N$6:$AQ$6,0)) -> -1104922.939 | X141: =INDEX(Working!$N$268:$AQ$268,,MATCH(X$6,Working!$N$6:$AQ$6,0)) -> -1157599.134 | Y141: =INDEX(Working!$N$268:$AQ$268,,MATCH(Y$6,Working!$N$6:$AQ$6,0)) -> -1210726.381 | Z141: =INDEX(Working!$N$268:$AQ$268,,MATCH(Z$6,Working!$N$6:$AQ$6,0)) -> -1264458.819 | AA141: =INDEX(Working!$N$268:$AQ$268,,MATCH(AA$6,Working!$N$6:$AQ$6,0)) -> -1319116.089 | AB141: =INDEX(Working!$N$268:$AQ$268,,MATCH(AB$6,Working!$N$6:$AQ$6,0)) -> -1376756.693
C142: Totale immobilizzazioni reversibili nette | D142: €'000 | E142: 3.8 | I142: 3783842.443 | N142: =+SUM(N134:N141) -> 627767.7898 | O142: =+SUM(O134:O141) -> 588547.3513 | P142: 547994.3913 | Q142: 505540.6369 | R142: 466581.6829 | S142: 425021.7251 | T142: 379699.4419 | U142: 346406.4116 | V142: 312488.0506 | W142: 262883.7542 | X142: 211997.5589 | Y142: 160660.3119 | Z142: 108717.8745 | AA142: 55850.60377 | AB142: -0.0003000006545
C144: Immobilizzazioni in beni non reversibili
C146: Immobilizzazioni tecniche non reversibili | D146: €'000 | E146: 3.9 | I146: =+SUM(P146:AB146) -> 96920.08482 | N146: =+INDEX(Working!$N$313:$AQ$313,,MATCH(N$6,Working!$N$6:$AQ$6,0)) -> 3373.05 | O146: =+INDEX(Working!$N$313:$AQ$313,,MATCH(O$6,Working!$N$6:$AQ$6,0)) -> 3780.39114 | P146: =+INDEX(Working!$N$313:$AQ$313,,MATCH(P$6,Working!$N$6:$AQ$6,0)) -> 4555.39114 | Q146: =+INDEX(Working!$N$313:$AQ$313,,MATCH(Q$6,Working!$N$6:$AQ$6,0)) -> 5380.39114 | R146: =+INDEX(Working!$N$313:$AQ$313,,MATCH(R$6,Working!$N$6:$AQ$6,0)) -> 5805.39114 | S146: =+INDEX(Working!$N$313:$AQ$313,,MATCH(S$6,Working!$N$6:$AQ$6,0)) -> 6230.39114 | T146: =+INDEX(Working!$N$313:$AQ$313,,MATCH(T$6,Working!$N$6:$AQ$6,0)) -> 6655.39114 | U146: =+INDEX(Working!$N$313:$AQ$313,,MATCH(U$6,Working!$N$6:$AQ$6,0)) -> 7080.39114 | V146: =+INDEX(Working!$N$313:$AQ$313,,MATCH(V$6,Working!$N$6:$AQ$6,0)) -> 7505.39114 | W146: =+INDEX(Working!$N$313:$AQ$313,,MATCH(W$6,Working!$N$6:$AQ$6,0)) -> 7930.39114 | X146: =+INDEX(Working!$N$313:$AQ$313,,MATCH(X$6,Working!$N$6:$AQ$6,0)) -> 8355.39114 | Y146: =+INDEX(Working!$N$313:$AQ$313,,MATCH(Y$6,Working!$N$6:$AQ$6,0)) -> 8780.39114 | Z146: =+INDEX(Working!$N$313:$AQ$313,,MATCH(Z$6,Working!$N$6:$AQ$6,0)) -> 9205.39114 | AA146: =+INDEX(Working!$N$313:$AQ$313,,MATCH(AA$6,Working!$N$6:$AQ$6,0)) -> 9630.39114 | AB146: =+INDEX(Working!$N$313:$AQ$313,,MATCH(AB$6,Working!$N$6:$AQ$6,0)) -> 9805.39114
C147: Fondo ammortamento tecnico beni non reversibili | D147: €'000 | E147: 3.10 | I147: -66719.331 | N147: =+INDEX(Working!$N$314:$AQ$314,,MATCH(N$6,Working!$N$6:$AQ$6,0)) -> -2094.16795 | O147: =+INDEX(Working!$N$314:$AQ$314,,MATCH(O$6,Working!$N$6:$AQ$6,0)) -> -2579.87506 | P147: =+INDEX(Working!$N$314:$AQ$314,,MATCH(P$6,Working!$N$6:$AQ$6,0)) -> -2687.722451 | Q147: =+INDEX(Working!$N$314:$AQ$314,,MATCH(Q$6,Working!$N$6:$AQ$6,0)) -> -2861.296291 | R147: =+INDEX(Working!$N$314:$AQ$314,,MATCH(R$6,Working!$N$6:$AQ$6,0)) -> -3100.423961 | S147: =+INDEX(Working!$N$314:$AQ$314,,MATCH(S$6,Working!$N$6:$AQ$6,0)) -> -3382.10489 | T147: =+INDEX(Working!$N$314:$AQ$314,,MATCH(T$6,Working!$N$6:$AQ$6,0)) -> -3711.08114 | U147: =+INDEX(Working!$N$314:$AQ$314,,MATCH(U$6,Working!$N$6:$AQ$6,0)) -> -4093.286556 | V147: =+INDEX(Working!$N$314:$AQ$314,,MATCH(V$6,Working!$N$6:$AQ$6,0)) -> -4536.361936 | W147: =+INDEX(Working!$N$314:$AQ$314,,MATCH(W$6,Working!$N$6:$AQ$6,0)) -> -5050.518319 | X147: =+INDEX(Working!$N$314:$AQ$314,,MATCH(X$6,Working!$N$6:$AQ$6,0)) -> -5650.103994 | Y147: =+INDEX(Working!$N$314:$AQ$314,,MATCH(Y$6,Working!$N$6:$AQ$6,0)) -> -6356.782923 | Z147: =+INDEX(Working!$N$314:$AQ$314,,MATCH(Z$6,Working!$N$6:$AQ$6,0)) -> -7207.152329 | AA147: =+INDEX(Working!$N$314:$AQ$314,,MATCH(AA$6,Working!$N$6:$AQ$6,0)) -> -8277.105068 | AB147: =+INDEX(Working!$N$314:$AQ$314,,MATCH(AB$6,Working!$N$6:$AQ$6,0)) -> -9805.39114
C148: Totale immobilizzazioni non reversibili nette | D148: €'000 | E148: 3.11 | I148: 30200.75382 | N148: =+SUM(N146:N147) -> 1278.88205 | O148: =+SUM(O146:O147) -> 1200.51608 | P148: 1867.668689 | Q148: 2519.094849 | R148: 2704.967179 | S148: 2848.28625 | T148: 2944.31 | U148: 2987.104584 | V148: 2969.029204 | W148: 2879.872821 | X148: 2705.287146 | Y148: 2423.608217 | Z148: 1998.238811 | AA148: 1353.286072 | AB148: 0
C150: Immobilizzazioni immateriali nette | D150: €'000 | E150: 3.12 | I150: =+SUM(P150:AB150) -> 7192.5 | N150: =+Prospetti_CIPE!N68 -> 60.42231 | O150: =+Prospetti_CIPE!O68 -> 40.40084 | P150: =+Prospetti_CIPE!P68 -> 945 | Q150: =+Prospetti_CIPE!Q68 -> 1627.5 | R150: =+Prospetti_CIPE!R68 -> 2100 | S150: =+Prospetti_CIPE!S68 -> 1470 | T150: =+Prospetti_CIPE!T68 -> 840 | U150: =+Prospetti_CIPE!U68 -> 210 | V150: =+Prospetti_CIPE!V68 -> 0 | W150: =+Prospetti_CIPE!W68 -> 0 | X150: =+Prospetti_CIPE!X68 -> 0 | Y150: =+Prospetti_CIPE!Y68 -> 0 | Z150: =+Prospetti_CIPE!Z68 -> 0 | AA150: =+Prospetti_CIPE!AA68 -> 0 | AB150: =+Prospetti_CIPE!AB68 -> 0
C151: Immobilizzazioni finanziarie | D151: €'000 | E151: 3.13 | I151: 12.696 | N151: =+Prospetti_CIPE!N69 -> 1.058 | O151: =+Prospetti_CIPE!O69 -> 1.058 | P151: =+Prospetti_CIPE!P69 -> 1.058 | Q151: =+Prospetti_CIPE!Q69 -> 1.058 | R151: =+Prospetti_CIPE!R69 -> 1.058 | S151: =+Prospetti_CIPE!S69 -> 1.058 | T151: =+Prospetti_CIPE!T69 -> 1.058 | U151: =+Prospetti_CIPE!U69 -> 1.058 | V151: =+Prospetti_CIPE!V69 -> 1.058 | W151: =+Prospetti_CIPE!W69 -> 1.058 | X151: =+Prospetti_CIPE!X69 -> 1.058 | Y151: =+Prospetti_CIPE!Y69 -> 1.058 | Z151: =+Prospetti_CIPE!Z69 -> 1.058 | AA151: =+Prospetti_CIPE!AA69 -> 1.058 | AB151: =+Prospetti_CIPE!AB69 -> 0
C152: Capitale circolante netto operativo | D152: €'000 | E152: 3.14 | I152: 156967.671 | N152: =+SUM(Prospetti_CIPE!N80:N84,Prospetti_CIPE!N89:N91,Prospetti_CIPE!N93) -> 67934.78976 | O152: =+SUM(Prospetti_CIPE!O80:O84,Prospetti_CIPE!O89:O91,Prospetti_CIPE!O93) -> 13849.51535 | P152: =+SUM(Prospetti_CIPE!P80:P84,Prospetti_CIPE!P89:P91,Prospetti_CIPE!P93) -> 8680.821618 | Q152: =+SUM(Prospetti_CIPE!Q80:Q84,Prospetti_CIPE!Q89:Q91,Prospetti_CIPE!Q93) -> 3131.613215 | R152: =+SUM(Prospetti_CIPE!R80:R84,Prospetti_CIPE!R89:R91,Prospetti_CIPE!R93) -> 11538.94402 | S152: =+SUM(Prospetti_CIPE!S80:S84,Prospetti_CIPE!S89:S91,Prospetti_CIPE!S93) -> 13222.9447 | T152: =+SUM(Prospetti_CIPE!T80:T84,Prospetti_CIPE!T89:T91,Prospetti_CIPE!T93) -> 14287.03407 | U152: =+SUM(Prospetti_CIPE!U80:U84,Prospetti_CIPE!U89:U91,Prospetti_CIPE!U93) -> 16514.27147 | V152: =+SUM(Prospetti_CIPE!V80:V84,Prospetti_CIPE!V89:V91,Prospetti_CIPE!V93) -> 15664.78114 | W152: =+SUM(Prospetti_CIPE!W80:W84,Prospetti_CIPE!W89:W91,Prospetti_CIPE!W93) -> 15734.98591 | X152: =+SUM(Prospetti_CIPE!X80:X84,Prospetti_CIPE!X89:X91,Prospetti_CIPE!X93) -> 15516.96591 | Y152: =+SUM(Prospetti_CIPE!Y80:Y84,Prospetti_CIPE!Y89:Y91,Prospetti_CIPE!Y93) -> 15673.53289 | Z152: =+SUM(Prospetti_CIPE!Z80:Z84,Prospetti_CIPE!Z89:Z91,Prospetti_CIPE!Z93) -> 15701.24505 | AA152: =+SUM(Prospetti_CIPE!AA80:AA84,Prospetti_CIPE!AA89:AA91,Prospetti_CIPE!AA93) -> 16006.89488 | AB152: =+SUM(Prospetti_CIPE!AB80:AB84,Prospetti_CIPE!AB89:AB91,Prospetti_CIPE!AB93) -> -4706.363887
C153: Altri impieghi netti correnti | D153: €'000 | E153: 3.15 | I153: 471826.0099 | N153: =+Prospetti_CIPE!N74+Prospetti_CIPE!N75+Prospetti_CIPE!N76 -> 69824.25588 | O153: =+Prospetti_CIPE!O74+Prospetti_CIPE!O75+Prospetti_CIPE!O76 -> 72458.96488 | P153: =+Prospetti_CIPE!P74+Prospetti_CIPE!P75+Prospetti_CIPE!P76 -> 67010.61217 | Q153: =+Prospetti_CIPE!Q74+Prospetti_CIPE!Q75+Prospetti_CIPE!Q76 -> 65804.56663 | R153: =+Prospetti_CIPE!R74+Prospetti_CIPE!R75+Prospetti_CIPE!R76 -> 54890.55234 | S153: =+Prospetti_CIPE!S74+Prospetti_CIPE!S75+Prospetti_CIPE!S76 -> 43751.44371 | T153: =+Prospetti_CIPE!T74+Prospetti_CIPE!T75+Prospetti_CIPE!T76 -> 43079.96421 | U153: =+Prospetti_CIPE!U74+Prospetti_CIPE!U75+Prospetti_CIPE!U76 -> 37673.55493 | V153: =+Prospetti_CIPE!V74+Prospetti_CIPE!V75+Prospetti_CIPE!V76 -> 40059.74177 | W153: =+Prospetti_CIPE!W74+Prospetti_CIPE!W75+Prospetti_CIPE!W76 -> 40120.19362 | X153: =+Prospetti_CIPE!X74+Prospetti_CIPE!X75+Prospetti_CIPE!X76 -> 39389.37917 | Y153: =+Prospetti_CIPE!Y74+Prospetti_CIPE!Y75+Prospetti_CIPE!Y76 -> 40046.00136 | Z153: =+Prospetti_CIPE!Z74+Prospetti_CIPE!Z75+Prospetti_CIPE!Z76 -> 0 | AA153: =+Prospetti_CIPE!AA74+Prospetti_CIPE!AA75+Prospetti_CIPE!AA76 -> 0 | AB153: =+Prospetti_CIPE!AB74+Prospetti_CIPE!AB75+Prospetti_CIPE!AB76 -> 0
C155: Totale Impieghi | D155: €'000 | E155: 3.16 | I155: =+SUM(P155:AB155) -> 4450042.074 | N155: =+N142+N148+SUM(N150:N153) -> 766867.1978 | O155: 676097.8064 | P155: 626499.5517 | Q155: 578624.4696 | R155: 537817.2044 | S155: 486315.4577 | T155: 440851.8081 | U155: 403792.4006 | V155: 371182.6607 | W155: 321619.8645 | X155: 269610.2491 | Y155: 218804.5124 | Z155: 126418.4164 | AA155: 73211.84273 | AB155: -4706.364187
B159: 4 | C159: Tabella 4 - CONTO DEI FINANZIAMENTI | D159: Unit | E159: Codice Dicoter | I159: Tot. 2020/32
C161: Patrimonio netto
C163: Capitale sociale | D163: €'000 | E163: 4.1 | F163: =SUM(F164:F165) -> 646775.3569 | I163: =+SUM(P163:AB163) -> 26000 | N163: =+Prospetti_CIPE!N104 -> 2000 | O163: =+Prospetti_CIPE!O104 -> 2000 | P163: =+Prospetti_CIPE!P104 -> 2000 | Q163: =+Prospetti_CIPE!Q104 -> 2000 | R163: =+Prospetti_CIPE!R104 -> 2000 | S163: =+Prospetti_CIPE!S104 -> 2000 | T163: =+Prospetti_CIPE!T104 -> 2000 | U163: =+Prospetti_CIPE!U104 -> 2000 | V163: =+Prospetti_CIPE!V104 -> 2000 | W163: =+Prospetti_CIPE!W104 -> 2000 | X163: =+Prospetti_CIPE!X104 -> 2000 | Y163: =+Prospetti_CIPE!Y104 -> 2000 | Z163: =+Prospetti_CIPE!Z104 -> 2000 | AA163: =+Prospetti_CIPE!AA104 -> 2000 | AB163: =+Prospetti_CIPE!AB104 -> 2000
C164: Riserve e utili (perdite) a nuovo | D164: €'000 | E164: 4.2 | F164: =P164 -> 165865.0119 | I164: 1375035.422 | N164: =+Prospetti_CIPE!N105+Prospetti_CIPE!N106 -> 115497.364 | O164: =+Prospetti_CIPE!O105+Prospetti_CIPE!O106 -> 138861.9914 | P164: =+Prospetti_CIPE!P105+Prospetti_CIPE!P106 -> 165865.0119 | Q164: =+Prospetti_CIPE!Q105+Prospetti_CIPE!Q106 -> 167052.6685 | R164: =+Prospetti_CIPE!R105+Prospetti_CIPE!R106 -> 191925.1101 | S164: =+Prospetti_CIPE!S105+Prospetti_CIPE!S106 -> 77840.15653 | T164: =+Prospetti_CIPE!T105+Prospetti_CIPE!T106 -> 77597.15743 | U164: =+Prospetti_CIPE!U105+Prospetti_CIPE!U106 -> 85227.90757 | V164: =+Prospetti_CIPE!V105+Prospetti_CIPE!V106 -> 101035.1627 | W164: =+Prospetti_CIPE!W105+Prospetti_CIPE!W106 -> 115095.0679 | X164: =+Prospetti_CIPE!X105+Prospetti_CIPE!X106 -> 120978.0975 | Y164: =+Prospetti_CIPE!Y105+Prospetti_CIPE!Y106 -> 128282.0925 | Z164: =+Prospetti_CIPE!Z105+Prospetti_CIPE!Z106 -> 133834.2492 | AA164: =+Prospetti_CIPE!AA105+Prospetti_CIPE!AA106 -> 66320.17384 | AB164: =+Prospetti_CIPE!AB105+Prospetti_CIPE!AB106 -> -56017.43364
C165: Utile (perdita) di esercizio | D165: €'000 | E165: 4.3 | F165: =I165 -> 480910.3451 | I165: 480910.3451 | N165: =+Prospetti_CIPE!N107 -> 23364.62742 | O165: =+Prospetti_CIPE!O107 -> 27003.02044 | P165: =+Prospetti_CIPE!P107 -> 1187.656664 | Q165: =+Prospetti_CIPE!Q107 -> 24872.44155 | R165: =+Prospetti_CIPE!R107 -> 31578.31741 | S165: =+Prospetti_CIPE!S107 -> 34725.73088 | T165: =+Prospetti_CIPE!T107 -> 38379.44831 | U165: =+Prospetti_CIPE!U107 -> 39689.97785 | V165: =+Prospetti_CIPE!V107 -> 39663.97285 | W165: =+Prospetti_CIPE!W107 -> 40261.93808 | X165: =+Prospetti_CIPE!X107 -> 41700.73087 | Y165: =+Prospetti_CIPE!Y107 -> 42946.26753 | Z165: =+Prospetti_CIPE!Z107 -> 44614.48984 | AA165: =+Prospetti_CIPE!AA107 -> 44871.93919 | AB165: =+Prospetti_CIPE!AB107 -> 56417.43406
C166: Totale | D166: €'000 | E166: 4.4 | I166: 1881945.767 | N166: =+SUM(N163:N165) -> 140861.9914 | O166: =+SUM(O163:O165) -> 167865.0119 | P166: =+SUM(P163:P165) -> 169052.6685 | Q166: 193925.1101 | R166: 225503.4275 | S166: 114565.8874 | T166: 117976.6057 | U166: 126917.8854 | V166: 142699.1355 | W166: 157357.006 | X166: 164678.8284 | Y166: 173228.36 | Z166: 180448.739 | AA166: 113192.113 | AB166: 2400.00042
C168: Contibuto conto impianti | D168: €'000 | E168: 4.5 | I168: =+SUM(P168:AB168) -> 0
C170: Fondo per rischi ed oneri
C172: Fondo rinnovo beni reversibili | D172: €'000 | E172: 4.6 | I172: =+SUM(P172:AB172) -> 137425.9749 | N172: =-Prospetti_CIPE!N99 -> 19116.16603 | O172: =-Prospetti_CIPE!O99 -> 14408.56996 | P172: =-Prospetti_CIPE!P99 -> 10482.52928 | Q172: =-Prospetti_CIPE!Q99 -> 10912.03819 | R172: =-Prospetti_CIPE!R99 -> 10728.00961 | S172: =-Prospetti_CIPE!S99 -> 11122.79235 | T172: =-Prospetti_CIPE!T99 -> 10977.43334 | U172: =-Prospetti_CIPE!U99 -> 11103.64374 | V172: =-Prospetti_CIPE!V99 -> 11709.41743 | W172: =-Prospetti_CIPE!W99 -> 11697.52113 | X172: =-Prospetti_CIPE!X99 -> 11829.49223 | Y172: =-Prospetti_CIPE!Y99 -> 12246.33662 | Z172: =-Prospetti_CIPE!Z99 -> 12096.61018 | AA172: =-Prospetti_CIPE!AA99 -> 12520.15075 | AB172: =-Prospetti_CIPE!AB99 -> 0
C173: Fondo trattamento fine rapporto | D173: €'000 | E173: 4.7 | I173: 3907.262274 | N173: =-Prospetti_CIPE!N92 -> 341.50975 | O173: =-Prospetti_CIPE!O92 -> 356.24046 | P173: =-Prospetti_CIPE!P92 -> 296.1661513 | Q173: =-Prospetti_CIPE!Q92 -> 307.5850745 | R173: =-Prospetti_CIPE!R92 -> 317.9402429 | S173: =-Prospetti_CIPE!S92 -> 321.1942688 | T173: =-Prospetti_CIPE!T92 -> 323.8277683 | U173: =-Prospetti_CIPE!U92 -> 326.4241455 | V173: =-Prospetti_CIPE!V92 -> 329.0360566 | W173: =-Prospetti_CIPE!W92 -> 331.6683917 | X173: =-Prospetti_CIPE!X92 -> 334.3217431 | Y173: =-Prospetti_CIPE!Y92 -> 336.9963175 | Z173: =-Prospetti_CIPE!Z92 -> 339.692288 | AA173: =-Prospetti_CIPE!AA92 -> 342.4098263 | AB173: =-Prospetti_CIPE!AB92 -> 0
C174: Altri fondi | D174: €'000 | E174: 4.8 | I174: 0 | N174: =-+Prospetti_CIPE!N98 -> 150 | O174: =-+Prospetti_CIPE!O98 -> 0 | P174: =-+Prospetti_CIPE!P98 -> 0 | Q174: =-+Prospetti_CIPE!Q98 -> 0 | R174: =-+Prospetti_CIPE!R98 -> 0 | S174: =-+Prospetti_CIPE!S98 -> 0 | T174: =-+Prospetti_CIPE!T98 -> 0 | U174: =-+Prospetti_CIPE!U98 -> 0 | V174: =-+Prospetti_CIPE!V98 -> 0 | W174: =-+Prospetti_CIPE!W98 -> 0 | X174: =-+Prospetti_CIPE!X98 -> 0 | Y174: =-+Prospetti_CIPE!Y98 -> 0 | Z174: =-+Prospetti_CIPE!Z98 -> 0 | AA174: =-+Prospetti_CIPE!AA98 -> 0 | AB174: =-+Prospetti_CIPE!AB98 -> 0
C175: Totale | D175: €'000 | E175: 4.9 | I175: 141333.2371 | N175: =+SUM(N172:N174) -> 19607.67578 | O175: =+SUM(O172:O174) -> 14764.81042 | P175: 10778.69543 | Q175: 11219.62327 | R175: 11045.94985 | S175: 11443.98662 | T175: 11301.26111 | U175: 11430.06789 | V175: 12038.45349 | W175: 12029.18952 | X175: 12163.81397 | Y175: 12583.33293 | Z175: 12436.30246 | AA175: 12862.56058 | AB175: 0
C177: Debiti finanziari netti
C179: Prestiti consolidati con garanzia dello Stato | D179: €'000 | E179: 4.10 | I179: =+SUM(P179:AB179) -> 0
C180: Prestiti consolidati senza garanzia dello Stato | D180: €'000 | E180: 4.11 | I180: 0
C181: Fondo Centrale Garanzia | D181: €'000 | E181: 4.12 | I181: 0
C182: ANAS | D182: €'000 | E182: 4.13 | I182: 0
C183: Prestiti da contrarre a medio lungo termine | D183: €'000 | E183: 4.14 | I183: 3063066.607 | N183: =-Prospetti_CIPE!N94-Prospetti_CIPE!N95 -> 682446.6439 | O183: =-Prospetti_CIPE!O94-Prospetti_CIPE!O95 -> 620456.8677 | P183: =-Prospetti_CIPE!P94-Prospetti_CIPE!P95 -> 557743.6667 | Q183: =-Prospetti_CIPE!Q94-Prospetti_CIPE!Q95 -> 499160.6907 | R183: =-Prospetti_CIPE!R94-Prospetti_CIPE!R95 -> 435551.4778 | S183: =-Prospetti_CIPE!S94-Prospetti_CIPE!S95 -> 381691.4048 | T183: =-Prospetti_CIPE!T94-Prospetti_CIPE!T95 -> 333166.8498 | U183: =-Prospetti_CIPE!U94-Prospetti_CIPE!U95 -> 281167.9958 | V183: =-Prospetti_CIPE!V94-Prospetti_CIPE!V95 -> 229578.7319 | W183: =-Prospetti_CIPE!W94-Prospetti_CIPE!W95 -> 173426.0639 | X183: =-Prospetti_CIPE!X94-Prospetti_CIPE!X95 -> 115128.7159 | Y183: =-Prospetti_CIPE!Y94-Prospetti_CIPE!Y95 -> 56451.00997 | Z183: =-Prospetti_CIPE!Z94-Prospetti_CIPE!Z95 -> 0 | AA183: =-Prospetti_CIPE!AA94-Prospetti_CIPE!AA95 -> 0 | AB183: =-Prospetti_CIPE!AB94-Prospetti_CIPE!AB95 -> 0
C184: Saldo posizione finanziaria a breve | D184: €'000 | E184: 4.15 | I184: -636303.5203 | N184: =-Prospetti_CIPE!N77 -> -76049.111 | O184: =-Prospetti_CIPE!O77 -> -126988.8822 | P184: =-Prospetti_CIPE!P77 -> -111075.4776 | Q184: =-Prospetti_CIPE!Q77 -> -125680.9531 | R184: =-Prospetti_CIPE!R77 -> -134283.6493 | S184: =-Prospetti_CIPE!S77 -> -21385.81975 | T184: =-Prospetti_CIPE!T77 -> -21592.90719 | U184: =-Prospetti_CIPE!U77 -> -15723.54723 | V184: =-Prospetti_CIPE!V77 -> -13133.65887 | W184: =-Prospetti_CIPE!W77 -> -21192.39357 | X184: =-Prospetti_CIPE!X77 -> -22361.10788 | Y184: =-Prospetti_CIPE!Y77 -> -23458.18916 | Z184: =-Prospetti_CIPE!Z77 -> -66466.62378 | AA184: =-Prospetti_CIPE!AA77 -> -52842.82954 | AB184: =-Prospetti_CIPE!AB77 -> -7106.363267
C185: Totale | D185: €'000 | E185: 4.16 | I185: 2426763.087 | N185: =+SUM(N179:N184) -> 606397.5329 | O185: =+SUM(O179:O184) -> 493467.9855 | P185: 446668.1891 | Q185: 373479.7376 | R185: 301267.8284 | S185: 360305.585 | T185: 311573.9426 | U185: 265444.4486 | V185: 216445.073 | W185: 152233.6703 | X185: 92767.60806 | Y185: 32992.82081 | Z185: -66466.62378 | AA185: -52842.82954 | AB185: -7106.363267
C187: Totale Fonti | D187: €'000 | E187: 4.17 | I187: =+SUM(P187:AB187) -> 4450042.091 | N187: =+N185+N175+N168+N166 -> 766867.2001 | O187: =+O185+O175+O168+O166 -> 676097.8078 | P187: 626499.5531 | Q187: 578624.4709 | R187: 537817.2057 | S187: 486315.4591 | T187: 440851.8095 | U187: 403792.4019 | V187: 371182.662 | W187: 321619.8659 | X187: 269610.2504 | Y187: 218804.5137 | Z187: 126418.4177 | AA187: 73211.84407 | AB187: -4706.362847
G189: =+SUM(N189:AB189) -> 0 | N189: =+ROUND(N187-N155,2) -> 0 | O189: =+ROUND(O187-O155,2) -> 0 | P189: 0 | Q189: 0 | R189: 0 | S189: 0 | T189: 0 | U189: 0 | V189: 0 | W189: 0 | X189: 0 | Y189: 0 | Z189: 0 | AA189: 0 | AB189: 0
B191: 5 | C191: Tabella 5 - CONTO DEL FABBISOGNO FINANZIARIO ANNUO E RELATIVA COPERTURA | D191: Unit | E191: Codice Dicoter | I191: Tot. 2020/32 | N191: 2018-12-31 | O191: 2019-12-31 | P191: 2020-12-31 | Q191: 2021-12-31 | R191: 2022-12-31 | S191: 2023-12-31 | T191: 2024-12-31 | U191: 2025-12-31 | V191: 2026-12-31 | W191: 2027-12-31 | X191: 2028-12-31 | Y191: 2029-12-31 | Z191: 2030-12-31 | AA191: 2031-12-31 | AB191: 2032-12-31
C193: Fabbisogno netto
C195: Investimenti in immobilizzazioni materiali e immateriali | D195: €'000 | E195: 5.1 ; 5.2 | I195: =+SUM(P195:AB195) -> -73999.942 | O195: =+O29+O31+O32 -> -6261.78981 | P195: -6611 | Q195: -5155 | R195: -8645 | S195: -5661 | T195: -2385 | U195: -15083 | V195: -16616 | W195: -3020 | X195: -2215 | Y195: -2215 | Z195: -2215 | AA195: -2215 | AB195: -1963.942
C196: Variazione del cap. circ. netto operativo e altri impieghi correnti | D196: €'000 | E196: 5.3 | I196: 18199.63878 | O196: =+O25 -> 54100.00512 | P196: 5108.619423 | Q196: 5560.627327 | R196: -8396.975638 | S196: -1680.746651 | T196: -1061.455876 | U196: -2224.641022 | V196: 852.1022483 | W196: -67.57243659 | X196: 220.6733488 | Y196: -153.8924068 | Z196: -25.01618877 | AA196: -302.932291 | AB196: 20370.84894
C197: Rimborso debiti in scadenza | D197: €'000 | E197: 5.4 | I197: -632559.5997 | O197: =+O45 -> -64054.93678 | P197: -64723.39997 | Q197: -60407.39997 | R197: -65237.99996 | S197: -55302.89997 | T197: -49799.99997 | U197: -53119.99997 | V197: -52530.69997 | W197: -56921.39997 | X197: -58871.89997 | Y197: -59046.19997 | Z197: -56597.69997 | AA197: 0 | AB197: 0
C198: Saldo altri fabbisogni | D198: €'000 | E198: 5.5 | I198: -573916.3916 | O198: =+O43+O33 -> -2634.709 | P198: =+P43+P33 -> 5448.352709 | Q198: 1206.045543 | R198: 10914.01429 | S198: -134524.1623 | T198: -34297.25048 | U198: -25342.28889 | V198: -26268.9096 | W198: -25664.51942 | X198: -33648.09406 | Y198: -35053.35812 | Z198: 2651.890568 | AA198: -112128.5652 | AB198: -167209.5467
C199: Totale | D199: €'000 | E199: 5.6 | I199: -1262276.295 | N199: =+SUM(N195:N198) -> 0 | O199: =+SUM(O195:O198) -> -18851.43047 | P199: =+SUM(P195:P198) -> -60777.42783 | Q199: -58795.7271 | R199: -71365.96131 | S199: -197168.8089 | T199: -87543.70633 | U199: -95769.92989 | V199: -94563.50732 | W199: -85673.49182 | X199: -94514.32068 | Y199: -96468.4505 | Z199: -56185.82559 | AA199: -114646.4975 | AB199: -148802.6397
C201: Contributi in conto capitale | D201: €'000 | E201: 5.7 | I201: 0
C202: Autofinanziamento | D202: €'000 | E202: 5.8 | I202: 1125492.177 | N202: =+N23 -> 68030.99324 | O202: 67879.54112 | P202: 42853.82424 | Q202: 71576.77866 | R202: 78339.87053 | S202: 82828.15234 | T202: 86475.34876 | U202: 88779.42393 | V202: 91032.18296 | W202: 92963.49452 | X202: 95108.48299 | Y202: 97197.03777 | Z202: 99047.57022 | AA202: 101022.7032 | AB202: 98267.30732
C204: Totale fabbisogno netto | D204: €'000 | E204: 5.9 | I204: -136784.117 | N204: =+N199+N202 -> 68030.99324 | O204: =+O199+O202 -> 49028.11065 | P204: =+P199+P202 -> -17923.60359 | Q204: =+Q199+Q202 -> 12781.05156 | R204: 6973.909212 | S204: -114340.6566 | T204: -1068.357562 | U204: -6990.505952 | V204: -3531.324362 | W204: 7290.002698 | X204: 594.162308 | Y204: 728.5872776 | Z204: 42861.74463 | AA204: -13623.79424 | AB204: -50535.33242
C206: Copertura
C208: Apporti degli azionisti in c/capitale | D208: €'000 | E208: 5.10 | I208: =+SUM(P208:AB208) -> 0 | N208: =+Prospetti_CIPE!O147 -> 0 | O208: =+Prospetti_CIPE!P147 -> 0 | P208: =+Prospetti_CIPE!Q147 -> 0 | Q208: =+Prospetti_CIPE!R147 -> 0 | R208: =+Prospetti_CIPE!S147 -> 0 | S208: =+Prospetti_CIPE!T147 -> 0 | T208: =+Prospetti_CIPE!U147 -> 0 | U208: =+Prospetti_CIPE!V147 -> 0 | V208: =+Prospetti_CIPE!W147 -> 0 | W208: =+Prospetti_CIPE!X147 -> 0 | X208: =+Prospetti_CIPE!Y147 -> 0 | Y208: =+Prospetti_CIPE!Z147 -> 0 | Z208: =+Prospetti_CIPE!AA147 -> 0 | AA208: =+Prospetti_CIPE!AB147 -> 0 | AB208: =+Prospetti_CIPE!AC147 -> 0
C209: Finanziamenti a medio-lungo termine | D209: €'000 | E209: 5.11 | I209: 0 | N209: =+N39 -> 0 | O209: 0 | P209: 0 | Q209: 0 | R209: 0 | S209: 0 | T209: 0 | U209: 0 | V209: 0 | W209: 0 | X209: 0 | Y209: 0 | Z209: 0 | AA209: 0 | AB209: 0
C210: Variazione posizione finanziaria a breve | D210: €'000 | E210: 5.12 | I210: -136784.117 | N210: =+N48 -> 68030.99324 | O210: 49028.11065 | P210: -17923.60359 | Q210: 12781.05156 | R210: 6973.909212 | S210: -114340.6566 | T210: -1068.357562 | U210: -6990.505952 | V210: -3531.324362 | W210: 7290.002698 | X210: 594.162308 | Y210: 728.5872776 | Z210: 42861.74463 | AA210: -13623.79424 | AB210: -50535.33242
C212: Totale copertura | D212: €'000 | E212: 5.13 | I212: =+SUM(P212:AB212) -> -136784.117 | N212: =+SUM(N208:N210) -> 68030.99324 | O212: =+SUM(O208:O210) -> 49028.11065 | P212: =+SUM(P208:P210) -> -17923.60359 | Q212: 12781.05156 | R212: 6973.909212 | S212: -114340.6566 | T212: -1068.357562 | U212: -6990.505952 | V212: -3531.324362 | W212: 7290.002698 | X212: 594.162308 | Y212: 728.5872776 | Z212: 42861.74463 | AA212: -13623.79424 | AB212: -50535.33242
G214: =+SUM(N214:AB214) -> 0 | N214: =+ROUND(N212-N204,3) -> 0 | O214: =+ROUND(O212-O204,3) -> 0 | P214: 0 | Q214: 0 | R214: 0 | S214: 0 | T214: 0 | U214: 0 | V214: 0 | W214: 0 | X214: 0 | Y214: 0 | Z214: 0 | AA214: 0 | AB214: 0
C217: Note esplicative | D217: Unit | E217: Codice Dicoter | I217: Tot. 2020/32 | N217: 2018-12-31 | O217: 2019-12-31 | P217: 2020-12-31 | Q217: 2021-12-31 | R217: 2022-12-31 | S217: 2023-12-31 | T217: 2024-12-31 | U217: 2025-12-31 | V217: 2026-12-31 | W217: 2027-12-31 | X217: 2028-12-31 | Y217: 2029-12-31 | Z217: 2030-12-31 | AA217: 2031-12-31 | AB217: 2032-12-31
C219: Saldo altri flussi gestione operativa - 1.12
C220: Utilizzo CRA | D220: €'000 | I220: =+SUM(P220:AB220) -> 27079.81448 | N220: =+Prospetti_CIPE!N128 -> 0 | O220: =+Prospetti_CIPE!O128 -> 0 | P220: =+Prospetti_CIPE!P128 -> 4786 | Q220: =+Prospetti_CIPE!Q128 -> 3280 | R220: =+Prospetti_CIPE!R128 -> 7170 | S220: =+Prospetti_CIPE!S128 -> 5236 | T220: =+Prospetti_CIPE!T128 -> 1960 | U220: =+Prospetti_CIPE!U128 -> 4647.81448 | V220: =+Prospetti_CIPE!V128 -> 0 | W220: =+Prospetti_CIPE!W128 -> 0 | X220: =+Prospetti_CIPE!X128 -> 0 | Y220: =+Prospetti_CIPE!Y128 -> 0 | Z220: =+Prospetti_CIPE!Z128 -> 0 | AA220: =+Prospetti_CIPE!AA128 -> 0 | AB220: =+Prospetti_CIPE!AB128 -> 0
C221: Utilizzo MRA | D221: €'000 | I221: 8693.243323 | N221: =+Prospetti_CIPE!N129 -> 0 | O221: =+Prospetti_CIPE!O129 -> 0 | P221: =+Prospetti_CIPE!P129 -> 0 | Q221: =+Prospetti_CIPE!Q129 -> 0 | R221: =+Prospetti_CIPE!R129 -> 92.01429049 | S221: =+Prospetti_CIPE!S129 -> 0 | T221: =+Prospetti_CIPE!T129 -> 72.67950524 | U221: =+Prospetti_CIPE!U129 -> 0 | V221: =+Prospetti_CIPE!V129 -> 0 | W221: =+Prospetti_CIPE!W129 -> 5.948150116 | X221: =+Prospetti_CIPE!X129 -> 0 | Y221: =+Prospetti_CIPE!Y129 -> 0 | Z221: =+Prospetti_CIPE!Z129 -> 8522.601377 | AA221: =+Prospetti_CIPE!AA129 -> 0 | AB221: =+Prospetti_CIPE!AB129 -> 0
C222: Variazioni DSRA | D222: €'000 | I222: 41047.97515 | N222: =+Prospetti_CIPE!N142 -> 0 | O222: =+Prospetti_CIPE!O142 -> -2577.435 | P222: =+Prospetti_CIPE!P142 -> 3971.875167 | Q222: =+Prospetti_CIPE!Q142 -> -1859.199999 | R222: =+Prospetti_CIPE!R142 -> 3651.999998 | S222: =+Prospetti_CIPE!S142 -> 6100.499997 | T222: =+Prospetti_CIPE!T142 -> -1361.199999 | U222: =+Prospetti_CIPE!U142 -> 821.6999999 | V222: =+Prospetti_CIPE!V142 -> -2083.299999 | W222: =+Prospetti_CIPE!W142 -> -66.39999964 | X222: =+Prospetti_CIPE!X142 -> 796.7999999 | Y222: =+Prospetti_CIPE!Y142 -> -448.1999994 | Z222: =+Prospetti_CIPE!Z142 -> 31523.39998 | AA222: =+Prospetti_CIPE!AA142 -> 0 | AB222: =+Prospetti_CIPE!AB142 -> 0
C223: MRA funding | D223: €'000 | N223: =+Prospetti_CIPE!N143 -> 0 | O223: =+Prospetti_CIPE!O143 -> -57.274 | P223: =+Prospetti_CIPE!P143 -> -3309.522458 | Q223: =+Prospetti_CIPE!Q143 -> -214.7544585 | R223: =+Prospetti_CIPE!R143 -> 0 | S223: =+Prospetti_CIPE!S143 -> -197.3913713 | T223: =+Prospetti_CIPE!T143 -> 0 | U223: =+Prospetti_CIPE!U143 -> -63.10519793 | V223: =+Prospetti_CIPE!V143 -> -302.8868452 | W223: =+Prospetti_CIPE!W143 -> 0 | X223: =+Prospetti_CIPE!X143 -> -65.98554908 | Y223: =+Prospetti_CIPE!Y143 -> -208.4221936 | Z223: =+Prospetti_CIPE!Z143 -> 0 | AA223: =+Prospetti_CIPE!AA143 -> 0 | AB223: =+Prospetti_CIPE!AB143 -> 0
C224: Totale Saldo altri flussi gestione operativa | D224: €'000 | E224: 1.12 | I224: =+SUM(P224:AB224) -> 72458.96488 | N224: =+SUM(N220:N223) -> 0 | O224: =+SUM(O220:O223) -> -2634.709 | P224: 5448.352709 | Q224: 1206.045543 | R224: 10914.01429 | S224: 11139.10863 | T224: 671.4795063 | U224: 5406.409282 | V224: -2386.186844 | W224: -60.45184952 | X224: 730.8144508 | Y224: -656.622193 | Z224: 40046.00136 | AA224: 0 | AB224: 0
G226: =+SUM(N226:AB226) -> 0 | N226: =+N224-N33 -> 0 | O226: =+O224-O33 -> 0 | P226: 0 | Q226: 0 | R226: 0 | S226: 0 | T226: 0 | U226: 0 | V226: 0 | W226: 0 | X226: 0 | Y226: 0 | Z226: 0 | AA226: 0 | AB226: 0
C228: Capitale circolante netto operativo - 3.14
C229: Crediti commerciali | D229: €'000 | I229: =+SUM(P229:AB229) -> 41872.31958 | N229: =+Prospetti_CIPE!N80 -> 2779.57191 | O229: =+Prospetti_CIPE!O80 -> 2727.2514 | P229: =+Prospetti_CIPE!P80 -> 2657.231337 | Q229: =+Prospetti_CIPE!Q80 -> 3011.810893 | R229: =+Prospetti_CIPE!R80 -> 3095.363579 | S229: =+Prospetti_CIPE!S80 -> 3156.060695 | T229: =+Prospetti_CIPE!T80 -> 3211.84263 | U229: =+Prospetti_CIPE!U80 -> 3242.449683 | V229: =+Prospetti_CIPE!V80 -> 3271.287341 | W229: =+Prospetti_CIPE!W80 -> 3299.914577 | X229: =+Prospetti_CIPE!X80 -> 3327.963867 | Y229: =+Prospetti_CIPE!Y80 -> 3356.470042 | Z229: =+Prospetti_CIPE!Z80 -> 3385.124283 | AA229: =+Prospetti_CIPE!AA80 -> 3413.926012 | AB229: =+Prospetti_CIPE!AB80 -> 3442.874636
C230: Rimanenze | D230: €'000 | I230: 15593.17396 | N230: =+Prospetti_CIPE!N81 -> 1159.21413 | O230: =+Prospetti_CIPE!O81 -> 1199.47492 | P230: =+Prospetti_CIPE!P81 -> 1199.47492 | Q230: =+Prospetti_CIPE!Q81 -> 1199.47492 | R230: =+Prospetti_CIPE!R81 -> 1199.47492 | S230: =+Prospetti_CIPE!S81 -> 1199.47492 | T230: =+Prospetti_CIPE!T81 -> 1199.47492 | U230: =+Prospetti_CIPE!U81 -> 1199.47492 | V230: =+Prospetti_CIPE!V81 -> 1199.47492 | W230: =+Prospetti_CIPE!W81 -> 1199.47492 | X230: =+Prospetti_CIPE!X81 -> 1199.47492 | Y230: =+Prospetti_CIPE!Y81 -> 1199.47492 | Z230: =+Prospetti_CIPE!Z81 -> 1199.47492 | AA230: =+Prospetti_CIPE!AA81 -> 1199.47492 | AB230: =+Prospetti_CIPE!AB81 -> 1199.47492
C231: Credito IVA | D231: €'000 | I231: 0 | N231: =+Prospetti_CIPE!N82 -> 40112.71376 | O231: =+Prospetti_CIPE!O82 -> 5006.51892 | P231: =+Prospetti_CIPE!P82 -> 0 | Q231: =+Prospetti_CIPE!Q82 -> 0 | R231: =+Prospetti_CIPE!R82 -> 0 | S231: =+Prospetti_CIPE!S82 -> 0 | T231: =+Prospetti_CIPE!T82 -> 0 | U231: =+Prospetti_CIPE!U82 -> 0 | V231: =+Prospetti_CIPE!V82 -> 0 | W231: =+Prospetti_CIPE!W82 -> 0 | X231: =+Prospetti_CIPE!X82 -> 0 | Y231: =+Prospetti_CIPE!Y82 -> 0 | Z231: =+Prospetti_CIPE!Z82 -> 0 | AA231: =+Prospetti_CIPE!AA82 -> 0 | AB231: =+Prospetti_CIPE!AB82 -> 0
C232: Crediti v/Erario | D232: €'000 | I232: 9326.027554 | N232: =+Prospetti_CIPE!N83 -> 0 | O232: =+Prospetti_CIPE!O83 -> 0 | P232: =+Prospetti_CIPE!P83 -> 9326.027554 | Q232: =+Prospetti_CIPE!Q83 -> 0 | R232: =+Prospetti_CIPE!R83 -> 0 | S232: =+Prospetti_CIPE!S83 -> 0 | T232: =+Prospetti_CIPE!T83 -> 0 | U232: =+Prospetti_CIPE!U83 -> 0 | V232: =+Prospetti_CIPE!V83 -> 0 | W232: =+Prospetti_CIPE!W83 -> 0 | X232: =+Prospetti_CIPE!X83 -> 0 | Y232: =+Prospetti_CIPE!Y83 -> 0 | Z232: =+Prospetti_CIPE!Z83 -> 0 | AA232: =+Prospetti_CIPE!AA83 -> 0 | AB232: =+Prospetti_CIPE!AB83 -> 0
C233: Altri crediti | D233: €'000 | I233: 422414.3492 | N233: =+Prospetti_CIPE!N84 -> 53797.37803 | O233: =+Prospetti_CIPE!O84 -> 46017.5256 | P233: =+Prospetti_CIPE!P84 -> 25743.97456 | Q233: =+Prospetti_CIPE!Q84 -> 31709.18043 | R233: =+Prospetti_CIPE!R84 -> 37420.29748 | S233: =+Prospetti_CIPE!S84 -> 34314.0337 | T233: =+Prospetti_CIPE!T84 -> 35255.94377 | U233: =+Prospetti_CIPE!U84 -> 36982.06541 | V233: =+Prospetti_CIPE!V84 -> 35993.87275 | W233: =+Prospetti_CIPE!W84 -> 36335.52729 | X233: =+Prospetti_CIPE!X84 -> 36662.2765 | Y233: =+Prospetti_CIPE!Y84 -> 36996.72147 | Z233: =+Prospetti_CIPE!Z84 -> 37332.09372 | AA233: =+Prospetti_CIPE!AA84 -> 37668.36215 | AB233: =+Prospetti_CIPE!AB84 -> 0
C234: Debiti commerciali | D234: €'000 | I234: -115302.3706 | N234: =+Prospetti_CIPE!N89 -> -7966.34354 | O234: =+Prospetti_CIPE!O89 -> -8762.88159 | P234: =+Prospetti_CIPE!P89 -> -9084.769602 | Q234: =+Prospetti_CIPE!Q89 -> -8334.237165 | R234: =+Prospetti_CIPE!R89 -> -8512.815585 | S234: =+Prospetti_CIPE!S89 -> -8524.696229 | T234: =+Prospetti_CIPE!T89 -> -8678.555474 | U234: =+Prospetti_CIPE!U89 -> -8682.699917 | V234: =+Prospetti_CIPE!V89 -> -8753.871847 | W234: =+Prospetti_CIPE!W89 -> -8944.991221 | X234: =+Prospetti_CIPE!X89 -> -8981.534263 | Y234: =+Prospetti_CIPE!Y89 -> -9054.4975 | Z234: =+Prospetti_CIPE!Z89 -> -9198.951619 | AA234: =+Prospetti_CIPE!AA89 -> -9202.036732 | AB234: =+Prospetti_CIPE!AB89 -> -9348.713443
C235: Debito IVA | D235: €'000 | I235: -17990.49617 | N235: =+Prospetti_CIPE!N90 -> 0 | O235: =+Prospetti_CIPE!O90 -> 0 | P235: =+Prospetti_CIPE!P90 -> -1051.780374 | Q235: =+Prospetti_CIPE!Q90 -> -1189.86366 | R235: =+Prospetti_CIPE!R90 -> -1307.300467 | S235: =+Prospetti_CIPE!S90 -> -1403.501753 | T235: =+Prospetti_CIPE!T90 -> -1483.450155 | U235: =+Prospetti_CIPE!U90 -> -1544.516626 | V235: =+Prospetti_CIPE!V90 -> -1591.909643 | W235: =+Prospetti_CIPE!W90 -> -1629.714513 | X235: =+Prospetti_CIPE!X90 -> -1660.657562 | Y235: =+Prospetti_CIPE!Y90 -> -1686.94285 | Z235: =+Prospetti_CIPE!Z90 -> -1710.007918 | AA235: =+Prospetti_CIPE!AA90 -> -1730.850646 | AB235: =+Prospetti_CIPE!AB90 -> 0
C236: Debito v/Erario | D236: €'000 | I236: -14062.05459 | N236: =+Prospetti_CIPE!N91 -> -1959.04238 | O236: =+Prospetti_CIPE!O91 -> -2869.10391 | P236: =+Prospetti_CIPE!P91 -> 0 | Q236: =+Prospetti_CIPE!Q91 -> -8287.555013 | R236: =+Prospetti_CIPE!R91 -> -381.0146048 | S236: =+Prospetti_CIPE!S91 -> -1635.128809 | T236: =+Prospetti_CIPE!T91 -> -1138.195742 | U236: =+Prospetti_CIPE!U91 -> -555.1199099 | V236: =+Prospetti_CIPE!V91 -> -211.9609125 | W236: =+Prospetti_CIPE!W91 -> -48.08838458 | X236: =+Prospetti_CIPE!X91 -> -472.6205804 | Y236: =+Prospetti_CIPE!Y91 -> -462.1817608 | Z236: =+Prospetti_CIPE!Z91 -> -441.5546762 | AA236: =+Prospetti_CIPE!AA91 -> -428.634194 | AB236: =+Prospetti_CIPE!AB91 -> 0
C237: Altri debiti | D237: €'000 | I237: -184883.278 | N237: =+Prospetti_CIPE!N93 -> -19988.70215 | O237: =+Prospetti_CIPE!O93 -> -29469.26999 | P237: =+Prospetti_CIPE!P93 -> -20109.33678 | Q237: =+Prospetti_CIPE!Q93 -> -14977.19719 | R237: =+Prospetti_CIPE!R93 -> -19975.0613 | S237: =+Prospetti_CIPE!S93 -> -13883.29782 | T237: =+Prospetti_CIPE!T93 -> -14080.02588 | U237: =+Prospetti_CIPE!U93 -> -14127.38208 | V237: =+Prospetti_CIPE!V93 -> -14242.11147 | W237: =+Prospetti_CIPE!W93 -> -14477.13676 | X237: =+Prospetti_CIPE!X93 -> -14557.93697 | Y237: =+Prospetti_CIPE!Y93 -> -14675.51143 | Z237: =+Prospetti_CIPE!Z93 -> -14864.93366 | AA237: =+Prospetti_CIPE!AA93 -> -14913.34663 | AB237: =+Prospetti_CIPE!AB93 -> 0
C238: Totale Capitale circolante netto operativo | D238: €'000 | E238: 3.14 | I238: =+SUM(P238:AB238) -> 156967.671 | N238: =+SUM(N229:N237) -> 67934.78976 | O238: 13849.51535 | P238: 8680.821618 | Q238: 3131.613215 | R238: 11538.94402 | S238: 13222.9447 | T238: 14287.03407 | U238: 16514.27147 | V238: 15664.78114 | W238: 15734.98591 | X238: 15516.96591 | Y238: 15673.53289 | Z238: 15701.24505 | AA238: 16006.89488 | AB238: -4706.363887
G240: =+SUM(N240:AB240) -> 0 | N240: =+N238-N152 -> 0 | O240: 0 | P240: 0 | Q240: 0 | R240: 0 | S240: 0 | T240: 0 | U240: 0 | V240: 0 | W240: 0 | X240: 0 | Y240: 0 | Z240: 0 | AA240: 0 | AB240: 0
C242: Altri impieghi netti correnti - 3.15
C243: DSRA | D243: €'000 | I243: =+SUM(P243:AB243) -> 327019.9998 | N243: =+Prospetti_CIPE!N74 -> 38470.54015 | O243: =+Prospetti_CIPE!O74 -> 41047.97515 | P243: =+Prospetti_CIPE!P74 -> 37076.09998 | Q243: =+Prospetti_CIPE!Q74 -> 38935.29998 | R243: =+Prospetti_CIPE!R74 -> 35283.29998 | S243: =+Prospetti_CIPE!S74 -> 29182.79999 | T243: =+Prospetti_CIPE!T74 -> 30543.99999 | U243: =+Prospetti_CIPE!U74 -> 29722.29999 | V243: =+Prospetti_CIPE!V74 -> 31805.59998 | W243: =+Prospetti_CIPE!W74 -> 31871.99998 | X243: =+Prospetti_CIPE!X74 -> 31075.19998 | Y243: =+Prospetti_CIPE!Y74 -> 31523.39998 | Z243: =+Prospetti_CIPE!Z74 -> 0 | AA243: =+Prospetti_CIPE!AA74 -> 0 | AB243: =+Prospetti_CIPE!AB74 -> 0
C244: CRA | D244: €'000 | I244: 64407.0724 | N244: =+Prospetti_CIPE!N75 -> 27079.81448 | O244: =+Prospetti_CIPE!O75 -> 27079.81448 | P244: =+Prospetti_CIPE!P75 -> 22293.81448 | Q244: =+Prospetti_CIPE!Q75 -> 19013.81448 | R244: =+Prospetti_CIPE!R75 -> 11843.81448 | S244: =+Prospetti_CIPE!S75 -> 6607.81448 | T244: =+Prospetti_CIPE!T75 -> 4647.81448 | U244: =+Prospetti_CIPE!U75 -> 0 | V244: =+Prospetti_CIPE!V75 -> 0 | W244: =+Prospetti_CIPE!W75 -> 0 | X244: =+Prospetti_CIPE!X75 -> 0 | Y244: =+Prospetti_CIPE!Y75 -> 0 | Z244: =+Prospetti_CIPE!Z75 -> 0 | AA244: =+Prospetti_CIPE!AA75 -> 0 | AB244: =+Prospetti_CIPE!AB75 -> 0
C245: MRA | D245: €'000 | I245: 80398.93766 | N245: =+Prospetti_CIPE!N76 -> 4273.90125 | O245: =+Prospetti_CIPE!O76 -> 4331.17525 | P245: =+Prospetti_CIPE!P76 -> 7640.697708 | Q245: =+Prospetti_CIPE!Q76 -> 7855.452166 | R245: =+Prospetti_CIPE!R76 -> 7763.437875 | S245: =+Prospetti_CIPE!S76 -> 7960.829247 | T245: =+Prospetti_CIPE!T76 -> 7888.149742 | U245: =+Prospetti_CIPE!U76 -> 7951.254939 | V245: =+Prospetti_CIPE!V76 -> 8254.141785 | W245: =+Prospetti_CIPE!W76 -> 8248.193635 | X245: =+Prospetti_CIPE!X76 -> 8314.179184 | Y245: =+Prospetti_CIPE!Y76 -> 8522.601377 | Z245: =+Prospetti_CIPE!Z76 -> 0 | AA245: =+Prospetti_CIPE!AA76 -> 0 | AB245: =+Prospetti_CIPE!AB76 -> 0
C246: Totale Capitale circolante netto operativo | D246: €'000 | E246: 3.15 | I246: =+SUM(P246:AB246) -> 471826.0099 | N246: =+SUM(N243:N245) -> 69824.25588 | O246: =+SUM(O243:O245) -> 72458.96488 | P246: 67010.61217 | Q246: 65804.56663 | R246: 54890.55234 | S246: 43751.44371 | T246: 43079.96421 | U246: 37673.55493 | V246: 40059.74177 | W246: 40120.19362 | X246: 39389.37917 | Y246: 40046.00136 | Z246: 0 | AA246: 0 | AB246: 0
G248: =+SUM(N248:AB248) -> 0 | N248: =+N246-N153 -> 0 | O248: 0 | P248: 0 | Q248: 0 | R248: 0 | S248: 0 | T248: 0 | U248: 0 | V248: 0 | W248: 0 | X248: 0 | Y248: 0 | Z248: 0 | AA248: 0 | AB248: 0
C250: Saldo altri fabbisogni - 5.5
C251: Utili distribuiti | D251: €'000 | I251: =+SUM(P251:AB251) -> -646375.3565 | N251: =+N43 -> 0 | O251: 0 | P251: =+P43 -> 0 | Q251: =+Q43 -> 0 | R251: 0 | S251: -145663.2709 | T251: -34968.72998 | U251: -30748.69817 | V251: -23882.72275 | W251: -25604.06757 | X251: -34378.90851 | Y251: -34396.73593 | Z251: -37394.11079 | AA251: -112128.5652 | AB251: -167209.5467
C252: Saldo altri flussi gestione operativa | D252: €'000 | I252: 72458.96488 | N252: =+N33 -> 0 | O252: -2634.709 | P252: =+P33 -> 5448.352709 | Q252: =+Q33 -> 1206.045543 | R252: 10914.01429 | S252: 11139.10863 | T252: 671.4795063 | U252: 5406.409282 | V252: -2386.186844 | W252: -60.45184952 | X252: 730.8144508 | Y252: -656.622193 | Z252: 40046.00136 | AA252: 0 | AB252: 0
C253: Totale Saldo altri fabbisogni | D253: €'000 | E253: 5.5 | I253: =+SUM(P253:AB253) -> -573916.3916 | N253: =+SUM(N250:N252) -> 0 | O253: =+SUM(O250:O252) -> -2634.709 | P253: =+SUM(P250:P252) -> 5448.352709 | Q253: =+SUM(Q250:Q252) -> 1206.045543 | R253: =+SUM(R250:R252) -> 10914.01429 | S253: =+SUM(S250:S252) -> -134524.1623 | T253: =+SUM(T250:T252) -> -34297.25048 | U253: =+SUM(U250:U252) -> -25342.28889 | V253: =+SUM(V250:V252) -> -26268.9096 | W253: =+SUM(W250:W252) -> -25664.51942 | X253: =+SUM(X250:X252) -> -33648.09406 | Y253: =+SUM(Y250:Y252) -> -35053.35812 | Z253: =+SUM(Z250:Z252) -> 2651.890568 | AA253: =+SUM(AA250:AA252) -> -112128.5652 | AB253: =+SUM(AB250:AB252) -> -167209.5467
G255: =+SUM(N255:AB255) -> 0 | N255: =+N253-N198 -> 0 | O255: =+O253-O198 -> 0 | P255: 0 | Q255: 0 | R255: 0 | S255: 0 | T255: 0 | U255: 0 | V255: 0 | W255: 0 | X255: 0 | Y255: 0 | Z255: 0 | AA255: 0 | AB255: 0
B258: END OF SHEET

Sheet B >>

Sheet TIR
B2: =+Cover!D26 -> CAV - Nuovo Sistema Tariffario
B3: TIR
B5: Voce | D5: RIFERIMENTO PEF modello unificato | E5: 2019 | F5: =+E5+1 -> 2020 | G5: =+F5+1 -> 2021 | H5: 2022 | I5: 2023 | J5: 2024 | K5: 2025 | L5: 2026 | M5: 2027 | N5: 2028 | O5: 2029 | P5: 2030 | Q5: 2031 | R5: 2032
B6: Valore iniziale delle immobilizzazioni reversibili (al netto dell’eventuale valore dei servizi di costruzione da rendere in futuro) | C6: a | D6: (3.8) e/o (3.12) | E6: =+PEF_CIPE!O142-Actual!O175 -> 588547.3513
B7: Poste figurative | E7: =Input!E153+Input!E154 -> 231922.2911
B8: Flussi di liquidità | C8: b | D8: (1.13) | F8: =+PEF_CIPE!P34 -> 46799.79638 | G8: =+PEF_CIPE!Q34 -> 73188.45153 | H8: =+PEF_CIPE!R34 -> 72211.90918 | I8: =+PEF_CIPE!S34 -> 86625.51432 | J8: =+PEF_CIPE!T34 -> 83700.37239 | K8: =+PEF_CIPE!U34 -> 76878.19219 | L8: =+PEF_CIPE!V34 -> 72882.09836 | M8: =+PEF_CIPE!W34 -> 89815.47024 | N8: =+PEF_CIPE!X34 -> 93844.97079 | O8: =+PEF_CIPE!Y34 -> 94171.52317 | P8: =+PEF_CIPE!Z34 -> 136853.5554 | Q8: =+PEF_CIPE!AA34 -> 98504.77096 | R8: =+PEF_CIPE!AB34 -> 116674.2143
B9: Oneri finanziari | C9: c | D9: da (2.30) a (2.36) | F9: =-SUM(PEF_CIPE!P110:P116) -> 15024.599 | G9: =-SUM(PEF_CIPE!Q110:Q116) -> 13502.524 | H9: =-SUM(PEF_CIPE!R110:R116) -> 12012.087 | I9: =-SUM(PEF_CIPE!S110:S116) -> 10464.927 | J9: =-SUM(PEF_CIPE!T110:T116) -> 9193.645 | K9: =-SUM(PEF_CIPE!U110:U116) -> 7960.346 | L9: =-SUM(PEF_CIPE!V110:V116) -> 6668.436 | M9: =-SUM(PEF_CIPE!W110:W116) -> 5350.332 | N9: =-SUM(PEF_CIPE!X110:X116) -> 3944.352 | O9: =-SUM(PEF_CIPE!Y110:Y116) -> 2493.294 | P9: =-SUM(PEF_CIPE!Z110:Z116) -> 1018.19 | Q9: =-SUM(PEF_CIPE!AA110:AA116) -> 0 | R9: =-SUM(PEF_CIPE!AB110:AB116) -> 0
B10: Imposte | C10: d | D10: (2.41) | F10: =-PEF_CIPE!P124 -> 3084.172256 | G10: =-PEF_CIPE!Q124 -> 11371.71851 | H10: =-PEF_CIPE!R124 -> 11752.71809 | I10: =-PEF_CIPE!S124 -> 13387.8334 | J10: =-PEF_CIPE!T124 -> 14526.00971 | K10: =-PEF_CIPE!U124 -> 15081.10774 | L10: =-PEF_CIPE!V124 -> 15293.03955 | M10: =-PEF_CIPE!W124 -> 15341.09368 | N10: =-PEF_CIPE!X124 -> 15813.68458 | O10: =-PEF_CIPE!Y124 -> 16275.8365 | P10: =-PEF_CIPE!Z124 -> 16717.35801 | Q10: =-PEF_CIPE!AA124 -> 17145.95848 | R10: =-PEF_CIPE!AB124 -> 20715.49971
B11: Flussi di liquidità da attività accessorie | C11: e | D11: (2.2) al netto della relativa quota costi, da (2.6) a (2.17) | F11: =-PEF_CIPE!P57-PEF_CIPE!P58-F27 -> -3980.56551 | G11: =-PEF_CIPE!Q57-PEF_CIPE!Q58-G27 -> -4924.648989 | H11: =-PEF_CIPE!R57-PEF_CIPE!R58-H27 -> -5019.635509 | I11: =-PEF_CIPE!S57-PEF_CIPE!S58-I27 -> -5130.335162 | J11: =-PEF_CIPE!T57-PEF_CIPE!T58-J27 -> -5203.749976 | K11: =-PEF_CIPE!U57-PEF_CIPE!U58-K27 -> -5265.37149 | L11: =-PEF_CIPE!V57-PEF_CIPE!V58-L27 -> -5311.671334 | M11: =-PEF_CIPE!W57-PEF_CIPE!W58-M27 -> -5335.230447 | N11: =-PEF_CIPE!X57-PEF_CIPE!X58-N27 -> -5387.050284 | O11: =-PEF_CIPE!Y57-PEF_CIPE!Y58-O27 -> -5432.856679 | P11: =-PEF_CIPE!Z57-PEF_CIPE!Z58-P27 -> -5465.625934 | Q11: =-PEF_CIPE!AA57-PEF_CIPE!AA58-Q27 -> -5525.207508 | R11: =-PEF_CIPE!AB57-PEF_CIPE!AB58-R27 -> -5558.280775
B12: Flussi di liquidità da attività non pertinenti | C12: f | D12: (2.3) e (2.4) al netto della relativa quota costi, da (2.6) a (2.17)
B13: Flussi di liquidità da variazione capitale circolante netto operativo | C13: g | D13: (1.5) | F13: =-PEF_CIPE!P25 -> -5108.619423 | G13: =-PEF_CIPE!Q25 -> -5560.627327 | H13: =-PEF_CIPE!R25 -> 8396.975638 | I13: =-PEF_CIPE!S25 -> 1680.746651 | J13: =-PEF_CIPE!T25 -> 1061.455876 | K13: =-PEF_CIPE!U25 -> 2224.641022 | L13: =-PEF_CIPE!V25 -> -852.1022483 | M13: =-PEF_CIPE!W25 -> 67.57243659 | N13: =-PEF_CIPE!X25 -> -220.6733488 | O13: =-PEF_CIPE!Y25 -> 153.8924068 | P13: =-PEF_CIPE!Z25 -> 25.01618877 | Q13: =-PEF_CIPE!AA25 -> 302.932291 | R13: =-PEF_CIPE!AB25 -> -20370.84894
B14: Valore finale delle immobilizzazioni reversibili | C14: h | D14: (3.8) e/o (3.12) | R14: 0
B15: Totale | C15: a+b+c+d-(e+f+g)+h | E15: =-SUM(E6:E14) -> -820469.6424 | F15: =+SUM(F6:F14) -> 55819.3827 | G15: 87577.41773 | H15: 99354.0544 | I15: 107028.6862 | J15: 103277.733 | K15: 96878.91546 | L15: 88679.80033 | M15: 105239.2379 | N15: 107995.2837 | O15: 107661.6894 | P15: 149148.4937 | Q15: 110428.4542 | R15: 111460.5843
B17: TIR | D17: =+IRR(E15:R15) -> 0.07103043134
D22: Stima Costi Attività Accessorie | F22: =2020 -> 2020 | G22: =+F22+1 -> 2021 | H22: 2022 | I22: 2023 | J22: 2024 | K22: 2025 | L22: 2026 | M22: 2027 | N22: 2028 | O22: 2029 | P22: 2030 | Q22: 2031 | R22: 2032
D23: Ricavi Attività Accessorie | F23: =+PEF_CIPE!P57+PEF_CIPE!P58 -> 7616.685636 | G23: =+PEF_CIPE!Q57+PEF_CIPE!Q58 -> 7677.619121 | H23: =+PEF_CIPE!R57+PEF_CIPE!R58 -> 7739.040074 | I23: =+PEF_CIPE!S57+PEF_CIPE!S58 -> 7800.952395 | J23: =+PEF_CIPE!T57+PEF_CIPE!T58 -> 7863.360014 | K23: =+PEF_CIPE!U57+PEF_CIPE!U58 -> 7926.266894 | L23: =+PEF_CIPE!V57+PEF_CIPE!V58 -> 7989.677029 | M23: =+PEF_CIPE!W57+PEF_CIPE!W58 -> 8053.594445 | N23: =+PEF_CIPE!X57+PEF_CIPE!X58 -> 8118.023201 | O23: =+PEF_CIPE!Y57+PEF_CIPE!Y58 -> 8182.967386 | P23: =+PEF_CIPE!Z57+PEF_CIPE!Z58 -> 8248.431126 | Q23: =+PEF_CIPE!AA57+PEF_CIPE!AA58 -> 8314.418575 | R23: =+PEF_CIPE!AB57+PEF_CIPE!AB58 -> 8380.933923
D24: Ricavi Totali | F24: =+PEF_CIPE!P60 -> 116649.9896 | G24: =+PEF_CIPE!Q60 -> 150368.9311 | H24: =+PEF_CIPE!R60 -> 157420.23 | I24: =+PEF_CIPE!S60 -> 162214.104 | J24: =+PEF_CIPE!T60 -> 166515.107 | K24: =+PEF_CIPE!U60 -> 168330.406 | L24: =+PEF_CIPE!V60 -> 169962.1044 | M24: =+PEF_CIPE!W60 -> 171563.4673 | N24: =+PEF_CIPE!X60 -> 173098.2674 | O24: =+PEF_CIPE!Y60 -> 174668.214 | P24: =+PEF_CIPE!Z60 -> 176242.8529 | Q24: =+PEF_CIPE!AA60 -> 177822.0482 | R24: =+PEF_CIPE!AB60 -> 179405.6623
D25: % Ricavi Attività Acessorie | F25: =+F23/F24 -> 0.06529521056 | G25: =+G23/G24 -> 0.05105854691 | H25: 0.04916166159 | I25: 0.04809046933 | J25: 0.04722310279 | K25: 0.04708755288 | L25: 0.0470085791 | M25: 0.04694236235 | N25: 0.0468983504 | O25: 0.0468486349 | P25: 0.04680150708 | Q25: 0.046756961 | R25: 0.04671499113
D26: Costi Operativi Totali | F26: =+Prospetti_CIPE!P30 -> -55687.39415 | G26: =+Prospetti_CIPE!Q30 -> -53917.9099 | H26: =+Prospetti_CIPE!R30 -> -55315.55437 | I26: =+Prospetti_CIPE!S30 -> -55533.19129 | J26: =+Prospetti_CIPE!T30 -> -56320.10352 | K26: =+Prospetti_CIPE!U30 -> -56509.52834 | L26: =+Prospetti_CIPE!V30 -> -56968.44589 | M26: =+Prospetti_CIPE!W30 -> -57908.54705 | N26: =+Prospetti_CIPE!X30 -> -58231.74788 | O26: =+Prospetti_CIPE!Y30 -> -58702.04572 | P26: =+Prospetti_CIPE!Z30 -> -59459.73463 | Q26: =+Prospetti_CIPE!AA30 -> -59653.38652 | R26: =+Prospetti_CIPE!AB30 -> -60422.85527
D27: Costi Operativi Attività Accessorie | F27: =+F26*F25 -> -3636.120126 | G27: =+G26*G25 -> -2752.970132 | H27: -2719.404565 | I27: -2670.617232 | J27: -2659.610038 | K27: -2660.895404 | L27: -2678.005695 | M27: -2718.363999 | N27: -2730.972917 | O27: -2750.110708 | P27: -2782.805191 | Q27: -2789.211067 | R27: -2822.653148

Sheet C >>

Sheet PFR_ART
B2: =+Cover!D26 -> CAV - Nuovo Sistema Tariffario
B3: PFR ART
I5: Starting date | N5: =+Input!$N$5 -> 2018-01-01 | O5: =N6+1 -> 2019-01-01 | P5: 2020-01-01 | Q5: 2021-01-01 | R5: 2022-01-01 | S5: 2023-01-01 | T5: 2024-01-01 | U5: 2025-01-01 | V5: 2026-01-01 | W5: 2027-01-01 | X5: 2028-01-01 | Y5: 2029-01-01 | Z5: 2030-01-01 | AA5: 2031-01-01 | AB5: 2032-01-01
I6: Ending date | N6: =+EOMONTH(N5,11) -> 2018-12-31 | O6: =+EOMONTH(O5,11) -> 2019-12-31 | P6: 2020-12-31 | Q6: 2021-12-31 | R6: 2022-12-31 | S6: 2023-12-31 | T6: 2024-12-31 | U6: 2025-12-31 | V6: 2026-12-31 | W6: 2027-12-31 | X6: 2028-12-31 | Y6: 2029-12-31 | Z6: 2030-12-31 | AA6: 2031-12-31 | AB6: 2032-12-31
E7: sheet check | F7: =+SUM(G146:G410) -> 0 | I7: Year | N7: =YEAR(N6) -> 2018 | O7: 2019 | P7: 2020 | Q7: 2021 | R7: 2022 | S7: 2023 | T7: 2024 | U7: 2025 | V7: 2026 | W7: 2027 | X7: 2028 | Y7: 2029 | Z7: 2030 | AA7: 2031 | AB7: 2032
I8: Days (in period) | N8: =N6-N5+1 -> 365 | O8: 365 | P8: 366 | Q8: 365 | R8: 365 | S8: 365 | T8: 366 | U8: 365 | V8: 365 | W8: 365 | X8: 366 | Y8: 365 | Z8: 365 | AA8: 365 | AB8: 366
I9: Month | N9: =MONTH(N6) -> 12 | O9: 12 | P9: 12 | Q9: 12 | R9: 12 | S9: 12 | T9: 12 | U9: 12 | V9: 12 | W9: 12 | X9: 12 | Y9: 12 | Z9: 12 | AA9: 12 | AB9: 12
I10: Period counter | N10: =M10+1 -> 1 | O10: 2 | P10: 3 | Q10: 4 | R10: 5 | S10: 6 | T10: 7 | U10: 8 | V10: 9 | W10: 10 | X10: 11 | Y10: 12 | Z10: 13 | AA10: 14 | AB10: 15
I11: End of year | N11: =1*(N9=12) -> 1 | O11: 1 | P11: 1 | Q11: 1 | R11: 1 | S11: 1 | T11: 1 | U11: 1 | V11: 1 | W11: 1 | X11: 1 | Y11: 1 | Z11: 1 | AA11: 1 | AB11: 1
I12: End of semester | N12: =1*OR(N9=6,N9=12) -> 1 | O12: 1 | P12: 1 | Q12: 1 | R12: 1 | S12: 1 | T12: 1 | U12: 1 | V12: 1 | W12: 1 | X12: 1 | Y12: 1 | Z12: 1 | AA12: 1 | AB12: 1
I13: Fraction of year | N13: =+ROUND(N8/Input!$E$23,1) -> 1 | O13: =+ROUND(O8/Input!$E$23,1) -> 1 | P13: =+ROUND(P8/Input!$E$23,1) -> 1 | Q13: =+ROUND(Q8/Input!$E$23,1) -> 1 | R13: =+ROUND(R8/Input!$E$23,1) -> 1 | S13: =+ROUND(S8/Input!$E$23,1) -> 1 | T13: =+ROUND(T8/Input!$E$23,1) -> 1 | U13: =+ROUND(U8/Input!$E$23,1) -> 1 | V13: =+ROUND(V8/Input!$E$23,1) -> 1 | W13: =+ROUND(W8/Input!$E$23,1) -> 1 | X13: =+ROUND(X8/Input!$E$23,1) -> 1 | Y13: =+ROUND(Y8/Input!$E$23,1) -> 1 | Z13: =+ROUND(Z8/Input!$E$23,1) -> 1 | AA13: =+ROUND(AA8/Input!$E$23,1) -> 1 | AB13: =+ROUND(AB8/Input!$E$23,1) -> 1
N16: Anno Base | O16: Anno Ponte | P16: Periodo tariffario 2020-24 | U16: Periodo tariffario 2025-29 | Z16: Periodo tariffario 2030-32
N17: =+N7 -> 2018 | O17: 2019 | P17: 2020 | Q17: 2021 | R17: 2022 | S17: 2023 | T17: 2024 | U17: 2025 | V17: 2026 | W17: 2027 | X17: 2028 | Y17: 2029 | Z17: 2030 | AA17: 2031 | AB17: 2032
C19: Volumi di traffico (000 veicoli/km) | E19: T* | N19: =+N208 -> 1818474.594 | O19: =+O208 -> 1881585.289 | P19: 1292841.816 | Q19: 1775120.847 | R19: 1855601.604 | S19: 1896398.421 | T19: 1923440.162 | U19: 1941630.827 | V19: 1957060.773 | W19: 1971914.505 | X19: 1985738.148 | Y19: 1999904.594 | Z19: 2014117.079 | AA19: 2028270.396 | AB19: 2042361.304
C20: Volumi di traffico medi annui per periodo regolatorio (000 veicoli/km) | E20: T | N20: =+N209 -> 0 | O20: =+O209 -> 0 | P20: 1748680.57 | Q20: 1748680.57 | R20: 1748680.57 | S20: 1748680.57 | T20: 1748680.57 | U20: 1971249.77 | V20: 1971249.77 | W20: 1971249.77 | X20: 1971249.77 | Y20: 1971249.77 | Z20: 2028249.593 | AA20: 2028249.593 | AB20: 2028249.593
C22: COMPONENTE TARIFFARIA DI GESTIONE (in migliaia di euro)
C24: Costi operativi totali ammessi (comprensivi delle attività accessorie) | D24: €'000 | E24: A | N24: =-N261 -> 32033.20653 | O24: =-O266 -> 32417.60501 | P24: =-P271 -> 32676.94585 | Q24: 32938.36142 | R24: 33201.86831 | S24: 33467.48325 | T24: 33735.22312 | U24: 34005.1049 | V24: 34277.14574 | W24: 34551.36291 | X24: 34827.77381 | Y24: 35106.396 | Z24: 35387.24717 | AA24: 35670.34515 | AB24: 35955.70791
C25: Utilizzo di fondo accantonamento per rinnovi | D25: €'000 | E25: A' | N25: =-N262 -> 10210.57165 | O25: =-O267 -> 10333.09851 | P25: 10415.7633 | Q25: 10499.08941 | R25: 10583.08212 | S25: 10667.74678 | T25: 10753.08875 | U25: 16249.70333 | V25: 16379.70096 | W25: 16510.73857 | X25: 16642.82448 | Y25: 16775.96707 | Z25: 14937.96972 | AA25: 15057.47347 | AB25: 15177.93326
C26: Costi operativi incrementali da nuovi investimenti | D26: €'000 | E26: A'' | N26: =+N244 -> 0 | O26: =+O244 -> 0 | P26: 0 | Q26: 0 | R26: 0 | S26: 0 | T26: 0 | U26: 0 | V26: 0 | W26: 203.8574435 | X26: 342.4805051 | Y26: 345.2203491 | Z26: 347.9821119 | AA26: 350.7659688 | AB26: 353.5720965
C27: Costi operativi incrementali da sopravvenienze normative e regolamentari | D27: €'000 | E27: A''' | N27: 0 | O27: 0 | P27: 0 | Q27: 0 | R27: 0 | S27: 0 | T27: 0 | U27: 0 | V27: 0 | W27: 0 | X27: 0 | Y27: 0 | Z27: 0 | AA27: 0 | AB27: 0
C28: Ricavi da attività accessorie (in deduzione) | D28: €'000 | E28: B | G28: Eaa | N28: =-N263 -> -8046.687805 | O28: =-O268 -> -8143.248058 | P28: =-P273 -> -8208.394043 | Q28: -8274.061195 | R28: -8340.253685 | S28: -8406.975714 | T28: -8474.23152 | U28: -8542.025372 | V28: -8610.361575 | W28: -8679.244468 | X28: -8748.678423 | Y28: -8818.667851 | Z28: -8889.217194 | AA28: -8960.330931 | AB28: -9032.013579
C29: Costi operativi totali ammessi netti | D29: €'000 | E29: C=A+A'-B | G29: Co - Eaa | N29: =+SUM(N24:N25,N28) -> 34197.09038 | O29: =+SUM(O24:O25,O28) -> 34607.45546 | P29: =+SUM(P24:P25,P28) -> 34884.31511 | Q29: 35163.38963 | R29: 35444.69674 | S29: 35728.25432 | T29: 36014.08035 | U29: 41712.78287 | V29: 42046.48513 | W29: 42382.85701 | X29: 42721.91987 | Y29: 43063.69522 | Z29: 41435.99969 | AA29: 41767.48769 | AB29: 42101.62759
C31: Immobilizzazioni non reversibili al 1/1 | D31: €'000 | E31: D | N31: =+N297 -> 1339.302 | O31: =+O302 -> 1355.373624 | P31: =+P307 -> 1366.216613 | Q31: 1377.146346 | R31: 1388.163517 | S31: 1399.268825 | T31: 1410.462975 | U31: 1421.746679 | V31: 1433.120653 | W31: 1444.585618 | X31: 1456.142303 | Y31: 1467.791441 | Z31: 1479.533773 | AA31: 1491.370043 | AB31: 1503.301003
C33: Ammortamento tecnico-economico annuo | D33: €'000 | E33: E' | G33: Ca,nr | N33: =+N298 -> 468.161 | O33: =+O303 -> 473.778932 | P33: =+P308 -> 477.5691635 | Q33: 481.3897168 | R33: 485.2408345 | S33: 489.1227612 | T33: 493.0357433 | U33: 496.9800292 | V33: 500.9558694 | W33: 504.9635164 | X33: 509.0032245 | Y33: 513.0752503 | Z33: 517.1798523 | AA33: 521.3172911 | AB33: 525.4878295
C34: Remunerazione annua | D34: €'000 | E34: E'' | G34: Crc,nr | N34: =+N299 -> 95 | O34: =+O304 -> 96.14 | P34: 96.90912 | Q34: 97.68439296 | R34: 98.4658681 | S34: 99.25359505 | T34: 100.0476238 | U34: 100.8480048 | V34: 101.6547888 | W34: 102.4680271 | X34: 103.2877714 | Y34: 104.1140735 | Z34: 104.9469861 | AA34: 105.786562 | AB34: 106.6328545
C35: Costi di capitale totali ammessi | D35: €'000 | E35: F=E'+E'' | N35: =+SUM(N33:N34) -> 563.161 | O35: =+SUM(O33:O34) -> 569.918932 | P35: 574.4782835 | Q35: 579.0741097 | R35: 583.7067026 | S35: 588.3763562 | T35: 593.0833671 | U35: 597.828034 | V35: 602.6106583 | W35: 607.4315435 | X35: 612.2909959 | Y35: 617.1893239 | Z35: 622.1268385 | AA35: 627.1038532 | AB35: 632.120684
C37: Costi totali afferenti a componeti tariffaria di gestione | D37: €'000 | E37: H=C+F | G37: Cg | N37: =+SUM(N29,N35) -> 34760.25138 | O37: =+SUM(O29,O35) -> 35177.37439 | P37: =+SUM(P29,P35) -> 35458.79339 | Q37: 35742.46374 | R37: 36028.40345 | S37: 36316.63067 | T37: 36607.16372 | U37: 42310.6109 | V37: 42649.09579 | W37: 42990.28855 | X37: 43334.21086 | Y37: 43680.88455 | Z37: 42058.12653 | AA37: 42394.59154 | AB37: 42733.74828
C39: Componente tariffaria di gestione unitaria | D39: €'000 | E39: I | G39: Tg | N39: =+N319 -> 0 | O39: =+O319 -> 0.02011652385 | P39: 0.02027745604 | Q39: 0.02043967569 | R39: 0.0206031931 | S39: 0.02076801864 | T39: 0.02093416279 | U39: 0.02146385078 | V39: 0.02163556158 | W39: 0.02180864608 | X39: 0.02198311525 | Y39: 0.02215898017 | Z39: 0.0207361691 | AA39: 0.02090205845 | AB39: 0.02106927492
C40: Componente tariffaria di gestione unitaria incrementale | D40: €'000 | E40: I' | G40: Tig | N40: =N314 -> 0 | O40: =O314 -> 0 | P40: 0 | Q40: 0 | R40: 0 | S40: 0 | T40: 0 | U40: 0 | V40: 0 | W40: 0.000102654881 | X40: 0.0001718571017 | Y40: 0.0001726184089 | Z40: 0.0001715676971 | AA40: 0.0001723398208 | AB40: 0.0001731192693
C42: COMPONENTE TARIFFARIA DI COSTRUZIONE (in migliaia di euro)
C44: CIN Beni reversibili "ante"
C45: Opere eseguite e non ammortizzate al 31/12 | D45: €'000 | E45: J | O45: =+O331 -> 588547.3516
C46: Immobilizzazioni reversibili al 1/1 | D46: €'000 | E46: K | P46: =+P332 -> 820469.6427 | Q46: 759656.5933 | R46: 696984.8772 | S46: 639372.6156 | T46: 578086.3541 | U46: 513854.5369 | V46: 449622.7198 | W46: 385390.9027 | X46: 321159.0856 | Y46: 256927.2685 | Z46: 192695.4514 | AA46: 128463.6342 | AB46: 64231.81712
C47: Opere in corso al 1/1 | D47: €'000 | E47: L | O47: =+O333 -> 0 | P47: 2300 | Q47: 633 | R47: 5750 | S47: 2651 | T47: 0 | U47: 0 | V47: 0 | W47: 0 | X47: 0 | Y47: 0 | Z47: 0 | AA47: 0 | AB47: 0
C48: Valore residuo a fine concessione | D48: €'000 | E48: M | AB48: 0
C49: Totale capitale investito netto di costruzione | D49: €'000 | E49: N = J+K+L-M | N49: =+SUM(N45:N47)-N48 -> 0 | O49: =+SUM(O45:O47)-O48 -> 588547.3516 | P49: 822769.6427 | Q49: 760289.5933 | R49: 702734.8772 | S49: 642023.6156 | T49: 578086.3541 | U49: 513854.5369 | V49: 449622.7198 | W49: 385390.9027 | X49: 321159.0856 | Y49: 256927.2685 | Z49: 192695.4514 | AA49: 128463.6342 | AB49: 64231.81712
C51: CIN Beni reversibili "post"
C52: Opere eseguite e non ammortizzate al 31/12 | D52: €'000 | E52: =+E45&"'" -> J' | O52: =+O345 -> 0
C53: Immobilizzazioni reversibili al 1/1 | D53: €'000 | E53: =+E46&"'" -> K' | P53: =+P346 -> 0 | Q53: 2486 | R53: 4925.833333 | S53: 5898.030303 | T53: 7893.227273 | U53: 8976.20202 | V53: 22512.17677 | W53: 35487.15152 | X53: 32167.62626 | Y53: 27524.10101 | Z53: 22433.07576 | AA53: 16745.38384 | AB53: 10162.69192
C54: Opere in corso al 1/1 | D54: €'000 | E54: =+E47&"'" -> L' | O54: =+O347 -> 0 | P54: 2486 | Q54: 2647 | R54: 1420 | S54: 2585 | T54: 1960 | U54: 14658 | V54: 16191 | W54: 2595 | X54: 1790 | Y54: 1790 | Z54: 1790 | AA54: 1790 | AB54: 1790
C55: Valore residuo a fine concessione | D55: €'000 | E55: =+E48&"'" -> M' | AB55: 0
C56: Totale capitale investito netto di costruzione | D56: €'000 | E56: N' = J'+K'+L'-M' | N56: =+SUM(N52:N54)-N55 -> 0 | O56: =+SUM(O52:O54)-O55 -> 0 | P56: 2486 | Q56: 5133 | R56: 6345.833333 | S56: 8483.030303 | T56: 9853.227273 | U56: 23634.20202 | V56: 38703.17677 | W56: 38082.15152 | X56: 33957.62626 | Y56: 29314.10101 | Z56: 24223.07576 | AA56: 18535.38384 | AB56: 11952.69192
C58: Ammortamento finanziario annuo CIN complessivo | D58: €'000 | E58: O | G58: Ca,r | N58: =+N357 -> 0 | O58: =+O357 -> 0 | P58: 63113.04944 | Q58: 63511.88277 | R58: 63810.06459 | S58: 64527.06459 | T58: 65108.84237 | U58: 65353.84237 | V58: 67447.84237 | W58: 70146.34237 | X58: 70665.34237 | Y58: 71112.84237 | Z58: 71709.50904 | AA58: 72604.50904 | AB58: 76184.50904
C59: Remunerazione annua CIN "ante" | D59: €'000 | E59: P | G59: Crc,r | N59: =+N341 -> 0 | O59: =+O341 -> 0 | P59: 58278.31262 | Q59: 53958.73549 | R59: 49507.13646 | S59: 45414.91267 | T59: 41061.72308 | U59: 36499.3094 | V59: 31936.89573 | W59: 27374.48205 | X59: 22812.06838 | Y59: 18249.6547 | Z59: 13687.24103 | AA59: 9124.827351 | AB59: 4562.413676
C60: Remunerazione annua CIN "post" | D60: €'000 | E60: =+E59&"'" -> P' | N60: =+N354 -> 0 | O60: =+O354 -> 0 | P60: 0 | Q60: 176.2574 | R60: 349.2415833 | S60: 418.1703485 | T60: 559.6298136 | U60: 636.4127232 | V60: 1596.113333 | W60: 2516.039042 | X60: 2280.684702 | Y60: 1951.458762 | Z60: 1590.505071 | AA60: 1187.247714 | AB60: 720.5348571
C61: Costi totali afferenti a componente tariffaria di costruzione | D61: €'000 | E61: Q=O+P+P' | N61: =+SUM(N58:N60) -> 0 | O61: =+SUM(O58:O60) -> 0 | P61: 121391.3621 | Q61: 117646.8757 | R61: 113666.4426 | S61: 110360.1476 | T61: 106730.1953 | U61: 102489.5645 | V61: 100980.8514 | W61: 100036.8635 | X61: 95758.09545 | Y61: 91313.95583 | Z61: 86987.25513 | AA61: 82916.5841 | AB61: 81467.45757
C63: Componente tariffaria di costruzione unitaria "pura" | D63: €'000 | E63: R=Q/T* | G63: Tk | P63: =+P363 -> 0.09389498431 | Q63: =+Q363 -> 0.06627541775 | R63: 0.06125584415 | S63: 0.05819460004 | T63: 0.05548922051 | U63: 0.05278529939 | V63: 0.05159821953 | W63: 0.05073083199 | X63: 0.04822292181 | Y63: 0.04565915599 | Z63: 0.04318877787 | AA63: 0.04088043896 | AB63: 0.0398888568
C65: Poste figurative annue | D65: €'000 | E65: S | G65: PF | P65: =+P398 -> -48103.79348 | Q65: =+Q398 -> -16010.31926 | R65: -6355.653964 | S65: -482.0274023 | T65: 3472.895822 | U65: 6801.977063 | V65: 7916.177784 | W65: 8214.601253 | X65: 11839.22181 | Y65: 15767.65618 | Z65: 22792.1828 | AA65: 26364.43241 | AB65: 27297.08266
C67: Componente tariffaria di costruzione unitaria | D67: €'000 | E67: R=(Z+S)/T*-I-I' | G67: Tk | P67: =+P79-P39-P40 -> 0.05668254396 | Q67: =+Q79-Q39-Q40 -> 0.05726032431 | R67: 0.0578268069 | S67: 0.05794198136 | T67: 0.05729583721 | U67: 0.05628614922 | V67: 0.05564443842 | W67: 0.05489869904 | X67: 0.05418502765 | Y67: 0.05353840142 | Z67: 0.0545022632 | AA67: 0.05387560173 | AB67: 0.05325760581
C69: COMPONENTE PER ONERI DI CONCESSIONE (in migliaia di euro)
C71: Costo annuo per onere di concessione 1 | D71: €'000 | E71: U1 | G71: Cvc | N71: 0 | O71: 0 | P71: 0 | Q71: 0 | R71: 0 | S71: 0 | T71: 0 | U71: 0 | V71: 0 | W71: 0 | X71: 0 | Y71: 0 | Z71: 0 | AA71: 0 | AB71: 0
C72: Costo annuo per onere di concessione 2 | D72: €'000 | E72: U2 | G72: Cvc | N72: 0 | O72: 0 | P72: 0 | Q72: 0 | R72: 0 | S72: 0 | T72: 0 | U72: 0 | V72: 0 | W72: 0 | X72: 0 | Y72: 0 | Z72: 0 | AA72: 0 | AB72: 0
C73: Costi totali afferenti a componente tariffaria per oneri di concessione | D73: €'000 | E73: U=U1+U2 | G73: Coc | N73: 0 | O73: 0 | P73: 0 | Q73: 0 | R73: 0 | S73: 0 | T73: 0 | U73: 0 | V73: 0 | W73: 0 | X73: 0 | Y73: 0 | Z73: 0 | AA73: 0 | AB73: 0
C75: Componente tariffaria per oneri di concessione unitaria | D75: €'000 | E75: V=U/T* | G75: Toc | N75: 0 | O75: . | P75: 0 | Q75: 0 | R75: 0 | S75: 0 | T75: 0 | U75: 0 | V75: 0 | W75: 0 | X75: 0 | Y75: 0 | Z75: 0 | AA75: 0 | AB75: 0
C77: TARIFFA UNITARIA MEDIA - RICAVI - COSTI
C79: Tariffa unitaria media (con eventuali poste figurative) | D79: €'000 | E79: W=I+R+V | G79: T' | O79: =+ROUND(O378,5) -> 0.07607 | P79: =+ROUND(P378,5) -> 0.07696 | Q79: 0.0777 | R79: =+ROUND(R378,5) -> 0.07843 | S79: 0.07871 | T79: 0.07823 | U79: 0.07775 | V79: 0.07728 | W79: 0.07681 | X79: 0.07634 | Y79: 0.07587 | Z79: 0.07541 | AA79: 0.07495 | AB79: 0.0745
C80: Ricavi da traffico previsionali | D80: €'000 | E80: Y=W*T* | P80: =+P79*P19 -> 99497.10619 | Q80: 137926.8898 | R80: 145534.8338 | S80: 149265.5197 | T80: 150470.7238 | U80: 150961.7968 | V80: 151241.6566 | W80: 151462.7532 | X80: 151591.2502 | Y80: 151732.7616 | Z80: 151884.5689 | AA80: 152018.8662 | AB80: 152155.9171
C81: Costi totali previsti | D81: €'000 | E81: Z=H+Q+U | P81: =+P26+P27+P37+P61+P73 -> 156850.1555 | Q81: 153389.3394 | R81: 149694.8461 | S81: 146676.7783 | T81: 143337.359 | U81: 144800.1754 | V81: 143629.9472 | W81: 143231.0095 | X81: 139434.7868 | Y81: 135340.0607 | Z81: 129393.3638 | AA81: 125661.9416 | AB81: 124554.7779
C83: ANALISI DEI FLUSSI DI CASSA
C85: Valore attuale netto: ricavi da traffico previsti | D85: €'000 | E85: =+SUMPRODUCT(N80:AB80,$N$370:$AB$370) -> 1191482.453
C86: Valore attuale netto: costi totali previsti | D86: €'000 | E86: =+SUMPRODUCT(N81:AB81,$N$370:$AB$370) -> 1193059.603
C87: Valore attuale netto: poste figurative | D87: €'000 | E87: =+E94 -> -0.0008139237852
C90: ANALISI DEI FLUSSI DI CASSA DI COSTRUZIONE
C92: Valore attuale netto: ricavi da traffico previsti | D92: €'000 | E92: =+SUMPRODUCT(N19:AB19,N67:AB67,$N$370:$AB$370) -> 864447.7682
C93: Valore attuale netto: costi totali previsti | D93: €'000 | E93: =+SUMPRODUCT(N61:AB61,$N$370:$AB$370) -> 864456.067
C94: Valore attuale netto: poste figurative | D94: €'000 | E94: =+SUMPRODUCT(N65:AB65,$N$370:$AB$370) -> -0.0008139237852
C98: Calc PFR ART | D98: Unit | E98: Input 1 | F98: Input 2 | G98: Check | I98: Total
C100: TIMELINE | D100: Unit | E100: Input 1 | F100: Input 2 | G100: Check | I100: Total
C102: Model timing inputs
C104: Months in year | D104: months | E104: =+Input!E20 -> 12
C105: Days in average month | D105: days | E105: =+Input!E21 -> 30
C106: Days in semester | D106: days | E106: =+Input!E22 -> 180
C107: Days in average year | D107: days | E107: =+Input!E23 -> 360
C109: Model duration
C111: Model starting date | D111: date | E111: =+Input!E27 -> 2018-01-01
C112: Months in the period | D112: months | E112: =+Input!E28 -> 6
C114: Concession timing
C116: 1st regulatory period start date | D116: date | E116: =+Input!E32 -> 2020-01-01
C117: Concession duration | D117: years | E117: =+Input!E33 -> 30
C118: Concession end date | D118: data | E118: =+Input!E34 -> 2032-12-31
C119: Regulatory period duration | D119: years | E119: =+Input!E35 -> 5
C122: Model update
C124: Update date | D124: data | E124: =+Input!E40 -> 2019-12-31
C125: Forecast period start | D125: data | E125: =+Input!E41 -> 2020-01-01
C128: FLAG | D128: Unit | E128: Input 1 | F128: Input 2 | G128: Check | I128: Total
C130: Concession period | D130: flag | N130: =1*AND(N$5<=$E118,N$6>=$E116) -> 0 | O130: =1*AND(O$5<=$E118,O$6>=$E116) -> 0 | P130: 1 | Q130: 1 | R130: 1 | S130: 1 | T130: 1 | U130: 1 | V130: 1 | W130: 1 | X130: 1 | Y130: 1 | Z130: 1 | AA130: 1 | AB130: 1
C131: Regulatory period | D131: year | N131: =+M131+1*OR(AND(N$5<=$E116,N$6>=$E116),COUNTIF($M131:M131,M131)=$E119) -> 0 | O131: =+N131+1*OR(AND(O$5<=$E116,O$6>=$E116),COUNTIF($M131:N131,N131)=$E119) -> 0 | P131: =+O131+1*OR(AND(P$5<=$E116,P$6>=$E116),COUNTIF($M131:O131,O131)=$E119) -> 1 | Q131: =+P131+1*OR(AND(Q$5<=$E116,Q$6>=$E116),COUNTIF($M131:P131,P131)=$E119) -> 1 | R131: =+Q131+1*OR(AND(R$5<=$E116,R$6>=$E116),COUNTIF($M131:Q131,Q131)=$E119) -> 1 | S131: =+R131+1*OR(AND(S$5<=$E116,S$6>=$E116),COUNTIF($M131:R131,R131)=$E119) -> 1 | T131: =+S131+1*OR(AND(T$5<=$E116,T$6>=$E116),COUNTIF($M131:S131,S131)=$E119) -> 1 | U131: =+T131+1*OR(AND(U$5<=$E116,U$6>=$E116),COUNTIF($M131:T131,T131)=$E119) -> 2 | V131: =+U131+1*OR(AND(V$5<=$E116,V$6>=$E116),COUNTIF($M131:U131,U131)=$E119) -> 2 | W131: =+V131+1*OR(AND(W$5<=$E116,W$6>=$E116),COUNTIF($M131:V131,V131)=$E119) -> 2 | X131: =+W131+1*OR(AND(X$5<=$E116,X$6>=$E116),COUNTIF($M131:W131,W131)=$E119) -> 2 | Y131: =+X131+1*OR(AND(Y$5<=$E116,Y$6>=$E116),COUNTIF($M131:X131,X131)=$E119) -> 2 | Z131: =+Y131+1*OR(AND(Z$5<=$E116,Z$6>=$E116),COUNTIF($M131:Y131,Y131)=$E119) -> 3 | AA131: =+Z131+1*OR(AND(AA$5<=$E116,AA$6>=$E116),COUNTIF($M131:Z131,Z131)=$E119) -> 3 | AB131: =+AA131+1*OR(AND(AB$5<=$E116,AB$6>=$E116),COUNTIF($M131:AA131,AA131)=$E119) -> 3
C132: Regulatory period year | D132: year | N132: =IF(N131<>M131,1,M132+1*M13)*(N131<>0) -> 0 | O132: =IF(O131<>N131,1,N132+1*N13)*(O131<>0) -> 0 | P132: 1 | Q132: 2 | R132: 3 | S132: 4 | T132: 5 | U132: 1 | V132: 2 | W132: 3 | X132: 4 | Y132: 5 | Z132: 1 | AA132: 2 | AB132: 3
C133: Base year | D133: flag | N133: =1*(P132=1) -> 1 | O133: =1*(Q132=1) -> 0 | P133: 0 | Q133: 0 | R133: 0 | S133: 1 | T133: 0 | U133: 0 | V133: 0 | W133: 0 | X133: 1 | Y133: 0 | Z133: 0 | AA133: =1*(AC132=1) -> 0 | AB133: =1*(AD132=1) -> 0
C134: Bridge year | D134: flag | N134: =1*(O132=1) -> 0 | O134: =1*(P132=1) -> 1 | P134: 0 | Q134: 0 | R134: 0 | S134: 0 | T134: 1 | U134: 0 | V134: 0 | W134: 0 | X134: 0 | Y134: 1 | Z134: 0 | AA134: 0 | AB134: =1*(AC132=1) -> 0
C136: Actual flag | D136: flag | I136: =+SUM(N136:AQ136) -> 2 | N136: =+(N6<=$E124)*1 -> 1 | O136: 1 | P136: 0 | Q136: 0 | R136: 0 | S136: 0 | T136: 0 | U136: 0 | V136: 0 | W136: 0 | X136: 0 | Y136: 0 | Z136: 0 | AA136: 0 | AB136: 0
C137: Forecast flag | D137: flag | I137: =+SUM(N137:AQ137) -> 13 | N137: =+AND(N5>$E124,N5<=$E118)*1 -> 0 | O137: 0 | P137: 1 | Q137: 1 | R137: 1 | S137: 1 | T137: 1 | U137: 1 | V137: 1 | W137: 1 | X137: 1 | Y137: 1 | Z137: 1 | AA137: 1 | AB137: 1
C138: Residual concession period | D138: flag | I138: =+SUM(N138:AQ138) -> 91 | N138: =+COUNT(N130:$AB$130)*N130 -> 0 | O138: =+COUNT(O130:$AB$130)*O130 -> 0 | P138: =+COUNT(P130:$AB$130)*P130 -> 13 | Q138: =+COUNT(Q130:$AB$130)*Q130 -> 12 | R138: =+COUNT(R130:$AB$130)*R130 -> 11 | S138: =+COUNT(S130:$AB$130)*S130 -> 10 | T138: =+COUNT(T130:$AB$130)*T130 -> 9 | U138: =+COUNT(U130:$AB$130)*U130 -> 8 | V138: =+COUNT(V130:$AB$130)*V130 -> 7 | W138: =+COUNT(W130:$AB$130)*W130 -> 6 | X138: =+COUNT(X130:$AB$130)*X130 -> 5 | Y138: =+COUNT(Y130:$AB$130)*Y130 -> 4 | Z138: =+COUNT(Z130:$AB$130)*Z130 -> 3 | AA138: =+COUNT(AA130:$AB$130)*AA130 -> 2 | AB138: =+COUNT(AB130:$AB$130)*AB130 -> 1
C139: Flag Fondo rinnovi media ultimi 5 anni | D139: flag | I139: =+SUM(N139:AQ139) -> 3 | N139: 1 | O139: 0 | P139: 0 | Q139: 0 | R139: 0 | S139: 1 | T139: 0 | U139: 0 | V139: 0 | W139: 0 | X139: 1 | Y139: 0 | Z139: 0 | AA139: 0 | AB139: 0
C140: End of period | D140: flag | I140: =+SUM(N140:AQ140) -> 14 | N140: =NOT(N6=$E$118)*1 -> 1 | O140: =NOT(O6=$E$118)*1 -> 1 | P140: 1 | Q140: 1 | R140: 1 | S140: 1 | T140: 1 | U140: 1 | V140: 1 | W140: 1 | X140: 1 | Y140: 1 | Z140: 1 | AA140: 1 | AB140: 0
C142: GENERAL INPUT | D142: Unit | E142: Input 1 | F142: Input 2 | G142: Check | I142: Total
B144: =+ROUND(MAX($B$125:B143)+1,0) -> 1 | C144: Macro Inputs
C146: Inflation | D146: % | N146: =+INDEX(Input!$N$115:$AR$115,,MATCH(N$6,Input!$N$6:$AR$6,0)) -> 0 | O146: =+INDEX(Input!$N$115:$AR$115,,MATCH(O$6,Input!$N$6:$AR$6,0)) -> 0.012 | P146: =+INDEX(Input!$N$115:$AR$115,,MATCH(P$6,Input!$N$6:$AR$6,0)) -> 0.008 | Q146: =+INDEX(Input!$N$115:$AR$115,,MATCH(Q$6,Input!$N$6:$AR$6,0)) -> 0.008 | R146: =+INDEX(Input!$N$115:$AR$115,,MATCH(R$6,Input!$N$6:$AR$6,0)) -> 0.008 | S146: =+INDEX(Input!$N$115:$AR$115,,MATCH(S$6,Input!$N$6:$AR$6,0)) -> 0.008 | T146: =+INDEX(Input!$N$115:$AR$115,,MATCH(T$6,Input!$N$6:$AR$6,0)) -> 0.008 | U146: =+INDEX(Input!$N$115:$AR$115,,MATCH(U$6,Input!$N$6:$AR$6,0)) -> 0.008 | V146: =+INDEX(Input!$N$115:$AR$115,,MATCH(V$6,Input!$N$6:$AR$6,0)) -> 0.008 | W146: =+INDEX(Input!$N$115:$AR$115,,MATCH(W$6,Input!$N$6:$AR$6,0)) -> 0.008 | X146: =+INDEX(Input!$N$115:$AR$115,,MATCH(X$6,Input!$N$6:$AR$6,0)) -> 0.008 | Y146: =+INDEX(Input!$N$115:$AR$115,,MATCH(Y$6,Input!$N$6:$AR$6,0)) -> 0.008 | Z146: =+INDEX(Input!$N$115:$AR$115,,MATCH(Z$6,Input!$N$6:$AR$6,0)) -> 0.008 | AA146: =+INDEX(Input!$N$115:$AR$115,,MATCH(AA$6,Input!$N$6:$AR$6,0)) -> 0.008 | AB146: =+INDEX(Input!$N$115:$AR$115,,MATCH(AB$6,Input!$N$6:$AR$6,0)) -> 0.008
C147: X - Efficiency factor | D147: % | N147: =+INDEX(Input!$N$130:$AQ$130,,MATCH(N$6,Input!$N$6:$AQ$6,0)) -> 0 | O147: =+INDEX(Input!$N$130:$AQ$130,,MATCH(O$6,Input!$N$6:$AQ$6,0)) -> 0 | P147: =+INDEX(Input!$N$130:$AQ$130,,MATCH(P$6,Input!$N$6:$AQ$6,0)) -> 0 | Q147: =+INDEX(Input!$N$130:$AQ$130,,MATCH(Q$6,Input!$N$6:$AQ$6,0)) -> 0 | R147: =+INDEX(Input!$N$130:$AQ$130,,MATCH(R$6,Input!$N$6:$AQ$6,0)) -> 0 | S147: =+INDEX(Input!$N$130:$AQ$130,,MATCH(S$6,Input!$N$6:$AQ$6,0)) -> 0 | T147: =+INDEX(Input!$N$130:$AQ$130,,MATCH(T$6,Input!$N$6:$AQ$6,0)) -> 0 | U147: =+INDEX(Input!$N$130:$AQ$130,,MATCH(U$6,Input!$N$6:$AQ$6,0)) -> 0 | V147: =+INDEX(Input!$N$130:$AQ$130,,MATCH(V$6,Input!$N$6:$AQ$6,0)) -> 0 | W147: =+INDEX(Input!$N$130:$AQ$130,,MATCH(W$6,Input!$N$6:$AQ$6,0)) -> 0 | X147: =+INDEX(Input!$N$130:$AQ$130,,MATCH(X$6,Input!$N$6:$AQ$6,0)) -> 0 | Y147: =+INDEX(Input!$N$130:$AQ$130,,MATCH(Y$6,Input!$N$6:$AQ$6,0)) -> 0 | Z147: =+INDEX(Input!$N$130:$AQ$130,,MATCH(Z$6,Input!$N$6:$AQ$6,0)) -> 0 | AA147: =+INDEX(Input!$N$130:$AQ$130,,MATCH(AA$6,Input!$N$6:$AQ$6,0)) -> 0 | AB147: =+INDEX(Input!$N$130:$AQ$130,,MATCH(AB$6,Input!$N$6:$AQ$6,0)) -> 0
C148: Combined impact | N148: =+SUM(N146:N147) -> 0 | O148: =+SUM(O146:O147) -> 0.012 | P148: 0.008 | Q148: 0.008 | R148: 0.008 | S148: 0.008 | T148: 0.008 | U148: 0.008 | V148: 0.008 | W148: 0.008 | X148: 0.008 | Y148: 0.008 | Z148: 0.008 | AA148: 0.008 | AB148: 0.008
C149: X - Efficiency factor in bridge year | D149: flag | E149: =+Input!E132 -> 0
C151: PFR annual adjustment factor | L151: 1 | M151: 1 | N151: =+IF(M134=1,L151*(1+M$146+M$147*$E149),M151)*(1+N$148) -> 1 | O151: =+IF(N134=1,M151*(1+N$146+N$147*$E149),N151)*(1+O$148) -> 1.012 | P151: 1.020096 | Q151: 1.028256768 | R151: 1.036482822 | S151: 1.044774685 | T151: 1.053132882 | U151: 1.061557945 | V151: 1.070050409 | W151: 1.078610812 | X151: 1.087239699 | Y151: 1.095937616 | Z151: 1.104705117 | AA151: 1.113542758 | AB151: 1.1224511
C153: Tasso di remunerazione CIN
C155: CIN Beni reversibili "ante"
C156: TIR | N156: =+Input!N137 -> 0.07103043134 | O156: =+Input!O137 -> 0.07103043134 | P156: =+Input!P137 -> 0.07103043134 | Q156: =+Input!Q137 -> 0.07103043134 | R156: =+Input!R137 -> 0.07103043134 | S156: =+Input!S137 -> 0.07103043134 | T156: =+Input!T137 -> 0.07103043134 | U156: =+Input!U137 -> 0.07103043134 | V156: =+Input!V137 -> 0.07103043134 | W156: =+Input!W137 -> 0.07103043134 | X156: =+Input!X137 -> 0.07103043134 | Y156: =+Input!Y137 -> 0.07103043134 | Z156: =+Input!Z137 -> 0.07103043134 | AA156: =+Input!AA137 -> 0.07103043134 | AB156: =+Input!AB137 -> 0.07103043134
C158: Discount factors
C159: Nominal WACC | D159: % | N159: =+INDEX(Input!$N$140:$AQ$140,,MATCH(N$6,Input!$N$6:$AQ$6,0)) -> 0.0709 | O159: =+INDEX(Input!$N$140:$AQ$140,,MATCH(O$6,Input!$N$6:$AQ$6,0)) -> 0.0709 | P159: =+INDEX(Input!$N$140:$AQ$140,,MATCH(P$6,Input!$N$6:$AQ$6,0)) -> 0.0709 | Q159: =+INDEX(Input!$N$140:$AQ$140,,MATCH(Q$6,Input!$N$6:$AQ$6,0)) -> 0.0709 | R159: =+INDEX(Input!$N$140:$AQ$140,,MATCH(R$6,Input!$N$6:$AQ$6,0)) -> 0.0709 | S159: =+INDEX(Input!$N$140:$AQ$140,,MATCH(S$6,Input!$N$6:$AQ$6,0)) -> 0.0709 | T159: =+INDEX(Input!$N$140:$AQ$140,,MATCH(T$6,Input!$N$6:$AQ$6,0)) -> 0.0709 | U159: =+INDEX(Input!$N$140:$AQ$140,,MATCH(U$6,Input!$N$6:$AQ$6,0)) -> 0.0709 | V159: =+INDEX(Input!$N$140:$AQ$140,,MATCH(V$6,Input!$N$6:$AQ$6,0)) -> 0.0709 | W159: =+INDEX(Input!$N$140:$AQ$140,,MATCH(W$6,Input!$N$6:$AQ$6,0)) -> 0.0709 | X159: =+INDEX(Input!$N$140:$AQ$140,,MATCH(X$6,Input!$N$6:$AQ$6,0)) -> 0.0709 | Y159: =+INDEX(Input!$N$140:$AQ$140,,MATCH(Y$6,Input!$N$6:$AQ$6,0)) -> 0.0709 | Z159: =+INDEX(Input!$N$140:$AQ$140,,MATCH(Z$6,Input!$N$6:$AQ$6,0)) -> 0.0709 | AA159: =+INDEX(Input!$N$140:$AQ$140,,MATCH(AA$6,Input!$N$6:$AQ$6,0)) -> 0.0709 | AB159: =+INDEX(Input!$N$140:$AQ$140,,MATCH(AB$6,Input!$N$6:$AQ$6,0)) -> 0.0709
C160: Real WACC | D160: % | N160: =+INDEX(Input!$N$141:$AQ$141,,MATCH(N$6,Input!$N$6:$AQ$6,0)) -> 0.0603 | O160: =+INDEX(Input!$N$141:$AQ$141,,MATCH(O$6,Input!$N$6:$AQ$6,0)) -> 0.0603 | P160: =+INDEX(Input!$N$141:$AQ$141,,MATCH(P$6,Input!$N$6:$AQ$6,0)) -> 0.0603 | Q160: =+INDEX(Input!$N$141:$AQ$141,,MATCH(Q$6,Input!$N$6:$AQ$6,0)) -> 0.0603 | R160: =+INDEX(Input!$N$141:$AQ$141,,MATCH(R$6,Input!$N$6:$AQ$6,0)) -> 0.0603 | S160: =+INDEX(Input!$N$141:$AQ$141,,MATCH(S$6,Input!$N$6:$AQ$6,0)) -> 0.0603 | T160: =+INDEX(Input!$N$141:$AQ$141,,MATCH(T$6,Input!$N$6:$AQ$6,0)) -> 0.0603 | U160: =+INDEX(Input!$N$141:$AQ$141,,MATCH(U$6,Input!$N$6:$AQ$6,0)) -> 0.0603 | V160: =+INDEX(Input!$N$141:$AQ$141,,MATCH(V$6,Input!$N$6:$AQ$6,0)) -> 0.0603 | W160: =+INDEX(Input!$N$141:$AQ$141,,MATCH(W$6,Input!$N$6:$AQ$6,0)) -> 0.0603 | X160: =+INDEX(Input!$N$141:$AQ$141,,MATCH(X$6,Input!$N$6:$AQ$6,0)) -> 0.0603 | Y160: =+INDEX(Input!$N$141:$AQ$141,,MATCH(Y$6,Input!$N$6:$AQ$6,0)) -> 0.0603 | Z160: =+INDEX(Input!$N$141:$AQ$141,,MATCH(Z$6,Input!$N$6:$AQ$6,0)) -> 0.0603 | AA160: =+INDEX(Input!$N$141:$AQ$141,,MATCH(AA$6,Input!$N$6:$AQ$6,0)) -> 0.0603 | AB160: =+INDEX(Input!$N$141:$AQ$141,,MATCH(AB$6,Input!$N$6:$AQ$6,0)) -> 0.0603
C162: Tasso medio ponderato per calcolo Poste Figurative
C163: CIN ANTE | D163: €'000 | N163: =N335 -> 0 | O163: =O335 -> 0 | P163: 820469.6427 | Q163: 759656.5933 | R163: 696984.8772 | S163: 639372.6156 | T163: 578086.3541 | U163: 513854.5369 | V163: 449622.7198 | W163: 385390.9027 | X163: 321159.0856 | Y163: 256927.2685 | Z163: 192695.4514 | AA163: 128463.6342 | AB163: 64231.81712
C164: CIN POST | D164: €'000 | N164: =N348 -> 0 | O164: =O348 -> 0 | P164: 0 | Q164: 2486 | R164: 4925.833333 | S164: 5898.030303 | T164: 7893.227273 | U164: 8976.20202 | V164: 22512.17677 | W164: 35487.15152 | X164: 32167.62626 | Y164: 27524.10101 | Z164: 22433.07576 | AA164: 16745.38384 | AB164: 10162.69192
C166: Tasso medio ponderato | D166: % | N166: =IFERROR(((N156*N163)+(N159*N164))/SUM(N163:N164),0) -> 0 | O166: =IFERROR(((O156*O163)+(O159*O164))/SUM(O163:O164),0) -> 0 | P166: 0.07103043134 | Q166: 0.07103000589 | R166: 0.071029516 | S166: 0.07102923914 | T166: 0.07102867441 | U166: 0.07102819203 | V166: 0.07102421216 | W166: 0.07101943377 | X166: 0.07101855659 | Y166: 0.07101781053 | Z166: 0.07101683028 | AA166: 0.0710153901 | AB166: 0.07101261371
B169: =+ROUND(MAX($B$125:B152)+1,0) -> 2 | C169: Drivers
C171: Tariffa
C172: Tariffa Passante A | D172: € / vkm | I172: =+SUM(N172:AB172) -> 0.29029 | N172: =+Actual!N58 -> 0.09507 | O172: =+Actual!O58 -> 0.09703 | P172: =+Actual!P58 -> 0.09819 | Q172: =+Actual!Q58 -> 0 | R172: =+Actual!R58 -> 0 | S172: =+Actual!S58 -> 0 | T172: =+Actual!T58 -> 0 | U172: =+Actual!U58 -> 0 | V172: =+Actual!V58 -> 0 | W172: =+Actual!W58 -> 0 | X172: =+Actual!X58 -> 0 | Y172: =+Actual!Y58 -> 0 | Z172: =+Actual!Z58 -> 0 | AA172: =+Actual!AA58 -> 0 | AB172: =+Actual!AB58 -> 0 | AD172: 0
C173: Tariffa Passante B | D173: € / vkm | I173: 0.29756 | N173: =+Actual!N59 -> 0.09745 | O173: =+Actual!O59 -> 0.09946 | P173: =+Actual!P59 -> 0.10065 | Q173: =+Actual!Q59 -> 0 | R173: =+Actual!R59 -> 0 | S173: =+Actual!S59 -> 0 | T173: =+Actual!T59 -> 0 | U173: =+Actual!U59 -> 0 | V173: =+Actual!V59 -> 0 | W173: =+Actual!W59 -> 0 | X173: =+Actual!X59 -> 0 | Y173: =+Actual!Y59 -> 0 | Z173: =+Actual!Z59 -> 0 | AA173: =+Actual!AA59 -> 0 | AB173: =+Actual!AB59 -> 0 | AD173: 0
C174: Tariffa Passante 3 | D174: € / vkm | I174: 0.36294 | N174: =+Actual!N60 -> 0.11886 | O174: =+Actual!O60 -> 0.12131 | P174: =+Actual!P60 -> 0.12277 | Q174: =+Actual!Q60 -> 0 | R174: =+Actual!R60 -> 0 | S174: =+Actual!S60 -> 0 | T174: =+Actual!T60 -> 0 | U174: =+Actual!U60 -> 0 | V174: =+Actual!V60 -> 0 | W174: =+Actual!W60 -> 0 | X174: =+Actual!X60 -> 0 | Y174: =+Actual!Y60 -> 0 | Z174: =+Actual!Z60 -> 0 | AA174: =+Actual!AA60 -> 0 | AB174: =+Actual!AB60 -> 0 | AD174: 0
C175: Tariffa Passante 4 | D175: € / vkm | I175: 0.57748 | N175: =+Actual!N61 -> 0.18912 | O175: =+Actual!O61 -> 0.19302 | P175: =+Actual!P61 -> 0.19534 | Q175: =+Actual!Q61 -> 0 | R175: =+Actual!R61 -> 0 | S175: =+Actual!S61 -> 0 | T175: =+Actual!T61 -> 0 | U175: =+Actual!U61 -> 0 | V175: =+Actual!V61 -> 0 | W175: =+Actual!W61 -> 0 | X175: =+Actual!X61 -> 0 | Y175: =+Actual!Y61 -> 0 | Z175: =+Actual!Z61 -> 0 | AA175: =+Actual!AA61 -> 0 | AB175: =+Actual!AB61 -> 0 | AD175: 0
C176: Tariffa Passante 5 | D176: € / vkm | I176: 0.69198 | N176: =+Actual!N62 -> 0.22662 | O176: =+Actual!O62 -> 0.23129 | P176: =+Actual!P62 -> 0.23407 | Q176: =+Actual!Q62 -> 0 | R176: =+Actual!R62 -> 0 | S176: =+Actual!S62 -> 0 | T176: =+Actual!T62 -> 0 | U176: =+Actual!U62 -> 0 | V176: =+Actual!V62 -> 0 | W176: =+Actual!W62 -> 0 | X176: =+Actual!X62 -> 0 | Y176: =+Actual!Y62 -> 0 | Z176: =+Actual!Z62 -> 0 | AA176: =+Actual!AA62 -> 0 | AB176: =+Actual!AB62 -> 0 | AD176: 0
C177: Tariffa Sistema Chiuso A | D177: € / vkm | I177: 0.1364 | N177: =+Actual!N63 -> 0.04467 | O177: =+Actual!O63 -> 0.04559 | P177: =+Actual!P63 -> 0.04614 | Q177: =+Actual!Q63 -> 0 | R177: =+Actual!R63 -> 0 | S177: =+Actual!S63 -> 0 | T177: =+Actual!T63 -> 0 | U177: =+Actual!U63 -> 0 | V177: =+Actual!V63 -> 0 | W177: =+Actual!W63 -> 0 | X177: =+Actual!X63 -> 0 | Y177: =+Actual!Y63 -> 0 | Z177: =+Actual!Z63 -> 0 | AA177: =+Actual!AA63 -> 0 | AB177: =+Actual!AB63 -> 0 | AD177: 0
C178: Tariffa Sistema Chiuso B | D178: € / vkm | I178: 0.13981 | N178: =+Actual!N64 -> 0.04579 | O178: =+Actual!O64 -> 0.04673 | P178: =+Actual!P64 -> 0.04729 | Q178: =+Actual!Q64 -> 0 | R178: =+Actual!R64 -> 0 | S178: =+Actual!S64 -> 0 | T178: =+Actual!T64 -> 0 | U178: =+Actual!U64 -> 0 | V178: =+Actual!V64 -> 0 | W178: =+Actual!W64 -> 0 | X178: =+Actual!X64 -> 0 | Y178: =+Actual!Y64 -> 0 | Z178: =+Actual!Z64 -> 0 | AA178: =+Actual!AA64 -> 0 | AB178: =+Actual!AB64 -> 0 | AD178: 0
C179: Tariffa Sistema Chiuso 3 | D179: € / vkm | I179: 0.16087 | N179: =+Actual!N65 -> 0.05268 | O179: =+Actual!O65 -> 0.05377 | P179: =+Actual!P65 -> 0.05442 | Q179: =+Actual!Q65 -> 0 | R179: =+Actual!R65 -> 0 | S179: =+Actual!S65 -> 0 | T179: =+Actual!T65 -> 0 | U179: =+Actual!U65 -> 0 | V179: =+Actual!V65 -> 0 | W179: =+Actual!W65 -> 0 | X179: =+Actual!X65 -> 0 | Y179: =+Actual!Y65 -> 0 | Z179: =+Actual!Z65 -> 0 | AA179: =+Actual!AA65 -> 0 | AB179: =+Actual!AB65 -> 0 | AD179: 0
C180: Tariffa Sistema Chiuso 4 | D180: € / vkm | I180: 0.26577 | N180: =+Actual!N66 -> 0.08704 | O180: =+Actual!O66 -> 0.08883 | P180: =+Actual!P66 -> 0.0899 | Q180: =+Actual!Q66 -> 0 | R180: =+Actual!R66 -> 0 | S180: =+Actual!S66 -> 0 | T180: =+Actual!T66 -> 0 | U180: =+Actual!U66 -> 0 | V180: =+Actual!V66 -> 0 | W180: =+Actual!W66 -> 0 | X180: =+Actual!X66 -> 0 | Y180: =+Actual!Y66 -> 0 | Z180: =+Actual!Z66 -> 0 | AA180: =+Actual!AA66 -> 0 | AB180: =+Actual!AB66 -> 0 | AD180: 0
C181: Tariffa Sistema Chiuso 5 | D181: € / vkm | I181: 0.32174 | N181: =+Actual!N67 -> 0.10537 | O181: =+Actual!O67 -> 0.10754 | P181: =+Actual!P67 -> 0.10883 | Q181: =+Actual!Q67 -> 0 | R181: =+Actual!R67 -> 0 | S181: =+Actual!S67 -> 0 | T181: =+Actual!T67 -> 0 | U181: =+Actual!U67 -> 0 | V181: =+Actual!V67 -> 0 | W181: =+Actual!W67 -> 0 | X181: =+Actual!X67 -> 0 | Y181: =+Actual!Y67 -> 0 | Z181: =+Actual!Z67 -> 0 | AA181: =+Actual!AA67 -> 0 | AB181: =+Actual!AB67 -> 0 | AD181: 0
C182: Tariffa Sistema Aperto A | D182: € / vkm | I182: 0.14149 | N182: =+Actual!N68 -> 0.04634 | O182: =+Actual!O68 -> 0.04729 | P182: =+Actual!P68 -> 0.04786 | Q182: =+Actual!Q68 -> 0 | R182: =+Actual!R68 -> 0 | S182: =+Actual!S68 -> 0 | T182: =+Actual!T68 -> 0 | U182: =+Actual!U68 -> 0 | V182: =+Actual!V68 -> 0 | W182: =+Actual!W68 -> 0 | X182: =+Actual!X68 -> 0 | Y182: =+Actual!Y68 -> 0 | Z182: =+Actual!Z68 -> 0 | AA182: =+Actual!AA68 -> 0 | AB182: =+Actual!AB68 -> 0 | AD182: 0
C183: Tariffa Sistema Aperto B | D183: € / vkm | I183: 0.14516 | N183: =+Actual!N69 -> 0.04754 | O183: =+Actual!O69 -> 0.04852 | P183: =+Actual!P69 -> 0.0491 | Q183: =+Actual!Q69 -> 0 | R183: =+Actual!R69 -> 0 | S183: =+Actual!S69 -> 0 | T183: =+Actual!T69 -> 0 | U183: =+Actual!U69 -> 0 | V183: =+Actual!V69 -> 0 | W183: =+Actual!W69 -> 0 | X183: =+Actual!X69 -> 0 | Y183: =+Actual!Y69 -> 0 | Z183: =+Actual!Z69 -> 0 | AA183: =+Actual!AA69 -> 0 | AB183: =+Actual!AB69 -> 0 | AD183: 0
C184: Tariffa Sistema Aperto 3 | D184: € / vkm | I184: 0.16691 | N184: =+Actual!N70 -> 0.05466 | O184: =+Actual!O70 -> 0.05579 | P184: =+Actual!P70 -> 0.05646 | Q184: =+Actual!Q70 -> 0 | R184: =+Actual!R70 -> 0 | S184: =+Actual!S70 -> 0 | T184: =+Actual!T70 -> 0 | U184: =+Actual!U70 -> 0 | V184: =+Actual!V70 -> 0 | W184: =+Actual!W70 -> 0 | X184: =+Actual!X70 -> 0 | Y184: =+Actual!Y70 -> 0 | Z184: =+Actual!Z70 -> 0 | AA184: =+Actual!AA70 -> 0 | AB184: =+Actual!AB70 -> 0 | AD184: 0
C185: Tariffa Sistema Aperto 4 | D185: € / vkm | I185: 0.2757 | N185: =+Actual!N71 -> 0.09029 | O185: =+Actual!O71 -> 0.09215 | P185: =+Actual!P71 -> 0.09326 | Q185: =+Actual!Q71 -> 0 | R185: =+Actual!R71 -> 0 | S185: =+Actual!S71 -> 0 | T185: =+Actual!T71 -> 0 | U185: =+Actual!U71 -> 0 | V185: =+Actual!V71 -> 0 | W185: =+Actual!W71 -> 0 | X185: =+Actual!X71 -> 0 | Y185: =+Actual!Y71 -> 0 | Z185: =+Actual!Z71 -> 0 | AA185: =+Actual!AA71 -> 0 | AB185: =+Actual!AB71 -> 0 | AD185: 0
C186: Tariffa Sistema Aperto 5 | D186: € / vkm | I186: 0.33374 | N186: =+Actual!N72 -> 0.1093 | O186: =+Actual!O72 -> 0.11155 | P186: =+Actual!P72 -> 0.11289 | Q186: =+Actual!Q72 -> 0 | R186: =+Actual!R72 -> 0 | S186: =+Actual!S72 -> 0 | T186: =+Actual!T72 -> 0 | U186: =+Actual!U72 -> 0 | V186: =+Actual!V72 -> 0 | W186: =+Actual!W72 -> 0 | X186: =+Actual!X72 -> 0 | Y186: =+Actual!Y72 -> 0 | Z186: =+Actual!Z72 -> 0 | AA186: =+Actual!AA72 -> 0 | AB186: =+Actual!AB72 -> 0 | AD186: 0
C189: Traffico
C190: Traffico Passante A | D190: 000 vkm | I190: =+SUM(N190:AB190) -> 6498042.943 | N190: =+Actual!N21 -> 446477.1092 | O190: =+Actual!O21 -> 446221.3325 | P190: =+Actual!P21 -> 282076.0638 | Q190: =+Actual!Q21 -> 408624.8988 | R190: =+Actual!R21 -> 425051.6136 | S190: =+Actual!S21 -> 431812.1273 | T190: =+Actual!T21 -> 436786.132 | U190: =+Actual!U21 -> 441048.2378 | V190: =+Actual!V21 -> 444588.8414 | W190: =+Actual!W21 -> 447987.3537 | X190: =+Actual!X21 -> 451069.381 | Y190: =+Actual!Y21 -> 454273.4934 | Z190: =+Actual!Z21 -> 457475.9048 | AA190: =+Actual!AA21 -> 460676.2584 | AB190: =+Actual!AB21 -> 463874.195
C191: Traffico Passante B | D191: 000 vkm | I191: =+SUM(N191:AB191) -> 1038426.094 | N191: =+Actual!N22 -> 68028.98671 | O191: =+Actual!O22 -> 69413.98099 | P191: =+Actual!P22 -> 51642.5322 | Q191: =+Actual!Q22 -> 65536.84048 | R191: =+Actual!R22 -> 67350.02612 | S191: =+Actual!S22 -> 68331.82231 | T191: =+Actual!T22 -> 69217.59492 | U191: =+Actual!U22 -> 69988.00929 | V191: =+Actual!V22 -> 70679.43485 | W191: =+Actual!W22 -> 71356.08113 | X191: =+Actual!X22 -> 72022.85774 | Y191: =+Actual!Y22 -> 72697.69114 | Z191: =+Actual!Z22 -> 73374.37383 | AA191: =+Actual!AA22 -> 74052.83985 | AB191: =+Actual!AB22 -> 74733.0223
C192: Traffico Passante 3 | D192: 000 vkm | I192: 199095.3898 | N192: =+Actual!N23 -> 12686.63091 | O192: =+Actual!O23 -> 12954.09383 | P192: =+Actual!P23 -> 12048.58928 | Q192: =+Actual!Q23 -> 12759.77644 | R192: =+Actual!R23 -> 12833.32684 | S192: =+Actual!S23 -> 12928.70788 | T192: =+Actual!T23 -> 13066.74054 | U192: =+Actual!U23 -> 13215.18461 | V192: =+Actual!V23 -> 13360.12931 | W192: =+Actual!W23 -> 13505.38072 | X192: =+Actual!X23 -> 13651.23883 | Y192: =+Actual!Y23 -> 13798.67221 | Z192: =+Actual!Z23 -> 13946.74258 | AA192: =+Actual!AA23 -> 14095.43631 | AB192: =+Actual!AB23 -> 14244.73951
C193: Traffico Passante 4 | D193: 000 vkm | I193: 168195.758 | N193: =+Actual!N24 -> 10717.66405 | O193: =+Actual!O24 -> 10943.61669 | P193: =+Actual!P24 -> 10178.64657 | Q193: =+Actual!Q24 -> 10779.45739 | R193: =+Actual!R24 -> 10841.59275 | S193: =+Actual!S24 -> 10922.17064 | T193: =+Actual!T24 -> 11038.78061 | U193: =+Actual!U24 -> 11164.18614 | V193: =+Actual!V24 -> 11286.63541 | W193: =+Actual!W24 -> 11409.34378 | X193: =+Actual!X24 -> 11532.56469 | Y193: =+Actual!Y24 -> 11657.11639 | Z193: =+Actual!Z24 -> 11782.20621 | AA193: =+Actual!AA24 -> 11907.82266 | AB193: =+Actual!AB24 -> 12033.95398
C194: Traffico Passante 5 | D194: 000 vkm | I194: 1729278.941 | N194: =+Actual!N25 -> 110192.0225 | O194: =+Actual!O25 -> 112515.12 | P194: =+Actual!P25 -> 104650.1967 | Q194: =+Actual!Q25 -> 110827.3412 | R194: =+Actual!R25 -> 111466.1765 | S194: =+Actual!S25 -> 112294.6257 | T194: =+Actual!T25 -> 113493.5333 | U194: =+Actual!U25 -> 114782.871 | V194: =+Actual!V25 -> 116041.8144 | W194: =+Actual!W25 -> 117303.4217 | X194: =+Actual!X25 -> 118570.2987 | Y194: =+Actual!Y25 -> 119850.8579 | Z194: =+Actual!Z25 -> 121136.9498 | AA194: =+Actual!AA25 -> 122428.456 | AB194: =+Actual!AB25 -> 123725.2559
C195: Traffico Sistema Chiuso A | D195: 000 vkm | I195: 5452528.636 | N195: =+Actual!N26 -> 369585.3625 | O195: =+Actual!O26 -> 368297.1484 | P195: =+Actual!P26 -> 231882.5603 | Q195: =+Actual!Q26 -> 339972.6456 | R195: =+Actual!R26 -> 356098.1865 | S195: =+Actual!S26 -> 363434.6047 | T195: =+Actual!T26 -> 368475.2142 | U195: =+Actual!U26 -> 372078.0176 | V195: =+Actual!V26 -> 375067.8673 | W195: =+Actual!W26 -> 377936.9064 | X195: =+Actual!X26 -> 380537.0063 | Y195: =+Actual!Y26 -> 383240.1011 | Z195: =+Actual!Z26 -> 385941.761 | AA195: =+Actual!AA26 -> 388641.6848 | AB195: =+Actual!AB26 -> 391339.5696
C196: Traffico Sistema Chiuso B | D196: 000 vkm | I196: 727831.6948 | N196: =+Actual!N27 -> 47646.08974 | O196: =+Actual!O27 -> 48091.33636 | P196: =+Actual!P27 -> 35630.39013 | Q196: =+Actual!Q27 -> 45636.40455 | R196: =+Actual!R27 -> 47127.62438 | S196: =+Actual!S27 -> 47968.61277 | T196: =+Actual!T27 -> 48669.59273 | U196: =+Actual!U27 -> 49212.31688 | V196: =+Actual!V27 -> 49698.80224 | W196: =+Actual!W27 -> 50174.72415 | X196: =+Actual!X27 -> 50643.57462 | Y196: =+Actual!Y27 -> 51118.09031 | Z196: =+Actual!Z27 -> 51593.90634 | AA196: =+Actual!AA27 -> 52070.97633 | AB196: =+Actual!AB27 -> 52549.25326
C197: Traffico Sistema Chiuso 3 | D197: 000 vkm | I197: 129758.2012 | N197: =+Actual!N28 -> 8159.678222 | O197: =+Actual!O28 -> 8345.986878 | P197: =+Actual!P28 -> 7727.298274 | Q197: =+Actual!Q28 -> 8264.625908 | R197: =+Actual!R28 -> 8356.997405 | S197: =+Actual!S28 -> 8449.090079 | T197: =+Actual!T28 -> 8554.736541 | U197: =+Actual!U28 -> 8652.165033 | V197: =+Actual!V28 -> 8747.135938 | W197: =+Actual!W28 -> 8842.266729 | X197: =+Actual!X28 -> 8937.763209 | Y197: =+Actual!Y28 -> 9034.291052 | Z197: =+Actual!Z28 -> 9131.235944 | AA197: =+Actual!AA28 -> 9228.588968 | AB197: =+Actual!AB28 -> 9326.341022
C198: Traffico Sistema Chiuso 4 | D198: 000 vkm | I198: 92849.40289 | N198: =+Actual!N29 -> 5838.715732 | O198: =+Actual!O29 -> 5972.030214 | P198: =+Actual!P29 -> 5529.323187 | Q198: =+Actual!Q29 -> 5913.811794 | R198: =+Actual!R29 -> 5979.908875 | S198: =+Actual!S29 -> 6045.806442 | T198: =+Actual!T29 -> 6121.402519 | U198: =+Actual!U29 -> 6191.118169 | V198: =+Actual!V29 -> 6259.075274 | W198: =+Actual!W29 -> 6327.146788 | X198: =+Actual!X29 -> 6395.479973 | Y198: =+Actual!Y29 -> 6464.551157 | Z198: =+Actual!Z29 -> 6533.920763 | AA198: =+Actual!AA29 -> 6603.582411 | AB198: =+Actual!AB29 -> 6673.529588
C199: Traffico Sistema Chiuso 5 | D199: 000 vkm | I199: 988003.8369 | N199: =+Actual!N30 -> 62129.35535 | O199: =+Actual!O30 -> 63547.9452 | P199: =+Actual!P30 -> 58837.13147 | Q199: =+Actual!Q30 -> 62928.44716 | R199: =+Actual!R30 -> 63631.78146 | S199: =+Actual!S30 -> 64332.99275 | T199: =+Actual!T30 -> 65137.40518 | U199: =+Actual!U30 -> 65879.24441 | V199: =+Actual!V30 -> 66602.37109 | W199: =+Actual!W30 -> 67326.71519 | X199: =+Actual!X30 -> 68053.84371 | Y199: =+Actual!Y30 -> 68788.82522 | Z199: =+Actual!Z30 -> 69526.98223 | AA199: =+Actual!AA30 -> 70268.24683 | AB199: =+Actual!AB30 -> 71012.54972
C200: Traffico Sistema Aperto A | D200: 000 vkm | I200: 8826135.794 | N200: =+Actual!N41 -> 531751.1331 | O200: =+Actual!O41 -> 576000.5064 | P200: =+Actual!P41 -> 356043.8426 | Q200: =+Actual!Q41 -> 544352.1729 | R200: =+Actual!R41 -> 581066.5544 | S200: =+Actual!S41 -> 599830.9658 | T200: =+Actual!T41 -> 610185.9701 | U200: =+Actual!U41 -> 615403.4 | V200: =+Actual!V41 -> 619515.5813 | W200: =+Actual!W41 -> 623368.5856 | X200: =+Actual!X41 -> 626788.1935 | Y200: =+Actual!Y41 -> 630261.114 | Z200: =+Actual!Z41 -> 633761.3477 | AA200: =+Actual!AA41 -> 637207.7562 | AB200: =+Actual!AB41 -> 640598.6707
C201: Traffico Sistema Aperto B | D201: 000 vkm | I201: 1099090.735 | N201: =+Actual!N42 -> 64565.77426 | O201: =+Actual!O42 -> 70400.77449 | P201: =+Actual!P42 -> 50987.94222 | Q201: =+Actual!Q42 -> 68368.05462 | R201: =+Actual!R42 -> 72117.99921 | S201: =+Actual!S42 -> 74315.84536 | T201: =+Actual!T42 -> 75597.77834 | U201: =+Actual!U42 -> 76193.94791 | V201: =+Actual!V42 -> 76687.64945 | W201: =+Actual!W42 -> 77154.57702 | X201: =+Actual!X42 -> 77610.32422 | Y201: =+Actual!Y42 -> 78076.05282 | Z201: =+Actual!Z42 -> 78544.97899 | AA201: =+Actual!AA42 -> 79007.03651 | AB201: =+Actual!AB42 -> 79461.99914
C202: Traffico Sistema Aperto 3 | D202: 000 vkm | I202: 181655.2894 | N202: =+Actual!N43 -> 10191.92101 | O202: =+Actual!O43 -> 11240.75976 | P202: =+Actual!P43 -> 10826.68483 | Q202: =+Actual!Q43 -> 11533.77326 | R202: =+Actual!R43 -> 11857.1222 | S202: =+Actual!S43 -> 12119.50611 | T202: =+Actual!T43 -> 12293.61242 | U202: =+Actual!U43 -> 12385.64138 | V202: =+Actual!V43 -> 12474.68991 | W202: =+Actual!W43 -> 12562.88496 | X202: =+Actual!X43 -> 12651.97293 | Y202: =+Actual!Y43 -> 12742.89642 | Z202: =+Actual!Z43 -> 12834.44224 | AA202: =+Actual!AA43 -> 12924.96374 | AB202: =+Actual!AB43 -> 13014.4182
C203: Traffico Sistema Aperto 4 | D203: 000 vkm | I203: 107965.8173 | N203: =+Actual!N44 -> 6077.410841 | O203: =+Actual!O44 -> 6687.347963 | P203: =+Actual!P44 -> 6441.006681 | Q203: =+Actual!Q44 -> 6857.677239 | R203: =+Actual!R44 -> 7046.874904 | S203: =+Actual!S44 -> 7200.740041 | T203: =+Actual!T44 -> 7303.135443 | U203: =+Actual!U44 -> 7357.806106 | V203: =+Actual!V44 -> 7410.706216 | W203: =+Actual!W44 -> 7463.099313 | X203: =+Actual!X44 -> 7516.022855 | Y203: =+Actual!Y44 -> 7570.036801 | Z203: =+Actual!Z44 -> 7624.420456 | AA203: =+Actual!AA44 -> 7678.195598 | AB203: =+Actual!AB44 -> 7731.336857
C204: Traffico Sistema Aperto 5 | D204: 000 vkm | I204: 1145601.825 | N204: =+Actual!N45 -> 64426.73982 | O204: =+Actual!O45 -> 70953.30925 | P204: =+Actual!P45 -> 68339.60809 | Q204: =+Actual!Q45 -> 72764.91933 | R204: =+Actual!R45 -> 74775.81846 | S204: =+Actual!S45 -> 76410.803 | T204: =+Actual!T45 -> 77498.53279 | U204: =+Actual!U45 -> 78078.68034 | V204: =+Actual!V45 -> 78640.03935 | W204: =+Actual!W45 -> 79196.01811 | X204: =+Actual!X45 -> 79757.62577 | Y204: =+Actual!Y45 -> 80330.80445 | Z204: =+Actual!Z45 -> 80907.90637 | AA204: =+Actual!AA45 -> 81478.55095 | AB204: =+Actual!AB45 -> 82042.46896
C207: TARIFFA MEDIA PONDERATA | N207: =+SUMPRODUCT(N172:N186,N190:N204)/SUM(N190:N204) -> 0.07677685519 | O207: =+SUMPRODUCT(O172:O186,O190:O204)/SUM(O190:O204) -> 0.07789839984 | P207: 0.08433615205 | Q207: 0 | R207: 0 | S207: 0 | T207: 0 | U207: 0 | V207: 0 | W207: 0 | X207: 0 | Y207: 0 | Z207: 0 | AA207: 0 | AB207: 0
C208: Total Traffic Volumes | D208: 000 veicoli | I208: =+SUM(N208:AB208) -> 28384460.36 | N208: =+SUM(N190:N204) -> 1818474.594 | O208: =+SUM(O190:O204) -> 1881585.289 | P208: =+SUM(P190:P204) -> 1292841.816 | Q208: 1775120.847 | R208: 1855601.604 | S208: 1896398.421 | T208: 1923440.162 | U208: 1941630.827 | V208: 1957060.773 | W208: 1971914.505 | X208: 1985738.148 | Y208: 1999904.594 | Z208: 2014117.079 | AA208: 2028270.396 | AB208: 2042361.304
C209: Average Traffic Volume per Regulatory Period | D209: 000 veicoli | I209: =+SUM(N209:AB209) -> 24684400.48 | N209: =+AVERAGEIF($N$131:$AB$131,N131,$N$208:$AB$208)*N130 -> 0 | O209: 0 | P209: 1748680.57 | Q209: 1748680.57 | R209: 1748680.57 | S209: 1748680.57 | T209: 1748680.57 | U209: 1971249.77 | V209: 1971249.77 | W209: 1971249.77 | X209: 1971249.77 | Y209: 1971249.77 | Z209: 2028249.593 | AA209: 2028249.593 | AB209: 2028249.593
C210: Residual Average Traffic Volume per Regulatory Period | D210: 000 veicoli | I210: =+SUM(N210:AB210) -> 25370903.08 | P210: =+SUMIF(P131:$AB131,P131,P208:$AB208)/COUNTIF(P$131:$AB$131,P131) -> 1748680.57 | Q210: =+SUMIF(Q131:$AB131,Q131,Q208:$AB208)/COUNTIF(Q$131:$AB$131,Q131) -> 1862640.258 | R210: =+SUMIF(R131:$AB131,R131,R208:$AB208)/COUNTIF(R$131:$AB$131,R131) -> 1891813.395 | S210: =+SUMIF(S131:$AB131,S131,S208:$AB208)/COUNTIF(S$131:$AB$131,S131) -> 1909919.291 | T210: =+SUMIF(T131:$AB131,T131,T208:$AB208)/COUNTIF(T$131:$AB$131,T131) -> 1923440.162 | U210: =+SUMIF(U131:$AB131,U131,U208:$AB208)/COUNTIF(U$131:$AB$131,U131) -> 1971249.77 | V210: =+SUMIF(V131:$AB131,V131,V208:$AB208)/COUNTIF(V$131:$AB$131,V131) -> 1978654.505 | W210: =+SUMIF(W131:$AB131,W131,W208:$AB208)/COUNTIF(W$131:$AB$131,W131) -> 1985852.416 | X210: =+SUMIF(X131:$AB131,X131,X208:$AB208)/COUNTIF(X$131:$AB$131,X131) -> 1992821.371 | Y210: =+SUMIF(Y131:$AB131,Y131,Y208:$AB208)/COUNTIF(Y$131:$AB$131,Y131) -> 1999904.594 | Z210: =+SUMIF(Z131:$AB131,Z131,Z208:$AB208)/COUNTIF(Z$131:$AB$131,Z131) -> 2028249.593 | AA210: =+SUMIF(AA131:$AB131,AA131,AA208:$AB208)/COUNTIF(AA$131:$AB$131,AA131) -> 2035315.85 | AB210: =+SUMIF(AB131:$AB131,AB131,AB208:$AB208)/COUNTIF(AB$131:$AB$131,AB131) -> 2042361.304
B213: Tg - COMPONENTE TARIFFARIA DI GESTIONE UNITARIA | D213: Unit | E213: Input 1 | F213: Input 2 | G213: Check | I213: Total
B215: A | C215: COSTI OPERATIVI
C217: ANNO BASE
C218: Costi operativi
B219: B6 | C219: Materie prime, sussidiarie, di consumo e di merci | D219: €'000 | N219: =+Actual!N183 -> -975.73348 | O219: =+Actual!O183 -> -985.24807 | P219: =+Actual!P183 -> 0 | Q219: =+Actual!Q183 -> 0 | R219: =+Actual!R183 -> 0 | S219: =+Actual!S183 -> 0 | T219: =+Actual!T183 -> 0 | U219: =+Actual!U183 -> 0 | V219: =+Actual!V183 -> 0 | W219: =+Actual!W183 -> 0 | X219: =+Actual!X183 -> 0 | Y219: =+Actual!Y183 -> 0 | Z219: =+Actual!Z183 -> 0 | AA219: =+Actual!AA183 -> 0 | AB219: =+Actual!AB183 -> 0
B220: B7 | C220: Servizi | D220: €'000 | N220: =+Actual!N184 -> -25397.16291 | O220: =+Actual!O184 -> -30440.10789 | P220: =+Actual!P184 -> 0 | Q220: =+Actual!Q184 -> 0 | R220: =+Actual!R184 -> 0 | S220: =+Actual!S184 -> 0 | T220: =+Actual!T184 -> 0 | U220: =+Actual!U184 -> 0 | V220: =+Actual!V184 -> 0 | W220: =+Actual!W184 -> 0 | X220: =+Actual!X184 -> 0 | Y220: =+Actual!Y184 -> 0 | Z220: =+Actual!Z184 -> 0 | AA220: =+Actual!AA184 -> 0 | AB220: =+Actual!AB184 -> 0
B221: B8 | C221: Godimento beni di terzi | D221: €'000 | N221: =+Actual!N185 -> -294.17236 | O221: =+Actual!O185 -> -382.50308 | P221: =+Actual!P185 -> 0 | Q221: =+Actual!Q185 -> 0 | R221: =+Actual!R185 -> 0 | S221: =+Actual!S185 -> 0 | T221: =+Actual!T185 -> 0 | U221: =+Actual!U185 -> 0 | V221: =+Actual!V185 -> 0 | W221: =+Actual!W185 -> 0 | X221: =+Actual!X185 -> 0 | Y221: =+Actual!Y185 -> 0 | Z221: =+Actual!Z185 -> 0 | AA221: =+Actual!AA185 -> 0 | AB221: =+Actual!AB185 -> 0
B222: B9 | C222: Personale | D222: €'000 | N222: =+Actual!N186 -> -19244.48014 | O222: =+Actual!O186 -> -18541.29844 | P222: =+Actual!P186 -> 0 | Q222: =+Actual!Q186 -> 0 | R222: =+Actual!R186 -> 0 | S222: =+Actual!S186 -> 0 | T222: =+Actual!T186 -> 0 | U222: =+Actual!U186 -> 0 | V222: =+Actual!V186 -> 0 | W222: =+Actual!W186 -> 0 | X222: =+Actual!X186 -> 0 | Y222: =+Actual!Y186 -> 0 | Z222: =+Actual!Z186 -> 0 | AA222: =+Actual!AA186 -> 0 | AB222: =+Actual!AB186 -> 0
B223: B11 | C223: Variazione delle rimanenze di materie prime, sussidiarie, etc. | D223: €'000 | N223: =+Actual!N187 -> 137.50603 | O223: =+Actual!O187 -> 40.26079 | P223: =+Actual!P187 -> 0 | Q223: =+Actual!Q187 -> 0 | R223: =+Actual!R187 -> 0 | S223: =+Actual!S187 -> 0 | T223: =+Actual!T187 -> 0 | U223: =+Actual!U187 -> 0 | V223: =+Actual!V187 -> 0 | W223: =+Actual!W187 -> 0 | X223: =+Actual!X187 -> 0 | Y223: =+Actual!Y187 -> 0 | Z223: =+Actual!Z187 -> 0 | AA223: =+Actual!AA187 -> 0 | AB223: =+Actual!AB187 -> 0
B224: B14 | C224: Oneri diversi di gestione | D224: €'000 | N224: =+Actual!N188 -> -18641.18765 | O224: =+Actual!O188 -> -19030.00417 | P224: =+Actual!P188 -> 0 | Q224: =+Actual!Q188 -> 0 | R224: =+Actual!R188 -> 0 | S224: =+Actual!S188 -> 0 | T224: =+Actual!T188 -> 0 | U224: =+Actual!U188 -> 0 | V224: =+Actual!V188 -> 0 | W224: =+Actual!W188 -> 0 | X224: =+Actual!X188 -> 0 | Y224: =+Actual!Y188 -> 0 | Z224: =+Actual!Z188 -> 0 | AA224: =+Actual!AA188 -> 0 | AB224: =+Actual!AB188 -> 0
C225: Totale Costi operativi | D225: €'000 | N225: =+SUM(N219:N224) -> -64415.23051 | O225: =+SUM(O219:O224) -> -69338.90086 | P225: 0 | Q225: 0 | R225: 0 | S225: 0 | T225: 0 | U225: 0 | V225: 0 | W225: 0 | X225: 0 | Y225: 0 | Z225: 0 | AA225: 0 | AB225: 0
C227: Aggiustamenti
C228: Canoni | D228: €'000 | N228: =+Actual!N192 -> 17841.28206 | O228: =+Actual!O192 -> 18063.16863 | P228: =+Actual!P192 -> 0 | Q228: =+Actual!Q192 -> 0 | R228: =+Actual!R192 -> 0 | S228: =+Actual!S192 -> 0 | T228: =+Actual!T192 -> 0 | U228: =+Actual!U192 -> 0 | V228: =+Actual!V192 -> 0 | W228: =+Actual!W192 -> 0 | X228: =+Actual!X192 -> 0 | Y228: =+Actual!Y192 -> 0 | Z228: =+Actual!Z192 -> 0 | AA228: =+Actual!AA192 -> 0 | AB228: =+Actual!AB192 -> 0
C229: Manutenzioni Asset Reversibili | D229: €'000 | N229: =+Actual!N193 -> 14540.74192 | O229: =+Actual!O193 -> 18420.78954 | P229: =+Actual!P193 -> 0 | Q229: =+Actual!Q193 -> 0 | R229: =+Actual!R193 -> 0 | S229: =+Actual!S193 -> 0 | T229: =+Actual!T193 -> 0 | U229: =+Actual!U193 -> 0 | V229: =+Actual!V193 -> 0 | W229: =+Actual!W193 -> 0 | X229: =+Actual!X193 -> 0 | Y229: =+Actual!Y193 -> 0 | Z229: =+Actual!Z193 -> 0 | AA229: =+Actual!AA193 -> 0 | AB229: =+Actual!AB193 -> 0
C230: Costi intersoggettive (in B6,B7,B8,B14) | D230: €'000 | N230: =+Actual!N194 -> 0 | O230: =+Actual!O194 -> 0 | P230: =+Actual!P194 -> 0 | Q230: =+Actual!Q194 -> 0 | R230: =+Actual!R194 -> 0 | S230: =+Actual!S194 -> 0 | T230: =+Actual!T194 -> 0 | U230: =+Actual!U194 -> 0 | V230: =+Actual!V194 -> 0 | W230: =+Actual!W194 -> 0 | X230: =+Actual!X194 -> 0 | Y230: =+Actual!Y194 -> 0 | Z230: =+Actual!Z194 -> 0 | AA230: =+Actual!AA194 -> 0 | AB230: =+Actual!AB194 -> 0
C231: Totale Aggiustamenti | D231: €'000 | N231: =+SUM(N228:N230) -> 32382.02398 | O231: =+SUM(O228:O230) -> 36483.95817 | P231: 0 | Q231: 0 | R231: 0 | S231: 0 | T231: 0 | U231: 0 | V231: 0 | W231: 0 | X231: 0 | Y231: 0 | Z231: 0 | AA231: 0 | AB231: 0
C233: COSTI OPERATIVI ANNO BASE | D233: €'000 | N233: =+SUM(N225,N231) -> -32033.20653 | O233: =+SUM(O225,O231) -> -32854.94269 | P233: 0 | Q233: 0 | R233: 0 | S233: 0 | T233: 0 | U233: 0 | V233: 0 | W233: 0 | X233: 0 | Y233: 0 | Z233: 0 | AA233: 0 | AB233: 0
B236: A' | C236: UTILIZZO DI FONDO ACCANTONAMENTO PER RINNOVI
C238: ANNO BASE
C239: Utilizzo di fondo accantonamento per rinnovi | D239: €'000 | N239: =+Actual!N201 -> -10210.57165 | O239: =+Actual!O201 -> 0 | P239: =+Actual!P201 -> 0 | Q239: =+Actual!Q201 -> 0 | R239: =+Actual!R201 -> 0 | S239: =+Actual!S201 -> -15992.79507 | T239: =+Actual!T201 -> 0 | U239: =+Actual!U201 -> 0 | V239: =+Actual!V201 -> 0 | W239: =+Actual!W201 -> 0 | X239: =+Actual!X201 -> -14701.8 | Y239: =+Actual!Y201 -> 0 | Z239: =+Actual!Z201 -> 0 | AA239: =+Actual!AA201 -> 0 | AB239: =+Actual!AB201 -> 0
B242: A'' ; A''' | C242: COSTI INCREMENTALI
B244: A'' | C244: Costi operativi incrementali da nuovi investimenti | D244: €'000 | N244: =+Actual!N205 -> 0 | O244: =+Actual!O205 -> 0 | P244: =+Actual!P205 -> 0 | Q244: =+Actual!Q205 -> 0 | R244: =+Actual!R205 -> 0 | S244: =+Actual!S205 -> 0 | T244: =+Actual!T205 -> 0 | U244: =+Actual!U205 -> 0 | V244: =+Actual!V205 -> 0 | W244: =+Actual!W205*W151 -> 203.8574435 | X244: =+Actual!X205*X151 -> 342.4805051 | Y244: =+Actual!Y205*Y151 -> 345.2203491 | Z244: =+Actual!Z205*Z151 -> 347.9821119 | AA244: =+Actual!AA205*AA151 -> 350.7659688 | AB244: =+Actual!AB205*AB151 -> 353.5720965
B245: A''' | C245: Costi operativi incrementali da sopravvenienze normative e regolamentari | D245: €'000 | N245: =+Actual!N206 -> 0 | O245: =+Actual!O206 -> 0 | P245: =+Actual!P206 -> 0 | Q245: =+Actual!Q206 -> 0 | R245: =+Actual!R206 -> 0 | S245: =+Actual!S206 -> 0 | T245: =+Actual!T206 -> 0 | U245: =+Actual!U206 -> 0 | V245: =+Actual!V206 -> 0 | W245: =+Actual!W206 -> 0 | X245: =+Actual!X206 -> 0 | Y245: =+Actual!Y206 -> 0 | Z245: =+Actual!Z206 -> 0 | AA245: =+Actual!AA206 -> 0 | AB245: =+Actual!AB206 -> 0
B248: Eaa | C248: EXTRA-PROFITTO DA ATTIVITA' ACCESSORIE
C250: ANNO BASE
C251: Ricavi da subconcessioni e attività collaterali | D251: €'000 | N251: =+Actual!N212 -> 4379.16641 | O251: =+Actual!O212 -> 4300.07978 | P251: =+Actual!P212 -> 0 | Q251: =+Actual!Q212 -> 0 | R251: =+Actual!R212 -> 0 | S251: =+Actual!S212 -> 0 | T251: =+Actual!T212 -> 0 | U251: =+Actual!U212 -> 0 | V251: =+Actual!V212 -> 0 | W251: =+Actual!W212 -> 0 | X251: =+Actual!X212 -> 0 | Y251: =+Actual!Y212 -> 0 | Z251: =+Actual!Z212 -> 0 | AA251: =+Actual!AA212 -> 0 | AB251: =+Actual!AB212 -> 0
C252: Altri Ricavi | D252: €'000 | N252: =+Actual!N213 -> 4238.03156 | O252: =+Actual!O213 -> 3256.15597 | P252: =+Actual!P213 -> 0 | Q252: =+Actual!Q213 -> 0 | R252: =+Actual!R213 -> 0 | S252: =+Actual!S213 -> 0 | T252: =+Actual!T213 -> 0 | U252: =+Actual!U213 -> 0 | V252: =+Actual!V213 -> 0 | W252: =+Actual!W213 -> 0 | X252: =+Actual!X213 -> 0 | Y252: =+Actual!Y213 -> 0 | Z252: =+Actual!Z213 -> 0 | AA252: =+Actual!AA213 -> 0 | AB252: =+Actual!AB213 -> 0
C253: Ricavi accessori anno base | D253: €'000 | N253: =+SUM(N251:N252) -> 8617.19797 | O253: =+SUM(O251:O252) -> 7556.23575 | P253: 0 | Q253: 0 | R253: 0 | S253: 0 | T253: 0 | U253: 0 | V253: 0 | W253: 0 | X253: 0 | Y253: 0 | Z253: 0 | AA253: 0 | AB253: 0
C255: COSTO STIMATO / EXTRA-PROFITTO | D255: €'000 | N255: =+N253/(1+N159) -> 8046.687805 | O255: 7055.967644 | P255: 0 | Q255: 0 | R255: 0 | S255: 0 | T255: 0 | U255: 0 | V255: 0 | W255: 0 | X255: 0 | Y255: 0 | Z255: 0 | AA255: 0 | AB255: 0
B258: C | C258: COSTI OPERATIVI TOTALI AMMESSI NETTI
C260: ANNO BASE
C261: Costi operativi totali ammessi (comprensivi delle attività accessorie) | D261: €'000 | N261: =+IF(N$136=1,N233,N271)*N$133 -> -32033.20653 | O261: 0 | P261: 0 | Q261: 0 | R261: 0 | S261: -33467.48325 | T261: 0 | U261: 0 | V261: 0 | W261: 0 | X261: -34827.77381 | Y261: 0 | Z261: 0 | AA261: 0 | AB261: 0
C262: Utilizzo di fondo accantonamento per rinnovi | D262: €'000 | N262: =+IF(N$139=1,N239,N272)*N$133 -> -10210.57165 | O262: =+IF(O$139=1,O239,O272)*O$133 -> 0 | P262: 0 | Q262: 0 | R262: 0 | S262: -15992.79507 | T262: 0 | U262: 0 | V262: 0 | W262: 0 | X262: -14701.8 | Y262: 0 | Z262: 0 | AA262: 0 | AB262: 0
C263: Costi accessori - Extra Profitto | D263: €'000 | N263: =+IF(N$136=1,N255,N273)*N$133 -> 8046.687805 | O263: =+IF(O$136=1,O255,O273)*O$133 -> 0 | P263: 0 | Q263: 0 | R263: 0 | S263: =+IF(S$136=1,S255,S273)*S$133 -> 8406.975714 | T263: 0 | U263: 0 | V263: 0 | W263: 0 | X263: 8748.678423 | Y263: 0 | Z263: 0 | AA263: 0 | AB263: 0
C265: ANNO PONTE
C266: =+C261 -> Costi operativi totali ammessi (comprensivi delle attività accessorie) | D266: €'000 | N266: =+M261*N$134*(1+N$146+N$147*$E$149) -> 0 | O266: -32417.60501 | P266: =+O261*P$134*(1+P$146+P$147*$E$149) -> 0 | Q266: 0 | R266: 0 | S266: 0 | T266: -33735.22312 | U266: 0 | V266: 0 | W266: 0 | X266: 0 | Y266: -35106.396 | Z266: 0 | AA266: 0 | AB266: 0
C267: =+C262 -> Utilizzo di fondo accantonamento per rinnovi | D267: €'000 | N267: 0 | O267: -10333.09851 | P267: =+O262*P$134*(1+P$146+P$147*$E$149) -> 0 | Q267: 0 | R267: 0 | S267: 0 | T267: -16120.73743 | U267: 0 | V267: 0 | W267: 0 | X267: 0 | Y267: -14819.4144 | Z267: 0 | AA267: 0 | AB267: 0
C268: =+C263 -> Costi accessori - Extra Profitto | D268: €'000 | N268: 0 | O268: 8143.248058 | P268: =+O263*P$134*(1+P$146+P$147*$E$149) -> 0 | Q268: 0 | R268: 0 | S268: 0 | T268: 8474.23152 | U268: 0 | V268: 0 | W268: 0 | X268: 0 | Y268: 8818.667851 | Z268: 0 | AA268: 0 | AB268: 0
C270: PERIODO REGOLATORIO
C271: =+C266 -> Costi operativi totali ammessi (comprensivi delle attività accessorie) | D271: €'000 | N271: =+IF(M$134=1,M266,M271)*(1+N$148)*N$130 -> 0 | O271: =+IF(N$134=1,N266,N271)*(1+O$148)*O$130 -> 0 | P271: =+IF(O$134=1,O266,O271)*(1+P$148)*P$130 -> -32676.94585 | Q271: -32938.36142 | R271: -33201.86831 | S271: -33467.48325 | T271: -33735.22312 | U271: -34005.1049 | V271: -34277.14574 | W271: -34551.36291 | X271: -34827.77381 | Y271: -35106.396 | Z271: -35387.24717 | AA271: -35670.34515 | AB271: -35955.70791
C272: =+C267 -> Utilizzo di fondo accantonamento per rinnovi | D272: €'000 | N272: =+IF(M$134=1,M267,M272)*(1+N$148)*N$130 -> 0 | O272: 0 | P272: -10415.7633 | Q272: -10499.08941 | R272: -10583.08212 | S272: -10667.74678 | T272: -10753.08875 | U272: -16249.70333 | V272: -16379.70096 | W272: -16510.73857 | X272: -16642.82448 | Y272: -16775.96707 | Z272: -14937.96972 | AA272: -15057.47347 | AB272: -15177.93326
C273: =+C268 -> Costi accessori - Extra Profitto | D273: €'000 | N273: =+IF(M$134=1,M268,M273)*(1+N$148)*N$130 -> 0 | O273: 0 | P273: 8208.394043 | Q273: 8274.061195 | R273: 8340.253685 | S273: 8406.975714 | T273: 8474.23152 | U273: 8542.025372 | V273: 8610.361575 | W273: 8679.244468 | X273: 8748.678423 | Y273: 8818.667851 | Z273: 8889.217194 | AA273: 8960.330931 | AB273: 9032.013579
B276: D | C276: IMMOBILIZZAZIONI NON REVERSIBILI AL 1/1
C278: ANNO BASE
C279: Immobilizzazioni non reversibili nette al 1/1 | D279: €'000 | N279: =+SUM(Actual!N220:N221) -> 1339.302 | O279: =+SUM(Actual!O220:O221) -> 0 | P279: =+SUM(Actual!P220:P221) -> 0 | Q279: =+SUM(Actual!Q220:Q221) -> 0 | R279: =+SUM(Actual!R220:R221) -> 0 | S279: =+SUM(Actual!S220:S221) -> 0 | T279: =+SUM(Actual!T220:T221) -> 0 | U279: =+SUM(Actual!U220:U221) -> 0 | V279: =+SUM(Actual!V220:V221) -> 0 | W279: =+SUM(Actual!W220:W221) -> 0 | X279: =+SUM(Actual!X220:X221) -> 0 | Y279: =+SUM(Actual!Y220:Y221) -> 0 | Z279: =+SUM(Actual!Z220:Z221) -> 0 | AA279: =+SUM(Actual!AA220:AA221) -> 0 | AB279: =+SUM(Actual!AB220:AB221) -> 0
B282: E' | C282: AMMORTAMENTO TECNICO-ECONOMICO ANNUO
C284: ANNO BASE
B285: E' | C285: Costi ammortamento asset non reversibili | D285: €'000 | N285: =-SUM(Actual!N227:N228) -> 468.161 | O285: =-SUM(Actual!O227:O228) -> 0 | P285: =-SUM(Actual!P227:P228) -> 0 | Q285: =-SUM(Actual!Q227:Q228) -> 0 | R285: =-SUM(Actual!R227:R228) -> 0 | S285: =-SUM(Actual!S227:S228) -> 0 | T285: =-SUM(Actual!T227:T228) -> 0 | U285: =-SUM(Actual!U227:U228) -> 0 | V285: =-SUM(Actual!V227:V228) -> 0 | W285: =-SUM(Actual!W227:W228) -> 0 | X285: =-SUM(Actual!X227:X228) -> 0 | Y285: =-SUM(Actual!Y227:Y228) -> 0 | Z285: =-SUM(Actual!Z227:Z228) -> 0 | AA285: =-SUM(Actual!AA227:AA228) -> 0 | AB285: =-SUM(Actual!AB227:AB228) -> 0
B288: E'' | C288: REMUNERAZIONE ANNUA
C290: ANNO BASE
B291: E'' | C291: Remunerazione annua | D291: €'000 | N291: =+ROUND(N279*N$159*N133,0) -> 95 | O291: 0 | P291: 0 | Q291: 0 | R291: 0 | S291: 0 | T291: 0 | U291: 0 | V291: 0 | W291: 0 | X291: 0 | Y291: 0 | Z291: 0 | AA291: 0 | AB291: 0
... 64 more rows

Sheet Grafici tariffe (hidden)
K2: Anni
K3: 2020 | L3: =K3+1 -> 2021 | M3: =L3+1 -> 2022 | N3: 2023 | O3: 2024 | P3: 2025 | Q3: 2026 | R3: 2027 | S3: 2028 | T3: 2029 | U3: 2030 | V3: 2031 | W3: 2032
H5: TIR | I5: Tariffa CIPE | K5: 0.07861506512 | L5: 0.078869895 | M5: 0.0791255509 | N5: 0.07938203552 | O5: 0.07963935152 | P5: 0.07887718363 | Q5: 0.07812230986 | R5: 0.07737466042 | S5: 0.07663416617 | T5: 0.07590075863 | U5: 0.07517436997 | V5: 0.07445493303 | W5: 0.07374238128
G6: A | H6: 0.07121104381 | I6: Tariffa ART - con poste figurative | K6: =PFR_ART!P79 -> 0.07696 | L6: =PFR_ART!Q79 -> 0.0777 | M6: =PFR_ART!R79 -> 0.07843 | N6: =PFR_ART!S79 -> 0.07871 | O6: =PFR_ART!T79 -> 0.07823 | P6: =PFR_ART!U79 -> 0.07775 | Q6: =PFR_ART!V79 -> 0.07728 | R6: =PFR_ART!W79 -> 0.07681 | S6: =PFR_ART!X79 -> 0.07634 | T6: =PFR_ART!Y79 -> 0.07587 | U6: =PFR_ART!Z79 -> 0.07541 | V6: =PFR_ART!AA79 -> 0.07495 | W6: =PFR_ART!AB79 -> 0.0745
G7: B | H7: 0.1356026388 | I7: Tariffa ART - caso base con tasso medio pond | K7: 0.0756 | L7: 0.07512 | M7: 0.07465 | N7: 0.07418 | O7: 0.07372 | P7: 0.07326 | Q7: 0.0728 | R7: 0.07234 | S7: 0.07189 | T7: 0.07144 | U7: 0.07099 | V7: 0.07054 | W7: 0.0701
G8: C | H8: 0.1356026383 | I8: Tariffa ART - caso base con WACC | K8: 0.07538 | L8: 0.07469 | M8: 0.074 | N8: 0.07332 | O8: 0.07265 | P8: 0.07199 | Q8: 0.07133 | R8: 0.07068 | S8: 0.07003 | T8: 0.06939 | U8: 0.06875 | V8: 0.06812 | W8: 0.0675
K10: =(K6-K7)/K7 -> 0.01798941799 | L10: =(L6-L7)/L7 -> 0.03434504792 | M10: 0.05063630275 | N10: 0.06106767323 | O10: 0.06117742811 | P10: 0.06128856129 | Q10: 0.06153846154 | R10: 0.06179153995 | S10: 0.06190012519 | T10: 0.06201007839 | U10: 0.06226229046 | V10: 0.06251772044 | W10: 0.06276747504
K11: =(K6-K8)/K8 -> 0.02096046697 | L11: =(L6-L8)/L8 -> 0.04029990628 | M11: 0.05986486486 | N11: 0.07351336607 | O11: 0.07680660702 | P11: 0.08001111265 | Q11: 0.08341511286 | R11: 0.08672891907 | S11: 0.09010424104 | T11: 0.09338521401 | U11: 0.09687272727 | V11: 0.1002642396 | W11: 0.1037037037
B13: Covenant ART | C13: A | D13: B | E13: C
B15: N° blocchi alle distribuzioni (Projected DSCR) | C15: 8 | D15: 9 | E15: 9
B17: Semestri | C17: 1°- 2° 2020 | D17: 1°- 2° 2020 | E17: 1°- 2° 2020
C18: 1°- 2° 2021 | D18: 1°- 2° 2021 | E18: 1°- 2° 2021
C19: 1° 2022 | D19: 1° 2022 | E19: 1° 2022
C20: 2° 2024 | D20: 2° 2024 | E20: 2° 2024
C21: 1°- 2° 2025 | D21: 1°- 2° 2025 | E21: 1°- 2° 2025
D22: 1° 2026 | E22: 1° 2026
B25: N° blocchi alle distribuzioni (Projected BLCR) | C25: 0 | D25: 2 | E25: 3
B27: Semestri | D27: 1°- 2° 2020 | E27: 1°- 2° 2020
E28: 1° 2021

Sheet PEF_ART
B2: =+Cover!D26 -> CAV - Nuovo Sistema Tariffario
B3: PEF_ART
I5: Starting date | N5: =+Input!$N$5 -> 2018-01-01 | O5: =+N6+1 -> 2019-01-01 | P5: =+O6+1 -> 2020-01-01 | Q5: 2021-01-01 | R5: 2022-01-01 | S5: 2023-01-01 | T5: 2024-01-01 | U5: 2025-01-01 | V5: 2026-01-01 | W5: 2027-01-01 | X5: 2028-01-01 | Y5: 2029-01-01 | Z5: 2030-01-01 | AA5: 2031-01-01 | AB5: 2032-01-01 | AG5: 1900-01-01
I6: Ending date | N6: =+EOMONTH(N5,11) -> 2018-12-31 | O6: =+EOMONTH(O5,11) -> 2019-12-31 | P6: 2020-12-31 | Q6: 2021-12-31 | R6: 2022-12-31 | S6: 2023-12-31 | T6: 2024-12-31 | U6: 2025-12-31 | V6: 2026-12-31 | W6: 2027-12-31 | X6: 2028-12-31 | Y6: 2029-12-31 | Z6: 2030-12-31 | AA6: 2031-12-31 | AB6: 2032-12-31 | AG6: =+EOMONTH(#REF!,Input!$E$28-1) ->  | AH6: =+EOMONTH(#REF!,Input!$E$28-1) ->  | AI6: =+EOMONTH(#REF!,Input!$E$28-1) ->  | AJ6: =+EOMONTH(#REF!,Input!$E$28-1) ->  | AK6: =+EOMONTH(#REF!,Input!$E$28-1) ->  | AL6: =+EOMONTH(#REF!,Input!$E$28-1) ->  | AM6: =+EOMONTH(#REF!,Input!$E$28-1) ->  | AN6: =+EOMONTH(#REF!,Input!$E$28-1) ->  | AO6: =+EOMONTH(#REF!,Input!$E$28-1) ->  | AP6: =+EOMONTH(#REF!,Input!$E$28-1) -> 
E7: sheet check | F7: =+SUM(G7:G256) -> 0 | I7: Year | N7: =YEAR(N6) -> 2018 | O7: 2019 | P7: 2020 | Q7: 2021 | R7: 2022 | S7: 2023 | T7: 2024 | U7: 2025 | V7: 2026 | W7: 2027 | X7: 2028 | Y7: 2029 | Z7: 2030 | AA7: 2031 | AB7: 2032
I8: Days (in period) | N8: =N6-N5+1 -> 365 | O8: 365 | P8: 366 | Q8: 365 | R8: 365 | S8: 365 | T8: 366 | U8: 365 | V8: 365 | W8: 365 | X8: 366 | Y8: 365 | Z8: 365 | AA8: 365 | AB8: 366
I9: Month | N9: =MONTH(N6) -> 12 | O9: 12 | P9: 12 | Q9: 12 | R9: 12 | S9: 12 | T9: 12 | U9: 12 | V9: 12 | W9: 12 | X9: 12 | Y9: 12 | Z9: 12 | AA9: 12 | AB9: 12
I10: Period counter | N10: =M10+1 -> 1 | O10: 2 | P10: 3 | Q10: 4 | R10: 5 | S10: 6 | T10: 7 | U10: 8 | V10: 9 | W10: 10 | X10: 11 | Y10: 12 | Z10: 13 | AA10: 14 | AB10: 15 | AG10: 1 | AH10: 2 | AI10: 3 | AJ10: 4 | AK10: 5 | AL10: 6 | AM10: 7 | AN10: 8 | AO10: 9 | AP10: 10
I11: End of year | N11: =1*(N9=12) -> 1 | O11: =1*(O9=12) -> 1 | P11: 1 | Q11: 1 | R11: 1 | S11: 1 | T11: 1 | U11: 1 | V11: 1 | W11: 1 | X11: 1 | Y11: 1 | Z11: 1 | AA11: 1 | AB11: 1
I12: End of semester | N12: =1*OR(N9=6,N9=12) -> 1 | O12: =1*OR(O9=6,O9=12) -> 1 | P12: 1 | Q12: 1 | R12: 1 | S12: 1 | T12: 1 | U12: 1 | V12: 1 | W12: 1 | X12: 1 | Y12: 1 | Z12: 1 | AA12: 1 | AB12: 1
I13: Fraction of year | N13: =+N8/ROUND(Input!$E$23,1) -> 1.013888889 | O13: =+O8/ROUND(Input!$E$23,1) -> 1.013888889 | P13: =+P8/ROUND(Input!$E$23,1) -> 1.016666667 | Q13: =+Q8/ROUND(Input!$E$23,1) -> 1.013888889 | R13: =+R8/ROUND(Input!$E$23,1) -> 1.013888889 | S13: =+S8/ROUND(Input!$E$23,1) -> 1.013888889 | T13: =+T8/ROUND(Input!$E$23,1) -> 1.016666667 | U13: =+U8/ROUND(Input!$E$23,1) -> 1.013888889 | V13: =+V8/ROUND(Input!$E$23,1) -> 1.013888889 | W13: =+W8/ROUND(Input!$E$23,1) -> 1.013888889 | X13: =+X8/ROUND(Input!$E$23,1) -> 1.016666667 | Y13: =+Y8/ROUND(Input!$E$23,1) -> 1.013888889 | Z13: =+Z8/ROUND(Input!$E$23,1) -> 1.013888889 | AA13: =+AA8/ROUND(Input!$E$23,1) -> 1.013888889 | AB13: =+AB8/ROUND(Input!$E$23,1) -> 1.016666667 | AG13: =+AG8/ROUND(Input!$E$23,1) ->  | AH13: =+AH8/ROUND(Input!$E$23,1) ->  | AI13: =+AI8/ROUND(Input!$E$23,1) ->  | AJ13: =+AJ8/ROUND(Input!$E$23,1) ->  | AK13: =+AK8/ROUND(Input!$E$23,1) ->  | AL13: =+AL8/ROUND(Input!$E$23,1) ->  | AM13: =+AM8/ROUND(Input!$E$23,1) ->  | AN13: =+AN8/ROUND(Input!$E$23,1) ->  | AO13: =+AO8/ROUND(Input!$E$23,1) ->  | AP13: =+AP8/ROUND(Input!$E$23,1) -> 
B16: 1 | C16: Tabella 1 - CONTO FINANZIARIO | D16: Unit | E16: Codice Dicoter | G16: Check | I16: Tot. 2020/32
C18: Area Operativa
C20: Utile (Perdita) netto di esercizio | D20: €'000 | E20: 1.1 | I20: =+SUM(P20:AB20) -> 412136.9259 | N20: =+Prospetti_ART!N56 -> 23364.62742 | O20: =+Prospetti_ART!O56 -> 27003.02044 | P20: =+Prospetti_ART!P56 -> 1187.656667 | Q20: =+Prospetti_ART!Q56 -> 24605.11498 | R20: =+Prospetti_ART!R56 -> 30989.88059 | S20: =+Prospetti_ART!S56 -> 33105.31377 | T20: =+Prospetti_ART!T56 -> 34510.72908 | U20: =+Prospetti_ART!U56 -> 34961.25114 | V20: =+Prospetti_ART!V56 -> 34074.39925 | W20: =+Prospetti_ART!W56 -> 33799.92426 | X20: =+Prospetti_ART!X56 -> 34362.68975 | Y20: =+Prospetti_ART!Y56 -> 34719.20851 | Z20: =+Prospetti_ART!Z56 -> 35493.12672 | AA20: =+Prospetti_ART!AA56 -> 34844.37174 | AB20: =+Prospetti_ART!AB56 -> 45483.25945
C21: Accantonamenti e ammortamenti | D21: €'000 | E21: 1.2 | I21: =+SUM(P21:AB21) -> 644581.8324 | N21: =-SUM(Prospetti_ART!N35:N39) -> 44666.36582 | O21: =-SUM(Prospetti_ART!O35:O39) -> 40876.52068 | P21: =-SUM(Prospetti_ART!P35:P39) -> 41666.16758 | Q21: =-SUM(Prospetti_ART!Q35:Q39) -> 46704.33711 | R21: =-SUM(Prospetti_ART!R35:R39) -> 46761.55312 | S21: =-SUM(Prospetti_ART!S35:S39) -> 48102.42146 | T21: =-SUM(Prospetti_ART!T35:T39) -> 48095.90045 | U21: =-SUM(Prospetti_ART!U35:U39) -> 49089.44608 | V21: =-SUM(Prospetti_ART!V35:V39) -> 51368.21011 | W21: =-SUM(Prospetti_ART!W35:W39) -> 52701.55644 | X21: =-SUM(Prospetti_ART!X35:X39) -> 53407.75212 | Y21: =-SUM(Prospetti_ART!Y35:Y39) -> 54250.77025 | Z21: =-SUM(Prospetti_ART!Z35:Z39) -> 54433.08038 | AA21: =-SUM(Prospetti_ART!AA35:AA39) -> 56150.76406 | AB21: =-SUM(Prospetti_ART!AB35:AB39) -> 41849.87326
C22: Quota TFR maturata nell'esercizio | D22: €'000 | E22: 1.3 | I22: 0
C23: Autofinanziamento | D23: €'000 | E23: 1.4 | I23: 1056718.758 | N23: =+SUM(N20:N22) -> 68030.99324 | O23: =+SUM(O20:O22) -> 67879.54112 | P23: 42853.82425 | Q23: 71309.45209 | R23: 77751.43371 | S23: 81207.73523 | T23: 82606.62953 | U23: 84050.69723 | V23: 85442.60936 | W23: 86501.48069 | X23: 87770.44187 | Y23: 88969.97876 | Z23: 89926.2071 | AA23: 90995.1358 | AB23: 87333.1327
C25: Variazione capitale circolante netto operativo | D25: €'000 | E25: 1.5 | I25: =+SUM(P25:AB25) -> 18264.29845 | N25: =+Prospetti_ART!N122 -> 0 | O25: =+Prospetti_ART!O122 -> 54100.00412 | P25: =+Prospetti_ART!P122 -> 5108.61642 | Q25: =+Prospetti_ART!Q122 -> 5525.310747 | R25: =+Prospetti_ART!R122 -> -8263.233442 | S25: =+Prospetti_ART!S122 -> -1681.804062 | T25: =+Prospetti_ART!T122 -> -837.3635056 | U25: =+Prospetti_ART!U122 -> -1373.377889 | V25: =+Prospetti_ART!V122 -> 1043.862633 | W25: =+Prospetti_ART!W122 -> 189.7538777 | X25: =+Prospetti_ART!X122 -> 479.8778022 | Y25: =+Prospetti_ART!Y122 -> 107.615175 | Z25: =+Prospetti_ART!Z122 -> 238.0831679 | AA25: =+Prospetti_ART!AA122 -> -35.33902242 | AB25: =+Prospetti_ART!AB122 -> 17762.29655
C26: Flusso di liquidità della gestione corrente | D26: €'000 | E26: 1.6 | I26: 1074983.057 | N26: =+N23+N25 -> 68030.99324 | O26: =+O23+O25 -> 121979.5452 | P26: =+P23+P25 -> 47962.44067 | Q26: 76834.76284 | R26: 69488.20027 | S26: 79525.93117 | T26: 81769.26602 | U26: 82677.31934 | V26: 86486.47199 | W26: 86691.23457 | X26: 88250.31967 | Y26: 89077.59394 | Z26: 90164.29026 | AA26: 90959.79677 | AB26: 105095.4292
C28: Costi capitalizzati | D28: €'000 | E28: 1.7 | I28: =+SUM(P28:AB28) -> 0
C29: Investimenti in beni reversibili | D29: €'000 | E29: 1.8 | I29: -64826 | N29: =+Prospetti_ART!N124 -> 0 | O29: =+Prospetti_ART!O124 -> -5772.71277 | P29: =+Prospetti_ART!P124 -> -4786 | Q29: =+Prospetti_ART!Q124 -> -3280 | R29: =+Prospetti_ART!R124 -> -7170 | S29: =+Prospetti_ART!S124 -> -5236 | T29: =+Prospetti_ART!T124 -> -1960 | U29: =+Prospetti_ART!U124 -> -14658 | V29: =+Prospetti_ART!V124 -> -16191 | W29: =+Prospetti_ART!W124 -> -2595 | X29: =+Prospetti_ART!X124 -> -1790 | Y29: =+Prospetti_ART!Y124 -> -1790 | Z29: =+Prospetti_ART!Z124 -> -1790 | AA29: =+Prospetti_ART!AA124 -> -1790 | AB29: =+Prospetti_ART!AB124 -> -1790
C30: Contributi in conto capitale | D30: €'000 | E30: 1.9 | I30: 0
C31: Investimenti in beni non reversibili | D31: €'000 | E31: 1.10;1.18 | I31: -6023.942 | N31: =+Prospetti_ART!N125 -> 0 | O31: =+Prospetti_ART!O125 -> -408.2754 | P31: =+Prospetti_ART!P125 -> -775 | Q31: =+Prospetti_ART!Q125 -> -825 | R31: =+Prospetti_ART!R125 -> -425 | S31: =+Prospetti_ART!S125 -> -425 | T31: =+Prospetti_ART!T125 -> -425 | U31: =+Prospetti_ART!U125 -> -425 | V31: =+Prospetti_ART!V125 -> -425 | W31: =+Prospetti_ART!W125 -> -425 | X31: =+Prospetti_ART!X125 -> -425 | Y31: =+Prospetti_ART!Y125 -> -425 | Z31: =+Prospetti_ART!Z125 -> -425 | AA31: =+Prospetti_ART!AA125 -> -425 | AB31: =+Prospetti_ART!AB125 -> -173.942
C32: Investimenti per immobilizzazioni immateriali | D32: €'000 | E32: 1.11 | I32: -3150 | N32: =+Prospetti_ART!N126 -> 0 | O32: =+Prospetti_ART!O126 -> -80.80164 | P32: =+Prospetti_ART!P126 -> -1050 | Q32: =+Prospetti_ART!Q126 -> -1050 | R32: =+Prospetti_ART!R126 -> -1050 | S32: =+Prospetti_ART!S126 -> 0 | T32: =+Prospetti_ART!T126 -> 0 | U32: =+Prospetti_ART!U126 -> 0 | V32: =+Prospetti_ART!V126 -> 0 | W32: =+Prospetti_ART!W126 -> 0 | X32: =+Prospetti_ART!X126 -> 0 | Y32: =+Prospetti_ART!Y126 -> 0 | Z32: =+Prospetti_ART!Z126 -> 0 | AA32: =+Prospetti_ART!AA126 -> 0 | AB32: =+Prospetti_ART!AB126 -> 0
C33: Saldo altri flussi gestione operativa | D33: €'000 | E33: 1.12 | I33: 72458.96488 | N33: =+Prospetti_ART!N128+Prospetti_ART!N129+Prospetti_ART!N142+Prospetti_ART!N143 -> 0 | O33: =+Prospetti_ART!O128+Prospetti_ART!O129+Prospetti_ART!O142+Prospetti_ART!O143 -> -2634.709 | P33: =+Prospetti_ART!P128+Prospetti_ART!P129+Prospetti_ART!P142+Prospetti_ART!P143 -> 5448.352709 | Q33: =+Prospetti_ART!Q128+Prospetti_ART!Q129+Prospetti_ART!Q142+Prospetti_ART!Q143 -> 1206.045543 | R33: =+Prospetti_ART!R128+Prospetti_ART!R129+Prospetti_ART!R142+Prospetti_ART!R143 -> 10914.01429 | S33: =+Prospetti_ART!S128+Prospetti_ART!S129+Prospetti_ART!S142+Prospetti_ART!S143 -> 11139.10863 | T33: =+Prospetti_ART!T128+Prospetti_ART!T129+Prospetti_ART!T142+Prospetti_ART!T143 -> 671.4795063 | U33: =+Prospetti_ART!U128+Prospetti_ART!U129+Prospetti_ART!U142+Prospetti_ART!U143 -> 5406.409282 | V33: =+Prospetti_ART!V128+Prospetti_ART!V129+Prospetti_ART!V142+Prospetti_ART!V143 -> -2386.186844 | W33: =+Prospetti_ART!W128+Prospetti_ART!W129+Prospetti_ART!W142+Prospetti_ART!W143 -> -60.45184952 | X33: =+Prospetti_ART!X128+Prospetti_ART!X129+Prospetti_ART!X142+Prospetti_ART!X143 -> 730.8144508 | Y33: =+Prospetti_ART!Y128+Prospetti_ART!Y129+Prospetti_ART!Y142+Prospetti_ART!Y143 -> -656.622193 | Z33: =+Prospetti_ART!Z128+Prospetti_ART!Z129+Prospetti_ART!Z142+Prospetti_ART!Z143 -> 40046.00136 | AA33: =+Prospetti_ART!AA128+Prospetti_ART!AA129+Prospetti_ART!AA142+Prospetti_ART!AA143 -> 0 | AB33: =+Prospetti_ART!AB128+Prospetti_ART!AB129+Prospetti_ART!AB142+Prospetti_ART!AB143 -> 0
C34: Flusso di liquidità della gestione operativa | D34: €'000 | E34: 1.13 | I34: 1073442.08 | N34: =+SUM(N26:N33) -> 68030.99324 | O34: =+SUM(O26:O33) -> 113083.0464 | P34: =+SUM(P26:P33) -> 46799.79338 | Q34: =+SUM(Q26:Q33) -> 72885.80838 | R34: 71757.21456 | S34: 85004.03979 | T34: 80055.74553 | U34: 73000.72862 | V34: 67484.28515 | W34: 83610.78272 | X34: 86766.13412 | Y34: 86205.97174 | Z34: 127995.2916 | AA34: 88744.79677 | AB34: 103131.4872
C36: Area Finanziaria
C38: Apporto degli azionisti | D38: €'000 | E38: 1.14 | I38: =+SUM(P38:AB38) -> 0 | O38: =+Prospetti_ART!O147 -> 0 | P38: =+Prospetti_ART!P147 -> 0 | Q38: =+Prospetti_ART!Q147 -> 0 | R38: =+Prospetti_ART!R147 -> 0 | S38: =+Prospetti_ART!S147 -> 0 | T38: =+Prospetti_ART!T147 -> 0 | U38: =+Prospetti_ART!U147 -> 0 | V38: =+Prospetti_ART!V147 -> 0 | W38: =+Prospetti_ART!W147 -> 0 | X38: =+Prospetti_ART!X147 -> 0 | Y38: =+Prospetti_ART!Y147 -> 0 | Z38: =+Prospetti_ART!Z147 -> 0 | AA38: =+Prospetti_ART!AA147 -> 0 | AB38: =+Prospetti_ART!AB147 -> 0
C39: Accensione nuovi prestiti | D39: €'000 | E39: 1.15 | I39: 0
C40: Variazione posizione verso FCG | D40: €'000 | E40: 1.16 | I40: 0
C41: Variazione posizione verso ANAS | D41: €'000 | E41: 1.17 | I41: 0
C42: Variazione delle immobilizzazioni finanziarie | D42: €'000 | E42: 1.18 | I42: 0
C43: Utili distribuiti | D43: €'000 | E43: 1.19 | I43: -577601.9373 | O43: =+Prospetti_ART!O148+Prospetti_ART!O149 -> 0 | P43: =+Prospetti_ART!P148+Prospetti_ART!P149 -> 0 | Q43: =+Prospetti_ART!Q148+Prospetti_ART!Q149 -> 0 | R43: =+Prospetti_ART!R148+Prospetti_ART!R149 -> 0 | S43: =+Prospetti_ART!S148+Prospetti_ART!S149 -> -144236.2129 | T43: =+Prospetti_ART!T148+Prospetti_ART!T149 -> -32607.31317 | U43: =+Prospetti_ART!U148+Prospetti_ART!U149 -> -26946.69918 | V43: =+Prospetti_ART!V148+Prospetti_ART!V149 -> -18889.11708 | W43: =+Prospetti_ART!W148+Prospetti_ART!W149 -> -19804.58656 | X43: =+Prospetti_ART!X148+Prospetti_ART!X149 -> -27706.19138 | Y43: =+Prospetti_ART!Y148+Prospetti_ART!Y149 -> -26973.49308 | Z43: =+Prospetti_ART!Z148+Prospetti_ART!Z149 -> -28821.26791 | AA43: =+Prospetti_ART!AA148+Prospetti_ART!AA149 -> -102788.3442 | AB43: =+Prospetti_ART!AB148+Prospetti_ART!AB149 -> -148828.7119
C44: Rimborso prestiti consolidati | D44: €'000 | E44: 1.20 | I44: 0
C45: Rimborso nuovi prestiti a medio lungo termine | D45: €'000 | E45: 1.21 | I45: -632559.5997 | O45: =IF(O183<N183,(O183-N183+SUMIF(Input!$P$7:$AQ$7,O7,Input!$P$329:$AQ$329)),0) -> -64054.93678 | P45: =IF(P183<O183,(P183-O183+SUMIF(Input!$P$7:$AQ$7,P7,Input!$P$329:$AQ$329)),0) -> -64723.39997 | Q45: =IF(Q183<P183,(Q183-P183+SUMIF(Input!$P$7:$AQ$7,Q7,Input!$P$329:$AQ$329)),0) -> -60407.39997 | R45: =IF(R183<Q183,(R183-Q183+SUMIF(Input!$P$7:$AQ$7,R7,Input!$P$329:$AQ$329)),0) -> -65237.99996 | S45: =IF(S183<R183,(S183-R183+SUMIF(Input!$P$7:$AQ$7,S7,Input!$P$329:$AQ$329)),0) -> -55302.89997 | T45: =IF(T183<S183,(T183-S183+SUMIF(Input!$P$7:$AQ$7,T7,Input!$P$329:$AQ$329)),0) -> -49799.99997 | U45: =IF(U183<T183,(U183-T183+SUMIF(Input!$P$7:$AQ$7,U7,Input!$P$329:$AQ$329)),0) -> -53119.99997 | V45: =IF(V183<U183,(V183-U183+SUMIF(Input!$P$7:$AQ$7,V7,Input!$P$329:$AQ$329)),0) -> -52530.69997 | W45: =IF(W183<V183,(W183-V183+SUMIF(Input!$P$7:$AQ$7,W7,Input!$P$329:$AQ$329)),0) -> -56921.39997 | X45: =IF(X183<W183,(X183-W183+SUMIF(Input!$P$7:$AQ$7,X7,Input!$P$329:$AQ$329)),0) -> -58871.89997 | Y45: =IF(Y183<X183,(Y183-X183+SUMIF(Input!$P$7:$AQ$7,Y7,Input!$P$329:$AQ$329)),0) -> -59046.19997 | Z45: =IF(Z183<Y183,(Z183-Y183+SUMIF(Input!$P$7:$AQ$7,Z7,Input!$P$329:$AQ$329)),0) -> -56597.69997 | AA45: =IF(AA183<Z183,(AA183-Z183+SUMIF(Input!$P$7:$AQ$7,AA7,Input!$P$329:$AQ$329)),0) -> 0 | AB45: =IF(AB183<AA183,(AB183-AA183+SUMIF(Input!$P$7:$AQ$7,AB7,Input!$P$329:$AQ$329)),0) -> 0
C46: Flusso di liquidita' della gestione finanziaria | D46: €'000 | E46: 1.22 | I46: -1210161.537 | N46: =+SUM(N38:N45) -> 0 | O46: =+SUM(O38:O45) -> -64054.93678 | P46: -64723.39997 | Q46: =+SUM(Q38:Q45) -> -60407.39997 | R46: -65237.99996 | S46: -199539.1129 | T46: -82407.31314 | U46: -80066.69915 | V46: -71419.81705 | W46: -76725.98653 | X46: -86578.09135 | Y46: -86019.69305 | Z46: -85418.96788 | AA46: -102788.3442 | AB46: -148828.7119
C48: Variazione posizione finanziaria a breve | D48: €'000 | E48: 1.23 | I48: =+SUM(P48:AB48) -> -136719.4574 | N48: =+N46+N34 -> 68030.99324 | O48: =+O46+O34 -> 49028.10965 | P48: =+P46+P34 -> -17923.60659 | Q48: 12478.40841 | R48: 6519.214597 | S48: -114535.0731 | T48: -2351.567614 | U48: -7065.970534 | V48: -3935.531903 | W48: 6884.796188 | X48: 188.0427731 | Y48: 186.278694 | Z48: 42576.32375 | AA48: -14043.54738 | AB48: -45697.22468
B52: 2 | C52: Tabella 2 - CONTO ECONOMICO | D52: Unit | E52: Codice Dicoter | I52: Tot. 2020/32
C54: Ricavi
C56: Ricavi da pedaggi | D56: €'000 | E56: 2.1 | I56: =+SUM(P56:AB56) -> 1942793.82 | N56: =+Prospetti_ART!N18 -> 139908.73 | O56: =+Prospetti_ART!O18 -> 144151.1578 | P56: =+Prospetti_ART!P18 -> 109033.304 | Q56: =+Prospetti_ART!Q18 -> 142292.7542 | R56: =+Prospetti_ART!R18 -> 148848.5056 | S56: =+Prospetti_ART!S18 -> 152113.1323 | T56: =+Prospetti_ART!T18 -> 153161.682 | U56: =+Prospetti_ART!U18 -> 153701.2583 | V56: =+Prospetti_ART!V18 -> 154046.82 | W56: =+Prospetti_ART!W18 -> 154347.0908 | X56: =+Prospetti_ART!X18 -> 154574.5356 | Y56: =+Prospetti_ART!Y18 -> 154819.7498 | Z56: =+Prospetti_ART!Z18 -> 155059.6741 | AA56: =+Prospetti_ART!AA18 -> 155288.666 | AB56: =+Prospetti_ART!AB18 -> 155506.6468
C57: Proventi netti da subconcessioni e attività collaterali | D57: €'000 | E57: 2.2 | I57: 59133.90941 | N57: =+Prospetti_ART!N19 -> 4379.16641 | O57: =+Prospetti_ART!O19 -> 4300.07978 | P57: =+Prospetti_ART!P19 -> 4334.480418 | Q57: =+Prospetti_ART!Q19 -> 4369.156262 | R57: =+Prospetti_ART!R19 -> 4404.109512 | S57: =+Prospetti_ART!S19 -> 4439.342388 | T57: =+Prospetti_ART!T19 -> 4474.857127 | U57: =+Prospetti_ART!U19 -> 4510.655984 | V57: =+Prospetti_ART!V19 -> 4546.741232 | W57: =+Prospetti_ART!W19 -> 4583.115162 | X57: =+Prospetti_ART!X19 -> 4619.780083 | Y57: =+Prospetti_ART!Y19 -> 4656.738324 | Z57: =+Prospetti_ART!Z19 -> 4693.99223 | AA57: =+Prospetti_ART!AA19 -> 4731.544168 | AB57: =+Prospetti_ART!AB19 -> 4769.396521
C58: Altri proventi | D58: €'000 | E58: 2.3 | I58: 44778.06041 | N58: =+Prospetti_ART!N20 -> 4238.03156 | O58: =+Prospetti_ART!O20 -> 3256.15597 | P58: =+Prospetti_ART!P20 -> 3282.205218 | Q58: =+Prospetti_ART!Q20 -> 3308.46286 | R58: =+Prospetti_ART!R20 -> 3334.930562 | S58: =+Prospetti_ART!S20 -> 3361.610007 | T58: =+Prospetti_ART!T20 -> 3388.502887 | U58: =+Prospetti_ART!U20 -> 3415.61091 | V58: =+Prospetti_ART!V20 -> 3442.935797 | W58: =+Prospetti_ART!W20 -> 3470.479284 | X58: =+Prospetti_ART!X20 -> 3498.243118 | Y58: =+Prospetti_ART!Y20 -> 3526.229063 | Z58: =+Prospetti_ART!Z20 -> 3554.438895 | AA58: =+Prospetti_ART!AA20 -> 3582.874407 | AB58: =+Prospetti_ART!AB20 -> 3611.537402
C59: Ricavi lavori c/terzi | D59: €'000 | E59: 2.4 | I59: 0
C60: Totale | D60: €'000 | E60: 2.5 | I60: 2046705.789 | N60: =+SUM(N56:N59) -> 148525.928 | O60: =+SUM(O56:O59) -> 151707.3935 | P60: 116649.9896 | Q60: 149970.3734 | R60: 156587.5457 | S60: 159914.0847 | T60: 161025.042 | U60: 161627.5252 | V60: 162036.497 | W60: 162400.6852 | X60: 162692.5588 | Y60: 163002.7172 | Z60: 163308.1052 | AA60: 163603.0846 | AB60: 163887.5808
C62: Costi Operativi
C64: Costi di produzione
C65: Personale addetto alla riscossione | D65: €'000 | E65: 2.6.1 | I65: =+SUM(P65:AB65) -> -283420.9621 | N65: =+Prospetti_ART!N26 -> -19244.48014 | O65: =+Prospetti_ART!O26 -> -18541.29844 | P65: =+Prospetti_ART!P26 -> -19348.31574 | Q65: =+Prospetti_ART!Q26 -> -20580.96124 | R65: =+Prospetti_ART!R26 -> -21264.29203 | S65: =+Prospetti_ART!S26 -> -21434.40637 | T65: =+Prospetti_ART!T26 -> -21605.88162 | U65: =+Prospetti_ART!U26 -> -21778.72867 | V65: =+Prospetti_ART!V26 -> -21952.9585 | W65: =+Prospetti_ART!W26 -> -22128.58217 | X65: =+Prospetti_ART!X26 -> -22305.61083 | Y65: =+Prospetti_ART!Y26 -> -22484.05572 | Z65: =+Prospetti_ART!Z26 -> -22663.92816 | AA65: =+Prospetti_ART!AA26 -> -22845.23959 | AB65: =+Prospetti_ART!AB26 -> -23028.0015
C66: Personale addetto alla sicurezza | D66: €'000 | E66: 2.6.2 | I66: 0
C67: Personale addetto alla manutenzione | D67: €'000 | E67: 2.6.3 | I67: 0
C68: Personale addetto alla direzione lavori | D68: €'000 | E68: 2.6.4 | I68: 0
C69: Costi manutenzione e rinnovi | D69: €'000 | E69: 2.7 | I69: -214219.8046 | N69: =+Prospetti_ART!N25 -> -14540.74192 | O69: =+Prospetti_ART!O25 -> -18420.78954 | P69: =+Prospetti_ART!P25 -> -19207.4361 | Q69: =+Prospetti_ART!Q25 -> -15281.39542 | R69: =+Prospetti_ART!R25 -> -15710.90433 | S69: =+Prospetti_ART!S25 -> -15526.87575 | T69: =+Prospetti_ART!T25 -> -15921.65849 | U69: =+Prospetti_ART!U25 -> -15776.29948 | V69: =+Prospetti_ART!V25 -> -15902.50988 | W69: =+Prospetti_ART!W25 -> -16508.28357 | X69: =+Prospetti_ART!X25 -> -16496.38727 | Y69: =+Prospetti_ART!Y25 -> -16628.35837 | Z69: =+Prospetti_ART!Z25 -> -17045.20275 | AA69: =+Prospetti_ART!AA25 -> -16895.47632 | AB69: =+Prospetti_ART!AB25 -> -17319.01689
C70: Costi lavori c/terzi | D70: €'000 | E70: 2.8 | I70: 0
C71: Prestazioni di servizi | D71: €'000 | E71: 2.9 | I71: 0
C72: Canoni di concessione | D72: €'000 | E72: 2.10 | I72: -47809.72986 | N72: =+Prospetti_ART!N27+Prospetti_ART!N28 -> -3445.39284 | O72: =+Prospetti_ART!O27+Prospetti_ART!O28 -> -3545.62939 | P72: =+Prospetti_ART!P27+Prospetti_ART!P28 -> -2703.488905 | Q72: =+Prospetti_ART!Q27+Prospetti_ART!Q28 -> -3502.409227 | R72: =+Prospetti_ART!R27+Prospetti_ART!R28 -> -3660.446325 | S72: =+Prospetti_ART!S27+Prospetti_ART!S28 -> -3739.502022 | T72: =+Prospetti_ART!T27+Prospetti_ART!T28 -> -3765.37751 | U72: =+Prospetti_ART!U27+Prospetti_ART!U28 -> -3779.04332 | V72: =+Prospetti_ART!V27+Prospetti_ART!V28 -> -3788.058505 | W72: =+Prospetti_ART!W27+Prospetti_ART!W28 -> -3795.992482 | X72: =+Prospetti_ART!X27+Prospetti_ART!X28 -> -3802.184456 | Y72: =+Prospetti_ART!Y27+Prospetti_ART!Y28 -> -3808.808762 | Z72: =+Prospetti_ART!Z27+Prospetti_ART!Z28 -> -3815.312022 | AA72: =+Prospetti_ART!AA27+Prospetti_ART!AA28 -> -3821.558868 | AB72: =+Prospetti_ART!AB27+Prospetti_ART!AB28 -> -3827.547455
C73: Acquisti di materie e beni di consumo | D73: €'000 | E73: 2.11.1 | I73: -6397.223477 | N73: =+Prospetti_ART!N23-N74 -> -462.77352 | O73: =+Prospetti_ART!O23-O74 -> -505.45194 | P73: =+Prospetti_ART!P23-P74 -> -468.9126792 | Q73: =+Prospetti_ART!Q23-Q74 -> -472.6639806 | R73: =+Prospetti_ART!R23-R74 -> -476.4452925 | S73: =+Prospetti_ART!S23-S74 -> -480.2568548 | T73: =+Prospetti_ART!T23-T74 -> -484.0989097 | U73: =+Prospetti_ART!U23-U74 -> -487.9717009 | V73: =+Prospetti_ART!V23-V74 -> -491.8754745 | W73: =+Prospetti_ART!W23-W74 -> -495.8104783 | X73: =+Prospetti_ART!X23-X74 -> -499.7769622 | Y73: =+Prospetti_ART!Y23-Y74 -> -503.7751779 | Z73: =+Prospetti_ART!Z23-Z74 -> -507.8053793 | AA73: =+Prospetti_ART!AA23-AA74 -> -511.8678223 | AB73: =+Prospetti_ART!AB23-AB74 -> -515.9627649
C74: Variazione delle rimanenze | D74: €'000 | E74: 2.11.2 | I74: 0 | N74: =+Actual!N318 -> 137.50603 | O74: =+Prospetti_ART!O81-Prospetti_ART!N81 -> 40.26079 | P74: =+Prospetti_ART!P81-Prospetti_ART!O81 -> 0 | Q74: =+Prospetti_ART!Q81-Prospetti_ART!P81 -> 0 | R74: =+Prospetti_ART!R81-Prospetti_ART!Q81 -> 0 | S74: =+Prospetti_ART!S81-Prospetti_ART!R81 -> 0 | T74: =+Prospetti_ART!T81-Prospetti_ART!S81 -> 0 | U74: =+Prospetti_ART!U81-Prospetti_ART!T81 -> 0 | V74: =+Prospetti_ART!V81-Prospetti_ART!U81 -> 0 | W74: =+Prospetti_ART!W81-Prospetti_ART!V81 -> 0 | X74: =+Prospetti_ART!X81-Prospetti_ART!W81 -> 0 | Y74: =+Prospetti_ART!Y81-Prospetti_ART!X81 -> 0 | Z74: =+Prospetti_ART!Z81-Prospetti_ART!Y81 -> 0 | AA74: =+Prospetti_ART!AA81-Prospetti_ART!Z81 -> 0 | AB74: =+Prospetti_ART!AB81-Prospetti_ART!AA81 -> 0
C75: Altri costi di produzione | D75: €'000 | E75: 2.11.3 | I75: 0 | N75: =+Prospetti_ART!N29 -> 0 | O75: =+Prospetti_ART!O29 -> 0 | P75: =+Prospetti_ART!P29 -> 0 | Q75: =+Prospetti_ART!Q29 -> 0 | R75: =+Prospetti_ART!R29 -> 0 | S75: =+Prospetti_ART!S29 -> 0 | T75: =+Prospetti_ART!T29 -> 0 | U75: =+Prospetti_ART!U29 -> 0 | V75: =+Prospetti_ART!V29 -> 0 | W75: =+Prospetti_ART!W29 -> 0 | X75: =+Prospetti_ART!X29 -> 0 | Y75: =+Prospetti_ART!Y29 -> 0 | Z75: =+Prospetti_ART!Z29 -> 0 | AA75: =+Prospetti_ART!AA29 -> 0 | AB75: =+Prospetti_ART!AB29 -> 0
I76: 0
C77: Costi commerciali | I77: 0
C78: Costi personale | D78: €'000 | E78: 2.12 | I78: 0
C79: Prestazioni di servizi | D79: €'000 | E79: 2.13 | I79: 0
C80: Altri costi commerciali | D80: €'000 | E80: 2.14 | I80: 0
I81: 0
C82: Costi amministrativi e generali | I82: 0
C83: Personale | D83: €'000 | E83: 2.15 | I83: 0
C84: Prestazioni di servizi | D84: €'000 | E84: 2.16 | I84: -190441.3902 | N84: =+Prospetti_ART!N24 -> -12463.4589 | O84: =+Prospetti_ART!O24 -> -13848.4531 | P84: =+Prospetti_ART!P24 -> -13959.24072 | Q84: =+Prospetti_ART!Q24 -> -14070.91465 | R84: =+Prospetti_ART!R24 -> -14183.48197 | S84: =+Prospetti_ART!S24 -> -14296.94982 | T84: =+Prospetti_ART!T24 -> -14411.32542 | U84: =+Prospetti_ART!U24 -> -14526.61603 | V84: =+Prospetti_ART!V24 -> -14642.82895 | W84: =+Prospetti_ART!W24 -> -14759.97159 | X84: =+Prospetti_ART!X24 -> -14878.05136 | Y84: =+Prospetti_ART!Y24 -> -14997.07577 | Z84: =+Prospetti_ART!Z24 -> -15117.05238 | AA84: =+Prospetti_ART!AA24 -> -15237.98879 | AB84: =+Prospetti_ART!AB24 -> -15359.8927
C85: Altri costi amministrativi e generali | D85: €'000 | E85: 2.17 | I85: 0
C86: (Costi capitalizzati; spese del personale) | D86: €'000 | E86: 2.18.1 | I86: 0
C87: (Costi capitalizzati. Costi materiali) | D87: €'000 | E87: 2.18.2 | I87: 0
C88: (Costi capitalizzati. Costi per servizi) | D88: €'000 | E88: 2.18.3 | I88: 0
I89: 0
C90: Fondo rinnovi | I90: 0
C91: Utilizzo | D91: €'000 | E91: 2.19 | I91: 214219.8046 | N91: =-SUMIF(Working!$N$7:$AQ$7,N$7,Working!$N$686:$AQ$686) -> 13868.95826 | O91: =-SUMIF(Working!$N$7:$AQ$7,O$7,Working!$N$686:$AQ$686) -> 17754.76407 | P91: =-SUMIF(Working!$N$7:$AQ$7,P$7,Working!$N$686:$AQ$686) -> 19207.4361 | Q91: =-SUMIF(Working!$N$7:$AQ$7,Q$7,Working!$N$686:$AQ$686) -> 15281.39542 | R91: =-SUMIF(Working!$N$7:$AQ$7,R$7,Working!$N$686:$AQ$686) -> 15710.90433 | S91: =-SUMIF(Working!$N$7:$AQ$7,S$7,Working!$N$686:$AQ$686) -> 15526.87575 | T91: =-SUMIF(Working!$N$7:$AQ$7,T$7,Working!$N$686:$AQ$686) -> 15921.65849 | U91: =-SUMIF(Working!$N$7:$AQ$7,U$7,Working!$N$686:$AQ$686) -> 15776.29948 | V91: =-SUMIF(Working!$N$7:$AQ$7,V$7,Working!$N$686:$AQ$686) -> 15902.50988 | W91: =-SUMIF(Working!$N$7:$AQ$7,W$7,Working!$N$686:$AQ$686) -> 16508.28357 | X91: =-SUMIF(Working!$N$7:$AQ$7,X$7,Working!$N$686:$AQ$686) -> 16496.38727 | Y91: =-SUMIF(Working!$N$7:$AQ$7,Y$7,Working!$N$686:$AQ$686) -> 16628.35837 | Z91: =-SUMIF(Working!$N$7:$AQ$7,Z$7,Working!$N$686:$AQ$686) -> 17045.20275 | AA91: =-SUMIF(Working!$N$7:$AQ$7,AA$7,Working!$N$686:$AQ$686) -> 16895.47632 | AB91: =-SUMIF(Working!$N$7:$AQ$7,AB$7,Working!$N$686:$AQ$686) -> 17319.01689
C92: Accantonamento | D92: €'000 | E92: 2.20 | I92: -195012.3685 | N92: =-SUMIF(Working!$N$7:$AQ$7,N$7,Working!$N$685:$AQ$685) -> -13046.85722 | O92: =-SUMIF(Working!$N$7:$AQ$7,O$7,Working!$N$685:$AQ$685) -> -13047.168 | P92: =-SUMIF(Working!$N$7:$AQ$7,P$7,Working!$N$685:$AQ$685) -> -15281.39542 | Q92: =-SUMIF(Working!$N$7:$AQ$7,Q$7,Working!$N$685:$AQ$685) -> -15710.90433 | R92: =-SUMIF(Working!$N$7:$AQ$7,R$7,Working!$N$685:$AQ$685) -> -15526.87575 | S92: =-SUMIF(Working!$N$7:$AQ$7,S$7,Working!$N$685:$AQ$685) -> -15921.65849 | T92: =-SUMIF(Working!$N$7:$AQ$7,T$7,Working!$N$685:$AQ$685) -> -15776.29948 | U92: =-SUMIF(Working!$N$7:$AQ$7,U$7,Working!$N$685:$AQ$685) -> -15902.50988 | V92: =-SUMIF(Working!$N$7:$AQ$7,V$7,Working!$N$685:$AQ$685) -> -16508.28357 | W92: =-SUMIF(Working!$N$7:$AQ$7,W$7,Working!$N$685:$AQ$685) -> -16496.38727 | X92: =-SUMIF(Working!$N$7:$AQ$7,X$7,Working!$N$685:$AQ$685) -> -16628.35837 | Y92: =-SUMIF(Working!$N$7:$AQ$7,Y$7,Working!$N$685:$AQ$685) -> -17045.20275 | Z92: =-SUMIF(Working!$N$7:$AQ$7,Z$7,Working!$N$685:$AQ$685) -> -16895.47632 | AA92: =-SUMIF(Working!$N$7:$AQ$7,AA$7,Working!$N$685:$AQ$685) -> -17319.01689 | AB92: =-SUMIF(Working!$N$7:$AQ$7,AB$7,Working!$N$685:$AQ$685) -> 0
I93: 0
C94: Altri accantonamenti e svalutazioni | D94: €'000 | E94: 2.21 | I94: 0 | N94: =+Prospetti_ART!N39 -> -239.39048 | O94: =+Prospetti_ART!O39 -> -3.5 | P94: =+Prospetti_ART!P39 -> 0 | Q94: =+Prospetti_ART!Q39 -> 0 | R94: =+Prospetti_ART!R39 -> 0 | S94: =+Prospetti_ART!S39 -> 0 | T94: =+Prospetti_ART!T39 -> 0 | U94: =+Prospetti_ART!U39 -> 0 | V94: =+Prospetti_ART!V39 -> 0 | W94: =+Prospetti_ART!W39 -> 0 | X94: =+Prospetti_ART!X39 -> 0 | Y94: =+Prospetti_ART!Y39 -> 0 | Z94: =+Prospetti_ART!Z39 -> 0 | AA94: =+Prospetti_ART!AA39 -> 0 | AB94: =+Prospetti_ART!AB39 -> 0
C95: Totale Costi Operativi | D95: €'000 | E95: 2.22 | I95: -723081.6741 | N95: =+SUM(N65:N94) -> -49436.63073 | O95: -50117.26555 | P95: -51761.35346 | Q95: -54337.85343 | R95: -55111.54137 | S95: -55872.77356 | T95: -56042.98294 | U95: -56474.86959 | V95: -57384.005 | W95: -57676.74398 | X95: -58113.98197 | Y95: -58838.91818 | Z95: -58999.57425 | AA95: -59735.67197 | AB95: -42731.40442
C97: Margine operativo lordo (02.05 - 02.22) | D97: €'000 | E97: 2.23 | I97: =+SUM(P97:AB97) -> 1323624.115 | N97: =+N95+N60 -> 99089.29724 | O97: 101590.128 | P97: 64888.63618 | Q97: 95632.51993 | R97: 101476.0043 | S97: 104041.3111 | T97: 104982.059 | U97: 105152.6556 | V97: 104652.492 | W97: 104723.9412 | X97: 104578.5768 | Y97: 104163.799 | Z97: 104308.5309 | AA97: 103867.4126 | AB97: 121156.1763
C99: Ammortamenti
C101: Ammortamento finanziario | D101: €'000 | E101: 2.24 | I101: =+SUM(P101:AB101) -> -653373.3516 | N101: =+Prospetti_ART!N35 -> -44780.915 | O101: =+Prospetti_ART!O35 -> -44993.15227 | P101: =+Prospetti_ART!P35 -> -45338.96003 | Q101: =+Prospetti_ART!Q35 -> -45733.75436 | R101: =+Prospetti_ART!R35 -> -46128.95403 | S101: =+Prospetti_ART!S35 -> -46795.95779 | T101: =+Prospetti_ART!T35 -> -47282.28321 | U101: =+Prospetti_ART!U35 -> -47951.03027 | V101: =+Prospetti_ART!V35 -> -50109.36104 | W101: =+Prospetti_ART!W35 -> -52199.29635 | X101: =+Prospetti_ART!X35 -> -52676.19534 | Y101: =+Prospetti_ART!Y35 -> -53127.24693 | Z101: =+Prospetti_ART!Z35 -> -53732.43741 | AA101: =+Prospetti_ART!AA35 -> -54657.27074 | AB101: =+Prospetti_ART!AB35 -> -57640.60407
C102: Ammortamento tecnico beni reversibili | D102: €'000 | E102: 2.25 | I102: 0
C103: Ammortamento tecnico beni non reversibili materiali | D103: €'000 | E103: 2.26 | I103: -7225.51608 | N103: =+Prospetti_ART!N36 -> -375.22038 | O103: =+Prospetti_ART!O36 -> -486.64137 | P103: =+Prospetti_ART!P36 -> -107.8473908 | Q103: =+Prospetti_ART!Q36 -> -173.57384 | R103: =+Prospetti_ART!R36 -> -239.1276703 | S103: =+Prospetti_ART!S36 -> -281.6809284 | T103: =+Prospetti_ART!T36 -> -328.9762501 | U103: =+Prospetti_ART!U36 -> -382.2054167 | V103: =+Prospetti_ART!V36 -> -443.0753801 | W103: =+Prospetti_ART!W36 -> -514.1563824 | X103: =+Prospetti_ART!X36 -> -599.5856754 | Y103: =+Prospetti_ART!Y36 -> -706.6789293 | Z103: =+Prospetti_ART!Z36 -> -850.3694055 | AA103: =+Prospetti_ART!AA36 -> -1069.952739 | AB103: =+Prospetti_ART!AB36 -> -1528.286072
C104: Ammortamento immobilizzazioni immateriali | D104: €'000 | E104: 2.27 | I104: -3190.40084 | N104: =+Prospetti_ART!N37 -> -92.941 | O104: =+Prospetti_ART!O37 -> -100.82311 | P104: =+Prospetti_ART!P37 -> -145.40084 | Q104: =+Prospetti_ART!Q37 -> -367.5 | R104: =+Prospetti_ART!R37 -> -577.5 | S104: =+Prospetti_ART!S37 -> -630 | T104: =+Prospetti_ART!T37 -> -630 | U104: =+Prospetti_ART!U37 -> -630 | V104: =+Prospetti_ART!V37 -> -210 | W104: =+Prospetti_ART!W37 -> 0 | X104: =+Prospetti_ART!X37 -> 0 | Y104: =+Prospetti_ART!Y37 -> 0 | Z104: =+Prospetti_ART!Z37 -> 0 | AA104: =+Prospetti_ART!AA37 -> 0 | AB104: =+Prospetti_ART!AB37 -> 0
C105: Totale Ammortamenti | D105: €'000 | E105: 2.28 | I105: -663789.2685 | N105: =+SUM(N101:N104) -> -45249.07638 | O105: -45580.61675 | P105: -45592.20826 | Q105: -46274.8282 | R105: -46945.5817 | S105: -47707.63872 | T105: -48241.25946 | U105: -48963.23569 | V105: -50762.43642 | W105: -52713.45274 | X105: -53275.78102 | Y105: -53833.92586 | Z105: -54582.80681 | AA105: -55727.22348 | AB105: -59168.89015
C107: Risultato operativo (2.23 - 2.28) | D107: €'000 | E107: 2.29 | I107: =+SUM(P107:AB107) -> 659834.8467 | N107: =+N97+N105 -> 53840.22086 | O107: 56009.51121 | P107: 19296.42792 | Q107: 49357.69173 | R107: 54530.42262 | S107: 56333.67237 | T107: 56740.79959 | U107: 56189.41994 | V107: 53890.05562 | W107: 52010.48849 | X107: 51302.7958 | Y107: 50329.87314 | Z107: 49725.72413 | AA107: 48140.18917 | AB107: 61987.2862
C109: Oneri e proventi finanziari:
C110: Oneri finanziari su prestiti consolidati con garanzia dello Stato (Debito v/Friulia) | D110: €'000 | E110: 2.30 | I110: =+SUM(P110:AB110) -> 0
C111: Oneri finanziari su prestiti consolidati senza garanzia dello Stato | D111: €'000 | E111: 2.31 | I111: 0
C112: Oneri rimodulazione F.C.G. | D112: €'000 | E112: 2.32 | I112: 0
C113: Costi dei nuovi finanziamenti a medio-lungo termine | D113: €'000 | E113: 2.33 | I113: -87632.732 | N113: =+Prospetti_ART!N44 -> -17737.263 | O113: =+Prospetti_ART!O44 -> -16484.989 | P113: =+Prospetti_ART!P44 -> -15024.599 | Q113: =+Prospetti_ART!Q44 -> -13502.524 | R113: =+Prospetti_ART!R44 -> -12012.087 | S113: =+Prospetti_ART!S44 -> -10464.927 | T113: =+Prospetti_ART!T44 -> -9193.645 | U113: =+Prospetti_ART!U44 -> -7960.346 | V113: =+Prospetti_ART!V44 -> -6668.436 | W113: =+Prospetti_ART!W44 -> -5350.332 | X113: =+Prospetti_ART!X44 -> -3944.352 | Y113: =+Prospetti_ART!Y44 -> -2493.294 | Z113: =+Prospetti_ART!Z44 -> -1018.19 | AA113: =+Prospetti_ART!AA44 -> 0 | AB113: =+Prospetti_ART!AB44 -> 0
C114: Proventi (oneri) finanziari netti a breve termine | D114: €'000 | E114: 2.34 | I114: 0
C115: Proventi (oneri) netti da immobilizzazioni finanziarie | D115: €'000 | E115: 2.35 | I115: 0
C116: Altri proventi (oneri) finanziari netti | D116: €'000 | E116: 2.36 | I116: 0 | N116: =+Prospetti_ART!N45+Prospetti_ART!N46+Prospetti_ART!N47 -> -3049.25844 | O116: =+Prospetti_ART!O45+Prospetti_ART!O46+Prospetti_ART!O47 -> -102.14177 | P116: =+Prospetti_ART!P45+Prospetti_ART!P46+Prospetti_ART!P47 -> 0 | Q116: =+Prospetti_ART!Q45+Prospetti_ART!Q46+Prospetti_ART!Q47 -> 0 | R116: =+Prospetti_ART!R45+Prospetti_ART!R46+Prospetti_ART!R47 -> 0 | S116: =+Prospetti_ART!S45+Prospetti_ART!S46+Prospetti_ART!S47 -> 0 | T116: =+Prospetti_ART!T45+Prospetti_ART!T46+Prospetti_ART!T47 -> 0 | U116: =+Prospetti_ART!U45+Prospetti_ART!U46+Prospetti_ART!U47 -> 0 | V116: =+Prospetti_ART!V45+Prospetti_ART!V46+Prospetti_ART!V47 -> 0 | W116: =+Prospetti_ART!W45+Prospetti_ART!W46+Prospetti_ART!W47 -> 0 | X116: =+Prospetti_ART!X45+Prospetti_ART!X46+Prospetti_ART!X47 -> 0 | Y116: =+Prospetti_ART!Y45+Prospetti_ART!Y46+Prospetti_ART!Y47 -> 0 | Z116: =+Prospetti_ART!Z45+Prospetti_ART!Z46+Prospetti_ART!Z47 -> 0 | AA116: =+Prospetti_ART!AA45+Prospetti_ART!AA46+Prospetti_ART!AA47 -> 0 | AB116: =+Prospetti_ART!AB45+Prospetti_ART!AB46+Prospetti_ART!AB47 -> 0
C117: (Costi capitalizzati. Oneri finanziari) | D117: €'000 | E117: 2.37 | I117: 0
C118: Totale Oneri e proventi finanziari | D118: €'000 | E118: 2.38 | I118: -87632.732 | N118: =+SUM(N110:N117) -> -20786.52144 | O118: =+SUM(O110:O117) -> -16587.13077 | P118: -15024.599 | Q118: -13502.524 | R118: -12012.087 | S118: -10464.927 | T118: -9193.645 | U118: -7960.346 | V118: -6668.436 | W118: -5350.332 | X118: -3944.352 | Y118: -2493.294 | Z118: -1018.19 | AA118: 0 | AB118: 0
C120: Proventi e oneri straordinari | D120: €'000 | E120: 2.39 | I120: =+SUM(P120:AB120) -> 0
C122: Risultato prima delle imposte (2.29 + 2.38 + 2.39) | D122: €'000 | E122: 2.40 | I122: =+SUM(P122:AB122) -> 572202.1147 | N122: =+N107+N118 -> 33053.69942 | O122: =+O107+O118 -> 39422.38044 | P122: 4271.82892 | Q122: 35855.16773 | R122: 42518.33562 | S122: 45868.74537 | T122: 47547.15459 | U122: 48229.07394 | V122: 47221.61962 | W122: 46660.15649 | X122: 47358.4438 | Y122: 47836.57914 | Z122: 48707.53413 | AA122: 48140.18917 | AB122: 61987.2862
C124: Imposte sul reddito di esercizio | D124: €'000 | E124: 2.41 | I124: =+SUM(P124:AB124) -> -160065.1888 | N124: =+Prospetti_ART!N52+Prospetti_ART!N53+Prospetti_ART!N54 -> -9689.072 | O124: =+Prospetti_ART!O52+Prospetti_ART!O53+Prospetti_ART!O54 -> -12419.36 | P124: =+Prospetti_ART!P52+Prospetti_ART!P53+Prospetti_ART!P54 -> -3084.172253 | Q124: =+Prospetti_ART!Q52+Prospetti_ART!Q53+Prospetti_ART!Q54 -> -11250.05276 | R124: =+Prospetti_ART!R52+Prospetti_ART!R53+Prospetti_ART!R54 -> -11528.45503 | S124: =+Prospetti_ART!S52+Prospetti_ART!S53+Prospetti_ART!S54 -> -12763.43161 | T124: =+Prospetti_ART!T52+Prospetti_ART!T53+Prospetti_ART!T54 -> -13036.42551 | U124: =+Prospetti_ART!U52+Prospetti_ART!U53+Prospetti_ART!U54 -> -13267.8228 | V124: =+Prospetti_ART!V52+Prospetti_ART!V53+Prospetti_ART!V54 -> -13147.22037 | W124: =+Prospetti_ART!W52+Prospetti_ART!W53+Prospetti_ART!W54 -> -12860.23223 | X124: =+Prospetti_ART!X52+Prospetti_ART!X53+Prospetti_ART!X54 -> -12995.75405 | Y124: =+Prospetti_ART!Y52+Prospetti_ART!Y53+Prospetti_ART!Y54 -> -13117.37063 | Z124: =+Prospetti_ART!Z52+Prospetti_ART!Z53+Prospetti_ART!Z54 -> -13214.40741 | AA124: =+Prospetti_ART!AA52+Prospetti_ART!AA53+Prospetti_ART!AA54 -> -13295.81742 | AB124: =+Prospetti_ART!AB52+Prospetti_ART!AB53+Prospetti_ART!AB54 -> -16504.02675
C126: Utile (Perdita) di esercizio (2.40 - 2.41) | D126: €'000 | E126: 2.42 | G126: =+SUM(N126:AB126)-Prospetti_ART!I56 -> 0 | I126: =+SUM(P126:AB126) -> 412136.9259 | N126: =+SUM(N124,N122) -> 23364.62742 | O126: =+SUM(O124,O122) -> 27003.02044 | P126: 1187.656667 | Q126: =+SUM(Q124,Q122) -> 24605.11498 | R126: 30989.88059 | S126: 33105.31377 | T126: 34510.72908 | U126: 34961.25114 | V126: 34074.39925 | W126: 33799.92426 | X126: 34362.68975 | Y126: 34719.20851 | Z126: 35493.12672 | AA126: 34844.37174 | AB126: 45483.25945
B130: 3 | C130: Tabella 3 - CONTO DEGLI INVESTIMENTI | D130: Unit | E130: Codice Dicoter | I130: Tot. 2020/32
C132: Immobilizzazioni in beni reversibili
C134: Opere in esercizio | D134: €'000 | E134: 3.1 | I134: =+SUM(P134:AB134) -> 17578459.79 | N134: =+INDEX(Working!$N$267:$AQ$267,,MATCH(N$6,Working!$N$6:$AQ$6,0))-INDEX(Working!$N$247:$AQ$247,,MATCH(N$6,Working!$N$6:$AQ$6,0)) -> 1306157.98 | O134: =+INDEX(Working!$N$267:$AQ$267,,MATCH(O$6,Working!$N$6:$AQ$6,0))-INDEX(Working!$N$247:$AQ$247,,MATCH(O$6,Working!$N$6:$AQ$6,0)) -> 1311339.436 | P134: =+INDEX(Working!$N$267:$AQ$267,,MATCH(P$6,Working!$N$6:$AQ$6,0))-INDEX(Working!$N$247:$AQ$247,,MATCH(P$6,Working!$N$6:$AQ$6,0)) -> 1316608.476 | Q134: =+INDEX(Working!$N$267:$AQ$267,,MATCH(Q$6,Working!$N$6:$AQ$6,0))-INDEX(Working!$N$247:$AQ$247,,MATCH(Q$6,Working!$N$6:$AQ$6,0)) -> 1319996.693 | R134: =+INDEX(Working!$N$267:$AQ$267,,MATCH(R$6,Working!$N$6:$AQ$6,0))-INDEX(Working!$N$247:$AQ$247,,MATCH(R$6,Working!$N$6:$AQ$6,0)) -> 1327166.693 | S134: =+INDEX(Working!$N$267:$AQ$267,,MATCH(S$6,Working!$N$6:$AQ$6,0))-INDEX(Working!$N$247:$AQ$247,,MATCH(S$6,Working!$N$6:$AQ$6,0)) -> 1332402.693 | T134: =+INDEX(Working!$N$267:$AQ$267,,MATCH(T$6,Working!$N$6:$AQ$6,0))-INDEX(Working!$N$247:$AQ$247,,MATCH(T$6,Working!$N$6:$AQ$6,0)) -> 1334362.693 | U134: =+INDEX(Working!$N$267:$AQ$267,,MATCH(U$6,Working!$N$6:$AQ$6,0))-INDEX(Working!$N$247:$AQ$247,,MATCH(U$6,Working!$N$6:$AQ$6,0)) -> 1349020.693 | V134: =+INDEX(Working!$N$267:$AQ$267,,MATCH(V$6,Working!$N$6:$AQ$6,0))-INDEX(Working!$N$247:$AQ$247,,MATCH(V$6,Working!$N$6:$AQ$6,0)) -> 1365211.693 | W134: =+INDEX(Working!$N$267:$AQ$267,,MATCH(W$6,Working!$N$6:$AQ$6,0))-INDEX(Working!$N$247:$AQ$247,,MATCH(W$6,Working!$N$6:$AQ$6,0)) -> 1367806.693 | X134: =+INDEX(Working!$N$267:$AQ$267,,MATCH(X$6,Working!$N$6:$AQ$6,0))-INDEX(Working!$N$247:$AQ$247,,MATCH(X$6,Working!$N$6:$AQ$6,0)) -> 1369596.693 | Y134: =+INDEX(Working!$N$267:$AQ$267,,MATCH(Y$6,Working!$N$6:$AQ$6,0))-INDEX(Working!$N$247:$AQ$247,,MATCH(Y$6,Working!$N$6:$AQ$6,0)) -> 1371386.693 | Z134: =+INDEX(Working!$N$267:$AQ$267,,MATCH(Z$6,Working!$N$6:$AQ$6,0))-INDEX(Working!$N$247:$AQ$247,,MATCH(Z$6,Working!$N$6:$AQ$6,0)) -> 1373176.693 | AA134: =+INDEX(Working!$N$267:$AQ$267,,MATCH(AA$6,Working!$N$6:$AQ$6,0))-INDEX(Working!$N$247:$AQ$247,,MATCH(AA$6,Working!$N$6:$AQ$6,0)) -> 1374966.693 | AB134: =+INDEX(Working!$N$267:$AQ$267,,MATCH(AB$6,Working!$N$6:$AQ$6,0))-INDEX(Working!$N$247:$AQ$247,,MATCH(AB$6,Working!$N$6:$AQ$6,0)) -> 1376756.693
C135: Opere in corso | D135: €'000 | E135: 3.2 | I135: 108.217 | N135: =INDEX(Working!$N$247:$AQ$247,,MATCH(N$6,Working!$N$6:$AQ$6,0)) -> 0 | O135: =INDEX(Working!$N$247:$AQ$247,,MATCH(O$6,Working!$N$6:$AQ$6,0)) -> 591.25684 | P135: =INDEX(Working!$N$247:$AQ$247,,MATCH(P$6,Working!$N$6:$AQ$6,0)) -> 108.217 | Q135: =INDEX(Working!$N$247:$AQ$247,,MATCH(Q$6,Working!$N$6:$AQ$6,0)) -> 0 | R135: =INDEX(Working!$N$247:$AQ$247,,MATCH(R$6,Working!$N$6:$AQ$6,0)) -> 0 | S135: =INDEX(Working!$N$247:$AQ$247,,MATCH(S$6,Working!$N$6:$AQ$6,0)) -> 0 | T135: =INDEX(Working!$N$247:$AQ$247,,MATCH(T$6,Working!$N$6:$AQ$6,0)) -> 0 | U135: =INDEX(Working!$N$247:$AQ$247,,MATCH(U$6,Working!$N$6:$AQ$6,0)) -> 0 | V135: =INDEX(Working!$N$247:$AQ$247,,MATCH(V$6,Working!$N$6:$AQ$6,0)) -> 0 | W135: =INDEX(Working!$N$247:$AQ$247,,MATCH(W$6,Working!$N$6:$AQ$6,0)) -> 0 | X135: =INDEX(Working!$N$247:$AQ$247,,MATCH(X$6,Working!$N$6:$AQ$6,0)) -> 0 | Y135: =INDEX(Working!$N$247:$AQ$247,,MATCH(Y$6,Working!$N$6:$AQ$6,0)) -> 0 | Z135: =INDEX(Working!$N$247:$AQ$247,,MATCH(Z$6,Working!$N$6:$AQ$6,0)) -> 0 | AA135: =INDEX(Working!$N$247:$AQ$247,,MATCH(AA$6,Working!$N$6:$AQ$6,0)) -> 0 | AB135: =INDEX(Working!$N$247:$AQ$247,,MATCH(AB$6,Working!$N$6:$AQ$6,0)) -> 0
C136: Nuove opere | D136: €'000 | E136: 3.3 | I136: 0
C137: Oneri finanziari capitalizzati su prestiti consolidati | D137: €'000 | E137: 3.4 | I137: 0
C138: Oneri finanziari capitalizzati su nuovi prestiti | D138: €'000 | E138: 3.5 | I138: 0
C139: Oneri diversi capitalizzati | D139: €'000 | E139: 3.6 | I139: 0
C140: Fondo ammortamento tecnico | D140: €'000 | E140: 3.7 | I140: 0
C141: Fondo ammortamento finanziario | D141: €'000 | E141: 3.7bis | I141: -13794725.57 | N141: =INDEX(Working!$N$268:$AQ$268,,MATCH(N$6,Working!$N$6:$AQ$6,0)) -> -678390.19 | O141: =INDEX(Working!$N$268:$AQ$268,,MATCH(O$6,Working!$N$6:$AQ$6,0)) -> -723383.3418 | P141: =INDEX(Working!$N$268:$AQ$268,,MATCH(P$6,Working!$N$6:$AQ$6,0)) -> -768722.3019 | Q141: =INDEX(Working!$N$268:$AQ$268,,MATCH(Q$6,Working!$N$6:$AQ$6,0)) -> -814456.0562 | R141: =INDEX(Working!$N$268:$AQ$268,,MATCH(R$6,Working!$N$6:$AQ$6,0)) -> -860585.0103 | S141: =INDEX(Working!$N$268:$AQ$268,,MATCH(S$6,Working!$N$6:$AQ$6,0)) -> -907380.9681 | T141: =INDEX(Working!$N$268:$AQ$268,,MATCH(T$6,Working!$N$6:$AQ$6,0)) -> -954663.2513 | U141: =INDEX(Working!$N$268:$AQ$268,,MATCH(U$6,Working!$N$6:$AQ$6,0)) -> -1002614.282 | V141: =INDEX(Working!$N$268:$AQ$268,,MATCH(V$6,Working!$N$6:$AQ$6,0)) -> -1052723.643 | W141: =INDEX(Working!$N$268:$AQ$268,,MATCH(W$6,Working!$N$6:$AQ$6,0)) -> -1104922.939 | X141: =INDEX(Working!$N$268:$AQ$268,,MATCH(X$6,Working!$N$6:$AQ$6,0)) -> -1157599.134 | Y141: =INDEX(Working!$N$268:$AQ$268,,MATCH(Y$6,Working!$N$6:$AQ$6,0)) -> -1210726.381 | Z141: =INDEX(Working!$N$268:$AQ$268,,MATCH(Z$6,Working!$N$6:$AQ$6,0)) -> -1264458.819 | AA141: =INDEX(Working!$N$268:$AQ$268,,MATCH(AA$6,Working!$N$6:$AQ$6,0)) -> -1319116.089 | AB141: =INDEX(Working!$N$268:$AQ$268,,MATCH(AB$6,Working!$N$6:$AQ$6,0)) -> -1376756.693
C142: Totale immobilizzazioni reversibili nette | D142: €'000 | E142: 3.8 | I142: 3783842.443 | N142: =+SUM(N134:N141) -> 627767.7898 | O142: =+SUM(O134:O141) -> 588547.3513 | P142: 547994.3913 | Q142: 505540.6369 | R142: 466581.6829 | S142: 425021.7251 | T142: 379699.4419 | U142: 346406.4116 | V142: 312488.0506 | W142: 262883.7542 | X142: 211997.5589 | Y142: 160660.3119 | Z142: 108717.8745 | AA142: 55850.60377 | AB142: -0.0003000006545
C144: Immobilizzazioni in beni non reversibili
C146: Immobilizzazioni tecniche non reversibili | D146: €'000 | E146: 3.9 | I146: =+SUM(P146:AB146) -> 96920.08482 | N146: =+INDEX(Working!$N$313:$AQ$313,,MATCH(N$6,Working!$N$6:$AQ$6,0)) -> 3373.05 | O146: =+INDEX(Working!$N$313:$AQ$313,,MATCH(O$6,Working!$N$6:$AQ$6,0)) -> 3780.39114 | P146: =+INDEX(Working!$N$313:$AQ$313,,MATCH(P$6,Working!$N$6:$AQ$6,0)) -> 4555.39114 | Q146: =+INDEX(Working!$N$313:$AQ$313,,MATCH(Q$6,Working!$N$6:$AQ$6,0)) -> 5380.39114 | R146: =+INDEX(Working!$N$313:$AQ$313,,MATCH(R$6,Working!$N$6:$AQ$6,0)) -> 5805.39114 | S146: =+INDEX(Working!$N$313:$AQ$313,,MATCH(S$6,Working!$N$6:$AQ$6,0)) -> 6230.39114 | T146: =+INDEX(Working!$N$313:$AQ$313,,MATCH(T$6,Working!$N$6:$AQ$6,0)) -> 6655.39114 | U146: =+INDEX(Working!$N$313:$AQ$313,,MATCH(U$6,Working!$N$6:$AQ$6,0)) -> 7080.39114 | V146: =+INDEX(Working!$N$313:$AQ$313,,MATCH(V$6,Working!$N$6:$AQ$6,0)) -> 7505.39114 | W146: =+INDEX(Working!$N$313:$AQ$313,,MATCH(W$6,Working!$N$6:$AQ$6,0)) -> 7930.39114 | X146: =+INDEX(Working!$N$313:$AQ$313,,MATCH(X$6,Working!$N$6:$AQ$6,0)) -> 8355.39114 | Y146: =+INDEX(Working!$N$313:$AQ$313,,MATCH(Y$6,Working!$N$6:$AQ$6,0)) -> 8780.39114 | Z146: =+INDEX(Working!$N$313:$AQ$313,,MATCH(Z$6,Working!$N$6:$AQ$6,0)) -> 9205.39114 | AA146: =+INDEX(Working!$N$313:$AQ$313,,MATCH(AA$6,Working!$N$6:$AQ$6,0)) -> 9630.39114 | AB146: =+INDEX(Working!$N$313:$AQ$313,,MATCH(AB$6,Working!$N$6:$AQ$6,0)) -> 9805.39114
C147: Fondo ammortamento tecnico beni non reversibili | D147: €'000 | E147: 3.10 | I147: -66719.331 | N147: =+INDEX(Working!$N$314:$AQ$314,,MATCH(N$6,Working!$N$6:$AQ$6,0)) -> -2094.16795 | O147: =+INDEX(Working!$N$314:$AQ$314,,MATCH(O$6,Working!$N$6:$AQ$6,0)) -> -2579.87506 | P147: =+INDEX(Working!$N$314:$AQ$314,,MATCH(P$6,Working!$N$6:$AQ$6,0)) -> -2687.722451 | Q147: =+INDEX(Working!$N$314:$AQ$314,,MATCH(Q$6,Working!$N$6:$AQ$6,0)) -> -2861.296291 | R147: =+INDEX(Working!$N$314:$AQ$314,,MATCH(R$6,Working!$N$6:$AQ$6,0)) -> -3100.423961 | S147: =+INDEX(Working!$N$314:$AQ$314,,MATCH(S$6,Working!$N$6:$AQ$6,0)) -> -3382.10489 | T147: =+INDEX(Working!$N$314:$AQ$314,,MATCH(T$6,Working!$N$6:$AQ$6,0)) -> -3711.08114 | U147: =+INDEX(Working!$N$314:$AQ$314,,MATCH(U$6,Working!$N$6:$AQ$6,0)) -> -4093.286556 | V147: =+INDEX(Working!$N$314:$AQ$314,,MATCH(V$6,Working!$N$6:$AQ$6,0)) -> -4536.361936 | W147: =+INDEX(Working!$N$314:$AQ$314,,MATCH(W$6,Working!$N$6:$AQ$6,0)) -> -5050.518319 | X147: =+INDEX(Working!$N$314:$AQ$314,,MATCH(X$6,Working!$N$6:$AQ$6,0)) -> -5650.103994 | Y147: =+INDEX(Working!$N$314:$AQ$314,,MATCH(Y$6,Working!$N$6:$AQ$6,0)) -> -6356.782923 | Z147: =+INDEX(Working!$N$314:$AQ$314,,MATCH(Z$6,Working!$N$6:$AQ$6,0)) -> -7207.152329 | AA147: =+INDEX(Working!$N$314:$AQ$314,,MATCH(AA$6,Working!$N$6:$AQ$6,0)) -> -8277.105068 | AB147: =+INDEX(Working!$N$314:$AQ$314,,MATCH(AB$6,Working!$N$6:$AQ$6,0)) -> -9805.39114
C148: Totale immobilizzazioni non reversibili nette | D148: €'000 | E148: 3.11 | I148: 30200.75382 | N148: =+SUM(N146:N147) -> 1278.88205 | O148: =+SUM(O146:O147) -> 1200.51608 | P148: 1867.668689 | Q148: 2519.094849 | R148: 2704.967179 | S148: 2848.28625 | T148: 2944.31 | U148: 2987.104584 | V148: 2969.029204 | W148: 2879.872821 | X148: 2705.287146 | Y148: 2423.608217 | Z148: 1998.238811 | AA148: 1353.286072 | AB148: 0
C150: Immobilizzazioni immateriali nette | D150: €'000 | E150: 3.12 | I150: =+SUM(P150:AB150) -> 7192.5 | N150: =+Prospetti_ART!N68 -> 60.42231 | O150: =+Prospetti_ART!O68 -> 40.40084 | P150: =+Prospetti_ART!P68 -> 945 | Q150: =+Prospetti_ART!Q68 -> 1627.5 | R150: =+Prospetti_ART!R68 -> 2100 | S150: =+Prospetti_ART!S68 -> 1470 | T150: =+Prospetti_ART!T68 -> 840 | U150: =+Prospetti_ART!U68 -> 210 | V150: =+Prospetti_ART!V68 -> 0 | W150: =+Prospetti_ART!W68 -> 0 | X150: =+Prospetti_ART!X68 -> 0 | Y150: =+Prospetti_ART!Y68 -> 0 | Z150: =+Prospetti_ART!Z68 -> 0 | AA150: =+Prospetti_ART!AA68 -> 0 | AB150: =+Prospetti_ART!AB68 -> 0
C151: Immobilizzazioni finanziarie | D151: €'000 | E151: 3.13 | I151: 12.696 | N151: =+Prospetti_ART!N69 -> 1.058 | O151: =+Prospetti_ART!O69 -> 1.058 | P151: =+Prospetti_ART!P69 -> 1.058 | Q151: =+Prospetti_ART!Q69 -> 1.058 | R151: =+Prospetti_ART!R69 -> 1.058 | S151: =+Prospetti_ART!S69 -> 1.058 | T151: =+Prospetti_ART!T69 -> 1.058 | U151: =+Prospetti_ART!U69 -> 1.058 | V151: =+Prospetti_ART!V69 -> 1.058 | W151: =+Prospetti_ART!W69 -> 1.058 | X151: =+Prospetti_ART!X69 -> 1.058 | Y151: =+Prospetti_ART!Y69 -> 1.058 | Z151: =+Prospetti_ART!Z69 -> 1.058 | AA151: =+Prospetti_ART!AA69 -> 1.058 | AB151: =+Prospetti_ART!AB69 -> 0
C152: Capitale circolante netto operativo | D152: €'000 | E152: 3.14 | I152: 143159.7301 | N152: =+SUM(Prospetti_ART!N80:N84,Prospetti_ART!N89:N91,Prospetti_ART!N93) -> 67934.78976 | O152: =+SUM(Prospetti_ART!O80:O84,Prospetti_ART!O89:O91,Prospetti_ART!O93) -> 13849.51635 | P152: =+SUM(Prospetti_ART!P80:P84,Prospetti_ART!P89:P91,Prospetti_ART!P93) -> 8680.825621 | Q152: =+SUM(Prospetti_ART!Q80:Q84,Prospetti_ART!Q89:Q91,Prospetti_ART!Q93) -> 3166.933797 | R152: =+SUM(Prospetti_ART!R80:R84,Prospetti_ART!R89:R91,Prospetti_ART!R93) -> 11440.52241 | S152: =+SUM(Prospetti_ART!S80:S84,Prospetti_ART!S89:S91,Prospetti_ART!S93) -> 13125.5805 | T152: =+SUM(Prospetti_ART!T80:T84,Prospetti_ART!T89:T91,Prospetti_ART!T93) -> 13965.5775 | U152: =+SUM(Prospetti_ART!U80:U84,Prospetti_ART!U89:U91,Prospetti_ART!U93) -> 15341.55177 | V152: =+SUM(Prospetti_ART!V80:V84,Prospetti_ART!V89:V91,Prospetti_ART!V93) -> 14300.30104 | W152: =+SUM(Prospetti_ART!W80:W84,Prospetti_ART!W89:W91,Prospetti_ART!W93) -> 14113.1795 | X152: =+SUM(Prospetti_ART!X80:X84,Prospetti_ART!X89:X91,Prospetti_ART!X93) -> 13635.95505 | Y152: =+SUM(Prospetti_ART!Y80:Y84,Prospetti_ART!Y89:Y91,Prospetti_ART!Y93) -> 13531.01445 | Z152: =+SUM(Prospetti_ART!Z80:Z84,Prospetti_ART!Z89:Z91,Prospetti_ART!Z93) -> 13295.62725 | AA152: =+SUM(Prospetti_ART!AA80:AA84,Prospetti_ART!AA89:AA91,Prospetti_ART!AA93) -> 13333.68381 | AB152: =+SUM(Prospetti_ART!AB80:AB84,Prospetti_ART!AB89:AB91,Prospetti_ART!AB93) -> -4771.02256
C153: Altri impieghi netti correnti | D153: €'000 | E153: 3.15 | I153: 471826.0099 | N153: =+Prospetti_ART!N74+Prospetti_ART!N75+Prospetti_ART!N76 -> 69824.25588 | O153: =+Prospetti_ART!O74+Prospetti_ART!O75+Prospetti_ART!O76 -> 72458.96488 | P153: =+Prospetti_ART!P74+Prospetti_ART!P75+Prospetti_ART!P76 -> 67010.61217 | Q153: =+Prospetti_ART!Q74+Prospetti_ART!Q75+Prospetti_ART!Q76 -> 65804.56663 | R153: =+Prospetti_ART!R74+Prospetti_ART!R75+Prospetti_ART!R76 -> 54890.55234 | S153: =+Prospetti_ART!S74+Prospetti_ART!S75+Prospetti_ART!S76 -> 43751.44371 | T153: =+Prospetti_ART!T74+Prospetti_ART!T75+Prospetti_ART!T76 -> 43079.96421 | U153: =+Prospetti_ART!U74+Prospetti_ART!U75+Prospetti_ART!U76 -> 37673.55493 | V153: =+Prospetti_ART!V74+Prospetti_ART!V75+Prospetti_ART!V76 -> 40059.74177 | W153: =+Prospetti_ART!W74+Prospetti_ART!W75+Prospetti_ART!W76 -> 40120.19362 | X153: =+Prospetti_ART!X74+Prospetti_ART!X75+Prospetti_ART!X76 -> 39389.37917 | Y153: =+Prospetti_ART!Y74+Prospetti_ART!Y75+Prospetti_ART!Y76 -> 40046.00136 | Z153: =+Prospetti_ART!Z74+Prospetti_ART!Z75+Prospetti_ART!Z76 -> 0 | AA153: =+Prospetti_ART!AA74+Prospetti_ART!AA75+Prospetti_ART!AA76 -> 0 | AB153: =+Prospetti_ART!AB74+Prospetti_ART!AB75+Prospetti_ART!AB76 -> 0
C155: Totale Impieghi | D155: €'000 | E155: 3.16 | I155: =+SUM(P155:AB155) -> 4436234.133 | N155: =+N142+N148+SUM(N150:N153) -> 766867.1978 | O155: 676097.8074 | P155: 626499.5557 | Q155: 578659.7902 | R155: 537718.7828 | S155: 486218.0935 | T155: 440530.3516 | U155: 402619.6809 | V155: 369818.1806 | W155: 319998.0581 | X155: 267729.2382 | Y155: 216661.994 | Z155: 124012.7986 | AA155: 70538.63166 | AB155: -4771.02286
B159: 4 | C159: Tabella 4 - CONTO DEI FINANZIAMENTI | D159: Unit | E159: Codice Dicoter | I159: Tot. 2020/32
C161: Patrimonio netto
C163: Capitale sociale | D163: €'000 | E163: 4.1 | I163: =+SUM(P163:AB163) -> 26000 | N163: =+Prospetti_ART!N104 -> 2000 | O163: =+Prospetti_ART!O104 -> 2000 | P163: =+Prospetti_ART!P104 -> 2000 | Q163: =+Prospetti_ART!Q104 -> 2000 | R163: =+Prospetti_ART!R104 -> 2000 | S163: =+Prospetti_ART!S104 -> 2000 | T163: =+Prospetti_ART!T104 -> 2000 | U163: =+Prospetti_ART!U104 -> 2000 | V163: =+Prospetti_ART!V104 -> 2000 | W163: =+Prospetti_ART!W104 -> 2000 | X163: =+Prospetti_ART!X104 -> 2000 | Y163: =+Prospetti_ART!Y104 -> 2000 | Z163: =+Prospetti_ART!Z104 -> 2000 | AA163: =+Prospetti_ART!AA104 -> 2000 | AB163: =+Prospetti_ART!AB104 -> 2000
C164: Riserve e utili (perdite) a nuovo | D164: €'000 | E164: 4.2 | I164: 1400952.533 | N164: =+Prospetti_ART!N105+Prospetti_ART!N106 -> 115497.364 | O164: =+Prospetti_ART!O105+Prospetti_ART!O106 -> 138861.9914 | P164: =+Prospetti_ART!P105+Prospetti_ART!P106 -> 165865.0119 | Q164: =+Prospetti_ART!Q105+Prospetti_ART!Q106 -> 167052.6685 | R164: =+Prospetti_ART!R105+Prospetti_ART!R106 -> 191657.7835 | S164: =+Prospetti_ART!S105+Prospetti_ART!S106 -> 78411.45121 | T164: =+Prospetti_ART!T105+Prospetti_ART!T106 -> 78909.4518 | U164: =+Prospetti_ART!U105+Prospetti_ART!U106 -> 86473.4817 | V164: =+Prospetti_ART!V105+Prospetti_ART!V106 -> 102545.6158 | W164: =+Prospetti_ART!W105+Prospetti_ART!W106 -> 116815.4284 | X164: =+Prospetti_ART!X105+Prospetti_ART!X106 -> 122909.1613 | Y164: =+Prospetti_ART!Y105+Prospetti_ART!Y106 -> 130298.358 | Z164: =+Prospetti_ART!Z105+Prospetti_ART!Z106 -> 136196.2986 | AA164: =+Prospetti_ART!AA105+Prospetti_ART!AA106 -> 68901.08117 | AB164: =+Prospetti_ART!AB105+Prospetti_ART!AB106 -> -45083.25903
C165: Utile (perdita) di esercizio | D165: €'000 | E165: 4.3 | I165: 412136.9259 | N165: =+Prospetti_ART!N107 -> 23364.62742 | O165: =+Prospetti_ART!O107 -> 27003.02044 | P165: =+Prospetti_ART!P107 -> 1187.656667 | Q165: =+Prospetti_ART!Q107 -> 24605.11498 | R165: =+Prospetti_ART!R107 -> 30989.88059 | S165: =+Prospetti_ART!S107 -> 33105.31377 | T165: =+Prospetti_ART!T107 -> 34510.72908 | U165: =+Prospetti_ART!U107 -> 34961.25114 | V165: =+Prospetti_ART!V107 -> 34074.39925 | W165: =+Prospetti_ART!W107 -> 33799.92426 | X165: =+Prospetti_ART!X107 -> 34362.68975 | Y165: =+Prospetti_ART!Y107 -> 34719.20851 | Z165: =+Prospetti_ART!Z107 -> 35493.12672 | AA165: =+Prospetti_ART!AA107 -> 34844.37174 | AB165: =+Prospetti_ART!AB107 -> 45483.25945
C166: Totale | D166: €'000 | E166: 4.4 | I166: 1839089.459 | N166: =+SUM(N163:N165) -> 140861.9914 | O166: =+SUM(O163:O165) -> 167865.0119 | P166: =+SUM(P163:P165) -> 169052.6685 | Q166: 193657.7835 | R166: 224647.6641 | S166: 113516.765 | T166: 115420.1809 | U166: 123434.7328 | V166: 138620.015 | W166: 152615.3527 | X166: 159271.8511 | Y166: 167017.5665 | Z166: 173689.4253 | AA166: 105745.4529 | AB166: 2400.00042
C168: Contibuto conto impianti | D168: €'000 | E168: 4.5 | I168: =+SUM(P168:AB168) -> 0
C170: Fondo per rischi ed oneri
C172: Fondo rinnovo beni reversibili | D172: €'000 | E172: 4.6 | I172: =+SUM(P172:AB172) -> 137425.9749 | N172: =-Prospetti_ART!N99 -> 19116.16603 | O172: =-Prospetti_ART!O99 -> 14408.56996 | P172: =-Prospetti_ART!P99 -> 10482.52928 | Q172: =-Prospetti_ART!Q99 -> 10912.03819 | R172: =-Prospetti_ART!R99 -> 10728.00961 | S172: =-Prospetti_ART!S99 -> 11122.79235 | T172: =-Prospetti_ART!T99 -> 10977.43334 | U172: =-Prospetti_ART!U99 -> 11103.64374 | V172: =-Prospetti_ART!V99 -> 11709.41743 | W172: =-Prospetti_ART!W99 -> 11697.52113 | X172: =-Prospetti_ART!X99 -> 11829.49223 | Y172: =-Prospetti_ART!Y99 -> 12246.33662 | Z172: =-Prospetti_ART!Z99 -> 12096.61018 | AA172: =-Prospetti_ART!AA99 -> 12520.15075 | AB172: =-Prospetti_ART!AB99 -> 0
C173: Fondo trattamento fine rapporto | D173: €'000 | E173: 4.7 | I173: 3907.262274 | N173: =-Prospetti_ART!N92 -> 341.50975 | O173: =-Prospetti_ART!O92 -> 356.24046 | P173: =-Prospetti_ART!P92 -> 296.1661513 | Q173: =-Prospetti_ART!Q92 -> 307.5850745 | R173: =-Prospetti_ART!R92 -> 317.9402429 | S173: =-Prospetti_ART!S92 -> 321.1942688 | T173: =-Prospetti_ART!T92 -> 323.8277683 | U173: =-Prospetti_ART!U92 -> 326.4241455 | V173: =-Prospetti_ART!V92 -> 329.0360566 | W173: =-Prospetti_ART!W92 -> 331.6683917 | X173: =-Prospetti_ART!X92 -> 334.3217431 | Y173: =-Prospetti_ART!Y92 -> 336.9963175 | Z173: =-Prospetti_ART!Z92 -> 339.692288 | AA173: =-Prospetti_ART!AA92 -> 342.4098263 | AB173: =-Prospetti_ART!AB92 -> 0
C174: Altri fondi | D174: €'000 | E174: 4.8 | I174: =+SUM(P174:AB174) -> 0 | N174: =-+Prospetti_ART!N98 -> 150 | O174: =-+Prospetti_ART!O98 -> 0 | P174: =-+Prospetti_ART!P98 -> 0 | Q174: =-+Prospetti_ART!Q98 -> 0 | R174: =-+Prospetti_ART!R98 -> 0 | S174: =-+Prospetti_ART!S98 -> 0 | T174: =-+Prospetti_ART!T98 -> 0 | U174: =-+Prospetti_ART!U98 -> 0 | V174: =-+Prospetti_ART!V98 -> 0 | W174: =-+Prospetti_ART!W98 -> 0 | X174: =-+Prospetti_ART!X98 -> 0 | Y174: =-+Prospetti_ART!Y98 -> 0 | Z174: =-+Prospetti_ART!Z98 -> 0 | AA174: =-+Prospetti_ART!AA98 -> 0 | AB174: =-+Prospetti_ART!AB98 -> 0
C175: Totale | D175: €'000 | E175: 4.9 | I175: 141333.2371 | N175: =+SUM(N172:N174) -> 19607.67578 | O175: =+SUM(O172:O174) -> 14764.81042 | P175: 10778.69543 | Q175: 11219.62327 | R175: 11045.94985 | S175: 11443.98662 | T175: 11301.26111 | U175: 11430.06789 | V175: 12038.45349 | W175: 12029.18952 | X175: 12163.81397 | Y175: 12583.33293 | Z175: 12436.30246 | AA175: 12862.56058 | AB175: 0
C177: Debiti finanziari netti
C179: Prestiti consolidati con garanzia dello Stato | D179: €'000 | E179: 4.10 | I179: =+SUM(P179:AB179) -> 0
C180: Prestiti consolidati senza garanzia dello Stato | D180: €'000 | E180: 4.11 | I180: 0
C181: Fondo Centrale Garanzia | D181: €'000 | E181: 4.12 | I181: 0
C182: ANAS | D182: €'000 | E182: 4.13 | I182: 0
C183: Prestiti da contrarre a medio lungo termine | D183: €'000 | E183: 4.14 | I183: 3063066.607 | N183: =-Prospetti_ART!N94-Prospetti_ART!N95 -> 682446.6439 | O183: =-Prospetti_ART!O94-Prospetti_ART!O95 -> 620456.8677 | P183: =-Prospetti_ART!P94-Prospetti_ART!P95 -> 557743.6667 | Q183: =-Prospetti_ART!Q94-Prospetti_ART!Q95 -> 499160.6907 | R183: =-Prospetti_ART!R94-Prospetti_ART!R95 -> 435551.4778 | S183: =-Prospetti_ART!S94-Prospetti_ART!S95 -> 381691.4048 | T183: =-Prospetti_ART!T94-Prospetti_ART!T95 -> 333166.8498 | U183: =-Prospetti_ART!U94-Prospetti_ART!U95 -> 281167.9958 | V183: =-Prospetti_ART!V94-Prospetti_ART!V95 -> 229578.7319 | W183: =-Prospetti_ART!W94-Prospetti_ART!W95 -> 173426.0639 | X183: =-Prospetti_ART!X94-Prospetti_ART!X95 -> 115128.7159 | Y183: =-Prospetti_ART!Y94-Prospetti_ART!Y95 -> 56451.00997 | Z183: =-Prospetti_ART!Z94-Prospetti_ART!Z95 -> 0 | AA183: =-Prospetti_ART!AA94-Prospetti_ART!AA95 -> 0 | AB183: =-Prospetti_ART!AB94-Prospetti_ART!AB95 -> 0
C184: Saldo posizione finanziaria a breve | D184: €'000 | E184: 4.15 | I184: -607255.1415 | N184: =-Prospetti_ART!N77 -> -76049.11013 | O184: =-Prospetti_ART!O77 -> -126988.8803 | P184: =-Prospetti_ART!P77 -> -111075.4727 | Q184: =-Prospetti_ART!Q77 -> -125378.3051 | R184: =-Prospetti_ART!R77 -> -133526.3067 | S184: =-Prospetti_ART!S77 -> -20434.06064 | T184: =-Prospetti_ART!T77 -> -19357.93803 | U184: =-Prospetti_ART!U77 -> -13413.11349 | V184: =-Prospetti_ART!V77 -> -10419.01759 | W184: =-Prospetti_ART!W77 -> -18072.54578 | X184: =-Prospetti_ART!X77 -> -18835.14055 | Y184: =-Prospetti_ART!Y77 -> -19389.91324 | Z184: =-Prospetti_ART!Z77 -> -62112.92699 | AA184: =-Prospetti_ART!AA77 -> -48069.37961 | AB184: =-Prospetti_ART!AB77 -> -7171.02107
C185: Totale | D185: €'000 | E185: 4.16 | I185: 2455811.466 | N185: =+SUM(N179:N184) -> 606397.5338 | O185: =+SUM(O179:O184) -> 493467.9874 | P185: 446668.194 | Q185: 373782.3856 | R185: 302025.1711 | S185: 361257.3442 | T185: 313808.9118 | U185: 267754.8824 | V185: 219159.7143 | W185: 155353.5181 | X185: 96293.57539 | Y185: 37061.09672 | Z185: -62112.92699 | AA185: -48069.37961 | AB185: -7171.02107
C187: Totale Fonti | D187: €'000 | E187: 4.17 | I187: =+SUM(P187:AB187) -> 4436234.162 | N187: =+N185+N175+N168+N166 -> 766867.201 | O187: =+O185+O175+O168+O166 -> 676097.8097 | P187: 626499.5579 | Q187: 578659.7924 | R187: 537718.785 | S187: 486218.0957 | T187: 440530.3538 | U187: 402619.6831 | V187: 369818.1828 | W187: 319998.0604 | X187: 267729.2404 | Y187: 216661.9962 | Z187: 124012.8008 | AA187: 70538.63387 | AB187: -4771.02065
G189: =+SUM(N189:AB189) -> 0 | N189: =+ROUND(N187-N155,2) -> 0 | O189: =+ROUND(O187-O155,2) -> 0 | P189: =+ROUND(P187-P155,2) -> 0 | Q189: 0 | R189: 0 | S189: 0 | T189: 0 | U189: 0 | V189: 0 | W189: 0 | X189: 0 | Y189: 0 | Z189: 0 | AA189: 0 | AB189: 0
B191: 5 | C191: Tabella 5 - CONTO DEL FABBISOGNO FINANZIARIO ANNUO E RELATIVA COPERTURA | D191: Unit | E191: Codice Dicoter | I191: Tot. 2020/32 | N191: 2018-12-31 | O191: 2019-12-31 | P191: 2020-12-31 | Q191: 2021-12-31 | R191: 2022-12-31 | S191: 2023-12-31 | T191: 2024-12-31 | U191: 2025-12-31 | V191: 2026-12-31 | W191: 2027-12-31 | X191: 2028-12-31 | Y191: 2029-12-31 | Z191: 2030-12-31 | AA191: 2031-12-31 | AB191: 2032-12-31
C193: Fabbisogno netto
C195: Investimenti in immobilizzazioni materiali e immateriali | D195: €'000 | E195: 5.1 ; 5.2 | I195: =+SUM(P195:AB195) -> -73999.942 | O195: =+O29+O31+O32 -> -6261.78981 | P195: -6611 | Q195: -5155 | R195: -8645 | S195: -5661 | T195: -2385 | U195: -15083 | V195: -16616 | W195: -3020 | X195: -2215 | Y195: -2215 | Z195: -2215 | AA195: -2215 | AB195: -1963.942
C196: Variazione del cap. circ. netto operativo e altri impieghi correnti | D196: €'000 | E196: 5.3 | I196: 18264.29845 | O196: =+O25 -> 54100.00412 | P196: 5108.61642 | Q196: 5525.310747 | R196: -8263.233442 | S196: -1681.804062 | T196: -837.3635056 | U196: -1373.377889 | V196: 1043.862633 | W196: 189.7538777 | X196: 479.8778022 | Y196: 107.615175 | Z196: 238.0831679 | AA196: -35.33902242 | AB196: 17762.29655
C197: Rimborso debiti in scadenza | D197: €'000 | E197: 5.4 | I197: -632559.5997 | O197: =+O45 -> -64054.93678 | P197: -64723.39997 | Q197: -60407.39997 | R197: -65237.99996 | S197: -55302.89997 | T197: -49799.99997 | U197: -53119.99997 | V197: -52530.69997 | W197: -56921.39997 | X197: -58871.89997 | Y197: -59046.19997 | Z197: -56597.69997 | AA197: 0 | AB197: 0
C198: Saldo altri fabbisogni | D198: €'000 | E198: 5.5 | I198: -505142.9725 | O198: =+O43+O33 -> -2634.709 | P198: 5448.352709 | Q198: 1206.045543 | R198: 10914.01429 | S198: -133097.1043 | T198: -31935.83366 | U198: -21540.2899 | V198: -21275.30393 | W198: -19865.03841 | X198: -26975.37693 | Y198: -27630.11527 | Z198: 11224.73345 | AA198: -102788.3442 | AB198: -148828.7119
C199: Totale | D199: €'000 | E199: 5.6 | I199: -1193438.216 | N199: =+SUM(N195:N198) -> 0 | O199: =+SUM(O195:O198) -> -18851.43147 | P199: =+SUM(P195:P198) -> -60777.43084 | Q199: -58831.04368 | R199: -71232.21912 | S199: -195742.8083 | T199: -84958.19714 | U199: -91116.66776 | V199: -89378.14126 | W199: -79616.6845 | X199: -87582.3991 | Y199: -88783.70007 | Z199: -47349.88335 | AA199: -105038.6832 | AB199: -133030.3574
C201: Contributi in conto capitale | D201: €'000 | E201: 5.7 | I201: 0
C202: Autofinanziamento | D202: €'000 | E202: 5.8 | I202: 1056718.758 | N202: =+N23 -> 68030.99324 | O202: 67879.54112 | P202: 42853.82425 | Q202: 71309.45209 | R202: 77751.43371 | S202: 81207.73523 | T202: 82606.62953 | U202: 84050.69723 | V202: 85442.60936 | W202: 86501.48069 | X202: 87770.44187 | Y202: 88969.97876 | Z202: 89926.2071 | AA202: 90995.1358 | AB202: 87333.1327
C204: Totale fabbisogno netto | D204: €'000 | E204: 5.9 | I204: -136719.4574 | N204: =+N199+N202 -> 68030.99324 | O204: =+O199+O202 -> 49028.10965 | P204: =+P199+P202 -> -17923.60659 | Q204: =+Q199+Q202 -> 12478.40841 | R204: 6519.214597 | S204: -114535.0731 | T204: -2351.567614 | U204: -7065.970534 | V204: -3935.531903 | W204: 6884.796188 | X204: 188.0427731 | Y204: 186.278694 | Z204: 42576.32375 | AA204: -14043.54738 | AB204: -45697.22468
C206: Copertura
C208: Apporti degli azionisti in c/capitale | D208: €'000 | E208: 5.10 | I208: =+SUM(P208:AB208) -> 0 | N208: =+Prospetti_ART!O147 -> 0 | O208: =+Prospetti_ART!P147 -> 0 | P208: =+Prospetti_ART!Q147 -> 0 | Q208: =+Prospetti_ART!R147 -> 0 | R208: =+Prospetti_ART!S147 -> 0 | S208: =+Prospetti_ART!T147 -> 0 | T208: =+Prospetti_ART!U147 -> 0 | U208: =+Prospetti_ART!V147 -> 0 | V208: =+Prospetti_ART!W147 -> 0 | W208: =+Prospetti_ART!X147 -> 0 | X208: =+Prospetti_ART!Y147 -> 0 | Y208: =+Prospetti_ART!Z147 -> 0 | Z208: =+Prospetti_ART!AA147 -> 0 | AA208: =+Prospetti_ART!AB147 -> 0 | AB208: =+Prospetti_ART!AC147 -> 0
C209: Finanziamenti a medio-lungo termine | D209: €'000 | E209: 5.11 | I209: 0 | N209: =+N39 -> 0 | O209: 0 | P209: 0 | Q209: 0 | R209: 0 | S209: 0 | T209: 0 | U209: 0 | V209: 0 | W209: 0 | X209: 0 | Y209: 0 | Z209: 0 | AA209: 0 | AB209: 0
C210: Variazione posizione finanziaria a breve | D210: €'000 | E210: 5.12 | I210: -136719.4574 | N210: =+N48 -> 68030.99324 | O210: 49028.10965 | P210: -17923.60659 | Q210: 12478.40841 | R210: 6519.214597 | S210: -114535.0731 | T210: -2351.567614 | U210: -7065.970534 | V210: -3935.531903 | W210: 6884.796188 | X210: 188.0427731 | Y210: 186.278694 | Z210: 42576.32375 | AA210: -14043.54738 | AB210: -45697.22468
C212: Totale copertura | D212: €'000 | E212: 5.13 | I212: =+SUM(P212:AB212) -> -136719.4574 | N212: =+SUM(N208:N210) -> 68030.99324 | O212: =+SUM(O208:O210) -> 49028.10965 | P212: =+SUM(P208:P210) -> -17923.60659 | Q212: 12478.40841 | R212: 6519.214597 | S212: -114535.0731 | T212: -2351.567614 | U212: -7065.970534 | V212: -3935.531903 | W212: 6884.796188 | X212: 188.0427731 | Y212: 186.278694 | Z212: 42576.32375 | AA212: -14043.54738 | AB212: -45697.22468
G214: =+SUM(N214:AB214) -> 0 | N214: =+ROUND(N212-N204,3) -> 0 | O214: =+ROUND(O212-O204,3) -> 0 | P214: 0 | Q214: 0 | R214: 0 | S214: 0 | T214: 0 | U214: 0 | V214: 0 | W214: 0 | X214: 0 | Y214: 0 | Z214: 0 | AA214: 0 | AB214: 0
C217: Note esplicative | D217: Unit | E217: Codice Dicoter | I217: Tot. 2020/32 | N217: 2018-12-31 | O217: 2019-12-31 | P217: 2020-12-31 | Q217: 2021-12-31 | R217: 2022-12-31 | S217: 2023-12-31 | T217: 2024-12-31 | U217: 2025-12-31 | V217: 2026-12-31 | W217: 2027-12-31 | X217: 2028-12-31 | Y217: 2029-12-31 | Z217: 2030-12-31 | AA217: 2031-12-31 | AB217: 2032-12-31
C219: Saldo altri flussi gestione operativa - 1.12
C220: Utilizzo CRA | D220: €'000 | I220: =+SUM(P220:AB220) -> 27079.81448 | N220: =+Prospetti_ART!N128 -> 0 | O220: =+Prospetti_ART!O128 -> 0 | P220: =+Prospetti_ART!P128 -> 4786 | Q220: =+Prospetti_ART!Q128 -> 3280 | R220: =+Prospetti_ART!R128 -> 7170 | S220: =+Prospetti_ART!S128 -> 5236 | T220: =+Prospetti_ART!T128 -> 1960 | U220: =+Prospetti_ART!U128 -> 4647.81448 | V220: =+Prospetti_ART!V128 -> 0 | W220: =+Prospetti_ART!W128 -> 0 | X220: =+Prospetti_ART!X128 -> 0 | Y220: =+Prospetti_ART!Y128 -> 0 | Z220: =+Prospetti_ART!Z128 -> 0 | AA220: =+Prospetti_ART!AA128 -> 0 | AB220: =+Prospetti_ART!AB128 -> 0
C221: Utilizzo MRA | D221: €'000 | I221: 8693.243323 | N221: =+Prospetti_ART!N129 -> 0 | O221: =+Prospetti_ART!O129 -> 0 | P221: =+Prospetti_ART!P129 -> 0 | Q221: =+Prospetti_ART!Q129 -> 0 | R221: =+Prospetti_ART!R129 -> 92.01429049 | S221: =+Prospetti_ART!S129 -> 0 | T221: =+Prospetti_ART!T129 -> 72.67950524 | U221: =+Prospetti_ART!U129 -> 0 | V221: =+Prospetti_ART!V129 -> 0 | W221: =+Prospetti_ART!W129 -> 5.948150116 | X221: =+Prospetti_ART!X129 -> 0 | Y221: =+Prospetti_ART!Y129 -> 0 | Z221: =+Prospetti_ART!Z129 -> 8522.601377 | AA221: =+Prospetti_ART!AA129 -> 0 | AB221: =+Prospetti_ART!AB129 -> 0
C222: Variazioni DSRA | D222: €'000 | I222: 41047.97515 | N222: =+Prospetti_ART!N142 -> 0 | O222: =+Prospetti_ART!O142 -> -2577.435 | P222: =+Prospetti_ART!P142 -> 3971.875167 | Q222: =+Prospetti_ART!Q142 -> -1859.199999 | R222: =+Prospetti_ART!R142 -> 3651.999998 | S222: =+Prospetti_ART!S142 -> 6100.499997 | T222: =+Prospetti_ART!T142 -> -1361.199999 | U222: =+Prospetti_ART!U142 -> 821.6999999 | V222: =+Prospetti_ART!V142 -> -2083.299999 | W222: =+Prospetti_ART!W142 -> -66.39999964 | X222: =+Prospetti_ART!X142 -> 796.7999999 | Y222: =+Prospetti_ART!Y142 -> -448.1999994 | Z222: =+Prospetti_ART!Z142 -> 31523.39998 | AA222: =+Prospetti_ART!AA142 -> 0 | AB222: =+Prospetti_ART!AB142 -> 0
C223: MRA funding | D223: €'000 | N223: =+Prospetti_ART!N143 -> 0 | O223: =+Prospetti_ART!O143 -> -57.274 | P223: =+Prospetti_ART!P143 -> -3309.522458 | Q223: =+Prospetti_ART!Q143 -> -214.7544585 | R223: =+Prospetti_ART!R143 -> 0 | S223: =+Prospetti_ART!S143 -> -197.3913713 | T223: =+Prospetti_ART!T143 -> 0 | U223: =+Prospetti_ART!U143 -> -63.10519793 | V223: =+Prospetti_ART!V143 -> -302.8868452 | W223: =+Prospetti_ART!W143 -> 0 | X223: =+Prospetti_ART!X143 -> -65.98554908 | Y223: =+Prospetti_ART!Y143 -> -208.4221936 | Z223: =+Prospetti_ART!Z143 -> 0 | AA223: =+Prospetti_ART!AA143 -> 0 | AB223: =+Prospetti_ART!AB143 -> 0
C224: Totale Saldo altri flussi gestione operativa | D224: €'000 | E224: 1.12 | I224: =+SUM(P224:AB224) -> 72458.96488 | N224: =+SUM(N220:N223) -> 0 | O224: =+SUM(O220:O223) -> -2634.709 | P224: 5448.352709 | Q224: 1206.045543 | R224: 10914.01429 | S224: 11139.10863 | T224: 671.4795063 | U224: 5406.409282 | V224: -2386.186844 | W224: -60.45184952 | X224: 730.8144508 | Y224: -656.622193 | Z224: 40046.00136 | AA224: 0 | AB224: 0
G226: =+SUM(N226:AB226) -> 0 | N226: =+N224-N33 -> 0 | O226: =+O224-O33 -> 0 | P226: 0 | Q226: 0 | R226: 0 | S226: 0 | T226: 0 | U226: 0 | V226: 0 | W226: 0 | X226: 0 | Y226: 0 | Z226: 0 | AA226: 0 | AB226: 0
C228: Capitale circolante netto operativo - 3.14
C229: Crediti commerciali | D229: €'000 | I229: =+SUM(P229:AB229) -> 40880.50436 | N229: =+Prospetti_ART!N80 -> 2779.57191 | O229: =+Prospetti_ART!O80 -> 2727.2514 | P229: =+Prospetti_ART!P80 -> 2657.231337 | Q229: =+Prospetti_ART!Q80 -> 3007.758889 | R229: =+Prospetti_ART!R80 -> 3086.897955 | S229: =+Prospetti_ART!S80 -> 3132.677165 | T229: =+Prospetti_ART!T80 -> 3156.02697 | U229: =+Prospetti_ART!U80 -> 3174.303728 | V229: =+Prospetti_ART!V80 -> 3190.710333 | W229: =+Prospetti_ART!W80 -> 3206.759627 | X229: =+Prospetti_ART!X80 -> 3222.172496 | Y229: =+Prospetti_ART!Y80 -> 3237.870825 | Z229: =+Prospetti_ART!Z80 -> 3253.621015 | AA229: =+Prospetti_ART!AA80 -> 3269.366548 | AB229: =+Prospetti_ART!AB80 -> 3285.107474
C230: Rimanenze | D230: €'000 | I230: 15593.17396 | N230: =+Prospetti_ART!N81 -> 1159.21413 | O230: =+Prospetti_ART!O81 -> 1199.47492 | P230: =+Prospetti_ART!P81 -> 1199.47492 | Q230: =+Prospetti_ART!Q81 -> 1199.47492 | R230: =+Prospetti_ART!R81 -> 1199.47492 | S230: =+Prospetti_ART!S81 -> 1199.47492 | T230: =+Prospetti_ART!T81 -> 1199.47492 | U230: =+Prospetti_ART!U81 -> 1199.47492 | V230: =+Prospetti_ART!V81 -> 1199.47492 | W230: =+Prospetti_ART!W81 -> 1199.47492 | X230: =+Prospetti_ART!X81 -> 1199.47492 | Y230: =+Prospetti_ART!Y81 -> 1199.47492 | Z230: =+Prospetti_ART!Z81 -> 1199.47492 | AA230: =+Prospetti_ART!AA81 -> 1199.47492 | AB230: =+Prospetti_ART!AB81 -> 1199.47492
C231: Credito IVA | D231: €'000 | I231: 0 | N231: =+Prospetti_ART!N82 -> 40112.71376 | O231: =+Prospetti_ART!O82 -> 5006.51892 | P231: =+Prospetti_ART!P82 -> 0 | Q231: =+Prospetti_ART!Q82 -> 0 | R231: =+Prospetti_ART!R82 -> 0 | S231: =+Prospetti_ART!S82 -> 0 | T231: =+Prospetti_ART!T82 -> 0 | U231: =+Prospetti_ART!U82 -> 0 | V231: =+Prospetti_ART!V82 -> 0 | W231: =+Prospetti_ART!W82 -> 0 | X231: =+Prospetti_ART!X82 -> 0 | Y231: =+Prospetti_ART!Y82 -> 0 | Z231: =+Prospetti_ART!Z82 -> 0 | AA231: =+Prospetti_ART!AA82 -> 0 | AB231: =+Prospetti_ART!AB82 -> 0
C232: Crediti v/Erario | D232: €'000 | I232: 9733.623123 | N232: =+Prospetti_ART!N83 -> 0 | O232: =+Prospetti_ART!O83 -> 0 | P232: =+Prospetti_ART!P83 -> 9326.031557 | Q232: =+Prospetti_ART!Q83 -> 0 | R232: =+Prospetti_ART!R83 -> 0 | S232: =+Prospetti_ART!S83 -> 0 | T232: =+Prospetti_ART!T83 -> 0 | U232: =+Prospetti_ART!U83 -> 0 | V232: =+Prospetti_ART!V83 -> 120.602819 | W232: =+Prospetti_ART!W83 -> 286.9887469 | X232: =+Prospetti_ART!X83 -> 0 | Y232: =+Prospetti_ART!Y83 -> 0 | Z232: =+Prospetti_ART!Z83 -> 0 | AA232: =+Prospetti_ART!AA83 -> 0 | AB232: =+Prospetti_ART!AB83 -> 0
C233: Altri crediti | D233: €'000 | I233: 404104.8032 | N233: =+Prospetti_ART!N84 -> 53797.37803 | O233: =+Prospetti_ART!O84 -> 46017.5256 | P233: =+Prospetti_ART!P84 -> 25743.97456 | Q233: =+Prospetti_ART!Q84 -> 31620.61205 | R233: =+Prospetti_ART!R84 -> 37212.1264 | S233: =+Prospetti_ART!S84 -> 33802.91828 | T233: =+Prospetti_ART!T84 -> 34035.92933 | U233: =+Prospetti_ART!U84 -> 35436.679 | V233: =+Prospetti_ART!V84 -> 34232.62667 | W233: =+Prospetti_ART!W84 -> 34299.3535 | X233: =+Prospetti_ART!X84 -> 34349.8968 | Y233: =+Prospetti_ART!Y84 -> 34404.38884 | Z233: =+Prospetti_ART!Z84 -> 34457.70535 | AA233: =+Prospetti_ART!AA84 -> 34508.59245 | AB233: =+Prospetti_ART!AB84 -> 0
C234: Debiti commerciali | D234: €'000 | I234: -114717.037 | N234: =+Prospetti_ART!N89 -> -7966.34354 | O234: =+Prospetti_ART!O89 -> -8762.88159 | P234: =+Prospetti_ART!P89 -> -9084.769602 | Q234: =+Prospetti_ART!Q89 -> -8331.845818 | R234: =+Prospetti_ART!R89 -> -8507.819479 | S234: =+Prospetti_ART!S89 -> -8510.896113 | T234: =+Prospetti_ART!T89 -> -8645.615084 | U234: =+Prospetti_ART!U89 -> -8642.482632 | V234: =+Prospetti_ART!V89 -> -8706.318203 | W234: =+Prospetti_ART!W89 -> -8890.014529 | X234: =+Prospetti_ART!X89 -> -8919.100011 | Y234: =+Prospetti_ART!Y89 -> -8984.504519 | Z234: =+Prospetti_ART!Z89 -> -9121.343133 | AA234: =+Prospetti_ART!AA89 -> -9116.72295 | AB234: =+Prospetti_ART!AB89 -> -9255.604954
C235: Debito IVA | D235: €'000 | I235: -17427.54083 | N235: =+Prospetti_ART!N90 -> 0 | O235: =+Prospetti_ART!O90 -> 0 | P235: =+Prospetti_ART!P90 -> -1051.780374 | Q235: =+Prospetti_ART!Q90 -> -1188.645845 | R235: =+Prospetti_ART!R90 -> -1303.910449 | S235: =+Prospetti_ART!S90 -> -1394.119737 | T235: =+Prospetti_ART!T90 -> -1460.159668 | U235: =+Prospetti_ART!U90 -> -1507.861652 | V235: =+Prospetti_ART!V90 -> -1542.237666 | W235: =+Prospetti_ART!W90 -> -1567.222695 | X235: =+Prospetti_ART!X90 -> -1585.465246 | Y235: =+Prospetti_ART!Y90 -> -1599.08139 | Z235: =+Prospetti_ART!Z90 -> -1609.470175 | AA235: =+Prospetti_ART!AA90 -> -1617.585936 | AB235: =+Prospetti_ART!AB90 -> 0
C236: Debito v/Erario | D236: €'000 | I236: -10619.22999 | N236: =+Prospetti_ART!N91 -> -1959.04238 | O236: =+Prospetti_ART!O91 -> -2869.10291 | P236: =+Prospetti_ART!P91 -> 0 | Q236: =+Prospetti_ART!Q91 -> -8165.88026 | R236: =+Prospetti_ART!R91 -> -278.402241 | S236: =+Prospetti_ART!S91 -> -1234.976315 | T236: =+Prospetti_ART!T91 -> -272.9934775 | U236: =+Prospetti_ART!U91 -> -231.3968012 | V236: =+Prospetti_ART!V91 -> 0 | W236: =+Prospetti_ART!W91 -> 0 | X236: =+Prospetti_ART!X91 -> -135.5211884 | Y236: =+Prospetti_ART!Y91 -> -121.6157808 | Z236: =+Prospetti_ART!Z91 -> -97.03555162 | AA236: =+Prospetti_ART!AA91 -> -81.40837364 | AB236: =+Prospetti_ART!AB91 -> 0
C237: Altri debiti | D237: €'000 | I237: -184388.5667 | N237: =+Prospetti_ART!N93 -> -19988.70215 | O237: =+Prospetti_ART!O93 -> -29469.26999 | P237: =+Prospetti_ART!P93 -> -20109.33678 | Q237: =+Prospetti_ART!Q93 -> -14974.54014 | R237: =+Prospetti_ART!R93 -> -19967.8447 | S237: =+Prospetti_ART!S93 -> -13869.49771 | T237: =+Prospetti_ART!T93 -> -14047.08549 | U237: =+Prospetti_ART!U93 -> -14087.1648 | V237: =+Prospetti_ART!V93 -> -14194.55783 | W237: =+Prospetti_ART!W93 -> -14422.16007 | X237: =+Prospetti_ART!X93 -> -14495.50272 | Y237: =+Prospetti_ART!Y93 -> -14605.51845 | Z237: =+Prospetti_ART!Z93 -> -14787.32517 | AA237: =+Prospetti_ART!AA93 -> -14828.03285 | AB237: =+Prospetti_ART!AB93 -> 0
C238: Totale Capitale circolante netto operativo | D238: €'000 | E238: 3.14 | I238: =+SUM(P238:AB238) -> 143159.7301 | N238: =+SUM(N229:N237) -> 67934.78976 | O238: 13849.51635 | P238: 8680.825621 | Q238: 3166.933797 | R238: 11440.52241 | S238: 13125.5805 | T238: 13965.5775 | U238: 15341.55177 | V238: 14300.30104 | W238: 14113.1795 | X238: 13635.95505 | Y238: 13531.01445 | Z238: 13295.62725 | AA238: 13333.68381 | AB238: -4771.02256
G240: =+SUM(N240:AB240) -> 0 | N240: =+N238-N152 -> 0 | O240: 0 | P240: 0 | Q240: 0 | R240: 0 | S240: 0 | T240: 0 | U240: 0 | V240: 0 | W240: 0 | X240: 0 | Y240: 0 | Z240: 0 | AA240: 0 | AB240: 0
C242: Altri impieghi netti correnti - 3.15
C243: DSRA | D243: €'000 | I243: =+SUM(P243:AB243) -> 327019.9998 | N243: =+Prospetti_ART!N74 -> 38470.54015 | O243: =+Prospetti_ART!O74 -> 41047.97515 | P243: =+Prospetti_ART!P74 -> 37076.09998 | Q243: =+Prospetti_ART!Q74 -> 38935.29998 | R243: =+Prospetti_ART!R74 -> 35283.29998 | S243: =+Prospetti_ART!S74 -> 29182.79999 | T243: =+Prospetti_ART!T74 -> 30543.99999 | U243: =+Prospetti_ART!U74 -> 29722.29999 | V243: =+Prospetti_ART!V74 -> 31805.59998 | W243: =+Prospetti_ART!W74 -> 31871.99998 | X243: =+Prospetti_ART!X74 -> 31075.19998 | Y243: =+Prospetti_ART!Y74 -> 31523.39998 | Z243: =+Prospetti_ART!Z74 -> 0 | AA243: =+Prospetti_ART!AA74 -> 0 | AB243: =+Prospetti_ART!AB74 -> 0
C244: CRA | D244: €'000 | I244: 64407.0724 | N244: =+Prospetti_ART!N75 -> 27079.81448 | O244: =+Prospetti_ART!O75 -> 27079.81448 | P244: =+Prospetti_ART!P75 -> 22293.81448 | Q244: =+Prospetti_ART!Q75 -> 19013.81448 | R244: =+Prospetti_ART!R75 -> 11843.81448 | S244: =+Prospetti_ART!S75 -> 6607.81448 | T244: =+Prospetti_ART!T75 -> 4647.81448 | U244: =+Prospetti_ART!U75 -> 0 | V244: =+Prospetti_ART!V75 -> 0 | W244: =+Prospetti_ART!W75 -> 0 | X244: =+Prospetti_ART!X75 -> 0 | Y244: =+Prospetti_ART!Y75 -> 0 | Z244: =+Prospetti_ART!Z75 -> 0 | AA244: =+Prospetti_ART!AA75 -> 0 | AB244: =+Prospetti_ART!AB75 -> 0
C245: MRA | D245: €'000 | I245: 80398.93766 | N245: =+Prospetti_ART!N76 -> 4273.90125 | O245: =+Prospetti_ART!O76 -> 4331.17525 | P245: =+Prospetti_ART!P76 -> 7640.697708 | Q245: =+Prospetti_ART!Q76 -> 7855.452166 | R245: =+Prospetti_ART!R76 -> 7763.437875 | S245: =+Prospetti_ART!S76 -> 7960.829247 | T245: =+Prospetti_ART!T76 -> 7888.149742 | U245: =+Prospetti_ART!U76 -> 7951.254939 | V245: =+Prospetti_ART!V76 -> 8254.141785 | W245: =+Prospetti_ART!W76 -> 8248.193635 | X245: =+Prospetti_ART!X76 -> 8314.179184 | Y245: =+Prospetti_ART!Y76 -> 8522.601377 | Z245: =+Prospetti_ART!Z76 -> 0 | AA245: =+Prospetti_ART!AA76 -> 0 | AB245: =+Prospetti_ART!AB76 -> 0
C246: Totale Capitale circolante netto operativo | D246: €'000 | E246: 3.15 | I246: =+SUM(P246:AB246) -> 471826.0099 | N246: =+SUM(N243:N245) -> 69824.25588 | O246: =+SUM(O243:O245) -> 72458.96488 | P246: 67010.61217 | Q246: 65804.56663 | R246: 54890.55234 | S246: 43751.44371 | T246: 43079.96421 | U246: 37673.55493 | V246: 40059.74177 | W246: 40120.19362 | X246: 39389.37917 | Y246: 40046.00136 | Z246: 0 | AA246: 0 | AB246: 0
G248: =+SUM(N248:AB248) -> 0 | N248: =+N246-N153 -> 0 | O248: 0 | P248: 0 | Q248: 0 | R248: 0 | S248: 0 | T248: 0 | U248: 0 | V248: 0 | W248: 0 | X248: 0 | Y248: 0 | Z248: 0 | AA248: 0 | AB248: 0
C250: Saldo altri fabbisogni - 5.5
C251: Utili distribuiti | D251: €'000 | I251: =+SUM(P251:AB251) -> -577601.9373 | N251: =+N43 -> 0 | O251: 0 | P251: =+P43 -> 0 | Q251: =+Q43 -> 0 | R251: 0 | S251: -144236.2129 | T251: -32607.31317 | U251: -26946.69918 | V251: -18889.11708 | W251: -19804.58656 | X251: -27706.19138 | Y251: -26973.49308 | Z251: -28821.26791 | AA251: -102788.3442 | AB251: -148828.7119
C252: Saldo altri flussi gestione operativa | D252: €'000 | I252: 72458.96488 | N252: =+N33 -> 0 | O252: -2634.709 | P252: =+P33 -> 5448.352709 | Q252: =+Q33 -> 1206.045543 | R252: 10914.01429 | S252: 11139.10863 | T252: 671.4795063 | U252: 5406.409282 | V252: -2386.186844 | W252: -60.45184952 | X252: 730.8144508 | Y252: -656.622193 | Z252: 40046.00136 | AA252: 0 | AB252: 0
C253: Totale Saldo altri fabbisogni | D253: €'000 | E253: 5.5 | I253: =+SUM(P253:AB253) -> -505142.9725 | N253: =+SUM(N250:N252) -> 0 | O253: =+SUM(O250:O252) -> -2634.709 | P253: 5448.352709 | Q253: 1206.045543 | R253: 10914.01429 | S253: -133097.1043 | T253: -31935.83366 | U253: -21540.2899 | V253: -21275.30393 | W253: -19865.03841 | X253: -26975.37693 | Y253: -27630.11527 | Z253: 11224.73345 | AA253: -102788.3442 | AB253: -148828.7119
G255: =+SUM(N255:AB255) -> 0 | N255: =+N253-N198 -> 0 | O255: =+O253-O198 -> 0 | P255: 0 | Q255: 0 | R255: 0 | S255: 0 | T255: 0 | U255: 0 | V255: 0 | W255: 0 | X255: 0 | Y255: 0 | Z255: 0 | AA255: 0 | AB255: 0
B258: END OF SHEET

Sheet Modello >>

Sheet Input
B2: =+Cover!D26 -> CAV - Nuovo Sistema Tariffario
B3: Input
I5: Starting date | N5: =+E27 -> 2018-01-01 | O5: =N6+1 -> 2018-07-01 | P5: 2019-01-01 | Q5: 2019-07-01 | R5: 2020-01-01 | S5: 2020-07-01 | T5: 2021-01-01 | U5: 2021-07-01 | V5: 2022-01-01 | W5: 2022-07-01 | X5: 2023-01-01 | Y5: 2023-07-01 | Z5: 2024-01-01 | AA5: 2024-07-01 | AB5: 2025-01-01 | AC5: 2025-07-01 | AD5: 2026-01-01 | AE5: 2026-07-01 | AF5: 2027-01-01 | AG5: 2027-07-01 | AH5: 2028-01-01 | AI5: 2028-07-01 | AJ5: 2029-01-01 | AK5: 2029-07-01 | AL5: 2030-01-01 | AM5: 2030-07-01 | AN5: 2031-01-01 | AO5: 2031-07-01 | AP5: 2032-01-01 | AQ5: 2032-07-01
I6: Ending date | N6: =+EOMONTH(N5,$E$28-1) -> 2018-06-30 | O6: 2018-12-31 | P6: 2019-06-30 | Q6: 2019-12-31 | R6: 2020-06-30 | S6: 2020-12-31 | T6: 2021-06-30 | U6: 2021-12-31 | V6: 2022-06-30 | W6: 2022-12-31 | X6: 2023-06-30 | Y6: 2023-12-31 | Z6: 2024-06-30 | AA6: 2024-12-31 | AB6: 2025-06-30 | AC6: 2025-12-31 | AD6: 2026-06-30 | AE6: 2026-12-31 | AF6: 2027-06-30 | AG6: 2027-12-31 | AH6: 2028-06-30 | AI6: 2028-12-31 | AJ6: 2029-06-30 | AK6: 2029-12-31 | AL6: 2030-06-30 | AM6: 2030-12-31 | AN6: 2031-06-30 | AO6: 2031-12-31 | AP6: 2032-06-30 | AQ6: 2032-12-31
E7: sheet check | F7: =+SUM(G8:G1100) -> 0 | I7: Year | N7: =YEAR(N6) -> 2018 | O7: 2018 | P7: 2019 | Q7: 2019 | R7: 2020 | S7: 2020 | T7: 2021 | U7: 2021 | V7: 2022 | W7: 2022 | X7: 2023 | Y7: 2023 | Z7: 2024 | AA7: 2024 | AB7: 2025 | AC7: 2025 | AD7: 2026 | AE7: 2026 | AF7: 2027 | AG7: 2027 | AH7: 2028 | AI7: 2028 | AJ7: 2029 | AK7: 2029 | AL7: 2030 | AM7: 2030 | AN7: 2031 | AO7: 2031 | AP7: 2032 | AQ7: 2032
I8: Days (in period) | N8: =N6-N5+1 -> 181 | O8: 184 | P8: 181 | Q8: 184 | R8: 182 | S8: 184 | T8: 181 | U8: 184 | V8: 181 | W8: 184 | X8: 181 | Y8: 184 | Z8: 182 | AA8: 184 | AB8: 181 | AC8: 184 | AD8: 181 | AE8: 184 | AF8: 181 | AG8: 184 | AH8: 182 | AI8: 184 | AJ8: 181 | AK8: 184 | AL8: 181 | AM8: 184 | AN8: 181 | AO8: 184 | AP8: 182 | AQ8: 184
I9: Month | N9: =MONTH(N6) -> 6 | O9: 12 | P9: 6 | Q9: 12 | R9: 6 | S9: 12 | T9: 6 | U9: 12 | V9: 6 | W9: 12 | X9: 6 | Y9: 12 | Z9: 6 | AA9: 12 | AB9: 6 | AC9: 12 | AD9: 6 | AE9: 12 | AF9: 6 | AG9: 12 | AH9: 6 | AI9: 12 | AJ9: 6 | AK9: 12 | AL9: 6 | AM9: 12 | AN9: 6 | AO9: 12 | AP9: 6 | AQ9: 12
I10: Period counter | N10: =M10+1 -> 1 | O10: 2 | P10: 3 | Q10: 4 | R10: 5 | S10: 6 | T10: 7 | U10: 8 | V10: 9 | W10: 10 | X10: 11 | Y10: 12 | Z10: 13 | AA10: 14 | AB10: 15 | AC10: 16 | AD10: 17 | AE10: 18 | AF10: 19 | AG10: 20 | AH10: 21 | AI10: 22 | AJ10: 23 | AK10: 24 | AL10: 25 | AM10: 26 | AN10: 27 | AO10: 28 | AP10: 29 | AQ10: 30
I11: End of year | N11: =1*(N9=12) -> 0 | O11: 1 | P11: 0 | Q11: 1 | R11: 0 | S11: 1 | T11: 0 | U11: 1 | V11: 0 | W11: 1 | X11: 0 | Y11: 1 | Z11: 0 | AA11: 1 | AB11: 0 | AC11: 1 | AD11: 0 | AE11: 1 | AF11: 0 | AG11: 1 | AH11: 0 | AI11: 1 | AJ11: 0 | AK11: 1 | AL11: 0 | AM11: 1 | AN11: 0 | AO11: 1 | AP11: 0 | AQ11: 1
I12: End of semester | N12: =1*OR(N9=6,N9=12) -> 1 | O12: 1 | P12: 1 | Q12: 1 | R12: 1 | S12: 1 | T12: 1 | U12: 1 | V12: 1 | W12: 1 | X12: 1 | Y12: 1 | Z12: 1 | AA12: 1 | AB12: 1 | AC12: 1 | AD12: 1 | AE12: 1 | AF12: 1 | AG12: 1 | AH12: 1 | AI12: 1 | AJ12: 1 | AK12: 1 | AL12: 1 | AM12: 1 | AN12: 1 | AO12: 1 | AP12: 1 | AQ12: 1
I13: Fraction of year | N13: =+ROUND(N8/$E$23,1) -> 0.5 | O13: =+ROUND(O8/$E$23,1) -> 0.5 | P13: 0.5 | Q13: 0.5 | R13: 0.5 | S13: 0.5 | T13: 0.5 | U13: 0.5 | V13: 0.5 | W13: 0.5 | X13: 0.5 | Y13: 0.5 | Z13: 0.5 | AA13: 0.5 | AB13: 0.5 | AC13: 0.5 | AD13: 0.5 | AE13: 0.5 | AF13: 0.5 | AG13: 0.5 | AH13: 0.5 | AI13: 0.5 | AJ13: 0.5 | AK13: 0.5 | AL13: 0.5 | AM13: 0.5 | AN13: 0.5 | AO13: 0.5 | AP13: 0.5 | AQ13: 0.5
C16: TIMELINE | D16: Unit | E16: Input 1 | F16: Input 2 | G16: Check | I16: Total
C18: Model timing inputs
C20: Months in year | D20: months | E20: 12
C21: Days in average month | D21: days | E21: 30
C22: Days in semester | D22: days | E22: 180
C23: Days in average year | D23: days | E23: 360
C25: Model duration
C27: Model starting date | D27: date | E27: 2018-01-01
C28: Months in the period | D28: months | E28: 6
C30: Concession timing
C32: 1st regulatory period start date | D32: date | E32: 2020-01-01
C33: Concession duration | D33: years | E33: 30
C34: Concession end date | D34: data | E34: 2032-12-31
C35: Regulatory period duration | D35: years | E35: 5
C38: Model update
C40: Update date | D40: data | E40: 2019-12-31
C41: Forecast period start | D41: data | E41: =+E40+1 -> 2020-01-01
C44: Beneficio ACE update
C46: Last update date | D46: data | E46: 2018-12-31
C47: Forecast period start | D47: data | E47: =+E46+1 -> 2019-01-01
B50: FLAG | D50: Unit | E50: Input 1 | F50: Input 2 | G50: Check | I50: Total
C52: Concession period | D52: flag | I52: =+SUM(N52:AQ52) -> 26 | N52: =1*AND(N$5<=$E34,N$6>=$E32) -> 0 | O52: =1*AND(O$5<=$E34,O$6>=$E32) -> 0 | P52: 0 | Q52: 0 | R52: 1 | S52: 1 | T52: 1 | U52: 1 | V52: 1 | W52: 1 | X52: 1 | Y52: 1 | Z52: 1 | AA52: 1 | AB52: 1 | AC52: 1 | AD52: 1 | AE52: =1*AND(AE$5<=$E34,AE$6>=$E32) -> 1 | AF52: 1 | AG52: 1 | AH52: 1 | AI52: 1 | AJ52: 1 | AK52: 1 | AL52: 1 | AM52: 1 | AN52: 1 | AO52: 1 | AP52: 1 | AQ52: 1
C53: Regulatory period | D53: year | I53: =+SUM(N53:AQ53) -> 48 | N53: =+M53+1*OR(AND(N$5<=$E32,N$6>=$E32),COUNTIF($M53:M53,M53)=$E35*2) -> 0 | O53: =+N53+1*OR(AND(O$5<=$E32,O$6>=$E32),COUNTIF($M53:N53,N53)=$E35*2) -> 0 | P53: =+O53+1*OR(AND(P$5<=$E32,P$6>=$E32),COUNTIF($M53:O53,O53)=$E35*2) -> 0 | Q53: =+P53+1*OR(AND(Q$5<=$E32,Q$6>=$E32),COUNTIF($M53:P53,P53)=$E35*2) -> 0 | R53: =+Q53+1*OR(AND(R$5<=$E32,R$6>=$E32),COUNTIF($M53:Q53,Q53)=$E35*2) -> 1 | S53: =+R53+1*OR(AND(S$5<=$E32,S$6>=$E32),COUNTIF($M53:R53,R53)=$E35*2) -> 1 | T53: =+S53+1*OR(AND(T$5<=$E32,T$6>=$E32),COUNTIF($M53:S53,S53)=$E35*2) -> 1 | U53: =+T53+1*OR(AND(U$5<=$E32,U$6>=$E32),COUNTIF($M53:T53,T53)=$E35*2) -> 1 | V53: =+U53+1*OR(AND(V$5<=$E32,V$6>=$E32),COUNTIF($M53:U53,U53)=$E35*2) -> 1 | W53: =+V53+1*OR(AND(W$5<=$E32,W$6>=$E32),COUNTIF($M53:V53,V53)=$E35*2) -> 1 | X53: =+W53+1*OR(AND(X$5<=$E32,X$6>=$E32),COUNTIF($M53:W53,W53)=$E35*2) -> 1 | Y53: =+X53+1*OR(AND(Y$5<=$E32,Y$6>=$E32),COUNTIF($M53:X53,X53)=$E35*2) -> 1 | Z53: =+Y53+1*OR(AND(Z$5<=$E32,Z$6>=$E32),COUNTIF($M53:Y53,Y53)=$E35*2) -> 1 | AA53: =+Z53+1*OR(AND(AA$5<=$E32,AA$6>=$E32),COUNTIF($M53:Z53,Z53)=$E35*2) -> 1 | AB53: =+AA53+1*OR(AND(AB$5<=$E32,AB$6>=$E32),COUNTIF($M53:AA53,AA53)=$E35*2) -> 2 | AC53: =+AB53+1*OR(AND(AC$5<=$E32,AC$6>=$E32),COUNTIF($M53:AB53,AB53)=$E35*2) -> 2 | AD53: =+AC53+1*OR(AND(AD$5<=$E32,AD$6>=$E32),COUNTIF($M53:AC53,AC53)=$E35*2) -> 2 | AE53: =+AD53+1*OR(AND(AE$5<=$E32,AE$6>=$E32),COUNTIF($M53:AD53,AD53)=$E35*2) -> 2 | AF53: =+AE53+1*OR(AND(AF$5<=$E32,AF$6>=$E32),COUNTIF($M53:AE53,AE53)=$E35*2) -> 2 | AG53: =+AF53+1*OR(AND(AG$5<=$E32,AG$6>=$E32),COUNTIF($M53:AF53,AF53)=$E35*2) -> 2 | AH53: =+AG53+1*OR(AND(AH$5<=$E32,AH$6>=$E32),COUNTIF($M53:AG53,AG53)=$E35*2) -> 2 | AI53: =+AH53+1*OR(AND(AI$5<=$E32,AI$6>=$E32),COUNTIF($M53:AH53,AH53)=$E35*2) -> 2 | AJ53: =+AI53+1*OR(AND(AJ$5<=$E32,AJ$6>=$E32),COUNTIF($M53:AI53,AI53)=$E35*2) -> 2 | AK53: =+AJ53+1*OR(AND(AK$5<=$E32,AK$6>=$E32),COUNTIF($M53:AJ53,AJ53)=$E35*2) -> 2 | AL53: =+AK53+1*OR(AND(AL$5<=$E32,AL$6>=$E32),COUNTIF($M53:AK53,AK53)=$E35*2) -> 3 | AM53: =+AL53+1*OR(AND(AM$5<=$E32,AM$6>=$E32),COUNTIF($M53:AL53,AL53)=$E35*2) -> 3 | AN53: =+AM53+1*OR(AND(AN$5<=$E32,AN$6>=$E32),COUNTIF($M53:AM53,AM53)=$E35*2) -> 3 | AO53: =+AN53+1*OR(AND(AO$5<=$E32,AO$6>=$E32),COUNTIF($M53:AN53,AN53)=$E35*2) -> 3 | AP53: =+AO53+1*OR(AND(AP$5<=$E32,AP$6>=$E32),COUNTIF($M53:AO53,AO53)=$E35*2) -> 3 | AQ53: =+AP53+1*OR(AND(AQ$5<=$E32,AQ$6>=$E32),COUNTIF($M53:AP53,AP53)=$E35*2) -> 3
C54: Regulatory period year | D54: year | I54: =+SUM(N54:AQ54) -> 72 | N54: =IF(N53<>M53,1,M54+1*M11)*(N53<>0) -> 0 | O54: =IF(O53<>N53,1,N54+1*N11)*(O53<>0) -> 0 | P54: =IF(P53<>O53,1,O54+1*O11)*(P53<>0) -> 0 | Q54: =IF(Q53<>P53,1,P54+1*P11)*(Q53<>0) -> 0 | R54: =IF(R53<>Q53,1,Q54+1*Q11)*(R53<>0) -> 1 | S54: =IF(S53<>R53,1,R54+1*R11)*(S53<>0) -> 1 | T54: 2 | U54: 2 | V54: 3 | W54: 3 | X54: 4 | Y54: 4 | Z54: 5 | AA54: 5 | AB54: 1 | AC54: 1 | AD54: 2 | AE54: =IF(AE53<>AD53,1,AD54+1*AD11)*(AE53<>0) -> 2 | AF54: 3 | AG54: 3 | AH54: 4 | AI54: 4 | AJ54: 5 | AK54: 5 | AL54: 1 | AM54: 1 | AN54: 2 | AO54: 2 | AP54: 3 | AQ54: 3
C55: Base year | D55: flag | I55: =+SUM(N55:AQ55) -> 6 | N55: =1*(R54=1) -> 1 | O55: =1*(S54=1) -> 1 | P55: =1*(T54=1) -> 0 | Q55: 0 | R55: 0 | S55: 0 | T55: 0 | U55: 0 | V55: 0 | W55: 0 | X55: 1 | Y55: 1 | Z55: 0 | AA55: 0 | AB55: 0 | AC55: 0 | AD55: 0 | AE55: 0 | AF55: 0 | AG55: 0 | AH55: 1 | AI55: 1 | AJ55: 0 | AK55: 0 | AL55: 0 | AM55: 0 | AN55: =1*(AR54=1) -> 0 | AO55: =1*(AS54=1) -> 0 | AP55: =1*(AT54=1) -> 0 | AQ55: =1*(AU54=1) -> 0
C56: Bridge year | D56: flag | I56: =+SUM(N56:AQ56) -> 6 | N56: =1*(P54=1) -> 0 | O56: =1*(Q54=1) -> 0 | P56: =1*(R54=1) -> 1 | Q56: =1*(S54=1) -> 1 | R56: 0 | S56: 0 | T56: 0 | U56: 0 | V56: 0 | W56: 0 | X56: 0 | Y56: 0 | Z56: 1 | AA56: 1 | AB56: 0 | AC56: 0 | AD56: 0 | AE56: 0 | AF56: 0 | AG56: 0 | AH56: 0 | AI56: 0 | AJ56: 1 | AK56: 1 | AL56: 0 | AM56: 0 | AN56: =1*(AP54=1) -> 0 | AO56: =1*(AQ54=1) -> 0 | AP56: =1*(AR54=1) -> 0 | AQ56: =1*(AS54=1) -> 0
C58: Actual flag | D58: flag | I58: =+SUM(N58:AQ58) -> 4 | N58: =+(N6<=$E40)*1 -> 1 | O58: =+(O6<=$E40)*1 -> 1 | P58: 1 | Q58: 1 | R58: 0 | S58: 0 | T58: 0 | U58: 0 | V58: 0 | W58: 0 | X58: 0 | Y58: 0 | Z58: 0 | AA58: 0 | AB58: 0 | AC58: 0 | AD58: 0 | AE58: 0 | AF58: 0 | AG58: 0 | AH58: 0 | AI58: 0 | AJ58: 0 | AK58: 0 | AL58: 0 | AM58: 0 | AN58: 0 | AO58: 0 | AP58: 0 | AQ58: 0
C59: Forecast flag | D59: flag | I59: =+SUM(N59:AQ59) -> 26 | N59: =+AND(N6>$E40,N6<=$E34)*1 -> 0 | O59: =+AND(O6>$E40,O6<=$E34)*1 -> 0 | P59: 0 | Q59: 0 | R59: 1 | S59: 1 | T59: 1 | U59: 1 | V59: 1 | W59: 1 | X59: 1 | Y59: 1 | Z59: 1 | AA59: 1 | AB59: 1 | AC59: 1 | AD59: 1 | AE59: 1 | AF59: 1 | AG59: 1 | AH59: 1 | AI59: 1 | AJ59: 1 | AK59: 1 | AL59: 1 | AM59: 1 | AN59: 1 | AO59: 1 | AP59: 1 | AQ59: 1
C60: Flag Beneficio ACE forecast | D60: flag | I60: =+SUM(N60:AQ60) -> 28 | N60: =+AND(N6>$E$46,N6<=$E$34)*1 -> 0 | O60: =+AND(O6>$E$46,O6<=$E$34)*1 -> 0 | P60: =+AND(P6>$E$46,P6<=$E$34)*1 -> 1 | Q60: 1 | R60: 1 | S60: 1 | T60: 1 | U60: 1 | V60: 1 | W60: 1 | X60: 1 | Y60: 1 | Z60: 1 | AA60: 1 | AB60: 1 | AC60: 1 | AD60: 1 | AE60: 1 | AF60: 1 | AG60: 1 | AH60: 1 | AI60: 1 | AJ60: 1 | AK60: 1 | AL60: 1 | AM60: 1 | AN60: 1 | AO60: 1 | AP60: 1 | AQ60: 1
B63: GENERAL INPUTS | D63: Unit | E63: Input 1 | F63: Input 2 | G63: Check | I63: Total
B65: =+ROUND(MAX($B$64:B64)+1,0) -> 1 | C65: DRIVERS
C67: Traffic Volumes - Base Scenario
C69: Passante Class A | D69: € / vkm | N69: =+INDEX(Actual!$N21:$AS21,,MATCH(Input!N$7, Actual!$N$7:$AS$7,0))*N$13 -> 223238.5546 | O69: =+INDEX(Actual!$N21:$AS21,,MATCH(Input!O$7, Actual!$N$7:$AS$7,0))*O$13 -> 223238.5546 | P69: =+INDEX(Actual!$N21:$AS21,,MATCH(Input!P$7, Actual!$N$7:$AS$7,0))*P$13 -> 223110.6663 | Q69: =+INDEX(Actual!$N21:$AS21,,MATCH(Input!Q$7, Actual!$N$7:$AS$7,0))*Q$13 -> 223110.6663 | R69: =+INDEX(Actual!$N21:$AS21,,MATCH(Input!R$7, Actual!$N$7:$AS$7,0))*R$13 -> 141038.0319 | S69: =+INDEX(Actual!$N21:$AS21,,MATCH(Input!S$7, Actual!$N$7:$AS$7,0))*S$13 -> 141038.0319 | T69: =+INDEX(Actual!$N21:$AS21,,MATCH(Input!T$7, Actual!$N$7:$AS$7,0))*T$13 -> 204312.4494 | U69: =+INDEX(Actual!$N21:$AS21,,MATCH(Input!U$7, Actual!$N$7:$AS$7,0))*U$13 -> 204312.4494 | V69: =+INDEX(Actual!$N21:$AS21,,MATCH(Input!V$7, Actual!$N$7:$AS$7,0))*V$13 -> 212525.8068 | W69: =+INDEX(Actual!$N21:$AS21,,MATCH(Input!W$7, Actual!$N$7:$AS$7,0))*W$13 -> 212525.8068 | X69: =+INDEX(Actual!$N21:$AS21,,MATCH(Input!X$7, Actual!$N$7:$AS$7,0))*X$13 -> 215906.0637 | Y69: =+INDEX(Actual!$N21:$AS21,,MATCH(Input!Y$7, Actual!$N$7:$AS$7,0))*Y$13 -> 215906.0637 | Z69: =+INDEX(Actual!$N21:$AS21,,MATCH(Input!Z$7, Actual!$N$7:$AS$7,0))*Z$13 -> 218393.066 | AA69: =+INDEX(Actual!$N21:$AS21,,MATCH(Input!AA$7, Actual!$N$7:$AS$7,0))*AA$13 -> 218393.066 | AB69: =+INDEX(Actual!$N21:$AS21,,MATCH(Input!AB$7, Actual!$N$7:$AS$7,0))*AB$13 -> 220524.1189 | AC69: =+INDEX(Actual!$N21:$AS21,,MATCH(Input!AC$7, Actual!$N$7:$AS$7,0))*AC$13 -> 220524.1189 | AD69: =+INDEX(Actual!$N21:$AS21,,MATCH(Input!AD$7, Actual!$N$7:$AS$7,0))*AD$13 -> 222294.4207 | AE69: =+INDEX(Actual!$N21:$AS21,,MATCH(Input!AE$7, Actual!$N$7:$AS$7,0))*AE$13 -> 222294.4207 | AF69: =+INDEX(Actual!$N21:$AS21,,MATCH(Input!AF$7, Actual!$N$7:$AS$7,0))*AF$13 -> 223993.6769 | AG69: =+INDEX(Actual!$N21:$AS21,,MATCH(Input!AG$7, Actual!$N$7:$AS$7,0))*AG$13 -> 223993.6769 | AH69: =+INDEX(Actual!$N21:$AS21,,MATCH(Input!AH$7, Actual!$N$7:$AS$7,0))*AH$13 -> 225534.6905 | AI69: =+INDEX(Actual!$N21:$AS21,,MATCH(Input!AI$7, Actual!$N$7:$AS$7,0))*AI$13 -> 225534.6905 | AJ69: =+INDEX(Actual!$N21:$AS21,,MATCH(Input!AJ$7, Actual!$N$7:$AS$7,0))*AJ$13 -> 227136.7467 | AK69: =+INDEX(Actual!$N21:$AS21,,MATCH(Input!AK$7, Actual!$N$7:$AS$7,0))*AK$13 -> 227136.7467 | AL69: =+INDEX(Actual!$N21:$AS21,,MATCH(Input!AL$7, Actual!$N$7:$AS$7,0))*AL$13 -> 228737.9524 | AM69: =+INDEX(Actual!$N21:$AS21,,MATCH(Input!AM$7, Actual!$N$7:$AS$7,0))*AM$13 -> 228737.9524 | AN69: =+INDEX(Actual!$N21:$AS21,,MATCH(Input!AN$7, Actual!$N$7:$AS$7,0))*AN$13 -> 230338.1292 | AO69: =+INDEX(Actual!$N21:$AS21,,MATCH(Input!AO$7, Actual!$N$7:$AS$7,0))*AO$13 -> 230338.1292 | AP69: =+INDEX(Actual!$N21:$AS21,,MATCH(Input!AP$7, Actual!$N$7:$AS$7,0))*AP$13 -> 231937.0975 | AQ69: =+INDEX(Actual!$N21:$AS21,,MATCH(Input!AQ$7, Actual!$N$7:$AS$7,0))*AQ$13 -> 231937.0975
C70: Passante Class B | D70: € / vkm | N70: =+INDEX(Actual!$N22:$AS22,,MATCH(Input!N$7, Actual!$N$7:$AS$7,0))*N$13 -> 34014.49336 | O70: =+INDEX(Actual!$N22:$AS22,,MATCH(Input!O$7, Actual!$N$7:$AS$7,0))*O$13 -> 34014.49336 | P70: =+INDEX(Actual!$N22:$AS22,,MATCH(Input!P$7, Actual!$N$7:$AS$7,0))*P$13 -> 34706.9905 | Q70: =+INDEX(Actual!$N22:$AS22,,MATCH(Input!Q$7, Actual!$N$7:$AS$7,0))*Q$13 -> 34706.9905 | R70: =+INDEX(Actual!$N22:$AS22,,MATCH(Input!R$7, Actual!$N$7:$AS$7,0))*R$13 -> 25821.2661 | S70: =+INDEX(Actual!$N22:$AS22,,MATCH(Input!S$7, Actual!$N$7:$AS$7,0))*S$13 -> 25821.2661 | T70: =+INDEX(Actual!$N22:$AS22,,MATCH(Input!T$7, Actual!$N$7:$AS$7,0))*T$13 -> 32768.42024 | U70: =+INDEX(Actual!$N22:$AS22,,MATCH(Input!U$7, Actual!$N$7:$AS$7,0))*U$13 -> 32768.42024 | V70: =+INDEX(Actual!$N22:$AS22,,MATCH(Input!V$7, Actual!$N$7:$AS$7,0))*V$13 -> 33675.01306 | W70: =+INDEX(Actual!$N22:$AS22,,MATCH(Input!W$7, Actual!$N$7:$AS$7,0))*W$13 -> 33675.01306 | X70: =+INDEX(Actual!$N22:$AS22,,MATCH(Input!X$7, Actual!$N$7:$AS$7,0))*X$13 -> 34165.91116 | Y70: =+INDEX(Actual!$N22:$AS22,,MATCH(Input!Y$7, Actual!$N$7:$AS$7,0))*Y$13 -> 34165.91116 | Z70: =+INDEX(Actual!$N22:$AS22,,MATCH(Input!Z$7, Actual!$N$7:$AS$7,0))*Z$13 -> 34608.79746 | AA70: =+INDEX(Actual!$N22:$AS22,,MATCH(Input!AA$7, Actual!$N$7:$AS$7,0))*AA$13 -> 34608.79746 | AB70: =+INDEX(Actual!$N22:$AS22,,MATCH(Input!AB$7, Actual!$N$7:$AS$7,0))*AB$13 -> 34994.00464 | AC70: =+INDEX(Actual!$N22:$AS22,,MATCH(Input!AC$7, Actual!$N$7:$AS$7,0))*AC$13 -> 34994.00464 | AD70: =+INDEX(Actual!$N22:$AS22,,MATCH(Input!AD$7, Actual!$N$7:$AS$7,0))*AD$13 -> 35339.71743 | AE70: =+INDEX(Actual!$N22:$AS22,,MATCH(Input!AE$7, Actual!$N$7:$AS$7,0))*AE$13 -> 35339.71743 | AF70: =+INDEX(Actual!$N22:$AS22,,MATCH(Input!AF$7, Actual!$N$7:$AS$7,0))*AF$13 -> 35678.04057 | AG70: =+INDEX(Actual!$N22:$AS22,,MATCH(Input!AG$7, Actual!$N$7:$AS$7,0))*AG$13 -> 35678.04057 | AH70: =+INDEX(Actual!$N22:$AS22,,MATCH(Input!AH$7, Actual!$N$7:$AS$7,0))*AH$13 -> 36011.42887 | AI70: =+INDEX(Actual!$N22:$AS22,,MATCH(Input!AI$7, Actual!$N$7:$AS$7,0))*AI$13 -> 36011.42887 | AJ70: =+INDEX(Actual!$N22:$AS22,,MATCH(Input!AJ$7, Actual!$N$7:$AS$7,0))*AJ$13 -> 36348.84557 | AK70: =+INDEX(Actual!$N22:$AS22,,MATCH(Input!AK$7, Actual!$N$7:$AS$7,0))*AK$13 -> 36348.84557 | AL70: =+INDEX(Actual!$N22:$AS22,,MATCH(Input!AL$7, Actual!$N$7:$AS$7,0))*AL$13 -> 36687.18691 | AM70: =+INDEX(Actual!$N22:$AS22,,MATCH(Input!AM$7, Actual!$N$7:$AS$7,0))*AM$13 -> 36687.18691 | AN70: =+INDEX(Actual!$N22:$AS22,,MATCH(Input!AN$7, Actual!$N$7:$AS$7,0))*AN$13 -> 37026.41992 | AO70: =+INDEX(Actual!$N22:$AS22,,MATCH(Input!AO$7, Actual!$N$7:$AS$7,0))*AO$13 -> 37026.41992 | AP70: =+INDEX(Actual!$N22:$AS22,,MATCH(Input!AP$7, Actual!$N$7:$AS$7,0))*AP$13 -> 37366.51115 | AQ70: =+INDEX(Actual!$N22:$AS22,,MATCH(Input!AQ$7, Actual!$N$7:$AS$7,0))*AQ$13 -> 37366.51115
C71: Passante Class 3 | D71: € / vkm | N71: =+INDEX(Actual!$N23:$AS23,,MATCH(Input!N$7, Actual!$N$7:$AS$7,0))*N$13 -> 6343.315454 | O71: =+INDEX(Actual!$N23:$AS23,,MATCH(Input!O$7, Actual!$N$7:$AS$7,0))*O$13 -> 6343.315454 | P71: =+INDEX(Actual!$N23:$AS23,,MATCH(Input!P$7, Actual!$N$7:$AS$7,0))*P$13 -> 6477.046917 | Q71: =+INDEX(Actual!$N23:$AS23,,MATCH(Input!Q$7, Actual!$N$7:$AS$7,0))*Q$13 -> 6477.046917 | R71: =+INDEX(Actual!$N23:$AS23,,MATCH(Input!R$7, Actual!$N$7:$AS$7,0))*R$13 -> 6024.294638 | S71: =+INDEX(Actual!$N23:$AS23,,MATCH(Input!S$7, Actual!$N$7:$AS$7,0))*S$13 -> 6024.294638 | T71: =+INDEX(Actual!$N23:$AS23,,MATCH(Input!T$7, Actual!$N$7:$AS$7,0))*T$13 -> 6379.888222 | U71: =+INDEX(Actual!$N23:$AS23,,MATCH(Input!U$7, Actual!$N$7:$AS$7,0))*U$13 -> 6379.888222 | V71: =+INDEX(Actual!$N23:$AS23,,MATCH(Input!V$7, Actual!$N$7:$AS$7,0))*V$13 -> 6416.663421 | W71: =+INDEX(Actual!$N23:$AS23,,MATCH(Input!W$7, Actual!$N$7:$AS$7,0))*W$13 -> 6416.663421 | X71: =+INDEX(Actual!$N23:$AS23,,MATCH(Input!X$7, Actual!$N$7:$AS$7,0))*X$13 -> 6464.353939 | Y71: =+INDEX(Actual!$N23:$AS23,,MATCH(Input!Y$7, Actual!$N$7:$AS$7,0))*Y$13 -> 6464.353939 | Z71: =+INDEX(Actual!$N23:$AS23,,MATCH(Input!Z$7, Actual!$N$7:$AS$7,0))*Z$13 -> 6533.370268 | AA71: =+INDEX(Actual!$N23:$AS23,,MATCH(Input!AA$7, Actual!$N$7:$AS$7,0))*AA$13 -> 6533.370268 | AB71: =+INDEX(Actual!$N23:$AS23,,MATCH(Input!AB$7, Actual!$N$7:$AS$7,0))*AB$13 -> 6607.592303 | AC71: =+INDEX(Actual!$N23:$AS23,,MATCH(Input!AC$7, Actual!$N$7:$AS$7,0))*AC$13 -> 6607.592303 | AD71: =+INDEX(Actual!$N23:$AS23,,MATCH(Input!AD$7, Actual!$N$7:$AS$7,0))*AD$13 -> 6680.064655 | AE71: =+INDEX(Actual!$N23:$AS23,,MATCH(Input!AE$7, Actual!$N$7:$AS$7,0))*AE$13 -> 6680.064655 | AF71: =+INDEX(Actual!$N23:$AS23,,MATCH(Input!AF$7, Actual!$N$7:$AS$7,0))*AF$13 -> 6752.690359 | AG71: =+INDEX(Actual!$N23:$AS23,,MATCH(Input!AG$7, Actual!$N$7:$AS$7,0))*AG$13 -> 6752.690359 | AH71: =+INDEX(Actual!$N23:$AS23,,MATCH(Input!AH$7, Actual!$N$7:$AS$7,0))*AH$13 -> 6825.619415 | AI71: =+INDEX(Actual!$N23:$AS23,,MATCH(Input!AI$7, Actual!$N$7:$AS$7,0))*AI$13 -> 6825.619415 | AJ71: =+INDEX(Actual!$N23:$AS23,,MATCH(Input!AJ$7, Actual!$N$7:$AS$7,0))*AJ$13 -> 6899.336104 | AK71: =+INDEX(Actual!$N23:$AS23,,MATCH(Input!AK$7, Actual!$N$7:$AS$7,0))*AK$13 -> 6899.336104 | AL71: =+INDEX(Actual!$N23:$AS23,,MATCH(Input!AL$7, Actual!$N$7:$AS$7,0))*AL$13 -> 6973.371288 | AM71: =+INDEX(Actual!$N23:$AS23,,MATCH(Input!AM$7, Actual!$N$7:$AS$7,0))*AM$13 -> 6973.371288 | AN71: =+INDEX(Actual!$N23:$AS23,,MATCH(Input!AN$7, Actual!$N$7:$AS$7,0))*AN$13 -> 7047.718154 | AO71: =+INDEX(Actual!$N23:$AS23,,MATCH(Input!AO$7, Actual!$N$7:$AS$7,0))*AO$13 -> 7047.718154 | AP71: =+INDEX(Actual!$N23:$AS23,,MATCH(Input!AP$7, Actual!$N$7:$AS$7,0))*AP$13 -> 7122.369753 | AQ71: =+INDEX(Actual!$N23:$AS23,,MATCH(Input!AQ$7, Actual!$N$7:$AS$7,0))*AQ$13 -> 7122.369753
C72: Passante Class 4 | D72: € / vkm | N72: =+INDEX(Actual!$N24:$AS24,,MATCH(Input!N$7, Actual!$N$7:$AS$7,0))*N$13 -> 5358.832025 | O72: =+INDEX(Actual!$N24:$AS24,,MATCH(Input!O$7, Actual!$N$7:$AS$7,0))*O$13 -> 5358.832025 | P72: =+INDEX(Actual!$N24:$AS24,,MATCH(Input!P$7, Actual!$N$7:$AS$7,0))*P$13 -> 5471.808346 | Q72: =+INDEX(Actual!$N24:$AS24,,MATCH(Input!Q$7, Actual!$N$7:$AS$7,0))*Q$13 -> 5471.808346 | R72: =+INDEX(Actual!$N24:$AS24,,MATCH(Input!R$7, Actual!$N$7:$AS$7,0))*R$13 -> 5089.323283 | S72: =+INDEX(Actual!$N24:$AS24,,MATCH(Input!S$7, Actual!$N$7:$AS$7,0))*S$13 -> 5089.323283 | T72: =+INDEX(Actual!$N24:$AS24,,MATCH(Input!T$7, Actual!$N$7:$AS$7,0))*T$13 -> 5389.728694 | U72: =+INDEX(Actual!$N24:$AS24,,MATCH(Input!U$7, Actual!$N$7:$AS$7,0))*U$13 -> 5389.728694 | V72: =+INDEX(Actual!$N24:$AS24,,MATCH(Input!V$7, Actual!$N$7:$AS$7,0))*V$13 -> 5420.796377 | W72: =+INDEX(Actual!$N24:$AS24,,MATCH(Input!W$7, Actual!$N$7:$AS$7,0))*W$13 -> 5420.796377 | X72: =+INDEX(Actual!$N24:$AS24,,MATCH(Input!X$7, Actual!$N$7:$AS$7,0))*X$13 -> 5461.08532 | Y72: =+INDEX(Actual!$N24:$AS24,,MATCH(Input!Y$7, Actual!$N$7:$AS$7,0))*Y$13 -> 5461.08532 | Z72: =+INDEX(Actual!$N24:$AS24,,MATCH(Input!Z$7, Actual!$N$7:$AS$7,0))*Z$13 -> 5519.390306 | AA72: =+INDEX(Actual!$N24:$AS24,,MATCH(Input!AA$7, Actual!$N$7:$AS$7,0))*AA$13 -> 5519.390306 | AB72: =+INDEX(Actual!$N24:$AS24,,MATCH(Input!AB$7, Actual!$N$7:$AS$7,0))*AB$13 -> 5582.093071 | AC72: =+INDEX(Actual!$N24:$AS24,,MATCH(Input!AC$7, Actual!$N$7:$AS$7,0))*AC$13 -> 5582.093071 | AD72: =+INDEX(Actual!$N24:$AS24,,MATCH(Input!AD$7, Actual!$N$7:$AS$7,0))*AD$13 -> 5643.317703 | AE72: =+INDEX(Actual!$N24:$AS24,,MATCH(Input!AE$7, Actual!$N$7:$AS$7,0))*AE$13 -> 5643.317703 | AF72: =+INDEX(Actual!$N24:$AS24,,MATCH(Input!AF$7, Actual!$N$7:$AS$7,0))*AF$13 -> 5704.671888 | AG72: =+INDEX(Actual!$N24:$AS24,,MATCH(Input!AG$7, Actual!$N$7:$AS$7,0))*AG$13 -> 5704.671888 | AH72: =+INDEX(Actual!$N24:$AS24,,MATCH(Input!AH$7, Actual!$N$7:$AS$7,0))*AH$13 -> 5766.282344 | AI72: =+INDEX(Actual!$N24:$AS24,,MATCH(Input!AI$7, Actual!$N$7:$AS$7,0))*AI$13 -> 5766.282344 | AJ72: =+INDEX(Actual!$N24:$AS24,,MATCH(Input!AJ$7, Actual!$N$7:$AS$7,0))*AJ$13 -> 5828.558194 | AK72: =+INDEX(Actual!$N24:$AS24,,MATCH(Input!AK$7, Actual!$N$7:$AS$7,0))*AK$13 -> 5828.558194 | AL72: =+INDEX(Actual!$N24:$AS24,,MATCH(Input!AL$7, Actual!$N$7:$AS$7,0))*AL$13 -> 5891.103107 | AM72: =+INDEX(Actual!$N24:$AS24,,MATCH(Input!AM$7, Actual!$N$7:$AS$7,0))*AM$13 -> 5891.103107 | AN72: =+INDEX(Actual!$N24:$AS24,,MATCH(Input!AN$7, Actual!$N$7:$AS$7,0))*AN$13 -> 5953.911329 | AO72: =+INDEX(Actual!$N24:$AS24,,MATCH(Input!AO$7, Actual!$N$7:$AS$7,0))*AO$13 -> 5953.911329 | AP72: =+INDEX(Actual!$N24:$AS24,,MATCH(Input!AP$7, Actual!$N$7:$AS$7,0))*AP$13 -> 6016.97699 | AQ72: =+INDEX(Actual!$N24:$AS24,,MATCH(Input!AQ$7, Actual!$N$7:$AS$7,0))*AQ$13 -> 6016.97699
C73: Passante Class 5 | D73: € / vkm | N73: =+INDEX(Actual!$N25:$AS25,,MATCH(Input!N$7, Actual!$N$7:$AS$7,0))*N$13 -> 55096.01124 | O73: =+INDEX(Actual!$N25:$AS25,,MATCH(Input!O$7, Actual!$N$7:$AS$7,0))*O$13 -> 55096.01124 | P73: =+INDEX(Actual!$N25:$AS25,,MATCH(Input!P$7, Actual!$N$7:$AS$7,0))*P$13 -> 56257.56 | Q73: =+INDEX(Actual!$N25:$AS25,,MATCH(Input!Q$7, Actual!$N$7:$AS$7,0))*Q$13 -> 56257.56 | R73: =+INDEX(Actual!$N25:$AS25,,MATCH(Input!R$7, Actual!$N$7:$AS$7,0))*R$13 -> 52325.09837 | S73: =+INDEX(Actual!$N25:$AS25,,MATCH(Input!S$7, Actual!$N$7:$AS$7,0))*S$13 -> 52325.09837 | T73: =+INDEX(Actual!$N25:$AS25,,MATCH(Input!T$7, Actual!$N$7:$AS$7,0))*T$13 -> 55413.67061 | U73: =+INDEX(Actual!$N25:$AS25,,MATCH(Input!U$7, Actual!$N$7:$AS$7,0))*U$13 -> 55413.67061 | V73: =+INDEX(Actual!$N25:$AS25,,MATCH(Input!V$7, Actual!$N$7:$AS$7,0))*V$13 -> 55733.08824 | W73: =+INDEX(Actual!$N25:$AS25,,MATCH(Input!W$7, Actual!$N$7:$AS$7,0))*W$13 -> 55733.08824 | X73: =+INDEX(Actual!$N25:$AS25,,MATCH(Input!X$7, Actual!$N$7:$AS$7,0))*X$13 -> 56147.31285 | Y73: =+INDEX(Actual!$N25:$AS25,,MATCH(Input!Y$7, Actual!$N$7:$AS$7,0))*Y$13 -> 56147.31285 | Z73: =+INDEX(Actual!$N25:$AS25,,MATCH(Input!Z$7, Actual!$N$7:$AS$7,0))*Z$13 -> 56746.76663 | AA73: =+INDEX(Actual!$N25:$AS25,,MATCH(Input!AA$7, Actual!$N$7:$AS$7,0))*AA$13 -> 56746.76663 | AB73: =+INDEX(Actual!$N25:$AS25,,MATCH(Input!AB$7, Actual!$N$7:$AS$7,0))*AB$13 -> 57391.43551 | AC73: =+INDEX(Actual!$N25:$AS25,,MATCH(Input!AC$7, Actual!$N$7:$AS$7,0))*AC$13 -> 57391.43551 | AD73: =+INDEX(Actual!$N25:$AS25,,MATCH(Input!AD$7, Actual!$N$7:$AS$7,0))*AD$13 -> 58020.9072 | AE73: =+INDEX(Actual!$N25:$AS25,,MATCH(Input!AE$7, Actual!$N$7:$AS$7,0))*AE$13 -> 58020.9072 | AF73: =+INDEX(Actual!$N25:$AS25,,MATCH(Input!AF$7, Actual!$N$7:$AS$7,0))*AF$13 -> 58651.71086 | AG73: =+INDEX(Actual!$N25:$AS25,,MATCH(Input!AG$7, Actual!$N$7:$AS$7,0))*AG$13 -> 58651.71086 | AH73: =+INDEX(Actual!$N25:$AS25,,MATCH(Input!AH$7, Actual!$N$7:$AS$7,0))*AH$13 -> 59285.14934 | AI73: =+INDEX(Actual!$N25:$AS25,,MATCH(Input!AI$7, Actual!$N$7:$AS$7,0))*AI$13 -> 59285.14934 | AJ73: =+INDEX(Actual!$N25:$AS25,,MATCH(Input!AJ$7, Actual!$N$7:$AS$7,0))*AJ$13 -> 59925.42895 | AK73: =+INDEX(Actual!$N25:$AS25,,MATCH(Input!AK$7, Actual!$N$7:$AS$7,0))*AK$13 -> 59925.42895 | AL73: =+INDEX(Actual!$N25:$AS25,,MATCH(Input!AL$7, Actual!$N$7:$AS$7,0))*AL$13 -> 60568.4749 | AM73: =+INDEX(Actual!$N25:$AS25,,MATCH(Input!AM$7, Actual!$N$7:$AS$7,0))*AM$13 -> 60568.4749 | AN73: =+INDEX(Actual!$N25:$AS25,,MATCH(Input!AN$7, Actual!$N$7:$AS$7,0))*AN$13 -> 61214.22802 | AO73: =+INDEX(Actual!$N25:$AS25,,MATCH(Input!AO$7, Actual!$N$7:$AS$7,0))*AO$13 -> 61214.22802 | AP73: =+INDEX(Actual!$N25:$AS25,,MATCH(Input!AP$7, Actual!$N$7:$AS$7,0))*AP$13 -> 61862.62796 | AQ73: =+INDEX(Actual!$N25:$AS25,,MATCH(Input!AQ$7, Actual!$N$7:$AS$7,0))*AQ$13 -> 61862.62796
C74: Closed System Class A | D74: € / vkm | N74: =+INDEX(Actual!$N26:$AS26,,MATCH(Input!N$7, Actual!$N$7:$AS$7,0))*N$13 -> 184792.6813 | O74: =+INDEX(Actual!$N26:$AS26,,MATCH(Input!O$7, Actual!$N$7:$AS$7,0))*O$13 -> 184792.6813 | P74: =+INDEX(Actual!$N26:$AS26,,MATCH(Input!P$7, Actual!$N$7:$AS$7,0))*P$13 -> 184148.5742 | Q74: =+INDEX(Actual!$N26:$AS26,,MATCH(Input!Q$7, Actual!$N$7:$AS$7,0))*Q$13 -> 184148.5742 | R74: =+INDEX(Actual!$N26:$AS26,,MATCH(Input!R$7, Actual!$N$7:$AS$7,0))*R$13 -> 115941.2801 | S74: =+INDEX(Actual!$N26:$AS26,,MATCH(Input!S$7, Actual!$N$7:$AS$7,0))*S$13 -> 115941.2801 | T74: =+INDEX(Actual!$N26:$AS26,,MATCH(Input!T$7, Actual!$N$7:$AS$7,0))*T$13 -> 169986.3228 | U74: =+INDEX(Actual!$N26:$AS26,,MATCH(Input!U$7, Actual!$N$7:$AS$7,0))*U$13 -> 169986.3228 | V74: =+INDEX(Actual!$N26:$AS26,,MATCH(Input!V$7, Actual!$N$7:$AS$7,0))*V$13 -> 178049.0933 | W74: =+INDEX(Actual!$N26:$AS26,,MATCH(Input!W$7, Actual!$N$7:$AS$7,0))*W$13 -> 178049.0933 | X74: =+INDEX(Actual!$N26:$AS26,,MATCH(Input!X$7, Actual!$N$7:$AS$7,0))*X$13 -> 181717.3023 | Y74: =+INDEX(Actual!$N26:$AS26,,MATCH(Input!Y$7, Actual!$N$7:$AS$7,0))*Y$13 -> 181717.3023 | Z74: =+INDEX(Actual!$N26:$AS26,,MATCH(Input!Z$7, Actual!$N$7:$AS$7,0))*Z$13 -> 184237.6071 | AA74: =+INDEX(Actual!$N26:$AS26,,MATCH(Input!AA$7, Actual!$N$7:$AS$7,0))*AA$13 -> 184237.6071 | AB74: =+INDEX(Actual!$N26:$AS26,,MATCH(Input!AB$7, Actual!$N$7:$AS$7,0))*AB$13 -> 186039.0088 | AC74: =+INDEX(Actual!$N26:$AS26,,MATCH(Input!AC$7, Actual!$N$7:$AS$7,0))*AC$13 -> 186039.0088 | AD74: =+INDEX(Actual!$N26:$AS26,,MATCH(Input!AD$7, Actual!$N$7:$AS$7,0))*AD$13 -> 187533.9337 | AE74: =+INDEX(Actual!$N26:$AS26,,MATCH(Input!AE$7, Actual!$N$7:$AS$7,0))*AE$13 -> 187533.9337 | AF74: =+INDEX(Actual!$N26:$AS26,,MATCH(Input!AF$7, Actual!$N$7:$AS$7,0))*AF$13 -> 188968.4532 | AG74: =+INDEX(Actual!$N26:$AS26,,MATCH(Input!AG$7, Actual!$N$7:$AS$7,0))*AG$13 -> 188968.4532 | AH74: =+INDEX(Actual!$N26:$AS26,,MATCH(Input!AH$7, Actual!$N$7:$AS$7,0))*AH$13 -> 190268.5031 | AI74: =+INDEX(Actual!$N26:$AS26,,MATCH(Input!AI$7, Actual!$N$7:$AS$7,0))*AI$13 -> 190268.5031 | AJ74: =+INDEX(Actual!$N26:$AS26,,MATCH(Input!AJ$7, Actual!$N$7:$AS$7,0))*AJ$13 -> 191620.0505 | AK74: =+INDEX(Actual!$N26:$AS26,,MATCH(Input!AK$7, Actual!$N$7:$AS$7,0))*AK$13 -> 191620.0505 | AL74: =+INDEX(Actual!$N26:$AS26,,MATCH(Input!AL$7, Actual!$N$7:$AS$7,0))*AL$13 -> 192970.8805 | AM74: =+INDEX(Actual!$N26:$AS26,,MATCH(Input!AM$7, Actual!$N$7:$AS$7,0))*AM$13 -> 192970.8805 | AN74: =+INDEX(Actual!$N26:$AS26,,MATCH(Input!AN$7, Actual!$N$7:$AS$7,0))*AN$13 -> 194320.8424 | AO74: =+INDEX(Actual!$N26:$AS26,,MATCH(Input!AO$7, Actual!$N$7:$AS$7,0))*AO$13 -> 194320.8424 | AP74: =+INDEX(Actual!$N26:$AS26,,MATCH(Input!AP$7, Actual!$N$7:$AS$7,0))*AP$13 -> 195669.7848 | AQ74: =+INDEX(Actual!$N26:$AS26,,MATCH(Input!AQ$7, Actual!$N$7:$AS$7,0))*AQ$13 -> 195669.7848
C75: Closed System Class B | D75: € / vkm | N75: =+INDEX(Actual!$N27:$AS27,,MATCH(Input!N$7, Actual!$N$7:$AS$7,0))*N$13 -> 23823.04487 | O75: =+INDEX(Actual!$N27:$AS27,,MATCH(Input!O$7, Actual!$N$7:$AS$7,0))*O$13 -> 23823.04487 | P75: =+INDEX(Actual!$N27:$AS27,,MATCH(Input!P$7, Actual!$N$7:$AS$7,0))*P$13 -> 24045.66818 | Q75: =+INDEX(Actual!$N27:$AS27,,MATCH(Input!Q$7, Actual!$N$7:$AS$7,0))*Q$13 -> 24045.66818 | R75: =+INDEX(Actual!$N27:$AS27,,MATCH(Input!R$7, Actual!$N$7:$AS$7,0))*R$13 -> 17815.19506 | S75: =+INDEX(Actual!$N27:$AS27,,MATCH(Input!S$7, Actual!$N$7:$AS$7,0))*S$13 -> 17815.19506 | T75: =+INDEX(Actual!$N27:$AS27,,MATCH(Input!T$7, Actual!$N$7:$AS$7,0))*T$13 -> 22818.20228 | U75: =+INDEX(Actual!$N27:$AS27,,MATCH(Input!U$7, Actual!$N$7:$AS$7,0))*U$13 -> 22818.20228 | V75: =+INDEX(Actual!$N27:$AS27,,MATCH(Input!V$7, Actual!$N$7:$AS$7,0))*V$13 -> 23563.81219 | W75: =+INDEX(Actual!$N27:$AS27,,MATCH(Input!W$7, Actual!$N$7:$AS$7,0))*W$13 -> 23563.81219 | X75: =+INDEX(Actual!$N27:$AS27,,MATCH(Input!X$7, Actual!$N$7:$AS$7,0))*X$13 -> 23984.30638 | Y75: =+INDEX(Actual!$N27:$AS27,,MATCH(Input!Y$7, Actual!$N$7:$AS$7,0))*Y$13 -> 23984.30638 | Z75: =+INDEX(Actual!$N27:$AS27,,MATCH(Input!Z$7, Actual!$N$7:$AS$7,0))*Z$13 -> 24334.79636 | AA75: =+INDEX(Actual!$N27:$AS27,,MATCH(Input!AA$7, Actual!$N$7:$AS$7,0))*AA$13 -> 24334.79636 | AB75: =+INDEX(Actual!$N27:$AS27,,MATCH(Input!AB$7, Actual!$N$7:$AS$7,0))*AB$13 -> 24606.15844 | AC75: =+INDEX(Actual!$N27:$AS27,,MATCH(Input!AC$7, Actual!$N$7:$AS$7,0))*AC$13 -> 24606.15844 | AD75: =+INDEX(Actual!$N27:$AS27,,MATCH(Input!AD$7, Actual!$N$7:$AS$7,0))*AD$13 -> 24849.40112 | AE75: =+INDEX(Actual!$N27:$AS27,,MATCH(Input!AE$7, Actual!$N$7:$AS$7,0))*AE$13 -> 24849.40112 | AF75: =+INDEX(Actual!$N27:$AS27,,MATCH(Input!AF$7, Actual!$N$7:$AS$7,0))*AF$13 -> 25087.36208 | AG75: =+INDEX(Actual!$N27:$AS27,,MATCH(Input!AG$7, Actual!$N$7:$AS$7,0))*AG$13 -> 25087.36208 | AH75: =+INDEX(Actual!$N27:$AS27,,MATCH(Input!AH$7, Actual!$N$7:$AS$7,0))*AH$13 -> 25321.78731 | AI75: =+INDEX(Actual!$N27:$AS27,,MATCH(Input!AI$7, Actual!$N$7:$AS$7,0))*AI$13 -> 25321.78731 | AJ75: =+INDEX(Actual!$N27:$AS27,,MATCH(Input!AJ$7, Actual!$N$7:$AS$7,0))*AJ$13 -> 25559.04515 | AK75: =+INDEX(Actual!$N27:$AS27,,MATCH(Input!AK$7, Actual!$N$7:$AS$7,0))*AK$13 -> 25559.04515 | AL75: =+INDEX(Actual!$N27:$AS27,,MATCH(Input!AL$7, Actual!$N$7:$AS$7,0))*AL$13 -> 25796.95317 | AM75: =+INDEX(Actual!$N27:$AS27,,MATCH(Input!AM$7, Actual!$N$7:$AS$7,0))*AM$13 -> 25796.95317 | AN75: =+INDEX(Actual!$N27:$AS27,,MATCH(Input!AN$7, Actual!$N$7:$AS$7,0))*AN$13 -> 26035.48817 | AO75: =+INDEX(Actual!$N27:$AS27,,MATCH(Input!AO$7, Actual!$N$7:$AS$7,0))*AO$13 -> 26035.48817 | AP75: =+INDEX(Actual!$N27:$AS27,,MATCH(Input!AP$7, Actual!$N$7:$AS$7,0))*AP$13 -> 26274.62663 | AQ75: =+INDEX(Actual!$N27:$AS27,,MATCH(Input!AQ$7, Actual!$N$7:$AS$7,0))*AQ$13 -> 26274.62663
C76: Closed System Class 3 | D76: € / vkm | N76: =+INDEX(Actual!$N28:$AS28,,MATCH(Input!N$7, Actual!$N$7:$AS$7,0))*N$13 -> 4079.839111 | O76: =+INDEX(Actual!$N28:$AS28,,MATCH(Input!O$7, Actual!$N$7:$AS$7,0))*O$13 -> 4079.839111 | P76: =+INDEX(Actual!$N28:$AS28,,MATCH(Input!P$7, Actual!$N$7:$AS$7,0))*P$13 -> 4172.993439 | Q76: =+INDEX(Actual!$N28:$AS28,,MATCH(Input!Q$7, Actual!$N$7:$AS$7,0))*Q$13 -> 4172.993439 | R76: =+INDEX(Actual!$N28:$AS28,,MATCH(Input!R$7, Actual!$N$7:$AS$7,0))*R$13 -> 3863.649137 | S76: =+INDEX(Actual!$N28:$AS28,,MATCH(Input!S$7, Actual!$N$7:$AS$7,0))*S$13 -> 3863.649137 | T76: =+INDEX(Actual!$N28:$AS28,,MATCH(Input!T$7, Actual!$N$7:$AS$7,0))*T$13 -> 4132.312954 | U76: =+INDEX(Actual!$N28:$AS28,,MATCH(Input!U$7, Actual!$N$7:$AS$7,0))*U$13 -> 4132.312954 | V76: =+INDEX(Actual!$N28:$AS28,,MATCH(Input!V$7, Actual!$N$7:$AS$7,0))*V$13 -> 4178.498703 | W76: =+INDEX(Actual!$N28:$AS28,,MATCH(Input!W$7, Actual!$N$7:$AS$7,0))*W$13 -> 4178.498703 | X76: =+INDEX(Actual!$N28:$AS28,,MATCH(Input!X$7, Actual!$N$7:$AS$7,0))*X$13 -> 4224.545039 | Y76: =+INDEX(Actual!$N28:$AS28,,MATCH(Input!Y$7, Actual!$N$7:$AS$7,0))*Y$13 -> 4224.545039 | Z76: =+INDEX(Actual!$N28:$AS28,,MATCH(Input!Z$7, Actual!$N$7:$AS$7,0))*Z$13 -> 4277.368271 | AA76: =+INDEX(Actual!$N28:$AS28,,MATCH(Input!AA$7, Actual!$N$7:$AS$7,0))*AA$13 -> 4277.368271 | AB76: =+INDEX(Actual!$N28:$AS28,,MATCH(Input!AB$7, Actual!$N$7:$AS$7,0))*AB$13 -> 4326.082517 | AC76: =+INDEX(Actual!$N28:$AS28,,MATCH(Input!AC$7, Actual!$N$7:$AS$7,0))*AC$13 -> 4326.082517 | AD76: =+INDEX(Actual!$N28:$AS28,,MATCH(Input!AD$7, Actual!$N$7:$AS$7,0))*AD$13 -> 4373.567969 | AE76: =+INDEX(Actual!$N28:$AS28,,MATCH(Input!AE$7, Actual!$N$7:$AS$7,0))*AE$13 -> 4373.567969 | AF76: =+INDEX(Actual!$N28:$AS28,,MATCH(Input!AF$7, Actual!$N$7:$AS$7,0))*AF$13 -> 4421.133364 | AG76: =+INDEX(Actual!$N28:$AS28,,MATCH(Input!AG$7, Actual!$N$7:$AS$7,0))*AG$13 -> 4421.133364 | AH76: =+INDEX(Actual!$N28:$AS28,,MATCH(Input!AH$7, Actual!$N$7:$AS$7,0))*AH$13 -> 4468.881605 | AI76: =+INDEX(Actual!$N28:$AS28,,MATCH(Input!AI$7, Actual!$N$7:$AS$7,0))*AI$13 -> 4468.881605 | AJ76: =+INDEX(Actual!$N28:$AS28,,MATCH(Input!AJ$7, Actual!$N$7:$AS$7,0))*AJ$13 -> 4517.145526 | AK76: =+INDEX(Actual!$N28:$AS28,,MATCH(Input!AK$7, Actual!$N$7:$AS$7,0))*AK$13 -> 4517.145526 | AL76: =+INDEX(Actual!$N28:$AS28,,MATCH(Input!AL$7, Actual!$N$7:$AS$7,0))*AL$13 -> 4565.617972 | AM76: =+INDEX(Actual!$N28:$AS28,,MATCH(Input!AM$7, Actual!$N$7:$AS$7,0))*AM$13 -> 4565.617972 | AN76: =+INDEX(Actual!$N28:$AS28,,MATCH(Input!AN$7, Actual!$N$7:$AS$7,0))*AN$13 -> 4614.294484 | AO76: =+INDEX(Actual!$N28:$AS28,,MATCH(Input!AO$7, Actual!$N$7:$AS$7,0))*AO$13 -> 4614.294484 | AP76: =+INDEX(Actual!$N28:$AS28,,MATCH(Input!AP$7, Actual!$N$7:$AS$7,0))*AP$13 -> 4663.170511 | AQ76: =+INDEX(Actual!$N28:$AS28,,MATCH(Input!AQ$7, Actual!$N$7:$AS$7,0))*AQ$13 -> 4663.170511
C77: Closed System Class 4 | D77: € / vkm | N77: =+INDEX(Actual!$N29:$AS29,,MATCH(Input!N$7, Actual!$N$7:$AS$7,0))*N$13 -> 2919.357866 | O77: =+INDEX(Actual!$N29:$AS29,,MATCH(Input!O$7, Actual!$N$7:$AS$7,0))*O$13 -> 2919.357866 | P77: =+INDEX(Actual!$N29:$AS29,,MATCH(Input!P$7, Actual!$N$7:$AS$7,0))*P$13 -> 2986.015107 | Q77: =+INDEX(Actual!$N29:$AS29,,MATCH(Input!Q$7, Actual!$N$7:$AS$7,0))*Q$13 -> 2986.015107 | R77: =+INDEX(Actual!$N29:$AS29,,MATCH(Input!R$7, Actual!$N$7:$AS$7,0))*R$13 -> 2764.661594 | S77: =+INDEX(Actual!$N29:$AS29,,MATCH(Input!S$7, Actual!$N$7:$AS$7,0))*S$13 -> 2764.661594 | T77: =+INDEX(Actual!$N29:$AS29,,MATCH(Input!T$7, Actual!$N$7:$AS$7,0))*T$13 -> 2956.905897 | U77: =+INDEX(Actual!$N29:$AS29,,MATCH(Input!U$7, Actual!$N$7:$AS$7,0))*U$13 -> 2956.905897 | V77: =+INDEX(Actual!$N29:$AS29,,MATCH(Input!V$7, Actual!$N$7:$AS$7,0))*V$13 -> 2989.954438 | W77: =+INDEX(Actual!$N29:$AS29,,MATCH(Input!W$7, Actual!$N$7:$AS$7,0))*W$13 -> 2989.954438 | X77: =+INDEX(Actual!$N29:$AS29,,MATCH(Input!X$7, Actual!$N$7:$AS$7,0))*X$13 -> 3022.903221 | Y77: =+INDEX(Actual!$N29:$AS29,,MATCH(Input!Y$7, Actual!$N$7:$AS$7,0))*Y$13 -> 3022.903221 | Z77: =+INDEX(Actual!$N29:$AS29,,MATCH(Input!Z$7, Actual!$N$7:$AS$7,0))*Z$13 -> 3060.701259 | AA77: =+INDEX(Actual!$N29:$AS29,,MATCH(Input!AA$7, Actual!$N$7:$AS$7,0))*AA$13 -> 3060.701259 | AB77: =+INDEX(Actual!$N29:$AS29,,MATCH(Input!AB$7, Actual!$N$7:$AS$7,0))*AB$13 -> 3095.559084 | AC77: =+INDEX(Actual!$N29:$AS29,,MATCH(Input!AC$7, Actual!$N$7:$AS$7,0))*AC$13 -> 3095.559084 | AD77: =+INDEX(Actual!$N29:$AS29,,MATCH(Input!AD$7, Actual!$N$7:$AS$7,0))*AD$13 -> 3129.537637 | AE77: =+INDEX(Actual!$N29:$AS29,,MATCH(Input!AE$7, Actual!$N$7:$AS$7,0))*AE$13 -> 3129.537637 | AF77: =+INDEX(Actual!$N29:$AS29,,MATCH(Input!AF$7, Actual!$N$7:$AS$7,0))*AF$13 -> 3163.573394 | AG77: =+INDEX(Actual!$N29:$AS29,,MATCH(Input!AG$7, Actual!$N$7:$AS$7,0))*AG$13 -> 3163.573394 | AH77: =+INDEX(Actual!$N29:$AS29,,MATCH(Input!AH$7, Actual!$N$7:$AS$7,0))*AH$13 -> 3197.739986 | AI77: =+INDEX(Actual!$N29:$AS29,,MATCH(Input!AI$7, Actual!$N$7:$AS$7,0))*AI$13 -> 3197.739986 | AJ77: =+INDEX(Actual!$N29:$AS29,,MATCH(Input!AJ$7, Actual!$N$7:$AS$7,0))*AJ$13 -> 3232.275578 | AK77: =+INDEX(Actual!$N29:$AS29,,MATCH(Input!AK$7, Actual!$N$7:$AS$7,0))*AK$13 -> 3232.275578 | AL77: =+INDEX(Actual!$N29:$AS29,,MATCH(Input!AL$7, Actual!$N$7:$AS$7,0))*AL$13 -> 3266.960382 | AM77: =+INDEX(Actual!$N29:$AS29,,MATCH(Input!AM$7, Actual!$N$7:$AS$7,0))*AM$13 -> 3266.960382 | AN77: =+INDEX(Actual!$N29:$AS29,,MATCH(Input!AN$7, Actual!$N$7:$AS$7,0))*AN$13 -> 3301.791205 | AO77: =+INDEX(Actual!$N29:$AS29,,MATCH(Input!AO$7, Actual!$N$7:$AS$7,0))*AO$13 -> 3301.791205 | AP77: =+INDEX(Actual!$N29:$AS29,,MATCH(Input!AP$7, Actual!$N$7:$AS$7,0))*AP$13 -> 3336.764794 | AQ77: =+INDEX(Actual!$N29:$AS29,,MATCH(Input!AQ$7, Actual!$N$7:$AS$7,0))*AQ$13 -> 3336.764794
C78: Closed System Class 5 | D78: € / vkm | N78: =+INDEX(Actual!$N30:$AS30,,MATCH(Input!N$7, Actual!$N$7:$AS$7,0))*N$13 -> 31064.67767 | O78: =+INDEX(Actual!$N30:$AS30,,MATCH(Input!O$7, Actual!$N$7:$AS$7,0))*O$13 -> 31064.67767 | P78: =+INDEX(Actual!$N30:$AS30,,MATCH(Input!P$7, Actual!$N$7:$AS$7,0))*P$13 -> 31773.9726 | Q78: =+INDEX(Actual!$N30:$AS30,,MATCH(Input!Q$7, Actual!$N$7:$AS$7,0))*Q$13 -> 31773.9726 | R78: =+INDEX(Actual!$N30:$AS30,,MATCH(Input!R$7, Actual!$N$7:$AS$7,0))*R$13 -> 29418.56574 | S78: =+INDEX(Actual!$N30:$AS30,,MATCH(Input!S$7, Actual!$N$7:$AS$7,0))*S$13 -> 29418.56574 | T78: =+INDEX(Actual!$N30:$AS30,,MATCH(Input!T$7, Actual!$N$7:$AS$7,0))*T$13 -> 31464.22358 | U78: =+INDEX(Actual!$N30:$AS30,,MATCH(Input!U$7, Actual!$N$7:$AS$7,0))*U$13 -> 31464.22358 | V78: =+INDEX(Actual!$N30:$AS30,,MATCH(Input!V$7, Actual!$N$7:$AS$7,0))*V$13 -> 31815.89073 | W78: =+INDEX(Actual!$N30:$AS30,,MATCH(Input!W$7, Actual!$N$7:$AS$7,0))*W$13 -> 31815.89073 | X78: =+INDEX(Actual!$N30:$AS30,,MATCH(Input!X$7, Actual!$N$7:$AS$7,0))*X$13 -> 32166.49637 | Y78: =+INDEX(Actual!$N30:$AS30,,MATCH(Input!Y$7, Actual!$N$7:$AS$7,0))*Y$13 -> 32166.49637 | Z78: =+INDEX(Actual!$N30:$AS30,,MATCH(Input!Z$7, Actual!$N$7:$AS$7,0))*Z$13 -> 32568.70259 | AA78: =+INDEX(Actual!$N30:$AS30,,MATCH(Input!AA$7, Actual!$N$7:$AS$7,0))*AA$13 -> 32568.70259 | AB78: =+INDEX(Actual!$N30:$AS30,,MATCH(Input!AB$7, Actual!$N$7:$AS$7,0))*AB$13 -> 32939.6222 | AC78: =+INDEX(Actual!$N30:$AS30,,MATCH(Input!AC$7, Actual!$N$7:$AS$7,0))*AC$13 -> 32939.6222 | AD78: =+INDEX(Actual!$N30:$AS30,,MATCH(Input!AD$7, Actual!$N$7:$AS$7,0))*AD$13 -> 33301.18555 | AE78: =+INDEX(Actual!$N30:$AS30,,MATCH(Input!AE$7, Actual!$N$7:$AS$7,0))*AE$13 -> 33301.18555 | AF78: =+INDEX(Actual!$N30:$AS30,,MATCH(Input!AF$7, Actual!$N$7:$AS$7,0))*AF$13 -> 33663.35759 | AG78: =+INDEX(Actual!$N30:$AS30,,MATCH(Input!AG$7, Actual!$N$7:$AS$7,0))*AG$13 -> 33663.35759 | AH78: =+INDEX(Actual!$N30:$AS30,,MATCH(Input!AH$7, Actual!$N$7:$AS$7,0))*AH$13 -> 34026.92185 | AI78: =+INDEX(Actual!$N30:$AS30,,MATCH(Input!AI$7, Actual!$N$7:$AS$7,0))*AI$13 -> 34026.92185 | AJ78: =+INDEX(Actual!$N30:$AS30,,MATCH(Input!AJ$7, Actual!$N$7:$AS$7,0))*AJ$13 -> 34394.41261 | AK78: =+INDEX(Actual!$N30:$AS30,,MATCH(Input!AK$7, Actual!$N$7:$AS$7,0))*AK$13 -> 34394.41261 | AL78: =+INDEX(Actual!$N30:$AS30,,MATCH(Input!AL$7, Actual!$N$7:$AS$7,0))*AL$13 -> 34763.49112 | AM78: =+INDEX(Actual!$N30:$AS30,,MATCH(Input!AM$7, Actual!$N$7:$AS$7,0))*AM$13 -> 34763.49112 | AN78: =+INDEX(Actual!$N30:$AS30,,MATCH(Input!AN$7, Actual!$N$7:$AS$7,0))*AN$13 -> 35134.12341 | AO78: =+INDEX(Actual!$N30:$AS30,,MATCH(Input!AO$7, Actual!$N$7:$AS$7,0))*AO$13 -> 35134.12341 | AP78: =+INDEX(Actual!$N30:$AS30,,MATCH(Input!AP$7, Actual!$N$7:$AS$7,0))*AP$13 -> 35506.27486 | AQ78: =+INDEX(Actual!$N30:$AS30,,MATCH(Input!AQ$7, Actual!$N$7:$AS$7,0))*AQ$13 -> 35506.27486
C80: Sistema Aperto - CIPE
C81: Barriers Class A | D81: € / vkm | N81: =+INDEX(Actual!$N33:$AS33,,MATCH(Input!N$7, Actual!$N$7:$AS$7,0))*N$13 -> 265875.5666 | O81: =+INDEX(Actual!$N33:$AS33,,MATCH(Input!O$7, Actual!$N$7:$AS$7,0))*O$13 -> 265875.5666 | P81: =+INDEX(Actual!$N33:$AS33,,MATCH(Input!P$7, Actual!$N$7:$AS$7,0))*P$13 -> 288000.2532 | Q81: =+INDEX(Actual!$N33:$AS33,,MATCH(Input!Q$7, Actual!$N$7:$AS$7,0))*Q$13 -> 288000.2532 | R81: =+INDEX(Actual!$N33:$AS33,,MATCH(Input!R$7, Actual!$N$7:$AS$7,0))*R$13 -> 178021.9213 | S81: =+INDEX(Actual!$N33:$AS33,,MATCH(Input!S$7, Actual!$N$7:$AS$7,0))*S$13 -> 178021.9213 | T81: =+INDEX(Actual!$N33:$AS33,,MATCH(Input!T$7, Actual!$N$7:$AS$7,0))*T$13 -> 272455.7248 | U81: =+INDEX(Actual!$N33:$AS33,,MATCH(Input!U$7, Actual!$N$7:$AS$7,0))*U$13 -> 272455.7248 | V81: =+INDEX(Actual!$N33:$AS33,,MATCH(Input!V$7, Actual!$N$7:$AS$7,0))*V$13 -> 291102.2581 | W81: =+INDEX(Actual!$N33:$AS33,,MATCH(Input!W$7, Actual!$N$7:$AS$7,0))*W$13 -> 291102.2581 | X81: =+INDEX(Actual!$N33:$AS33,,MATCH(Input!X$7, Actual!$N$7:$AS$7,0))*X$13 -> 301351.8188 | Y81: =+INDEX(Actual!$N33:$AS33,,MATCH(Input!Y$7, Actual!$N$7:$AS$7,0))*Y$13 -> 301351.8188 | Z81: =+INDEX(Actual!$N33:$AS33,,MATCH(Input!Z$7, Actual!$N$7:$AS$7,0))*Z$13 -> 308430.4138 | AA81: =+INDEX(Actual!$N33:$AS33,,MATCH(Input!AA$7, Actual!$N$7:$AS$7,0))*AA$13 -> 308430.4138 | AB81: =+INDEX(Actual!$N33:$AS33,,MATCH(Input!AB$7, Actual!$N$7:$AS$7,0))*AB$13 -> 311765.1799 | AC81: =+INDEX(Actual!$N33:$AS33,,MATCH(Input!AC$7, Actual!$N$7:$AS$7,0))*AC$13 -> 311765.1799 | AD81: =+INDEX(Actual!$N33:$AS33,,MATCH(Input!AD$7, Actual!$N$7:$AS$7,0))*AD$13 -> 314571.1628 | AE81: =+INDEX(Actual!$N33:$AS33,,MATCH(Input!AE$7, Actual!$N$7:$AS$7,0))*AE$13 -> 314571.1628 | AF81: =+INDEX(Actual!$N33:$AS33,,MATCH(Input!AF$7, Actual!$N$7:$AS$7,0))*AF$13 -> 317275.9472 | AG81: =+INDEX(Actual!$N33:$AS33,,MATCH(Input!AG$7, Actual!$N$7:$AS$7,0))*AG$13 -> 317275.9472 | AH81: =+INDEX(Actual!$N33:$AS33,,MATCH(Input!AH$7, Actual!$N$7:$AS$7,0))*AH$13 -> 319749.9861 | AI81: =+INDEX(Actual!$N33:$AS33,,MATCH(Input!AI$7, Actual!$N$7:$AS$7,0))*AI$13 -> 319749.9861 | AJ81: =+INDEX(Actual!$N33:$AS33,,MATCH(Input!AJ$7, Actual!$N$7:$AS$7,0))*AJ$13 -> 322280.6914 | AK81: =+INDEX(Actual!$N33:$AS33,,MATCH(Input!AK$7, Actual!$N$7:$AS$7,0))*AK$13 -> 322280.6914 | AL81: =+INDEX(Actual!$N33:$AS33,,MATCH(Input!AL$7, Actual!$N$7:$AS$7,0))*AL$13 -> 324813.897 | AM81: =+INDEX(Actual!$N33:$AS33,,MATCH(Input!AM$7, Actual!$N$7:$AS$7,0))*AM$13 -> 324813.897 | AN81: =+INDEX(Actual!$N33:$AS33,,MATCH(Input!AN$7, Actual!$N$7:$AS$7,0))*AN$13 -> 327349.3474 | AO81: =+INDEX(Actual!$N33:$AS33,,MATCH(Input!AO$7, Actual!$N$7:$AS$7,0))*AO$13 -> 327349.3474 | AP81: =+INDEX(Actual!$N33:$AS33,,MATCH(Input!AP$7, Actual!$N$7:$AS$7,0))*AP$13 -> 329886.7845 | AQ81: =+INDEX(Actual!$N33:$AS33,,MATCH(Input!AQ$7, Actual!$N$7:$AS$7,0))*AQ$13 -> 329886.7845
C82: Barriers Class B | D82: € / vkm | N82: =+INDEX(Actual!$N34:$AS34,,MATCH(Input!N$7, Actual!$N$7:$AS$7,0))*N$13 -> 32282.88713 | O82: =+INDEX(Actual!$N34:$AS34,,MATCH(Input!O$7, Actual!$N$7:$AS$7,0))*O$13 -> 32282.88713 | P82: =+INDEX(Actual!$N34:$AS34,,MATCH(Input!P$7, Actual!$N$7:$AS$7,0))*P$13 -> 35200.38724 | Q82: =+INDEX(Actual!$N34:$AS34,,MATCH(Input!Q$7, Actual!$N$7:$AS$7,0))*Q$13 -> 35200.38724 | R82: =+INDEX(Actual!$N34:$AS34,,MATCH(Input!R$7, Actual!$N$7:$AS$7,0))*R$13 -> 25493.97111 | S82: =+INDEX(Actual!$N34:$AS34,,MATCH(Input!S$7, Actual!$N$7:$AS$7,0))*S$13 -> 25493.97111 | T82: =+INDEX(Actual!$N34:$AS34,,MATCH(Input!T$7, Actual!$N$7:$AS$7,0))*T$13 -> 34219.14857 | U82: =+INDEX(Actual!$N34:$AS34,,MATCH(Input!U$7, Actual!$N$7:$AS$7,0))*U$13 -> 34219.14857 | V82: =+INDEX(Actual!$N34:$AS34,,MATCH(Input!V$7, Actual!$N$7:$AS$7,0))*V$13 -> 36129.61762 | W82: =+INDEX(Actual!$N34:$AS34,,MATCH(Input!W$7, Actual!$N$7:$AS$7,0))*W$13 -> 36129.61762 | X82: =+INDEX(Actual!$N34:$AS34,,MATCH(Input!X$7, Actual!$N$7:$AS$7,0))*X$13 -> 37335.87701 | Y82: =+INDEX(Actual!$N34:$AS34,,MATCH(Input!Y$7, Actual!$N$7:$AS$7,0))*Y$13 -> 37335.87701 | Z82: =+INDEX(Actual!$N34:$AS34,,MATCH(Input!Z$7, Actual!$N$7:$AS$7,0))*Z$13 -> 38212.37327 | AA82: =+INDEX(Actual!$N34:$AS34,,MATCH(Input!AA$7, Actual!$N$7:$AS$7,0))*AA$13 -> 38212.37327 | AB82: =+INDEX(Actual!$N34:$AS34,,MATCH(Input!AB$7, Actual!$N$7:$AS$7,0))*AB$13 -> 38600.07903 | AC82: =+INDEX(Actual!$N34:$AS34,,MATCH(Input!AC$7, Actual!$N$7:$AS$7,0))*AC$13 -> 38600.07903 | AD82: =+INDEX(Actual!$N34:$AS34,,MATCH(Input!AD$7, Actual!$N$7:$AS$7,0))*AD$13 -> 38939.65509 | AE82: =+INDEX(Actual!$N34:$AS34,,MATCH(Input!AE$7, Actual!$N$7:$AS$7,0))*AE$13 -> 38939.65509 | AF82: =+INDEX(Actual!$N34:$AS34,,MATCH(Input!AF$7, Actual!$N$7:$AS$7,0))*AF$13 -> 39269.36979 | AG82: =+INDEX(Actual!$N34:$AS34,,MATCH(Input!AG$7, Actual!$N$7:$AS$7,0))*AG$13 -> 39269.36979 | AH82: =+INDEX(Actual!$N34:$AS34,,MATCH(Input!AH$7, Actual!$N$7:$AS$7,0))*AH$13 -> 39592.16262 | AI82: =+INDEX(Actual!$N34:$AS34,,MATCH(Input!AI$7, Actual!$N$7:$AS$7,0))*AI$13 -> 39592.16262 | AJ82: =+INDEX(Actual!$N34:$AS34,,MATCH(Input!AJ$7, Actual!$N$7:$AS$7,0))*AJ$13 -> 39923.77719 | AK82: =+INDEX(Actual!$N34:$AS34,,MATCH(Input!AK$7, Actual!$N$7:$AS$7,0))*AK$13 -> 39923.77719 | AL82: =+INDEX(Actual!$N34:$AS34,,MATCH(Input!AL$7, Actual!$N$7:$AS$7,0))*AL$13 -> 40255.69059 | AM82: =+INDEX(Actual!$N34:$AS34,,MATCH(Input!AM$7, Actual!$N$7:$AS$7,0))*AM$13 -> 40255.69059 | AN82: =+INDEX(Actual!$N34:$AS34,,MATCH(Input!AN$7, Actual!$N$7:$AS$7,0))*AN$13 -> 40587.86414 | AO82: =+INDEX(Actual!$N34:$AS34,,MATCH(Input!AO$7, Actual!$N$7:$AS$7,0))*AO$13 -> 40587.86414 | AP82: =+INDEX(Actual!$N34:$AS34,,MATCH(Input!AP$7, Actual!$N$7:$AS$7,0))*AP$13 -> 40920.25879 | AQ82: =+INDEX(Actual!$N34:$AS34,,MATCH(Input!AQ$7, Actual!$N$7:$AS$7,0))*AQ$13 -> 40920.25879
